{"text_format":"1","workbook":"xlsx","n_sheets":4,"sheets":["Dati Gen","Committenti","UnitàImmobiliari","Computo-Massimali"],"not_rendered":{"charts":0,"images":2,"macros":1,"external_links":0,"defined_names":44,"comments":4,"pivot_tables":0},"unopened":[],"bounds":{"document_bytes":16777216,"sheet_cells":100000,"rows_first":2000,"rows_last":500,"rows_between":2000,"halvings":0,"cell_chars":16384,"cell_head_chars":4096},"cells_cut":0,"cells_raw":0,"read":"whole","date_system":"1900"}

{"sheet":"Dati Gen","index":0,"n_rows":1006,"n_cols":19,"rows_kept":1006,"cut":false,"hidden":false,"merged":[[8,4,8,9],[26,17,26,26],[27,17,27,26],[28,17,28,26],[29,17,29,26],[30,17,30,26],[7,19,7,25],[32,19,32,25],[23,18,23,25],[32,7,32,8],[9,7,9,8],[10,7,10,12],[23,12,23,13],[26,7,26,8],[27,7,27,8],[28,7,28,8],[26,4,26,5],[12,8,12,9],[12,10,12,12],[12,1,12,7],[15,2,15,4],[16,12,16,13],[9,2,9,3],[13,11,13,12],[51,18,51,25],[31,17,31,26],[24,17,24,26],[25,17,25,26],[34,17,34,26],[38,12,38,13],[39,12,39,13],[32,10,32,11],[50,11,50,12],[33,9,33,11],[32,12,32,13],[33,12,33,13],[34,12,34,13],[49,9,49,10],[50,9,50,10],[45,11,45,12],[46,11,46,12],[30,12,30,13],[30,10,30,11],[26,10,26,11],[24,10,24,11],[1,10,1,12],[28,10,28,11],[25,10,25,11],[31,10,31,11],[17,12,17,13],[18,12,18,13],[27,10,27,11],[29,10,29,11],[23,9,23,11],[5,7,5,9],[5,10,5,13],[15,5,15,13],[31,12,31,13],[31,7,31,8],[1,13,1,14],[19,12,19,13],[20,12,20,13],[26,12,26,13],[27,12,27,13],[28,12,28,13],[29,12,29,13],[21,12,21,13],[2,12,2,13],[13,6,13,9],[45,4,45,5],[46,4,46,5],[32,4,32,5],[35,12,35,13],[35,4,35,5],[35,10,35,11],[31,4,31,5],[44,9,44,10],[37,1,37,13],[39,2,39,4],[42,11,42,12],[43,11,43,12],[40,2,40,13],[42,9,42,10],[43,9,43,10],[42,4,42,5],[42,6,42,8],[44,11,44,12],[31,2,31,3],[34,10,34,11],[34,7,34,8],[34,4,34,5],[33,4,33,5],[46,6,46,8],[48,6,48,8],[49,6,49,8],[48,9,48,10],[45,9,45,10],[46,9,46,10],[47,9,47,10],[48,11,48,12],[49,11,49,12],[47,6,47,8],[47,11,47,12],[33,6,33,8],[38,2,38,4],[47,4,47,5],[48,4,48,5],[35,7,35,8],[49,1,49,2],[50,1,50,2],[42,1,42,2],[43,1,43,2],[45,1,45,2],[46,1,46,2],[47,1,47,2],[48,1,48,2],[49,4,49,5],[44,4,44,5],[50,4,50,5],[44,1,44,2],[38,6,38,10],[39,6,39,10],[43,4,43,5],[43,6,43,8],[44,6,44,8],[50,6,50,8],[45,6,45,8],[10,1,10,3],[11,1,11,3],[23,6,23,8],[22,1,22,13],[29,2,29,3],[16,5,16,8],[17,6,17,8],[18,6,18,8],[25,7,25,8],[29,7,29,8],[30,2,30,3],[24,12,24,13],[25,12,25,13],[28,4,28,5],[29,4,29,5],[30,4,30,5],[16,1,16,4],[24,7,24,8],[24,2,24,3],[25,2,25,3],[26,2,26,3],[27,2,27,3],[28,2,28,3],[23,4,23,5],[25,4,25,5],[24,4,24,5],[30,7,30,8],[23,2,23,3],[7,1,7,3],[27,4,27,5],[4,7,4,9],[21,6,21,11],[19,6,19,8],[20,6,20,8],[16,10,16,11],[17,10,17,11],[18,10,18,11],[19,10,19,11],[20,10,20,11],[10,4,10,6],[4,1,4,4],[5,1,5,6],[7,4,7,11],[11,4,11,9],[20,1,20,4],[17,1,17,4],[18,1,18,4],[19,1,19,4],[4,10,4,13],[13,4,13,5],[8,1,8,3],[13,1,13,3]]}
[null,"https://www.madosoft.it/prodotti/superbonus110/verifica-massimali",null,null,null,null,null,null,null,null,null,null,null,null,null,null,1]
[0,null,null,null,null,null,null,null,null,null,"Verifica Massimali",null,null,null,null,null,"Edificio Unifamiliare"]
[null,"PRATICA SUPERBONUS 110%",null,null,null,"N.",1,null,null,null,"Vers.ne","2022.1.0",null,null,null,1,1]
["","Tipologia Immobile",null,null,null,null,null,null,null,null,"©2021-2022 SIM srl - www.madosoft.it"]
[null,1,null,null,null,2,1,{"$f":"IF(TipoEdif=2,\"Denominazione : \",\"\")","v":""},null,null,null,null,null,null,null,null,"Edificio Unifamiliare"]
[null,{"$f":"IF(TipoEdif=1, IF(N_Uimm>1,\"Inserire N.Unità Immobiliari =1\",\"\"),IF(N_Uimm<=1,\"Inserire N.Unità Immobiliari >=2\",\"\"))","v":""},null,null,null,null,null,{"$f":"IF(TipoEdif=2,\"Codice Fiscale : \",\"\")","v":""},null,null,null,null,null,null,null,null,"Condominio "]
[null,"Dati Edificio",null,null,null,null,null,null,null,null,null,null,null,null,null,null,1]
[null,"Comune di Ubicazione",null,null,null,null,null,null,null,null,null,null,"CAP",null,null,null,{"$f":"Q7+1","v":2}]
[null,"Indirizzo",null,null,null,null,null,null,null,null,"N.",null,"Zona","D",null,null,{"$f":"Q8+1","v":3}]
[null,{"$f":"IF(TipoEdif=2,\"Dati Catastali 1ª U.I.\",\"Dati Catastali\")","v":"Dati Catastali"},"Cod.Comune",null,null,"Foglio",null,"Particella",null,null,"Sub.",null,"CAT.",null,null,null,4]
[null,"Anno di Costruzione Immobile",null,null,null,null,null,"Superficie Totale Disperdente   :",null,null,null,null,null,null,null,null,5]
[null,"Autorizzazione Edilizia",null,null,"Licenza Edilizia / Titolo Edilizio",null,null,null,null,null,{"$f":"IF(E12=\"Licenza Edilizia / Titolo Edilizio\",\"N.\",IF(E12=\"Concessione in Sanatoria\",\"N.\",\"\"))","v":"N."},null,"Data",null,null,null,6]
[null,"Relazione ex Legge 10/91  Depositata al Comune in Data ",null,null,null,null,null,null,null,null,"Prot. N.  ",null,null,null,null,null,7]
[null,"Data Inizio Lavori",null,null,null,null,"Immobile Vincolato/Restriz.Edilizie",null,null,null,"NO","Edilizia Libera",null,"NO",null,null,8]
[null,null,null,null,null,null,null,null,null,null,null,null,null,null,null,null,9]
[null,"DATI DI PROGETTO","Oggetto Lavori :",null,null,"PROGETTO PER L’ADEGUAMENTO SISMICO, IL MIGLIORAMENTO ENERGETICO E PARZIALE CAMBIO DI DESTINAZIONE D’USO DEL FABBRICATO SITO IN VIA COLOMBO N.66 – FG.12 P.LLA 285 SUB.2-3 : PdC N.02/2021  del 17/03/2021",null,null,null,null,null,null,null,null,null,null,10]
[null,"Descrizione",null,null,null,"Imponibile",null,null,null,"%iva","IVA",null,"Totale",null,null,null,11]
[null,"Importo complessivo Lavori",null,null,null,null,null,null,null,0.1,{"$f":"G18*J18","v":0},null,{"$f":"G18+K18","v":0},null,null,null,12]
[null,"di cui Oneri/Lavori x Sicurezza",null,null,null,null,null,null,null,{"$f":"J18","v":0.1},{"$f":"G19*J19","v":0},null,{"$f":"G19+K19","v":0},null,null,null,13]
[null,"Importo Lavori al netto della Sicurezza",null,null,null,null,{"$f":"G18-G19","v":0},null,null,{"$f":"J18","v":0.1},{"$f":"G20*J20","v":0},null,{"$f":"G20+K20","v":0},null,null,null,14]
[null,"Spese tecniche (compresa iva)",null,null,null,null,{"$f":"M36","v":0},null,null,null,null,null,{"$f":"G21","v":0},null,null,null,15]
[null,null,null,null,null,null,"Importo Complessivo Progetto : ",null,null,null,null,null,{"$f":"M18+M21","v":0},null,null,null,16]
[null,null,null,null,null,null,null,null,null,null,null,null,null,null,null,null,17]
[null,"SPESE TECNICHE","Tecnico",null,"Onorario",null,"C.Cassa",null,null,"IVA",null,null,"Totale",null,null,null,18,null,"Foto 1"]
[null,"Redazione APE ante, Progettazione energetica","Ingegnere1",null,0,null,0.04,{"$f":"E25*G25","v":0},null,0.22,{"$f":"(E25+H25)*J25","v":0},null,{"$f":"E25+H25+K25","v":0},null,null,null,19,{"$f":"IF(C25<>\"\",IFERROR(IF(VLOOKUP(C25,$B$44:$D$51,3,FALSE)=\"NO\",IF(J25=0,\"Attenzione, tecnico esente iva (Forfettario) dovrebbe applicare sconto in fattura. Le relative competenze saranno inserite nella Fattura del G.C. come rimborso spese con IVA=0 <<<<<< Consulenti non d'accordo\",\"\"),\"\"),\"\"),\"\")","v":""}]
[null,"Progettazione e DD.LL.","Ingegnere1",null,0,null,0.04,0,null,0.22,0,null,{"$f":"E26+H26+K26","v":0},null,null,null,20,{"$f":"IF(C26<>\"\",IFERROR(IF(VLOOKUP(C26,$B$44:$D$51,3,FALSE)=\"NO\",IF(J26=0,\"Attenzione, tecnico esente iva (Forfettario) dovrebbe applicare sconto in fattura. Le relative competenze saranno inserite nella Fattura del G.C. come rimborso spese con IVA=0 <<<<<< Consulenti non d'accordo\",\"\"),\"\"),\"\"),\"\")","v":""}]
[null,"Relazione Geologica","Geologo",null,0,null,0.04,0,null,0.22,0,null,{"$f":"E27+H27+K27","v":0},null,null,null,21,""]
[null,"Collaudo","Architetto1",null,0,null,0.04,0,null,0.22,0,null,0,null,null,null,22,""]
[null,"Redazione APE post","Ingegnere1",null,0,null,0.04,0,null,0.22,0,null,0,null,null,null,23,""]
[null,null,null,null,0,null,0.04,0,null,0.22,0,null,0,null,null,null,24,""]
[null,null,null,null,0,null,0.04,0,null,0.22,0,null,0,null,null,null,25,""]
[null,null,null,null,0,null,0.04,0,null,0.22,0,null,0,null,null,null,26,""]
[null,null,null,null,{"$f":"SUM(E25:F32)","v":0},null,null,{"$f":"SUM(H25:I32)","v":0},null,null,{"$f":"SUM(K25:L32)","v":0},null,{"$f":"SUM(M25:N32)","v":0},null,null,null,27]
[null,null,null,null,"onorario",null,"c.cassa",null,null,"iva",null,null,"totale",null,null,null,28]
[null,"Visto Conformità","Consulente",0.02,{"$f":"G18*D35","v":0},null,0.04,{"$f":"E35*G35","v":0},null,0.22,{"$f":"(E35+H35)*J35","v":0},null,{"$f":"E35+H35+K35","v":0},null,null,null,29,{"$f":"IF(C35<>\"\",IFERROR(IF(VLOOKUP(C35,$B$44:$D$51,3,FALSE)=\"NO\",IF(J35=0,\"Attenzione, tecnico esente iva (Forfettario) dovrebbe applicare sconto in fattura. Le relative competenze saranno inserite nella Fattura del G.C. come rimborso spese con IVA=0 <<<<<< Consulenti non d'accordo\",\"\"),\"\"),\"\"),\"\")","v":""}]
[null,null,null,null,{"$f":"E33+E35","v":0},null,null,{"$f":"H33+H35","v":0},null,null,{"$f":"K33+K35","v":0},null,{"$f":"M33+M35","v":0},null,null,null,30]
[null,null,null,null,null,null,null,null,null,null,null,null,null,null,null,null,31]
[null,"Appaltatore / General Contractor / Soggetto Principale a cui viene ceduto il credito",null,null,null,null,null,null,null,null,null,null,null,null,null,null,32]
[null,"Denominazione",null,null,null,"CF/Piva",null,null,null,null,null,"Tel.",null,null,null,null,33]
[null,"Indirizzo",null,null,null,"Città",null,null,null,null,null,"Mail",null,null,null,null,34]
[null,"Dati Pagamento",null,null,null,null,null,null,null,null,null,null,null,null,null,null,35]
[null,null,null,null,null,null,null,null,null,null,null,null,null,null,null,null,36]
[null,"TECNICI",null,"Sc.to","Indirizzo",null,"Città",null,null,"CodFisc/Piva",null,"Tel./Mail",null,"Dati Pagamento"," ",null,37]
[null,"Ingegnere1",null,"SI",null,null,null,null,null,"ZFNMRA64E16C135A/04333460824",null,null,null,"Bonifico Bancario | Zafonte Mario | Banca Unicredit | IBAN : IT35S0200843240000300246664"," ",null,38]
[null,"Geologo",null,"NO",null,null,null,null,null,null,null,null,null,null," ",null,39]
[null,"Architetto1",null,"NO",null,null,null,null,null,null,null,null,null,null," ",null,40]
[null,"Consulente",null,"NO",null,null,null,null,null,"CODFISCCONSULENT",null,null,null,null," ",null,41]
[null,null,null,"NO",null,null,null,null,null,null,null,null,null,null," ",null,42]
[null,null,null,"NO",null,null,null,null,null,null,null,null,null,null," ",null,43]
[null,null,null,"NO",null,null,null,null,null,null,null,null,null,null," ",null,44]
[null,null,null,"NO",null,null,null,null,null,null,null,null,null,null," ",null,45]
[null,null,null,null,null,null,null,null,null,null,null,null,null,null,null,null,46,null,"Foto 2"]
[null,null,null,null,null,null,null,null,null,null,null,null,null,null,null,null,47]
[null,null,null,null,null,null,null,null,null,null,null,null,null,null,null,null,48]
[null,null,null,null,null,null,null,null,null,null,null,null,null,null,null,null,49]
[null,null,null,null,null,null,null,null,null,null,null,null,null,null,null,null,50]
[null,null,null,null,null,null,null,null,null,null,null,null,null,null,null,null,51]
[null,null,null,null,null,null,null,null,null,null,null,null,null,null,null,null,52]
[null,null,null,null,null,null,null,null,null,null,null,null,null,null,null,null,53]
[null,null,null,null,null,null,null,null,null,null,null,null,null,null,null,null,54]
[null,null,null,null,null,null,null,null,null,null,null,null,null,null,null,null,55]
[null,null,null,null,null,null,null,null,null,null,null,null,null,null,null,null,56]
[null,null,null,null,null,null,null,null,null,null,null,null,null,null,null,null,57]
[null,null,null,null,null,null,null,null,null,null,null,null,null,null,null,null,58]
[null,null,null,null,null,null,null,null,null,null,null,null,null,null,null,null,59]
[null,null,null,null,null,null,null,null,null,null,null,null,null,null,null,null,60]
[null,null,null,null,null,null,null,null,null,null,null,null,null,null,null,null,61]
[null,null,null,null,null,null,null,null,null,null,null,null,null,null,null,null,62]
[null,null,null,null,null,null,null,null,null,null,null,null,null,null,null,null,63]
[null,null,null,null,null,null,null,null,null,null,null,null,null,null,null,null,64]
[null,null,null,null,null,null,null,null,null,null,null,null,null,null,null,null,65]
[null,null,null,null,null,null,null,null,null,null,null,null,null,null,null,null,66]
[null,null,null,null,null,null,null,null,null,null,null,null,null,null,null,null,{"$f":"Q72+1","v":67}]
[null,null,null,null,null,null,null,null,null,null,null,null,null,null,null,null,68]
[null,null,null,null,null,null,null,null,null,null,null,null,null,null,null,null,69]
[null,null,null,null,null,null,null,null,null,null,null,null,null,null,null,null,70]
[null,null,null,null,null,null,null,null,null,null,null,null,null,null,null,null,71]
[null,null,null,null,null,null,null,null,null,null,null,null,null,null,null,null,72]
[null,null,null,null,null,null,null,null,null,null,null,null,null,null,null,null,73]
[null,null,null,null,null,null,null,null,null,null,null,null,null,null,null,null,74]
[null,null,null,null,null,null,null,null,null,null,null,null,null,null,null,null,75]
[null,null,null,null,null,null,null,null,null,null,null,null,null,null,null,null,76]
[null,null,null,null,null,null,null,null,null,null,null,null,null,null,null,null,77]
[null,null,null,null,null,null,null,null,null,null,null,null,null,null,null,null,78]
[null,null,null,null,null,null,null,null,null,null,null,null,null,null,null,null,79]
[null,null,null,null,null,null,null,null,null,null,null,null,null,null,null,null,80]
[null,null,null,null,null,null,null,null,null,null,null,null,null,null,null,null,81]
[null,null,null,null,null,null,null,null,null,null,null,null,null,null,null,null,82]
[null,null,null,null,null,null,null,null,null,null,null,null,null,null,null,null,83]
[null,null,null,null,null,null,null,null,null,null,null,null,null,null,null,null,84]
[null,null,null,null,null,null,null,null,null,null,null,null,null,null,null,null,85]
[null,null,null,null,null,null,null,null,null,null,null,null,null,null,null,null,86]
[null,null,null,null,null,null,null,null,null,null,null,null,null,null,null,null,87]
[null,null,null,null,null,null,null,null,null,null,null,null,null,null,null,null,88]
[null,null,null,null,null,null,null,null,null,null,null,null,null,null,null,null,89]
[null,null,null,null,null,null,null,null,null,null,null,null,null,null,null,null,90]
[null,null,null,null,null,null,null,null,null,null,null,null,null,null,null,null,91]
[null,null,null,null,null,null,null,null,null,null,null,null,null,null,null,null,92]
[null,null,null,null,null,null,null,null,null,null,null,null,null,null,null,null,93]
[null,null,null,null,null,null,null,null,null,null,null,null,null,null,null,null,94]
[null,null,null,null,null,null,null,null,null,null,null,null,null,null,null,null,95]
[null,null,null,null,null,null,null,null,null,null,null,null,null,null,null,null,96]
[null,null,null,null,null,null,null,null,null,null,null,null,null,null,null,null,97]
[null,null,null,null,null,null,null,null,null,null,null,null,null,null,null,null,98]
[null,null,null,null,null,null,null,null,null,null,null,null,null,null,null,null,99]
[null,null,null,null,null,null,null,null,null,null,null,null,null,null,null,null,100]
[null,null,null,null,null,null,null,null,null,null,null,null,null,null,null,null,101]
[null,null,null,null,null,null,null,null,null,null,null,null,null,null,null,null,102]
[null,null,null,null,null,null,null,null,null,null,null,null,null,null,null,null,103]
[null,null,null,null,null,null,null,null,null,null,null,null,null,null,null,null,104]
[null,null,null,null,null,null,null,null,null,null,null,null,null,null,null,null,105]
[null,null,null,null,null,null,null,null,null,null,null,null,null,null,null,null,106]
[null,null,null,null,null,null,null,null,null,null,null,null,null,null,null,null,107]
[null,null,null,null,null,null,null,null,null,null,null,null,null,null,null,null,108]
[null,null,null,null,null,null,null,null,null,null,null,null,null,null,null,null,109]
[null,null,null,null,null,null,null,null,null,null,null,null,null,null,null,null,110]
[null,null,null,null,null,null,null,null,null,null,null,null,null,null,null,null,111]
[null,null,null,null,null,null,null,null,null,null,null,null,null,null,null,null,112]
[null,null,null,null,null,null,null,null,null,null,null,null,null,null,null,null,113]
[null,null,null,null,null,null,null,null,null,null,null,null,null,null,null,null,114]
[null,null,null,null,null,null,null,null,null,null,null,null,null,null,null,null,115]
[null,null,null,null,null,null,null,null,null,null,null,null,null,null,null,null,116]
[null,null,null,null,null,null,null,null,null,null,null,null,null,null,null,null,117]
[null,null,null,null,null,null,null,null,null,null,null,null,null,null,null,null,118]
[null,null,null,null,null,null,null,null,null,null,null,null,null,null,null,null,119]
[null,null,null,null,null,null,null,null,null,null,null,null,null,null,null,null,120]
[null,null,null,null,null,null,null,null,null,null,null,null,null,null,null,null,121]
[null,null,null,null,null,null,null,null,null,null,null,null,null,null,null,null,122]
[null,null,null,null,null,null,null,null,null,null,null,null,null,null,null,null,123]
[null,null,null,null,null,null,null,null,null,null,null,null,null,null,null,null,124]
[null,null,null,null,null,null,null,null,null,null,null,null,null,null,null,null,125]
[null,null,null,null,null,null,null,null,null,null,null,null,null,null,null,null,126]
[null,null,null,null,null,null,null,null,null,null,null,null,null,null,null,null,127]
[null,null,null,null,null,null,null,null,null,null,null,null,null,null,null,null,128]
[null,null,null,null,null,null,null,null,null,null,null,null,null,null,null,null,129]
[null,null,null,null,null,null,null,null,null,null,null,null,null,null,null,null,130]
[null,null,null,null,null,null,null,null,null,null,null,null,null,null,null,null,{"$f":"Q136+1","v":131}]
[null,null,null,null,null,null,null,null,null,null,null,null,null,null,null,null,132]
[null,null,null,null,null,null,null,null,null,null,null,null,null,null,null,null,133]
[null,null,null,null,null,null,null,null,null,null,null,null,null,null,null,null,134]
[null,null,null,null,null,null,null,null,null,null,null,null,null,null,null,null,135]
[null,null,null,null,null,null,null,null,null,null,null,null,null,null,null,null,136]
[null,null,null,null,null,null,null,null,null,null,null,null,null,null,null,null,137]
[null,null,null,null,null,null,null,null,null,null,null,null,null,null,null,null,138]
[null,null,null,null,null,null,null,null,null,null,null,null,null,null,null,null,139]
[null,null,null,null,null,null,null,null,null,null,null,null,null,null,null,null,140]
[null,null,null,null,null,null,null,null,null,null,null,null,null,null,null,null,141]
[null,null,null,null,null,null,null,null,null,null,null,null,null,null,null,null,142]
[null,null,null,null,null,null,null,null,null,null,null,null,null,null,null,null,143]
[null,null,null,null,null,null,null,null,null,null,null,null,null,null,null,null,144]
[null,null,null,null,null,null,null,null,null,null,null,null,null,null,null,null,145]
[null,null,null,null,null,null,null,null,null,null,null,null,null,null,null,null,146]
[null,null,null,null,null,null,null,null,null,null,null,null,null,null,null,null,147]
[null,null,null,null,null,null,null,null,null,null,null,null,null,null,null,null,148]
[null,null,null,null,null,null,null,null,null,null,null,null,null,null,null,null,149]
[null,null,null,null,null,null,null,null,null,null,null,null,null,null,null,null,150]
[null,null,null,null,null,null,null,null,null,null,null,null,null,null,null,null,151]
[null,null,null,null,null,null,null,null,null,null,null,null,null,null,null,null,152]
[null,null,null,null,null,null,null,null,null,null,null,null,null,null,null,null,153]
[null,null,null,null,null,null,null,null,null,null,null,null,null,null,null,null,154]
[null,null,null,null,null,null,null,null,null,null,null,null,null,null,null,null,155]
[null,null,null,null,null,null,null,null,null,null,null,null,null,null,null,null,156]
[null,null,null,null,null,null,null,null,null,null,null,null,null,null,null,null,157]
[null,null,null,null,null,null,null,null,null,null,null,null,null,null,null,null,158]
[null,null,null,null,null,null,null,null,null,null,null,null,null,null,null,null,159]
[null,null,null,null,null,null,null,null,null,null,null,null,null,null,null,null,160]
[null,null,null,null,null,null,null,null,null,null,null,null,null,null,null,null,161]
[null,null,null,null,null,null,null,null,null,null,null,null,null,null,null,null,162]
[null,null,null,null,null,null,null,null,null,null,null,null,null,null,null,null,163]
[null,null,null,null,null,null,null,null,null,null,null,null,null,null,null,null,164]
[null,null,null,null,null,null,null,null,null,null,null,null,null,null,null,null,165]
[null,null,null,null,null,null,null,null,null,null,null,null,null,null,null,null,166]
[null,null,null,null,null,null,null,null,null,null,null,null,null,null,null,null,167]
[null,null,null,null,null,null,null,null,null,null,null,null,null,null,null,null,168]
[null,null,null,null,null,null,null,null,null,null,null,null,null,null,null,null,169]
[null,null,null,null,null,null,null,null,null,null,null,null,null,null,null,null,170]
[null,null,null,null,null,null,null,null,null,null,null,null,null,null,null,null,171]
[null,null,null,null,null,null,null,null,null,null,null,null,null,null,null,null,172]
[null,null,null,null,null,null,null,null,null,null,null,null,null,null,null,null,173]
[null,null,null,null,null,null,null,null,null,null,null,null,null,null,null,null,174]
[null,null,null,null,null,null,null,null,null,null,null,null,null,null,null,null,175]
[null,null,null,null,null,null,null,null,null,null,null,null,null,null,null,null,176]
[null,null,null,null,null,null,null,null,null,null,null,null,null,null,null,null,177]
[null,null,null,null,null,null,null,null,null,null,null,null,null,null,null,null,178]
[null,null,null,null,null,null,null,null,null,null,null,null,null,null,null,null,179]
[null,null,null,null,null,null,null,null,null,null,null,null,null,null,null,null,180]
[null,null,null,null,null,null,null,null,null,null,null,null,null,null,null,null,181]
[null,null,null,null,null,null,null,null,null,null,null,null,null,null,null,null,182]
[null,null,null,null,null,null,null,null,null,null,null,null,null,null,null,null,183]
[null,null,null,null,null,null,null,null,null,null,null,null,null,null,null,null,184]
[null,null,null,null,null,null,null,null,null,null,null,null,null,null,null,null,185]
[null,null,null,null,null,null,null,null,null,null,null,null,null,null,null,null,186]
[null,null,null,null,null,null,null,null,null,null,null,null,null,null,null,null,187]
[null,null,null,null,null,null,null,null,null,null,null,null,null,null,null,null,188]
[null,null,null,null,null,null,null,null,null,null,null,null,null,null,null,null,189]
[null,null,null,null,null,null,null,null,null,null,null,null,null,null,null,null,190]
[null,null,null,null,null,null,null,null,null,null,null,null,null,null,null,null,191]
[null,null,null,null,null,null,null,null,null,null,null,null,null,null,null,null,192]
[null,null,null,null,null,null,null,null,null,null,null,null,null,null,null,null,193]
[null,null,null,null,null,null,null,null,null,null,null,null,null,null,null,null,194]
[null,null,null,null,null,null,null,null,null,null,null,null,null,null,null,null,{"$f":"Q200+1","v":195}]
[null,null,null,null,null,null,null,null,null,null,null,null,null,null,null,null,196]
[null,null,null,null,null,null,null,null,null,null,null,null,null,null,null,null,197]
[null,null,null,null,null,null,null,null,null,null,null,null,null,null,null,null,198]
[null,null,null,null,null,null,null,null,null,null,null,null,null,null,null,null,199]
[null,null,null,null,null,null,null,null,null,null,null,null,null,null,null,null,200]
[null,null,null,null,null,null,null,null,null,null,null,null,null,null,null,null,201]
[null,null,null,null,null,null,null,null,null,null,null,null,null,null,null,null,202]
[null,null,null,null,null,null,null,null,null,null,null,null,null,null,null,null,203]
[null,null,null,null,null,null,null,null,null,null,null,null,null,null,null,null,204]
[null,null,null,null,null,null,null,null,null,null,null,null,null,null,null,null,205]
[null,null,null,null,null,null,null,null,null,null,null,null,null,null,null,null,206]
[null,null,null,null,null,null,null,null,null,null,null,null,null,null,null,null,207]
[null,null,null,null,null,null,null,null,null,null,null,null,null,null,null,null,208]
[null,null,null,null,null,null,null,null,null,null,null,null,null,null,null,null,209]
[null,null,null,null,null,null,null,null,null,null,null,null,null,null,null,null,210]
[null,null,null,null,null,null,null,null,null,null,null,null,null,null,null,null,211]
[null,null,null,null,null,null,null,null,null,null,null,null,null,null,null,null,212]
[null,null,null,null,null,null,null,null,null,null,null,null,null,null,null,null,213]
[null,null,null,null,null,null,null,null,null,null,null,null,null,null,null,null,214]
[null,null,null,null,null,null,null,null,null,null,null,null,null,null,null,null,215]
[null,null,null,null,null,null,null,null,null,null,null,null,null,null,null,null,216]
[null,null,null,null,null,null,null,null,null,null,null,null,null,null,null,null,217]
[null,null,null,null,null,null,null,null,null,null,null,null,null,null,null,null,218]
[null,null,null,null,null,null,null,null,null,null,null,null,null,null,null,null,219]
[null,null,null,null,null,null,null,null,null,null,null,null,null,null,null,null,220]
[null,null,null,null,null,null,null,null,null,null,null,null,null,null,null,null,221]
[null,null,null,null,null,null,null,null,null,null,null,null,null,null,null,null,222]
[null,null,null,null,null,null,null,null,null,null,null,null,null,null,null,null,223]
[null,null,null,null,null,null,null,null,null,null,null,null,null,null,null,null,224]
[null,null,null,null,null,null,null,null,null,null,null,null,null,null,null,null,225]
[null,null,null,null,null,null,null,null,null,null,null,null,null,null,null,null,226]
[null,null,null,null,null,null,null,null,null,null,null,null,null,null,null,null,227]
[null,null,null,null,null,null,null,null,null,null,null,null,null,null,null,null,228]
[null,null,null,null,null,null,null,null,null,null,null,null,null,null,null,null,229]
[null,null,null,null,null,null,null,null,null,null,null,null,null,null,null,null,230]
[null,null,null,null,null,null,null,null,null,null,null,null,null,null,null,null,231]
[null,null,null,null,null,null,null,null,null,null,null,null,null,null,null,null,232]
[null,null,null,null,null,null,null,null,null,null,null,null,null,null,null,null,233]
[null,null,null,null,null,null,null,null,null,null,null,null,null,null,null,null,234]
[null,null,null,null,null,null,null,null,null,null,null,null,null,null,null,null,235]
[null,null,null,null,null,null,null,null,null,null,null,null,null,null,null,null,236]
[null,null,null,null,null,null,null,null,null,null,null,null,null,null,null,null,237]
[null,null,null,null,null,null,null,null,null,null,null,null,null,null,null,null,238]
[null,null,null,null,null,null,null,null,null,null,null,null,null,null,null,null,239]
[null,null,null,null,null,null,null,null,null,null,null,null,null,null,null,null,240]
[null,null,null,null,null,null,null,null,null,null,null,null,null,null,null,null,241]
[null,null,null,null,null,null,null,null,null,null,null,null,null,null,null,null,242]
[null,null,null,null,null,null,null,null,null,null,null,null,null,null,null,null,243]
[null,null,null,null,null,null,null,null,null,null,null,null,null,null,null,null,244]
[null,null,null,null,null,null,null,null,null,null,null,null,null,null,null,null,245]
[null,null,null,null,null,null,null,null,null,null,null,null,null,null,null,null,246]
[null,null,null,null,null,null,null,null,null,null,null,null,null,null,null,null,247]
[null,null,null,null,null,null,null,null,null,null,null,null,null,null,null,null,248]
[null,null,null,null,null,null,null,null,null,null,null,null,null,null,null,null,249]
[null,null,null,null,null,null,null,null,null,null,null,null,null,null,null,null,250]
[null,null,null,null,null,null,null,null,null,null,null,null,null,null,null,null,251]
[null,null,null,null,null,null,null,null,null,null,null,null,null,null,null,null,252]
[null,null,null,null,null,null,null,null,null,null,null,null,null,null,null,null,253]
[null,null,null,null,null,null,null,null,null,null,null,null,null,null,null,null,254]
[null,null,null,null,null,null,null,null,null,null,null,null,null,null,null,null,255]
[null,null,null,null,null,null,null,null,null,null,null,null,null,null,null,null,256]
[null,null,null,null,null,null,null,null,null,null,null,null,null,null,null,null,257]
[null,null,null,null,null,null,null,null,null,null,null,null,null,null,null,null,258]
[null,null,null,null,null,null,null,null,null,null,null,null,null,null,null,null,{"$f":"Q264+1","v":259}]
[null,null,null,null,null,null,null,null,null,null,null,null,null,null,null,null,260]
[null,null,null,null,null,null,null,null,null,null,null,null,null,null,null,null,261]
[null,null,null,null,null,null,null,null,null,null,null,null,null,null,null,null,262]
[null,null,null,null,null,null,null,null,null,null,null,null,null,null,null,null,263]
[null,null,null,null,null,null,null,null,null,null,null,null,null,null,null,null,264]
[null,null,null,null,null,null,null,null,null,null,null,null,null,null,null,null,265]
[null,null,null,null,null,null,null,null,null,null,null,null,null,null,null,null,266]
[null,null,null,null,null,null,null,null,null,null,null,null,null,null,null,null,267]
[null,null,null,null,null,null,null,null,null,null,null,null,null,null,null,null,268]
[null,null,null,null,null,null,null,null,null,null,null,null,null,null,null,null,269]
[null,null,null,null,null,null,null,null,null,null,null,null,null,null,null,null,270]
[null,null,null,null,null,null,null,null,null,null,null,null,null,null,null,null,271]
[null,null,null,null,null,null,null,null,null,null,null,null,null,null,null,null,272]
[null,null,null,null,null,null,null,null,null,null,null,null,null,null,null,null,273]
[null,null,null,null,null,null,null,null,null,null,null,null,null,null,null,null,274]
[null,null,null,null,null,null,null,null,null,null,null,null,null,null,null,null,275]
[null,null,null,null,null,null,null,null,null,null,null,null,null,null,null,null,276]
[null,null,null,null,null,null,null,null,null,null,null,null,null,null,null,null,277]
[null,null,null,null,null,null,null,null,null,null,null,null,null,null,null,null,278]
[null,null,null,null,null,null,null,null,null,null,null,null,null,null,null,null,279]
[null,null,null,null,null,null,null,null,null,null,null,null,null,null,null,null,280]
[null,null,null,null,null,null,null,null,null,null,null,null,null,null,null,null,281]
[null,null,null,null,null,null,null,null,null,null,null,null,null,null,null,null,282]
[null,null,null,null,null,null,null,null,null,null,null,null,null,null,null,null,283]
[null,null,null,null,null,null,null,null,null,null,null,null,null,null,null,null,284]
[null,null,null,null,null,null,null,null,null,null,null,null,null,null,null,null,285]
[null,null,null,null,null,null,null,null,null,null,null,null,null,null,null,null,286]
[null,null,null,null,null,null,null,null,null,null,null,null,null,null,null,null,287]
[null,null,null,null,null,null,null,null,null,null,null,null,null,null,null,null,288]
[null,null,null,null,null,null,null,null,null,null,null,null,null,null,null,null,289]
[null,null,null,null,null,null,null,null,null,null,null,null,null,null,null,null,290]
[null,null,null,null,null,null,null,null,null,null,null,null,null,null,null,null,291]
[null,null,null,null,null,null,null,null,null,null,null,null,null,null,null,null,292]
[null,null,null,null,null,null,null,null,null,null,null,null,null,null,null,null,293]
[null,null,null,null,null,null,null,null,null,null,null,null,null,null,null,null,294]
[null,null,null,null,null,null,null,null,null,null,null,null,null,null,null,null,295]
[null,null,null,null,null,null,null,null,null,null,null,null,null,null,null,null,296]
[null,null,null,null,null,null,null,null,null,null,null,null,null,null,null,null,297]
[null,null,null,null,null,null,null,null,null,null,null,null,null,null,null,null,298]
[null,null,null,null,null,null,null,null,null,null,null,null,null,null,null,null,299]
[null,null,null,null,null,null,null,null,null,null,null,null,null,null,null,null,300]
[null,null,null,null,null,null,null,null,null,null,null,null,null,null,null,null,301]
[null,null,null,null,null,null,null,null,null,null,null,null,null,null,null,null,302]
[null,null,null,null,null,null,null,null,null,null,null,null,null,null,null,null,303]
[null,null,null,null,null,null,null,null,null,null,null,null,null,null,null,null,304]
[null,null,null,null,null,null,null,null,null,null,null,null,null,null,null,null,305]
[null,null,null,null,null,null,null,null,null,null,null,null,null,null,null,null,306]
[null,null,null,null,null,null,null,null,null,null,null,null,null,null,null,null,307]
[null,null,null,null,null,null,null,null,null,null,null,null,null,null,null,null,308]
[null,null,null,null,null,null,null,null,null,null,null,null,null,null,null,null,309]
[null,null,null,null,null,null,null,null,null,null,null,null,null,null,null,null,310]
[null,null,null,null,null,null,null,null,null,null,null,null,null,null,null,null,311]
[null,null,null,null,null,null,null,null,null,null,null,null,null,null,null,null,312]
[null,null,null,null,null,null,null,null,null,null,null,null,null,null,null,null,313]
[null,null,null,null,null,null,null,null,null,null,null,null,null,null,null,null,314]
[null,null,null,null,null,null,null,null,null,null,null,null,null,null,null,null,315]
[null,null,null,null,null,null,null,null,null,null,null,null,null,null,null,null,316]
[null,null,null,null,null,null,null,null,null,null,null,null,null,null,null,null,317]
[null,null,null,null,null,null,null,null,null,null,null,null,null,null,null,null,318]
[null,null,null,null,null,null,null,null,null,null,null,null,null,null,null,null,319]
[null,null,null,null,null,null,null,null,null,null,null,null,null,null,null,null,320]
[null,null,null,null,null,null,null,null,null,null,null,null,null,null,null,null,321]
[null,null,null,null,null,null,null,null,null,null,null,null,null,null,null,null,322]
[null,null,null,null,null,null,null,null,null,null,null,null,null,null,null,null,{"$f":"Q328+1","v":323}]
[null,null,null,null,null,null,null,null,null,null,null,null,null,null,null,null,324]
[null,null,null,null,null,null,null,null,null,null,null,null,null,null,null,null,325]
[null,null,null,null,null,null,null,null,null,null,null,null,null,null,null,null,326]
[null,null,null,null,null,null,null,null,null,null,null,null,null,null,null,null,327]
[null,null,null,null,null,null,null,null,null,null,null,null,null,null,null,null,328]
[null,null,null,null,null,null,null,null,null,null,null,null,null,null,null,null,329]
[null,null,null,null,null,null,null,null,null,null,null,null,null,null,null,null,330]
[null,null,null,null,null,null,null,null,null,null,null,null,null,null,null,null,331]
[null,null,null,null,null,null,null,null,null,null,null,null,null,null,null,null,332]
[null,null,null,null,null,null,null,null,null,null,null,null,null,null,null,null,333]
[null,null,null,null,null,null,null,null,null,null,null,null,null,null,null,null,334]
[null,null,null,null,null,null,null,null,null,null,null,null,null,null,null,null,335]
[null,null,null,null,null,null,null,null,null,null,null,null,null,null,null,null,336]
[null,null,null,null,null,null,null,null,null,null,null,null,null,null,null,null,337]
[null,null,null,null,null,null,null,null,null,null,null,null,null,null,null,null,338]
[null,null,null,null,null,null,null,null,null,null,null,null,null,null,null,null,339]
[null,null,null,null,null,null,null,null,null,null,null,null,null,null,null,null,340]
[null,null,null,null,null,null,null,null,null,null,null,null,null,null,null,null,341]
[null,null,null,null,null,null,null,null,null,null,null,null,null,null,null,null,342]
[null,null,null,null,null,null,null,null,null,null,null,null,null,null,null,null,343]
[null,null,null,null,null,null,null,null,null,null,null,null,null,null,null,null,344]
[null,null,null,null,null,null,null,null,null,null,null,null,null,null,null,null,345]
[null,null,null,null,null,null,null,null,null,null,null,null,null,null,null,null,346]
[null,null,null,null,null,null,null,null,null,null,null,null,null,null,null,null,347]
[null,null,null,null,null,null,null,null,null,null,null,null,null,null,null,null,348]
[null,null,null,null,null,null,null,null,null,null,null,null,null,null,null,null,349]
[null,null,null,null,null,null,null,null,null,null,null,null,null,null,null,null,350]
[null,null,null,null,null,null,null,null,null,null,null,null,null,null,null,null,351]
[null,null,null,null,null,null,null,null,null,null,null,null,null,null,null,null,352]
[null,null,null,null,null,null,null,null,null,null,null,null,null,null,null,null,353]
[null,null,null,null,null,null,null,null,null,null,null,null,null,null,null,null,354]
[null,null,null,null,null,null,null,null,null,null,null,null,null,null,null,null,355]
[null,null,null,null,null,null,null,null,null,null,null,null,null,null,null,null,356]
[null,null,null,null,null,null,null,null,null,null,null,null,null,null,null,null,357]
[null,null,null,null,null,null,null,null,null,null,null,null,null,null,null,null,358]
[null,null,null,null,null,null,null,null,null,null,null,null,null,null,null,null,359]
[null,null,null,null,null,null,null,null,null,null,null,null,null,null,null,null,360]
[null,null,null,null,null,null,null,null,null,null,null,null,null,null,null,null,361]
[null,null,null,null,null,null,null,null,null,null,null,null,null,null,null,null,362]
[null,null,null,null,null,null,null,null,null,null,null,null,null,null,null,null,363]
[null,null,null,null,null,null,null,null,null,null,null,null,null,null,null,null,364]
[null,null,null,null,null,null,null,null,null,null,null,null,null,null,null,null,365]
[null,null,null,null,null,null,null,null,null,null,null,null,null,null,null,null,366]
[null,null,null,null,null,null,null,null,null,null,null,null,null,null,null,null,367]
[null,null,null,null,null,null,null,null,null,null,null,null,null,null,null,null,368]
[null,null,null,null,null,null,null,null,null,null,null,null,null,null,null,null,369]
[null,null,null,null,null,null,null,null,null,null,null,null,null,null,null,null,370]
[null,null,null,null,null,null,null,null,null,null,null,null,null,null,null,null,371]
[null,null,null,null,null,null,null,null,null,null,null,null,null,null,null,null,372]
[null,null,null,null,null,null,null,null,null,null,null,null,null,null,null,null,373]
[null,null,null,null,null,null,null,null,null,null,null,null,null,null,null,null,374]
[null,null,null,null,null,null,null,null,null,null,null,null,null,null,null,null,375]
[null,null,null,null,null,null,null,null,null,null,null,null,null,null,null,null,376]
[null,null,null,null,null,null,null,null,null,null,null,null,null,null,null,null,377]
[null,null,null,null,null,null,null,null,null,null,null,null,null,null,null,null,378]
[null,null,null,null,null,null,null,null,null,null,null,null,null,null,null,null,379]
[null,null,null,null,null,null,null,null,null,null,null,null,null,null,null,null,380]
[null,null,null,null,null,null,null,null,null,null,null,null,null,null,null,null,381]
[null,null,null,null,null,null,null,null,null,null,null,null,null,null,null,null,382]
[null,null,null,null,null,null,null,null,null,null,null,null,null,null,null,null,383]
[null,null,null,null,null,null,null,null,null,null,null,null,null,null,null,null,384]
[null,null,null,null,null,null,null,null,null,null,null,null,null,null,null,null,385]
[null,null,null,null,null,null,null,null,null,null,null,null,null,null,null,null,386]
[null,null,null,null,null,null,null,null,null,null,null,null,null,null,null,null,{"$f":"Q392+1","v":387}]
[null,null,null,null,null,null,null,null,null,null,null,null,null,null,null,null,388]
[null,null,null,null,null,null,null,null,null,null,null,null,null,null,null,null,389]
[null,null,null,null,null,null,null,null,null,null,null,null,null,null,null,null,390]
[null,null,null,null,null,null,null,null,null,null,null,null,null,null,null,null,391]
[null,null,null,null,null,null,null,null,null,null,null,null,null,null,null,null,392]
[null,null,null,null,null,null,null,null,null,null,null,null,null,null,null,null,393]
[null,null,null,null,null,null,null,null,null,null,null,null,null,null,null,null,394]
[null,null,null,null,null,null,null,null,null,null,null,null,null,null,null,null,395]
[null,null,null,null,null,null,null,null,null,null,null,null,null,null,null,null,396]
[null,null,null,null,null,null,null,null,null,null,null,null,null,null,null,null,397]
[null,null,null,null,null,null,null,null,null,null,null,null,null,null,null,null,398]
[null,null,null,null,null,null,null,null,null,null,null,null,null,null,null,null,399]
[null,null,null,null,null,null,null,null,null,null,null,null,null,null,null,null,400]
[null,null,null,null,null,null,null,null,null,null,null,null,null,null,null,null,401]
[null,null,null,null,null,null,null,null,null,null,null,null,null,null,null,null,402]
[null,null,null,null,null,null,null,null,null,null,null,null,null,null,null,null,403]
[null,null,null,null,null,null,null,null,null,null,null,null,null,null,null,null,404]
[null,null,null,null,null,null,null,null,null,null,null,null,null,null,null,null,405]
[null,null,null,null,null,null,null,null,null,null,null,null,null,null,null,null,406]
[null,null,null,null,null,null,null,null,null,null,null,null,null,null,null,null,407]
[null,null,null,null,null,null,null,null,null,null,null,null,null,null,null,null,408]
[null,null,null,null,null,null,null,null,null,null,null,null,null,null,null,null,409]
[null,null,null,null,null,null,null,null,null,null,null,null,null,null,null,null,410]
[null,null,null,null,null,null,null,null,null,null,null,null,null,null,null,null,411]
[null,null,null,null,null,null,null,null,null,null,null,null,null,null,null,null,412]
[null,null,null,null,null,null,null,null,null,null,null,null,null,null,null,null,413]
[null,null,null,null,null,null,null,null,null,null,null,null,null,null,null,null,414]
[null,null,null,null,null,null,null,null,null,null,null,null,null,null,null,null,415]
[null,null,null,null,null,null,null,null,null,null,null,null,null,null,null,null,416]
[null,null,null,null,null,null,null,null,null,null,null,null,null,null,null,null,417]
[null,null,null,null,null,null,null,null,null,null,null,null,null,null,null,null,418]
[null,null,null,null,null,null,null,null,null,null,null,null,null,null,null,null,419]
[null,null,null,null,null,null,null,null,null,null,null,null,null,null,null,null,420]
[null,null,null,null,null,null,null,null,null,null,null,null,null,null,null,null,421]
[null,null,null,null,null,null,null,null,null,null,null,null,null,null,null,null,422]
[null,null,null,null,null,null,null,null,null,null,null,null,null,null,null,null,423]
[null,null,null,null,null,null,null,null,null,null,null,null,null,null,null,null,424]
[null,null,null,null,null,null,null,null,null,null,null,null,null,null,null,null,425]
[null,null,null,null,null,null,null,null,null,null,null,null,null,null,null,null,426]
[null,null,null,null,null,null,null,null,null,null,null,null,null,null,null,null,427]
[null,null,null,null,null,null,null,null,null,null,null,null,null,null,null,null,428]
[null,null,null,null,null,null,null,null,null,null,null,null,null,null,null,null,429]
[null,null,null,null,null,null,null,null,null,null,null,null,null,null,null,null,430]
[null,null,null,null,null,null,null,null,null,null,null,null,null,null,null,null,431]
[null,null,null,null,null,null,null,null,null,null,null,null,null,null,null,null,432]
[null,null,null,null,null,null,null,null,null,null,null,null,null,null,null,null,433]
[null,null,null,null,null,null,null,null,null,null,null,null,null,null,null,null,434]
[null,null,null,null,null,null,null,null,null,null,null,null,null,null,null,null,435]
[null,null,null,null,null,null,null,null,null,null,null,null,null,null,null,null,436]
[null,null,null,null,null,null,null,null,null,null,null,null,null,null,null,null,437]
[null,null,null,null,null,null,null,null,null,null,null,null,null,null,null,null,438]
[null,null,null,null,null,null,null,null,null,null,null,null,null,null,null,null,439]
[null,null,null,null,null,null,null,null,null,null,null,null,null,null,null,null,440]
[null,null,null,null,null,null,null,null,null,null,null,null,null,null,null,null,441]
[null,null,null,null,null,null,null,null,null,null,null,null,null,null,null,null,442]
[null,null,null,null,null,null,null,null,null,null,null,null,null,null,null,null,443]
[null,null,null,null,null,null,null,null,null,null,null,null,null,null,null,null,444]
[null,null,null,null,null,null,null,null,null,null,null,null,null,null,null,null,445]
[null,null,null,null,null,null,null,null,null,null,null,null,null,null,null,null,446]
[null,null,null,null,null,null,null,null,null,null,null,null,null,null,null,null,447]
[null,null,null,null,null,null,null,null,null,null,null,null,null,null,null,null,448]
[null,null,null,null,null,null,null,null,null,null,null,null,null,null,null,null,449]
[null,null,null,null,null,null,null,null,null,null,null,null,null,null,null,null,450]
[null,null,null,null,null,null,null,null,null,null,null,null,null,null,null,null,{"$f":"Q456+1","v":451}]
[null,null,null,null,null,null,null,null,null,null,null,null,null,null,null,null,452]
[null,null,null,null,null,null,null,null,null,null,null,null,null,null,null,null,453]
[null,null,null,null,null,null,null,null,null,null,null,null,null,null,null,null,454]
[null,null,null,null,null,null,null,null,null,null,null,null,null,null,null,null,455]
[null,null,null,null,null,null,null,null,null,null,null,null,null,null,null,null,456]
[null,null,null,null,null,null,null,null,null,null,null,null,null,null,null,null,457]
[null,null,null,null,null,null,null,null,null,null,null,null,null,null,null,null,458]
[null,null,null,null,null,null,null,null,null,null,null,null,null,null,null,null,459]
[null,null,null,null,null,null,null,null,null,null,null,null,null,null,null,null,460]
[null,null,null,null,null,null,null,null,null,null,null,null,null,null,null,null,461]
[null,null,null,null,null,null,null,null,null,null,null,null,null,null,null,null,462]
[null,null,null,null,null,null,null,null,null,null,null,null,null,null,null,null,463]
[null,null,null,null,null,null,null,null,null,null,null,null,null,null,null,null,464]
[null,null,null,null,null,null,null,null,null,null,null,null,null,null,null,null,465]
[null,null,null,null,null,null,null,null,null,null,null,null,null,null,null,null,466]
[null,null,null,null,null,null,null,null,null,null,null,null,null,null,null,null,467]
[null,null,null,null,null,null,null,null,null,null,null,null,null,null,null,null,468]
[null,null,null,null,null,null,null,null,null,null,null,null,null,null,null,null,469]
[null,null,null,null,null,null,null,null,null,null,null,null,null,null,null,null,470]
[null,null,null,null,null,null,null,null,null,null,null,null,null,null,null,null,471]
[null,null,null,null,null,null,null,null,null,null,null,null,null,null,null,null,472]
[null,null,null,null,null,null,null,null,null,null,null,null,null,null,null,null,473]
[null,null,null,null,null,null,null,null,null,null,null,null,null,null,null,null,474]
[null,null,null,null,null,null,null,null,null,null,null,null,null,null,null,null,475]
[null,null,null,null,null,null,null,null,null,null,null,null,null,null,null,null,476]
[null,null,null,null,null,null,null,null,null,null,null,null,null,null,null,null,477]
[null,null,null,null,null,null,null,null,null,null,null,null,null,null,null,null,478]
[null,null,null,null,null,null,null,null,null,null,null,null,null,null,null,null,479]
[null,null,null,null,null,null,null,null,null,null,null,null,null,null,null,null,480]
[null,null,null,null,null,null,null,null,null,null,null,null,null,null,null,null,481]
[null,null,null,null,null,null,null,null,null,null,null,null,null,null,null,null,482]
[null,null,null,null,null,null,null,null,null,null,null,null,null,null,null,null,483]
[null,null,null,null,null,null,null,null,null,null,null,null,null,null,null,null,484]
[null,null,null,null,null,null,null,null,null,null,null,null,null,null,null,null,485]
[null,null,null,null,null,null,null,null,null,null,null,null,null,null,null,null,486]
[null,null,null,null,null,null,null,null,null,null,null,null,null,null,null,null,487]
[null,null,null,null,null,null,null,null,null,null,null,null,null,null,null,null,488]
[null,null,null,null,null,null,null,null,null,null,null,null,null,null,null,null,489]
[null,null,null,null,null,null,null,null,null,null,null,null,null,null,null,null,490]
[null,null,null,null,null,null,null,null,null,null,null,null,null,null,null,null,491]
[null,null,null,null,null,null,null,null,null,null,null,null,null,null,null,null,492]
[null,null,null,null,null,null,null,null,null,null,null,null,null,null,null,null,493]
[null,null,null,null,null,null,null,null,null,null,null,null,null,null,null,null,494]
[null,null,null,null,null,null,null,null,null,null,null,null,null,null,null,null,495]
[null,null,null,null,null,null,null,null,null,null,null,null,null,null,null,null,496]
[null,null,null,null,null,null,null,null,null,null,null,null,null,null,null,null,497]
[null,null,null,null,null,null,null,null,null,null,null,null,null,null,null,null,498]
[null,null,null,null,null,null,null,null,null,null,null,null,null,null,null,null,499]
[null,null,null,null,null,null,null,null,null,null,null,null,null,null,null,null,500]
[null,null,null,null,null,null,null,null,null,null,null,null,null,null,null,null,501]
[null,null,null,null,null,null,null,null,null,null,null,null,null,null,null,null,502]
[null,null,null,null,null,null,null,null,null,null,null,null,null,null,null,null,503]
[null,null,null,null,null,null,null,null,null,null,null,null,null,null,null,null,504]
[null,null,null,null,null,null,null,null,null,null,null,null,null,null,null,null,505]
[null,null,null,null,null,null,null,null,null,null,null,null,null,null,null,null,506]
[null,null,null,null,null,null,null,null,null,null,null,null,null,null,null,null,507]
[null,null,null,null,null,null,null,null,null,null,null,null,null,null,null,null,508]
[null,null,null,null,null,null,null,null,null,null,null,null,null,null,null,null,509]
[null,null,null,null,null,null,null,null,null,null,null,null,null,null,null,null,510]
[null,null,null,null,null,null,null,null,null,null,null,null,null,null,null,null,511]
[null,null,null,null,null,null,null,null,null,null,null,null,null,null,null,null,512]
[null,null,null,null,null,null,null,null,null,null,null,null,null,null,null,null,513]
[null,null,null,null,null,null,null,null,null,null,null,null,null,null,null,null,514]
[null,null,null,null,null,null,null,null,null,null,null,null,null,null,null,null,{"$f":"Q520+1","v":515}]
[null,null,null,null,null,null,null,null,null,null,null,null,null,null,null,null,516]
[null,null,null,null,null,null,null,null,null,null,null,null,null,null,null,null,517]
[null,null,null,null,null,null,null,null,null,null,null,null,null,null,null,null,518]
[null,null,null,null,null,null,null,null,null,null,null,null,null,null,null,null,519]
[null,null,null,null,null,null,null,null,null,null,null,null,null,null,null,null,520]
[null,null,null,null,null,null,null,null,null,null,null,null,null,null,null,null,521]
[null,null,null,null,null,null,null,null,null,null,null,null,null,null,null,null,522]
[null,null,null,null,null,null,null,null,null,null,null,null,null,null,null,null,523]
[null,null,null,null,null,null,null,null,null,null,null,null,null,null,null,null,524]
[null,null,null,null,null,null,null,null,null,null,null,null,null,null,null,null,525]
[null,null,null,null,null,null,null,null,null,null,null,null,null,null,null,null,526]
[null,null,null,null,null,null,null,null,null,null,null,null,null,null,null,null,527]
[null,null,null,null,null,null,null,null,null,null,null,null,null,null,null,null,528]
[null,null,null,null,null,null,null,null,null,null,null,null,null,null,null,null,529]
[null,null,null,null,null,null,null,null,null,null,null,null,null,null,null,null,530]
[null,null,null,null,null,null,null,null,null,null,null,null,null,null,null,null,531]
[null,null,null,null,null,null,null,null,null,null,null,null,null,null,null,null,532]
[null,null,null,null,null,null,null,null,null,null,null,null,null,null,null,null,533]
[null,null,null,null,null,null,null,null,null,null,null,null,null,null,null,null,534]
[null,null,null,null,null,null,null,null,null,null,null,null,null,null,null,null,535]
[null,null,null,null,null,null,null,null,null,null,null,null,null,null,null,null,536]
[null,null,null,null,null,null,null,null,null,null,null,null,null,null,null,null,537]
[null,null,null,null,null,null,null,null,null,null,null,null,null,null,null,null,538]
[null,null,null,null,null,null,null,null,null,null,null,null,null,null,null,null,539]
[null,null,null,null,null,null,null,null,null,null,null,null,null,null,null,null,540]
[null,null,null,null,null,null,null,null,null,null,null,null,null,null,null,null,541]
[null,null,null,null,null,null,null,null,null,null,null,null,null,null,null,null,542]
[null,null,null,null,null,null,null,null,null,null,null,null,null,null,null,null,543]
[null,null,null,null,null,null,null,null,null,null,null,null,null,null,null,null,544]
[null,null,null,null,null,null,null,null,null,null,null,null,null,null,null,null,545]
[null,null,null,null,null,null,null,null,null,null,null,null,null,null,null,null,546]
[null,null,null,null,null,null,null,null,null,null,null,null,null,null,null,null,547]
[null,null,null,null,null,null,null,null,null,null,null,null,null,null,null,null,548]
[null,null,null,null,null,null,null,null,null,null,null,null,null,null,null,null,549]
[null,null,null,null,null,null,null,null,null,null,null,null,null,null,null,null,550]
[null,null,null,null,null,null,null,null,null,null,null,null,null,null,null,null,551]
[null,null,null,null,null,null,null,null,null,null,null,null,null,null,null,null,552]
[null,null,null,null,null,null,null,null,null,null,null,null,null,null,null,null,553]
[null,null,null,null,null,null,null,null,null,null,null,null,null,null,null,null,554]
[null,null,null,null,null,null,null,null,null,null,null,null,null,null,null,null,555]
[null,null,null,null,null,null,null,null,null,null,null,null,null,null,null,null,556]
[null,null,null,null,null,null,null,null,null,null,null,null,null,null,null,null,557]
[null,null,null,null,null,null,null,null,null,null,null,null,null,null,null,null,558]
[null,null,null,null,null,null,null,null,null,null,null,null,null,null,null,null,559]
[null,null,null,null,null,null,null,null,null,null,null,null,null,null,null,null,560]
[null,null,null,null,null,null,null,null,null,null,null,null,null,null,null,null,561]
[null,null,null,null,null,null,null,null,null,null,null,null,null,null,null,null,562]
[null,null,null,null,null,null,null,null,null,null,null,null,null,null,null,null,563]
[null,null,null,null,null,null,null,null,null,null,null,null,null,null,null,null,564]
[null,null,null,null,null,null,null,null,null,null,null,null,null,null,null,null,565]
[null,null,null,null,null,null,null,null,null,null,null,null,null,null,null,null,566]
[null,null,null,null,null,null,null,null,null,null,null,null,null,null,null,null,567]
[null,null,null,null,null,null,null,null,null,null,null,null,null,null,null,null,568]
[null,null,null,null,null,null,null,null,null,null,null,null,null,null,null,null,569]
[null,null,null,null,null,null,null,null,null,null,null,null,null,null,null,null,570]
[null,null,null,null,null,null,null,null,null,null,null,null,null,null,null,null,571]
[null,null,null,null,null,null,null,null,null,null,null,null,null,null,null,null,572]
[null,null,null,null,null,null,null,null,null,null,null,null,null,null,null,null,573]
[null,null,null,null,null,null,null,null,null,null,null,null,null,null,null,null,574]
[null,null,null,null,null,null,null,null,null,null,null,null,null,null,null,null,575]
[null,null,null,null,null,null,null,null,null,null,null,null,null,null,null,null,576]
[null,null,null,null,null,null,null,null,null,null,null,null,null,null,null,null,577]
[null,null,null,null,null,null,null,null,null,null,null,null,null,null,null,null,578]
[null,null,null,null,null,null,null,null,null,null,null,null,null,null,null,null,{"$f":"Q584+1","v":579}]
[null,null,null,null,null,null,null,null,null,null,null,null,null,null,null,null,580]
[null,null,null,null,null,null,null,null,null,null,null,null,null,null,null,null,581]
[null,null,null,null,null,null,null,null,null,null,null,null,null,null,null,null,582]
[null,null,null,null,null,null,null,null,null,null,null,null,null,null,null,null,583]
[null,null,null,null,null,null,null,null,null,null,null,null,null,null,null,null,584]
[null,null,null,null,null,null,null,null,null,null,null,null,null,null,null,null,585]
[null,null,null,null,null,null,null,null,null,null,null,null,null,null,null,null,586]
[null,null,null,null,null,null,null,null,null,null,null,null,null,null,null,null,587]
[null,null,null,null,null,null,null,null,null,null,null,null,null,null,null,null,588]
[null,null,null,null,null,null,null,null,null,null,null,null,null,null,null,null,589]
[null,null,null,null,null,null,null,null,null,null,null,null,null,null,null,null,590]
[null,null,null,null,null,null,null,null,null,null,null,null,null,null,null,null,591]
[null,null,null,null,null,null,null,null,null,null,null,null,null,null,null,null,592]
[null,null,null,null,null,null,null,null,null,null,null,null,null,null,null,null,593]
[null,null,null,null,null,null,null,null,null,null,null,null,null,null,null,null,594]
[null,null,null,null,null,null,null,null,null,null,null,null,null,null,null,null,595]
[null,null,null,null,null,null,null,null,null,null,null,null,null,null,null,null,596]
[null,null,null,null,null,null,null,null,null,null,null,null,null,null,null,null,597]
[null,null,null,null,null,null,null,null,null,null,null,null,null,null,null,null,598]
[null,null,null,null,null,null,null,null,null,null,null,null,null,null,null,null,599]
[null,null,null,null,null,null,null,null,null,null,null,null,null,null,null,null,600]
[null,null,null,null,null,null,null,null,null,null,null,null,null,null,null,null,601]
[null,null,null,null,null,null,null,null,null,null,null,null,null,null,null,null,602]
[null,null,null,null,null,null,null,null,null,null,null,null,null,null,null,null,603]
[null,null,null,null,null,null,null,null,null,null,null,null,null,null,null,null,604]
[null,null,null,null,null,null,null,null,null,null,null,null,null,null,null,null,605]
[null,null,null,null,null,null,null,null,null,null,null,null,null,null,null,null,606]
[null,null,null,null,null,null,null,null,null,null,null,null,null,null,null,null,607]
[null,null,null,null,null,null,null,null,null,null,null,null,null,null,null,null,608]
[null,null,null,null,null,null,null,null,null,null,null,null,null,null,null,null,609]
[null,null,null,null,null,null,null,null,null,null,null,null,null,null,null,null,610]
[null,null,null,null,null,null,null,null,null,null,null,null,null,null,null,null,611]
[null,null,null,null,null,null,null,null,null,null,null,null,null,null,null,null,612]
[null,null,null,null,null,null,null,null,null,null,null,null,null,null,null,null,613]
[null,null,null,null,null,null,null,null,null,null,null,null,null,null,null,null,614]
[null,null,null,null,null,null,null,null,null,null,null,null,null,null,null,null,615]
[null,null,null,null,null,null,null,null,null,null,null,null,null,null,null,null,616]
[null,null,null,null,null,null,null,null,null,null,null,null,null,null,null,null,617]
[null,null,null,null,null,null,null,null,null,null,null,null,null,null,null,null,618]
[null,null,null,null,null,null,null,null,null,null,null,null,null,null,null,null,619]
[null,null,null,null,null,null,null,null,null,null,null,null,null,null,null,null,620]
[null,null,null,null,null,null,null,null,null,null,null,null,null,null,null,null,621]
[null,null,null,null,null,null,null,null,null,null,null,null,null,null,null,null,622]
[null,null,null,null,null,null,null,null,null,null,null,null,null,null,null,null,623]
[null,null,null,null,null,null,null,null,null,null,null,null,null,null,null,null,624]
[null,null,null,null,null,null,null,null,null,null,null,null,null,null,null,null,625]
[null,null,null,null,null,null,null,null,null,null,null,null,null,null,null,null,626]
[null,null,null,null,null,null,null,null,null,null,null,null,null,null,null,null,627]
[null,null,null,null,null,null,null,null,null,null,null,null,null,null,null,null,628]
[null,null,null,null,null,null,null,null,null,null,null,null,null,null,null,null,629]
[null,null,null,null,null,null,null,null,null,null,null,null,null,null,null,null,630]
[null,null,null,null,null,null,null,null,null,null,null,null,null,null,null,null,631]
[null,null,null,null,null,null,null,null,null,null,null,null,null,null,null,null,632]
[null,null,null,null,null,null,null,null,null,null,null,null,null,null,null,null,633]
[null,null,null,null,null,null,null,null,null,null,null,null,null,null,null,null,634]
[null,null,null,null,null,null,null,null,null,null,null,null,null,null,null,null,635]
[null,null,null,null,null,null,null,null,null,null,null,null,null,null,null,null,636]
[null,null,null,null,null,null,null,null,null,null,null,null,null,null,null,null,637]
[null,null,null,null,null,null,null,null,null,null,null,null,null,null,null,null,638]
[null,null,null,null,null,null,null,null,null,null,null,null,null,null,null,null,639]
[null,null,null,null,null,null,null,null,null,null,null,null,null,null,null,null,640]
[null,null,null,null,null,null,null,null,null,null,null,null,null,null,null,null,641]
[null,null,null,null,null,null,null,null,null,null,null,null,null,null,null,null,642]
[null,null,null,null,null,null,null,null,null,null,null,null,null,null,null,null,{"$f":"Q648+1","v":643}]
[null,null,null,null,null,null,null,null,null,null,null,null,null,null,null,null,644]
[null,null,null,null,null,null,null,null,null,null,null,null,null,null,null,null,645]
[null,null,null,null,null,null,null,null,null,null,null,null,null,null,null,null,646]
[null,null,null,null,null,null,null,null,null,null,null,null,null,null,null,null,647]
[null,null,null,null,null,null,null,null,null,null,null,null,null,null,null,null,648]
[null,null,null,null,null,null,null,null,null,null,null,null,null,null,null,null,649]
[null,null,null,null,null,null,null,null,null,null,null,null,null,null,null,null,650]
[null,null,null,null,null,null,null,null,null,null,null,null,null,null,null,null,651]
[null,null,null,null,null,null,null,null,null,null,null,null,null,null,null,null,652]
[null,null,null,null,null,null,null,null,null,null,null,null,null,null,null,null,653]
[null,null,null,null,null,null,null,null,null,null,null,null,null,null,null,null,654]
[null,null,null,null,null,null,null,null,null,null,null,null,null,null,null,null,655]
[null,null,null,null,null,null,null,null,null,null,null,null,null,null,null,null,656]
[null,null,null,null,null,null,null,null,null,null,null,null,null,null,null,null,657]
[null,null,null,null,null,null,null,null,null,null,null,null,null,null,null,null,658]
[null,null,null,null,null,null,null,null,null,null,null,null,null,null,null,null,659]
[null,null,null,null,null,null,null,null,null,null,null,null,null,null,null,null,660]
[null,null,null,null,null,null,null,null,null,null,null,null,null,null,null,null,661]
[null,null,null,null,null,null,null,null,null,null,null,null,null,null,null,null,662]
[null,null,null,null,null,null,null,null,null,null,null,null,null,null,null,null,663]
[null,null,null,null,null,null,null,null,null,null,null,null,null,null,null,null,664]
[null,null,null,null,null,null,null,null,null,null,null,null,null,null,null,null,665]
[null,null,null,null,null,null,null,null,null,null,null,null,null,null,null,null,666]
[null,null,null,null,null,null,null,null,null,null,null,null,null,null,null,null,667]
[null,null,null,null,null,null,null,null,null,null,null,null,null,null,null,null,668]
[null,null,null,null,null,null,null,null,null,null,null,null,null,null,null,null,669]
[null,null,null,null,null,null,null,null,null,null,null,null,null,null,null,null,670]
[null,null,null,null,null,null,null,null,null,null,null,null,null,null,null,null,671]
[null,null,null,null,null,null,null,null,null,null,null,null,null,null,null,null,672]
[null,null,null,null,null,null,null,null,null,null,null,null,null,null,null,null,673]
[null,null,null,null,null,null,null,null,null,null,null,null,null,null,null,null,674]
[null,null,null,null,null,null,null,null,null,null,null,null,null,null,null,null,675]
[null,null,null,null,null,null,null,null,null,null,null,null,null,null,null,null,676]
[null,null,null,null,null,null,null,null,null,null,null,null,null,null,null,null,677]
[null,null,null,null,null,null,null,null,null,null,null,null,null,null,null,null,678]
[null,null,null,null,null,null,null,null,null,null,null,null,null,null,null,null,679]
[null,null,null,null,null,null,null,null,null,null,null,null,null,null,null,null,680]
[null,null,null,null,null,null,null,null,null,null,null,null,null,null,null,null,681]
[null,null,null,null,null,null,null,null,null,null,null,null,null,null,null,null,682]
[null,null,null,null,null,null,null,null,null,null,null,null,null,null,null,null,683]
[null,null,null,null,null,null,null,null,null,null,null,null,null,null,null,null,684]
[null,null,null,null,null,null,null,null,null,null,null,null,null,null,null,null,685]
[null,null,null,null,null,null,null,null,null,null,null,null,null,null,null,null,686]
[null,null,null,null,null,null,null,null,null,null,null,null,null,null,null,null,687]
[null,null,null,null,null,null,null,null,null,null,null,null,null,null,null,null,688]
[null,null,null,null,null,null,null,null,null,null,null,null,null,null,null,null,689]
[null,null,null,null,null,null,null,null,null,null,null,null,null,null,null,null,690]
[null,null,null,null,null,null,null,null,null,null,null,null,null,null,null,null,691]
[null,null,null,null,null,null,null,null,null,null,null,null,null,null,null,null,692]
[null,null,null,null,null,null,null,null,null,null,null,null,null,null,null,null,693]
[null,null,null,null,null,null,null,null,null,null,null,null,null,null,null,null,694]
[null,null,null,null,null,null,null,null,null,null,null,null,null,null,null,null,695]
[null,null,null,null,null,null,null,null,null,null,null,null,null,null,null,null,696]
[null,null,null,null,null,null,null,null,null,null,null,null,null,null,null,null,697]
[null,null,null,null,null,null,null,null,null,null,null,null,null,null,null,null,698]
[null,null,null,null,null,null,null,null,null,null,null,null,null,null,null,null,699]
[null,null,null,null,null,null,null,null,null,null,null,null,null,null,null,null,700]
[null,null,null,null,null,null,null,null,null,null,null,null,null,null,null,null,701]
[null,null,null,null,null,null,null,null,null,null,null,null,null,null,null,null,702]
[null,null,null,null,null,null,null,null,null,null,null,null,null,null,null,null,703]
[null,null,null,null,null,null,null,null,null,null,null,null,null,null,null,null,704]
[null,null,null,null,null,null,null,null,null,null,null,null,null,null,null,null,705]
[null,null,null,null,null,null,null,null,null,null,null,null,null,null,null,null,706]
[null,null,null,null,null,null,null,null,null,null,null,null,null,null,null,null,{"$f":"Q712+1","v":707}]
[null,null,null,null,null,null,null,null,null,null,null,null,null,null,null,null,708]
[null,null,null,null,null,null,null,null,null,null,null,null,null,null,null,null,709]
[null,null,null,null,null,null,null,null,null,null,null,null,null,null,null,null,710]
[null,null,null,null,null,null,null,null,null,null,null,null,null,null,null,null,711]
[null,null,null,null,null,null,null,null,null,null,null,null,null,null,null,null,712]
[null,null,null,null,null,null,null,null,null,null,null,null,null,null,null,null,713]
[null,null,null,null,null,null,null,null,null,null,null,null,null,null,null,null,714]
[null,null,null,null,null,null,null,null,null,null,null,null,null,null,null,null,715]
[null,null,null,null,null,null,null,null,null,null,null,null,null,null,null,null,716]
[null,null,null,null,null,null,null,null,null,null,null,null,null,null,null,null,717]
[null,null,null,null,null,null,null,null,null,null,null,null,null,null,null,null,718]
[null,null,null,null,null,null,null,null,null,null,null,null,null,null,null,null,719]
[null,null,null,null,null,null,null,null,null,null,null,null,null,null,null,null,720]
[null,null,null,null,null,null,null,null,null,null,null,null,null,null,null,null,721]
[null,null,null,null,null,null,null,null,null,null,null,null,null,null,null,null,722]
[null,null,null,null,null,null,null,null,null,null,null,null,null,null,null,null,723]
[null,null,null,null,null,null,null,null,null,null,null,null,null,null,null,null,724]
[null,null,null,null,null,null,null,null,null,null,null,null,null,null,null,null,725]
[null,null,null,null,null,null,null,null,null,null,null,null,null,null,null,null,726]
[null,null,null,null,null,null,null,null,null,null,null,null,null,null,null,null,727]
[null,null,null,null,null,null,null,null,null,null,null,null,null,null,null,null,728]
[null,null,null,null,null,null,null,null,null,null,null,null,null,null,null,null,729]
[null,null,null,null,null,null,null,null,null,null,null,null,null,null,null,null,730]
[null,null,null,null,null,null,null,null,null,null,null,null,null,null,null,null,731]
[null,null,null,null,null,null,null,null,null,null,null,null,null,null,null,null,732]
[null,null,null,null,null,null,null,null,null,null,null,null,null,null,null,null,733]
[null,null,null,null,null,null,null,null,null,null,null,null,null,null,null,null,734]
[null,null,null,null,null,null,null,null,null,null,null,null,null,null,null,null,735]
[null,null,null,null,null,null,null,null,null,null,null,null,null,null,null,null,736]
[null,null,null,null,null,null,null,null,null,null,null,null,null,null,null,null,737]
[null,null,null,null,null,null,null,null,null,null,null,null,null,null,null,null,738]
[null,null,null,null,null,null,null,null,null,null,null,null,null,null,null,null,739]
[null,null,null,null,null,null,null,null,null,null,null,null,null,null,null,null,740]
[null,null,null,null,null,null,null,null,null,null,null,null,null,null,null,null,741]
[null,null,null,null,null,null,null,null,null,null,null,null,null,null,null,null,742]
[null,null,null,null,null,null,null,null,null,null,null,null,null,null,null,null,743]
[null,null,null,null,null,null,null,null,null,null,null,null,null,null,null,null,744]
[null,null,null,null,null,null,null,null,null,null,null,null,null,null,null,null,745]
[null,null,null,null,null,null,null,null,null,null,null,null,null,null,null,null,746]
[null,null,null,null,null,null,null,null,null,null,null,null,null,null,null,null,747]
[null,null,null,null,null,null,null,null,null,null,null,null,null,null,null,null,748]
[null,null,null,null,null,null,null,null,null,null,null,null,null,null,null,null,749]
[null,null,null,null,null,null,null,null,null,null,null,null,null,null,null,null,750]
[null,null,null,null,null,null,null,null,null,null,null,null,null,null,null,null,751]
[null,null,null,null,null,null,null,null,null,null,null,null,null,null,null,null,752]
[null,null,null,null,null,null,null,null,null,null,null,null,null,null,null,null,753]
[null,null,null,null,null,null,null,null,null,null,null,null,null,null,null,null,754]
[null,null,null,null,null,null,null,null,null,null,null,null,null,null,null,null,755]
[null,null,null,null,null,null,null,null,null,null,null,null,null,null,null,null,756]
[null,null,null,null,null,null,null,null,null,null,null,null,null,null,null,null,757]
[null,null,null,null,null,null,null,null,null,null,null,null,null,null,null,null,758]
[null,null,null,null,null,null,null,null,null,null,null,null,null,null,null,null,759]
[null,null,null,null,null,null,null,null,null,null,null,null,null,null,null,null,760]
[null,null,null,null,null,null,null,null,null,null,null,null,null,null,null,null,761]
[null,null,null,null,null,null,null,null,null,null,null,null,null,null,null,null,762]
[null,null,null,null,null,null,null,null,null,null,null,null,null,null,null,null,763]
[null,null,null,null,null,null,null,null,null,null,null,null,null,null,null,null,764]
[null,null,null,null,null,null,null,null,null,null,null,null,null,null,null,null,765]
[null,null,null,null,null,null,null,null,null,null,null,null,null,null,null,null,766]
[null,null,null,null,null,null,null,null,null,null,null,null,null,null,null,null,767]
[null,null,null,null,null,null,null,null,null,null,null,null,null,null,null,null,768]
[null,null,null,null,null,null,null,null,null,null,null,null,null,null,null,null,769]
[null,null,null,null,null,null,null,null,null,null,null,null,null,null,null,null,770]
[null,null,null,null,null,null,null,null,null,null,null,null,null,null,null,null,{"$f":"Q776+1","v":771}]
[null,null,null,null,null,null,null,null,null,null,null,null,null,null,null,null,772]
[null,null,null,null,null,null,null,null,null,null,null,null,null,null,null,null,773]
[null,null,null,null,null,null,null,null,null,null,null,null,null,null,null,null,774]
[null,null,null,null,null,null,null,null,null,null,null,null,null,null,null,null,775]
[null,null,null,null,null,null,null,null,null,null,null,null,null,null,null,null,776]
[null,null,null,null,null,null,null,null,null,null,null,null,null,null,null,null,777]
[null,null,null,null,null,null,null,null,null,null,null,null,null,null,null,null,778]
[null,null,null,null,null,null,null,null,null,null,null,null,null,null,null,null,779]
[null,null,null,null,null,null,null,null,null,null,null,null,null,null,null,null,780]
[null,null,null,null,null,null,null,null,null,null,null,null,null,null,null,null,781]
[null,null,null,null,null,null,null,null,null,null,null,null,null,null,null,null,782]
[null,null,null,null,null,null,null,null,null,null,null,null,null,null,null,null,783]
[null,null,null,null,null,null,null,null,null,null,null,null,null,null,null,null,784]
[null,null,null,null,null,null,null,null,null,null,null,null,null,null,null,null,785]
[null,null,null,null,null,null,null,null,null,null,null,null,null,null,null,null,786]
[null,null,null,null,null,null,null,null,null,null,null,null,null,null,null,null,787]
[null,null,null,null,null,null,null,null,null,null,null,null,null,null,null,null,788]
[null,null,null,null,null,null,null,null,null,null,null,null,null,null,null,null,789]
[null,null,null,null,null,null,null,null,null,null,null,null,null,null,null,null,790]
[null,null,null,null,null,null,null,null,null,null,null,null,null,null,null,null,791]
[null,null,null,null,null,null,null,null,null,null,null,null,null,null,null,null,792]
[null,null,null,null,null,null,null,null,null,null,null,null,null,null,null,null,793]
[null,null,null,null,null,null,null,null,null,null,null,null,null,null,null,null,794]
[null,null,null,null,null,null,null,null,null,null,null,null,null,null,null,null,795]
[null,null,null,null,null,null,null,null,null,null,null,null,null,null,null,null,796]
[null,null,null,null,null,null,null,null,null,null,null,null,null,null,null,null,797]
[null,null,null,null,null,null,null,null,null,null,null,null,null,null,null,null,798]
[null,null,null,null,null,null,null,null,null,null,null,null,null,null,null,null,799]
[null,null,null,null,null,null,null,null,null,null,null,null,null,null,null,null,800]
[null,null,null,null,null,null,null,null,null,null,null,null,null,null,null,null,801]
[null,null,null,null,null,null,null,null,null,null,null,null,null,null,null,null,802]
[null,null,null,null,null,null,null,null,null,null,null,null,null,null,null,null,803]
[null,null,null,null,null,null,null,null,null,null,null,null,null,null,null,null,804]
[null,null,null,null,null,null,null,null,null,null,null,null,null,null,null,null,805]
[null,null,null,null,null,null,null,null,null,null,null,null,null,null,null,null,806]
[null,null,null,null,null,null,null,null,null,null,null,null,null,null,null,null,807]
[null,null,null,null,null,null,null,null,null,null,null,null,null,null,null,null,808]
[null,null,null,null,null,null,null,null,null,null,null,null,null,null,null,null,809]
[null,null,null,null,null,null,null,null,null,null,null,null,null,null,null,null,810]
[null,null,null,null,null,null,null,null,null,null,null,null,null,null,null,null,811]
[null,null,null,null,null,null,null,null,null,null,null,null,null,null,null,null,812]
[null,null,null,null,null,null,null,null,null,null,null,null,null,null,null,null,813]
[null,null,null,null,null,null,null,null,null,null,null,null,null,null,null,null,814]
[null,null,null,null,null,null,null,null,null,null,null,null,null,null,null,null,815]
[null,null,null,null,null,null,null,null,null,null,null,null,null,null,null,null,816]
[null,null,null,null,null,null,null,null,null,null,null,null,null,null,null,null,817]
[null,null,null,null,null,null,null,null,null,null,null,null,null,null,null,null,818]
[null,null,null,null,null,null,null,null,null,null,null,null,null,null,null,null,819]
[null,null,null,null,null,null,null,null,null,null,null,null,null,null,null,null,820]
[null,null,null,null,null,null,null,null,null,null,null,null,null,null,null,null,821]
[null,null,null,null,null,null,null,null,null,null,null,null,null,null,null,null,822]
[null,null,null,null,null,null,null,null,null,null,null,null,null,null,null,null,823]
[null,null,null,null,null,null,null,null,null,null,null,null,null,null,null,null,824]
[null,null,null,null,null,null,null,null,null,null,null,null,null,null,null,null,825]
[null,null,null,null,null,null,null,null,null,null,null,null,null,null,null,null,826]
[null,null,null,null,null,null,null,null,null,null,null,null,null,null,null,null,827]
[null,null,null,null,null,null,null,null,null,null,null,null,null,null,null,null,828]
[null,null,null,null,null,null,null,null,null,null,null,null,null,null,null,null,829]
[null,null,null,null,null,null,null,null,null,null,null,null,null,null,null,null,830]
[null,null,null,null,null,null,null,null,null,null,null,null,null,null,null,null,831]
[null,null,null,null,null,null,null,null,null,null,null,null,null,null,null,null,832]
[null,null,null,null,null,null,null,null,null,null,null,null,null,null,null,null,833]
[null,null,null,null,null,null,null,null,null,null,null,null,null,null,null,null,834]
[null,null,null,null,null,null,null,null,null,null,null,null,null,null,null,null,{"$f":"Q840+1","v":835}]
[null,null,null,null,null,null,null,null,null,null,null,null,null,null,null,null,836]
[null,null,null,null,null,null,null,null,null,null,null,null,null,null,null,null,837]
[null,null,null,null,null,null,null,null,null,null,null,null,null,null,null,null,838]
[null,null,null,null,null,null,null,null,null,null,null,null,null,null,null,null,839]
[null,null,null,null,null,null,null,null,null,null,null,null,null,null,null,null,840]
[null,null,null,null,null,null,null,null,null,null,null,null,null,null,null,null,841]
[null,null,null,null,null,null,null,null,null,null,null,null,null,null,null,null,842]
[null,null,null,null,null,null,null,null,null,null,null,null,null,null,null,null,843]
[null,null,null,null,null,null,null,null,null,null,null,null,null,null,null,null,844]
[null,null,null,null,null,null,null,null,null,null,null,null,null,null,null,null,845]
[null,null,null,null,null,null,null,null,null,null,null,null,null,null,null,null,846]
[null,null,null,null,null,null,null,null,null,null,null,null,null,null,null,null,847]
[null,null,null,null,null,null,null,null,null,null,null,null,null,null,null,null,848]
[null,null,null,null,null,null,null,null,null,null,null,null,null,null,null,null,849]
[null,null,null,null,null,null,null,null,null,null,null,null,null,null,null,null,850]
[null,null,null,null,null,null,null,null,null,null,null,null,null,null,null,null,851]
[null,null,null,null,null,null,null,null,null,null,null,null,null,null,null,null,852]
[null,null,null,null,null,null,null,null,null,null,null,null,null,null,null,null,853]
[null,null,null,null,null,null,null,null,null,null,null,null,null,null,null,null,854]
[null,null,null,null,null,null,null,null,null,null,null,null,null,null,null,null,855]
[null,null,null,null,null,null,null,null,null,null,null,null,null,null,null,null,856]
[null,null,null,null,null,null,null,null,null,null,null,null,null,null,null,null,857]
[null,null,null,null,null,null,null,null,null,null,null,null,null,null,null,null,858]
[null,null,null,null,null,null,null,null,null,null,null,null,null,null,null,null,859]
[null,null,null,null,null,null,null,null,null,null,null,null,null,null,null,null,860]
[null,null,null,null,null,null,null,null,null,null,null,null,null,null,null,null,861]
[null,null,null,null,null,null,null,null,null,null,null,null,null,null,null,null,862]
[null,null,null,null,null,null,null,null,null,null,null,null,null,null,null,null,863]
[null,null,null,null,null,null,null,null,null,null,null,null,null,null,null,null,864]
[null,null,null,null,null,null,null,null,null,null,null,null,null,null,null,null,865]
[null,null,null,null,null,null,null,null,null,null,null,null,null,null,null,null,866]
[null,null,null,null,null,null,null,null,null,null,null,null,null,null,null,null,867]
[null,null,null,null,null,null,null,null,null,null,null,null,null,null,null,null,868]
[null,null,null,null,null,null,null,null,null,null,null,null,null,null,null,null,869]
[null,null,null,null,null,null,null,null,null,null,null,null,null,null,null,null,870]
[null,null,null,null,null,null,null,null,null,null,null,null,null,null,null,null,871]
[null,null,null,null,null,null,null,null,null,null,null,null,null,null,null,null,872]
[null,null,null,null,null,null,null,null,null,null,null,null,null,null,null,null,873]
[null,null,null,null,null,null,null,null,null,null,null,null,null,null,null,null,874]
[null,null,null,null,null,null,null,null,null,null,null,null,null,null,null,null,875]
[null,null,null,null,null,null,null,null,null,null,null,null,null,null,null,null,876]
[null,null,null,null,null,null,null,null,null,null,null,null,null,null,null,null,877]
[null,null,null,null,null,null,null,null,null,null,null,null,null,null,null,null,878]
[null,null,null,null,null,null,null,null,null,null,null,null,null,null,null,null,879]
[null,null,null,null,null,null,null,null,null,null,null,null,null,null,null,null,880]
[null,null,null,null,null,null,null,null,null,null,null,null,null,null,null,null,881]
[null,null,null,null,null,null,null,null,null,null,null,null,null,null,null,null,882]
[null,null,null,null,null,null,null,null,null,null,null,null,null,null,null,null,883]
[null,null,null,null,null,null,null,null,null,null,null,null,null,null,null,null,884]
[null,null,null,null,null,null,null,null,null,null,null,null,null,null,null,null,885]
[null,null,null,null,null,null,null,null,null,null,null,null,null,null,null,null,886]
[null,null,null,null,null,null,null,null,null,null,null,null,null,null,null,null,887]
[null,null,null,null,null,null,null,null,null,null,null,null,null,null,null,null,888]
[null,null,null,null,null,null,null,null,null,null,null,null,null,null,null,null,889]
[null,null,null,null,null,null,null,null,null,null,null,null,null,null,null,null,890]
[null,null,null,null,null,null,null,null,null,null,null,null,null,null,null,null,891]
[null,null,null,null,null,null,null,null,null,null,null,null,null,null,null,null,892]
[null,null,null,null,null,null,null,null,null,null,null,null,null,null,null,null,893]
[null,null,null,null,null,null,null,null,null,null,null,null,null,null,null,null,894]
[null,null,null,null,null,null,null,null,null,null,null,null,null,null,null,null,895]
[null,null,null,null,null,null,null,null,null,null,null,null,null,null,null,null,896]
[null,null,null,null,null,null,null,null,null,null,null,null,null,null,null,null,897]
[null,null,null,null,null,null,null,null,null,null,null,null,null,null,null,null,898]
[null,null,null,null,null,null,null,null,null,null,null,null,null,null,null,null,{"$f":"Q904+1","v":899}]
[null,null,null,null,null,null,null,null,null,null,null,null,null,null,null,null,900]
[null,null,null,null,null,null,null,null,null,null,null,null,null,null,null,null,901]
[null,null,null,null,null,null,null,null,null,null,null,null,null,null,null,null,902]
[null,null,null,null,null,null,null,null,null,null,null,null,null,null,null,null,903]
[null,null,null,null,null,null,null,null,null,null,null,null,null,null,null,null,904]
[null,null,null,null,null,null,null,null,null,null,null,null,null,null,null,null,905]
[null,null,null,null,null,null,null,null,null,null,null,null,null,null,null,null,906]
[null,null,null,null,null,null,null,null,null,null,null,null,null,null,null,null,907]
[null,null,null,null,null,null,null,null,null,null,null,null,null,null,null,null,908]
[null,null,null,null,null,null,null,null,null,null,null,null,null,null,null,null,909]
[null,null,null,null,null,null,null,null,null,null,null,null,null,null,null,null,910]
[null,null,null,null,null,null,null,null,null,null,null,null,null,null,null,null,911]
[null,null,null,null,null,null,null,null,null,null,null,null,null,null,null,null,912]
[null,null,null,null,null,null,null,null,null,null,null,null,null,null,null,null,913]
[null,null,null,null,null,null,null,null,null,null,null,null,null,null,null,null,914]
[null,null,null,null,null,null,null,null,null,null,null,null,null,null,null,null,915]
[null,null,null,null,null,null,null,null,null,null,null,null,null,null,null,null,916]
[null,null,null,null,null,null,null,null,null,null,null,null,null,null,null,null,917]
[null,null,null,null,null,null,null,null,null,null,null,null,null,null,null,null,918]
[null,null,null,null,null,null,null,null,null,null,null,null,null,null,null,null,919]
[null,null,null,null,null,null,null,null,null,null,null,null,null,null,null,null,920]
[null,null,null,null,null,null,null,null,null,null,null,null,null,null,null,null,921]
[null,null,null,null,null,null,null,null,null,null,null,null,null,null,null,null,922]
[null,null,null,null,null,null,null,null,null,null,null,null,null,null,null,null,923]
[null,null,null,null,null,null,null,null,null,null,null,null,null,null,null,null,924]
[null,null,null,null,null,null,null,null,null,null,null,null,null,null,null,null,925]
[null,null,null,null,null,null,null,null,null,null,null,null,null,null,null,null,926]
[null,null,null,null,null,null,null,null,null,null,null,null,null,null,null,null,927]
[null,null,null,null,null,null,null,null,null,null,null,null,null,null,null,null,928]
[null,null,null,null,null,null,null,null,null,null,null,null,null,null,null,null,929]
[null,null,null,null,null,null,null,null,null,null,null,null,null,null,null,null,930]
[null,null,null,null,null,null,null,null,null,null,null,null,null,null,null,null,931]
[null,null,null,null,null,null,null,null,null,null,null,null,null,null,null,null,932]
[null,null,null,null,null,null,null,null,null,null,null,null,null,null,null,null,933]
[null,null,null,null,null,null,null,null,null,null,null,null,null,null,null,null,934]
[null,null,null,null,null,null,null,null,null,null,null,null,null,null,null,null,935]
[null,null,null,null,null,null,null,null,null,null,null,null,null,null,null,null,936]
[null,null,null,null,null,null,null,null,null,null,null,null,null,null,null,null,937]
[null,null,null,null,null,null,null,null,null,null,null,null,null,null,null,null,938]
[null,null,null,null,null,null,null,null,null,null,null,null,null,null,null,null,939]
[null,null,null,null,null,null,null,null,null,null,null,null,null,null,null,null,940]
[null,null,null,null,null,null,null,null,null,null,null,null,null,null,null,null,941]
[null,null,null,null,null,null,null,null,null,null,null,null,null,null,null,null,942]
[null,null,null,null,null,null,null,null,null,null,null,null,null,null,null,null,943]
[null,null,null,null,null,null,null,null,null,null,null,null,null,null,null,null,944]
[null,null,null,null,null,null,null,null,null,null,null,null,null,null,null,null,945]
[null,null,null,null,null,null,null,null,null,null,null,null,null,null,null,null,946]
[null,null,null,null,null,null,null,null,null,null,null,null,null,null,null,null,947]
[null,null,null,null,null,null,null,null,null,null,null,null,null,null,null,null,948]
[null,null,null,null,null,null,null,null,null,null,null,null,null,null,null,null,949]
[null,null,null,null,null,null,null,null,null,null,null,null,null,null,null,null,950]
[null,null,null,null,null,null,null,null,null,null,null,null,null,null,null,null,951]
[null,null,null,null,null,null,null,null,null,null,null,null,null,null,null,null,952]
[null,null,null,null,null,null,null,null,null,null,null,null,null,null,null,null,953]
[null,null,null,null,null,null,null,null,null,null,null,null,null,null,null,null,954]
[null,null,null,null,null,null,null,null,null,null,null,null,null,null,null,null,955]
[null,null,null,null,null,null,null,null,null,null,null,null,null,null,null,null,956]
[null,null,null,null,null,null,null,null,null,null,null,null,null,null,null,null,957]
[null,null,null,null,null,null,null,null,null,null,null,null,null,null,null,null,958]
[null,null,null,null,null,null,null,null,null,null,null,null,null,null,null,null,959]
[null,null,null,null,null,null,null,null,null,null,null,null,null,null,null,null,960]
[null,null,null,null,null,null,null,null,null,null,null,null,null,null,null,null,961]
[null,null,null,null,null,null,null,null,null,null,null,null,null,null,null,null,962]
[null,null,null,null,null,null,null,null,null,null,null,null,null,null,null,null,{"$f":"Q968+1","v":963}]
[null,null,null,null,null,null,null,null,null,null,null,null,null,null,null,null,964]
[null,null,null,null,null,null,null,null,null,null,null,null,null,null,null,null,965]
[null,null,null,null,null,null,null,null,null,null,null,null,null,null,null,null,966]
[null,null,null,null,null,null,null,null,null,null,null,null,null,null,null,null,967]
[null,null,null,null,null,null,null,null,null,null,null,null,null,null,null,null,968]
[null,null,null,null,null,null,null,null,null,null,null,null,null,null,null,null,969]
[null,null,null,null,null,null,null,null,null,null,null,null,null,null,null,null,970]
[null,null,null,null,null,null,null,null,null,null,null,null,null,null,null,null,971]
[null,null,null,null,null,null,null,null,null,null,null,null,null,null,null,null,972]
[null,null,null,null,null,null,null,null,null,null,null,null,null,null,null,null,973]
[null,null,null,null,null,null,null,null,null,null,null,null,null,null,null,null,974]
[null,null,null,null,null,null,null,null,null,null,null,null,null,null,null,null,975]
[null,null,null,null,null,null,null,null,null,null,null,null,null,null,null,null,976]
[null,null,null,null,null,null,null,null,null,null,null,null,null,null,null,null,977]
[null,null,null,null,null,null,null,null,null,null,null,null,null,null,null,null,978]
[null,null,null,null,null,null,null,null,null,null,null,null,null,null,null,null,979]
[null,null,null,null,null,null,null,null,null,null,null,null,null,null,null,null,980]
[null,null,null,null,null,null,null,null,null,null,null,null,null,null,null,null,981]
[null,null,null,null,null,null,null,null,null,null,null,null,null,null,null,null,982]
[null,null,null,null,null,null,null,null,null,null,null,null,null,null,null,null,983]
[null,null,null,null,null,null,null,null,null,null,null,null,null,null,null,null,984]
[null,null,null,null,null,null,null,null,null,null,null,null,null,null,null,null,985]
[null,null,null,null,null,null,null,null,null,null,null,null,null,null,null,null,986]
[null,null,null,null,null,null,null,null,null,null,null,null,null,null,null,null,987]
[null,null,null,null,null,null,null,null,null,null,null,null,null,null,null,null,988]
[null,null,null,null,null,null,null,null,null,null,null,null,null,null,null,null,989]
[null,null,null,null,null,null,null,null,null,null,null,null,null,null,null,null,990]
[null,null,null,null,null,null,null,null,null,null,null,null,null,null,null,null,991]
[null,null,null,null,null,null,null,null,null,null,null,null,null,null,null,null,992]
[null,null,null,null,null,null,null,null,null,null,null,null,null,null,null,null,993]
[null,null,null,null,null,null,null,null,null,null,null,null,null,null,null,null,994]
[null,null,null,null,null,null,null,null,null,null,null,null,null,null,null,null,995]
[null,null,null,null,null,null,null,null,null,null,null,null,null,null,null,null,996]
[null,null,null,null,null,null,null,null,null,null,null,null,null,null,null,null,997]
[null,null,null,null,null,null,null,null,null,null,null,null,null,null,null,null,998]
[null,null,null,null,null,null,null,null,null,null,null,null,null,null,null,null,999]
[null,null,null,null,null,null,null,null,null,null,null,null,null,null,null,null,1000]

{"sheet":"Committenti","index":1,"n_rows":1017,"n_cols":15,"rows_kept":1017,"cut":false,"hidden":false,"merged":[]}
[null,"Elenco Committenti"]
[null,"Cognome","Nome","Codice Fiscale","Sesso","Data Nascita","Nazione Nasc","Comune Nascita","Nazione Res.","Comune Residenza","Prov.","Indirizzo","CAP","Telefono","Mail"]
[{"$f":"IF(B3<>\"\",1,\"\")","v":""}]
[{"$f":"IF(B4<>\"\", IF(A3<>\"\",A3+1,\"\"),\"\")","v":""}]
[{"$f":"IF(B5<>\"\", IF(A4<>\"\",A4+1,\"\"),\"\")","v":""}]
[""]
[""]
[""]
[""]
[""]
[""]
[""]
[""]
[""]
[""]
[""]
[""]
[""]
[""]
[""]
[""]
[""]
[""]
[""]
[""]
[""]
[""]
[""]
[""]
[""]
[""]
[""]
[""]
[""]
[""]
[""]
[""]
[""]
[""]
[""]
[""]
[""]
[""]
[""]
[""]
[""]
[""]
[""]
[""]
[""]
[""]
[""]
[""]
[""]
[""]
[""]
[""]
[""]
[""]
[""]
[""]
[""]
[""]
[""]
[""]
[""]
[""]
[""]
[{"$f":"IF(B69<>\"\", IF(A68<>\"\",A68+1,\"\"),\"\")","v":""}]
[""]
[""]
[""]
[""]
[""]
[""]
[""]
[""]
[""]
[""]
[""]
[""]
[""]
[""]
[""]
[""]
[""]
[""]
[""]
[""]
[""]
[""]
[""]
[""]
[""]
[""]
[""]
[""]
[""]
[""]
[""]
[""]
[""]
[""]
[""]
[""]
[""]
[""]
[""]
[""]
[""]
[""]
[""]
[""]
[""]
[""]
[""]
[""]
[""]
[""]
[""]
[""]
[""]
[""]
[""]
[""]
[""]
[""]
[""]
[""]
[""]
[""]
[""]
[{"$f":"IF(B133<>\"\", IF(A132<>\"\",A132+1,\"\"),\"\")","v":""}]
[""]
[""]
[""]
[""]
[""]
[""]
[""]
[""]
[""]
[""]
[""]
[""]
[""]
[""]
[""]
[""]
[""]
[""]
[""]
[""]
[""]
[""]
[""]
[""]
[""]
[""]
[""]
[""]
[""]
[""]
[""]
[""]
[""]
[""]
[""]
[""]
[""]
[""]
[""]
[""]
[""]
[""]
[""]
[""]
[""]
[""]
[""]
[""]
[""]
[""]
[""]
[""]
[""]
[""]
[""]
[""]
[""]
[""]
[""]
[""]
[""]
[""]
[""]
[{"$f":"IF(B197<>\"\", IF(A196<>\"\",A196+1,\"\"),\"\")","v":""}]
[""]
[""]
[""]
[""]
[""]
[""]
[""]
[""]
[""]
[""]
[""]
[""]
[""]
[""]
[""]
[""]
[""]
[""]
[""]
[""]
[""]
[""]
[""]
[""]
[""]
[""]
[""]
[""]
[""]
[""]
[""]
[""]
[""]
[""]
[""]
[""]
[""]
[""]
[""]
[""]
[""]
[""]
[""]
[""]
[""]
[""]
[""]
[""]
[""]
[""]
[""]
[""]
[""]
[""]
[""]
[""]
[""]
[""]
[""]
[""]
[""]
[""]
[""]
[{"$f":"IF(B261<>\"\", IF(A260<>\"\",A260+1,\"\"),\"\")","v":""}]
[""]
[""]
[""]
[""]
[""]
[""]
[""]
[""]
[""]
[""]
[""]
[""]
[""]
[""]
[""]
[""]
[""]
[""]
[""]
[""]
[""]
[""]
[""]
[""]
[""]
[""]
[""]
[""]
[""]
[""]
[""]
[""]
[""]
[""]
[""]
[""]
[""]
[""]
[""]
[""]
[""]
[""]
[""]
[""]
[""]
[""]
[""]
[""]
[""]
[""]
[""]
[""]
[""]
[""]
[""]
[""]
[""]
[""]
[""]
[""]
[""]
[""]
[""]
[{"$f":"IF(B325<>\"\", IF(A324<>\"\",A324+1,\"\"),\"\")","v":""}]
[""]
[""]
[""]
[""]
[""]
[""]
[""]
[""]
[""]
[""]
[""]
[""]
[""]
[""]
[""]
[""]
[""]
[""]
[""]
[""]
[""]
[""]
[""]
[""]
[""]
[""]
[""]
[""]
[""]
[""]
[""]
[""]
[""]
[""]
[""]
[""]
[""]
[""]
[""]
[""]
[""]
[""]
[""]
[""]
[""]
[""]
[""]
[""]
[""]
[""]
[""]
[""]
[""]
[""]
[""]
[""]
[""]
[""]
[""]
[""]
[""]
[""]
[""]
[{"$f":"IF(B389<>\"\", IF(A388<>\"\",A388+1,\"\"),\"\")","v":""}]
[""]
[""]
[""]
[""]
[""]
[""]
[""]
[""]
[""]
[""]
[""]
[""]
[""]
[""]
[""]
[""]
[""]
[""]
[""]
[""]
[""]
[""]
[""]
[""]
[""]
[""]
[""]
[""]
[""]
[""]
[""]
[""]
[""]
[""]
[""]
[""]
[""]
[""]
[""]
[""]
[""]
[""]
[""]
[""]
[""]
[""]
[""]
[""]
[""]
[""]
[""]
[""]
[""]
[""]
[""]
[""]
[""]
[""]
[""]
[""]
[""]
[""]
[""]
[{"$f":"IF(B453<>\"\", IF(A452<>\"\",A452+1,\"\"),\"\")","v":""}]
[""]
[""]
[""]
[""]
[""]
[""]
[""]
[""]
[""]
[""]
[""]
[""]
[""]
[""]
[""]
[""]
[""]
[""]
[""]
[""]
[""]
[""]
[""]
[""]
[""]
[""]
[""]
[""]
[""]
[""]
[""]
[""]
[""]
[""]
[""]
[""]
[""]
[""]
[""]
[""]
[""]
[""]
[""]
[""]
[""]
[""]
[""]
[""]
[""]
[""]
[""]
[""]
[""]
[""]
[""]
[""]
[""]
[""]
[""]
[""]
[""]
[""]
[""]
[{"$f":"IF(B517<>\"\", IF(A516<>\"\",A516+1,\"\"),\"\")","v":""}]
[""]
[""]
[""]
[""]
[""]
[""]
[""]
[""]
[""]
[""]
[""]
[""]
[""]
[""]
[""]
[""]
[""]
[""]
[""]
[""]
[""]
[""]
[""]
[""]
[""]
[""]
[""]
[""]
[""]
[""]
[""]
[""]
[""]
[""]
[""]
[""]
[""]
[""]
[""]
[""]
[""]
[""]
[""]
[""]
[""]
[""]
[""]
[""]
[""]
[""]
[""]
[""]
[""]
[""]
[""]
[""]
[""]
[""]
[""]
[""]
[""]
[""]
[""]
[{"$f":"IF(B581<>\"\", IF(A580<>\"\",A580+1,\"\"),\"\")","v":""}]
[""]
[""]
[""]
[""]
[""]
[""]
[""]
[""]
[""]
[""]
[""]
[""]
[""]
[""]
[""]
[""]
[""]
[""]
[""]
[""]
[""]
[""]
[""]
[""]
[""]
[""]
[""]
[""]
[""]
[""]
[""]
[""]
[""]
[""]
[""]
[""]
[""]
[""]
[""]
[""]
[""]
[""]
[""]
[""]
[""]
[""]
[""]
[""]
[""]
[""]
[""]
[""]
[""]
[""]
[""]
[""]
[""]
[""]
[""]
[""]
[""]
[""]
[""]
[{"$f":"IF(B645<>\"\", IF(A644<>\"\",A644+1,\"\"),\"\")","v":""}]
[""]
[""]
[""]
[""]
[""]
[""]
[""]
[""]
[""]
[""]
[""]
[""]
[""]
[""]
[""]
[""]
[""]
[""]
[""]
[""]
[""]
[""]
[""]
[""]
[""]
[""]
[""]
[""]
[""]
[""]
[""]
[""]
[""]
[""]
[""]
[""]
[""]
[""]
[""]
[""]
[""]
[""]
[""]
[""]
[""]
[""]
[""]
[""]
[""]
[""]
[""]
[""]
[""]
[""]
[""]
[""]
[""]
[""]
[""]
[""]
[""]
[""]
[""]
[{"$f":"IF(B709<>\"\", IF(A708<>\"\",A708+1,\"\"),\"\")","v":""}]
[""]
[""]
[""]
[""]
[""]
[""]
[""]
[""]
[""]
[""]
[""]
[""]
[""]
[""]
[""]
[""]
[""]
[""]
[""]
[""]
[""]
[""]
[""]
[""]
[""]
[""]
[""]
[""]
[""]
[""]
[""]
[""]
[""]
[""]
[""]
[""]
[""]
[""]
[""]
[""]
[""]
[""]
[""]
[""]
[""]
[""]
[""]
[""]
[""]
[""]
[""]
[""]
[""]
[""]
[""]
[""]
[""]
[""]
[""]
[""]
[""]
[""]
[""]
[{"$f":"IF(B773<>\"\", IF(A772<>\"\",A772+1,\"\"),\"\")","v":""}]
[""]
[""]
[""]
[""]
[""]
[""]
[""]
[""]
[""]
[""]
[""]
[""]
[""]
[""]
[""]
[""]
[""]
[""]
[""]
[""]
[""]
[""]
[""]
[""]
[""]
[""]
[""]
[""]
[""]
[""]
[""]
[""]
[""]
[""]
[""]
[""]
[""]
[""]
[""]
[""]
[""]
[""]
[""]
[""]
[""]
[""]
[""]
[""]
[""]
[""]
[""]
[""]
[""]
[""]
[""]
[""]
[""]
[""]
[""]
[""]
[""]
[""]
[""]
[{"$f":"IF(B837<>\"\", IF(A836<>\"\",A836+1,\"\"),\"\")","v":""}]
[""]
[""]
[""]
[""]
[""]
[""]
[""]
[""]
[""]
[""]
[""]
[""]
[""]
[""]
[""]
[""]
[""]
[""]
[""]
[""]
[""]
[""]
[""]
[""]
[""]
[""]
[""]
[""]
[""]
[""]
[""]
[""]
[""]
[""]
[""]
[""]
[""]
[""]
[""]
[""]
[""]
[""]
[""]
[""]
[""]
[""]
[""]
[""]
[""]
[""]
[""]
[""]
[""]
[""]
[""]
[""]
[""]
[""]
[""]
[""]
[""]
[""]
[""]
[{"$f":"IF(B901<>\"\", IF(A900<>\"\",A900+1,\"\"),\"\")","v":""}]
[""]
[""]
[""]
[""]
[""]
[""]
[""]
[""]
[""]
[""]
[""]
[""]
[""]
[""]
[""]
[""]
[""]
[""]
[""]
[""]
[""]
[""]
[""]
[""]
[""]
[""]
[""]
[""]
[""]
[""]
[""]
[""]
[""]
[""]
[""]
[""]
[""]
[""]
[""]
[""]
[""]
[""]
[""]
[""]
[""]
[""]
[""]
[""]
[""]
[""]
[""]
[""]
[""]
[""]
[""]
[""]
[""]
[""]
[""]
[""]
[""]
[""]
[""]
[{"$f":"IF(B965<>\"\", IF(A964<>\"\",A964+1,\"\"),\"\")","v":""}]
[""]
[""]
[""]
[""]
[""]
[""]
[""]
[""]
[""]
[""]
[""]
[""]
[""]
[""]
[""]
[""]
[""]
[""]
[""]
[""]
[""]
[""]
[""]
[""]
[""]
[""]
[""]
[""]
[""]
[""]
[""]
[""]
[""]
[""]
[""]
[""]
[""]
[""]
[""]
[""]
[""]
[""]
[""]
[""]
[""]
[""]
[""]
[""]
[""]
[""]
[""]
[""]

{"sheet":"UnitàImmobiliari","index":2,"n_rows":1017,"n_cols":17,"rows_kept":1017,"cut":false,"hidden":true,"merged":[[0,5,0,6],[0,7,0,8],[0,9,0,10],[0,11,0,12],[0,13,0,14]]}
[null,"Elenco Unità Immobiliari",null,null,null,"Beneficiario 1",null,"Beneficiario 2",null,"Beneficiario 3",null,"Beneficiario 4",null,"Beneficiario 5"]
[null,"Foglio","Particella","Sub.","Categoria","Codice Fiscale","Titolo Possesso","Codice Fiscale","Titolo Possesso","Codice Fiscale","Titolo Possesso","Codice Fiscale","Titolo Possesso","Codice Fiscale","Titolo Possesso",null,"Elenco Committenti"]
[{"$f":"IF(B3<>\"\",1,\"\")","v":1},{"$f":"nFoglio1","v":0},{"$f":"nPlla1","v":0},{"$f":"nSUB1","v":0},{"$f":"Categoria1","v":0},null,null,null,null,null,null,null,null,null,null,null,{"$f":"IF(Committenti!D3<>\"\",CONCATENATE(Committenti!B3,\"  \",Committenti!C3,\"  CF: \",Committenti!D3),\"\")","v":""}]
[{"$f":"IF(B4<>\"\", IF(A3<>\"\",A3+1,\"\"),\"\")","v":""},null,null,null,null,null,null,null,null,null,null,null,null,null,null,null,{"$f":"IF(Committenti!D4<>\"\",CONCATENATE(Committenti!B4,\"  \",Committenti!C4,\"  CF: \",Committenti!D4),\"\")","v":""}]
[{"$f":"IF(B5<>\"\", IF(A4<>\"\",A4+1,\"\"),\"\")","v":""},null,null,null,null,null,null,null,null,"",null,null,null,null,null,null,{"$f":"IF(Committenti!D5<>\"\",CONCATENATE(Committenti!B5,\"  \",Committenti!C5,\"  CF: \",Committenti!D5),\"\")","v":""}]
["",null,null,null,null,null,null,null,null,null,null,null,null,null,null,null,{"$f":"IF(Committenti!D6<>\"\",CONCATENATE(Committenti!B6,\"  \",Committenti!C6,\"  CF: \",Committenti!D6),\"\")","v":""}]
["",null,null,null,null,null,null,null,null,null,null,null,null,null,null,null,{"$f":"IF(Committenti!D7<>\"\",CONCATENATE(Committenti!B7,\"  \",Committenti!C7,\"  CF: \",Committenti!D7),\"\")","v":""}]
["",null,null,null,null,null,null,null,null,null,null,null,null,null,null,null,{"$f":"IF(Committenti!D8<>\"\",CONCATENATE(Committenti!B8,\"  \",Committenti!C8,\"  CF: \",Committenti!D8),\"\")","v":""}]
["",null,null,null,null,null,null,null,null,null,null,null,null,null,null,null,{"$f":"IF(Committenti!D9<>\"\",CONCATENATE(Committenti!B9,\"  \",Committenti!C9,\"  CF: \",Committenti!D9),\"\")","v":""}]
["",null,null,null,null,null,null,null,null,null,null,null,null,null,null,null,{"$f":"IF(Committenti!D10<>\"\",CONCATENATE(Committenti!B10,\"  \",Committenti!C10,\"  CF: \",Committenti!D10),\"\")","v":""}]
["",null,null,null,null,null,null,null,null,null,null,null,null,null,null,null,{"$f":"IF(Committenti!D11<>\"\",CONCATENATE(Committenti!B11,\"  \",Committenti!C11,\"  CF: \",Committenti!D11),\"\")","v":""}]
["",null,null,null,null,null,null,null,null,null,null,null,null,null,null,null,{"$f":"IF(Committenti!D12<>\"\",CONCATENATE(Committenti!B12,\"  \",Committenti!C12,\"  CF: \",Committenti!D12),\"\")","v":""}]
["",null,null,null,null,null,null,null,null,null,null,null,null,null,null,null,{"$f":"IF(Committenti!D13<>\"\",CONCATENATE(Committenti!B13,\"  \",Committenti!C13,\"  CF: \",Committenti!D13),\"\")","v":""}]
["",null,null,null,null,null,null,null,null,null,null,null,null,null,null,null,{"$f":"IF(Committenti!D14<>\"\",CONCATENATE(Committenti!B14,\"  \",Committenti!C14,\"  CF: \",Committenti!D14),\"\")","v":""}]
["",null,null,null,null,null,null,null,null,null,null,null,null,null,null,null,{"$f":"IF(Committenti!D15<>\"\",CONCATENATE(Committenti!B15,\"  \",Committenti!C15,\"  CF: \",Committenti!D15),\"\")","v":""}]
["",null,null,null,null,null,null,null,null,null,null,null,null,null,null,null,{"$f":"IF(Committenti!D16<>\"\",CONCATENATE(Committenti!B16,\"  \",Committenti!C16,\"  CF: \",Committenti!D16),\"\")","v":""}]
["",null,null,null,null,null,null,null,null,null,null,null,null,null,null,null,{"$f":"IF(Committenti!D17<>\"\",CONCATENATE(Committenti!B17,\"  \",Committenti!C17,\"  CF: \",Committenti!D17),\"\")","v":""}]
["",null,null,null,null,null,null,null,null,null,null,null,null,null,null,null,{"$f":"IF(Committenti!D18<>\"\",CONCATENATE(Committenti!B18,\"  \",Committenti!C18,\"  CF: \",Committenti!D18),\"\")","v":""}]
["",null,null,null,null,null,null,null,null,null,null,null,null,null,null,null,{"$f":"IF(Committenti!D19<>\"\",CONCATENATE(Committenti!B19,\"  \",Committenti!C19,\"  CF: \",Committenti!D19),\"\")","v":""}]
["",null,null,null,null,null,null,null,null,null,null,null,null,null,null,null,{"$f":"IF(Committenti!D20<>\"\",CONCATENATE(Committenti!B20,\"  \",Committenti!C20,\"  CF: \",Committenti!D20),\"\")","v":""}]
["",null,null,null,null,null,null,null,null,null,null,null,null,null,null,null,{"$f":"IF(Committenti!D21<>\"\",CONCATENATE(Committenti!B21,\"  \",Committenti!C21,\"  CF: \",Committenti!D21),\"\")","v":""}]
["",null,null,null,null,null,null,null,null,null,null,null,null,null,null,null,{"$f":"IF(Committenti!D22<>\"\",CONCATENATE(Committenti!B22,\"  \",Committenti!C22,\"  CF: \",Committenti!D22),\"\")","v":""}]
["",null,null,null,null,null,null,null,null,null,null,null,null,null,null,null,{"$f":"IF(Committenti!D23<>\"\",CONCATENATE(Committenti!B23,\"  \",Committenti!C23,\"  CF: \",Committenti!D23),\"\")","v":""}]
["",null,null,null,null,null,null,null,null,null,null,null,null,null,null,null,{"$f":"IF(Committenti!D24<>\"\",CONCATENATE(Committenti!B24,\"  \",Committenti!C24,\"  CF: \",Committenti!D24),\"\")","v":""}]
["",null,null,null,null,null,null,null,null,null,null,null,null,null,null,null,{"$f":"IF(Committenti!D25<>\"\",CONCATENATE(Committenti!B25,\"  \",Committenti!C25,\"  CF: \",Committenti!D25),\"\")","v":""}]
["",null,null,null,null,null,null,null,null,null,null,null,null,null,null,null,{"$f":"IF(Committenti!D26<>\"\",CONCATENATE(Committenti!B26,\"  \",Committenti!C26,\"  CF: \",Committenti!D26),\"\")","v":""}]
["",null,null,null,null,null,null,null,null,null,null,null,null,null,null,null,{"$f":"IF(Committenti!D27<>\"\",CONCATENATE(Committenti!B27,\"  \",Committenti!C27,\"  CF: \",Committenti!D27),\"\")","v":""}]
["",null,null,null,null,null,null,null,null,null,null,null,null,null,null,null,{"$f":"IF(Committenti!D28<>\"\",CONCATENATE(Committenti!B28,\"  \",Committenti!C28,\"  CF: \",Committenti!D28),\"\")","v":""}]
["",null,null,null,null,null,null,null,null,null,null,null,null,null,null,null,{"$f":"IF(Committenti!D29<>\"\",CONCATENATE(Committenti!B29,\"  \",Committenti!C29,\"  CF: \",Committenti!D29),\"\")","v":""}]
["",null,null,null,null,null,null,null,null,null,null,null,null,null,null,null,{"$f":"IF(Committenti!D30<>\"\",CONCATENATE(Committenti!B30,\"  \",Committenti!C30,\"  CF: \",Committenti!D30),\"\")","v":""}]
["",null,null,null,null,null,null,null,null,null,null,null,null,null,null,null,{"$f":"IF(Committenti!D31<>\"\",CONCATENATE(Committenti!B31,\"  \",Committenti!C31,\"  CF: \",Committenti!D31),\"\")","v":""}]
["",null,null,null,null,null,null,null,null,null,null,null,null,null,null,null,{"$f":"IF(Committenti!D32<>\"\",CONCATENATE(Committenti!B32,\"  \",Committenti!C32,\"  CF: \",Committenti!D32),\"\")","v":""}]
["",null,null,null,null,null,null,null,null,null,null,null,null,null,null,null,{"$f":"IF(Committenti!D33<>\"\",CONCATENATE(Committenti!B33,\"  \",Committenti!C33,\"  CF: \",Committenti!D33),\"\")","v":""}]
["",null,null,null,null,null,null,null,null,null,null,null,null,null,null,null,{"$f":"IF(Committenti!D34<>\"\",CONCATENATE(Committenti!B34,\"  \",Committenti!C34,\"  CF: \",Committenti!D34),\"\")","v":""}]
["",null,null,null,null,null,null,null,null,null,null,null,null,null,null,null,{"$f":"IF(Committenti!D35<>\"\",CONCATENATE(Committenti!B35,\"  \",Committenti!C35,\"  CF: \",Committenti!D35),\"\")","v":""}]
["",null,null,null,null,null,null,null,null,null,null,null,null,null,null,null,{"$f":"IF(Committenti!D36<>\"\",CONCATENATE(Committenti!B36,\"  \",Committenti!C36,\"  CF: \",Committenti!D36),\"\")","v":""}]
["",null,null,null,null,null,null,null,null,null,null,null,null,null,null,null,{"$f":"IF(Committenti!D37<>\"\",CONCATENATE(Committenti!B37,\"  \",Committenti!C37,\"  CF: \",Committenti!D37),\"\")","v":""}]
["",null,null,null,null,null,null,null,null,null,null,null,null,null,null,null,{"$f":"IF(Committenti!D38<>\"\",CONCATENATE(Committenti!B38,\"  \",Committenti!C38,\"  CF: \",Committenti!D38),\"\")","v":""}]
["",null,null,null,null,null,null,null,null,null,null,null,null,null,null,null,{"$f":"IF(Committenti!D39<>\"\",CONCATENATE(Committenti!B39,\"  \",Committenti!C39,\"  CF: \",Committenti!D39),\"\")","v":""}]
["",null,null,null,null,null,null,null,null,null,null,null,null,null,null,null,{"$f":"IF(Committenti!D40<>\"\",CONCATENATE(Committenti!B40,\"  \",Committenti!C40,\"  CF: \",Committenti!D40),\"\")","v":""}]
["",null,null,null,null,null,null,null,null,null,null,null,null,null,null,null,{"$f":"IF(Committenti!D41<>\"\",CONCATENATE(Committenti!B41,\"  \",Committenti!C41,\"  CF: \",Committenti!D41),\"\")","v":""}]
["",null,null,null,null,null,null,null,null,null,null,null,null,null,null,null,{"$f":"IF(Committenti!D42<>\"\",CONCATENATE(Committenti!B42,\"  \",Committenti!C42,\"  CF: \",Committenti!D42),\"\")","v":""}]
["",null,null,null,null,null,null,null,null,null,null,null,null,null,null,null,{"$f":"IF(Committenti!D43<>\"\",CONCATENATE(Committenti!B43,\"  \",Committenti!C43,\"  CF: \",Committenti!D43),\"\")","v":""}]
["",null,null,null,null,null,null,null,null,null,null,null,null,null,null,null,{"$f":"IF(Committenti!D44<>\"\",CONCATENATE(Committenti!B44,\"  \",Committenti!C44,\"  CF: \",Committenti!D44),\"\")","v":""}]
["",null,null,null,null,null,null,null,null,null,null,null,null,null,null,null,{"$f":"IF(Committenti!D45<>\"\",CONCATENATE(Committenti!B45,\"  \",Committenti!C45,\"  CF: \",Committenti!D45),\"\")","v":""}]
["",null,null,null,null,null,null,null,null,null,null,null,null,null,null,null,{"$f":"IF(Committenti!D46<>\"\",CONCATENATE(Committenti!B46,\"  \",Committenti!C46,\"  CF: \",Committenti!D46),\"\")","v":""}]
["",null,null,null,null,null,null,null,null,null,null,null,null,null,null,null,{"$f":"IF(Committenti!D47<>\"\",CONCATENATE(Committenti!B47,\"  \",Committenti!C47,\"  CF: \",Committenti!D47),\"\")","v":""}]
["",null,null,null,null,null,null,null,null,null,null,null,null,null,null,null,{"$f":"IF(Committenti!D48<>\"\",CONCATENATE(Committenti!B48,\"  \",Committenti!C48,\"  CF: \",Committenti!D48),\"\")","v":""}]
["",null,null,null,null,null,null,null,null,null,null,null,null,null,null,null,{"$f":"IF(Committenti!D49<>\"\",CONCATENATE(Committenti!B49,\"  \",Committenti!C49,\"  CF: \",Committenti!D49),\"\")","v":""}]
["",null,null,null,null,null,null,null,null,null,null,null,null,null,null,null,{"$f":"IF(Committenti!D50<>\"\",CONCATENATE(Committenti!B50,\"  \",Committenti!C50,\"  CF: \",Committenti!D50),\"\")","v":""}]
["",null,null,null,null,null,null,null,null,null,null,null,null,null,null,null,{"$f":"IF(Committenti!D51<>\"\",CONCATENATE(Committenti!B51,\"  \",Committenti!C51,\"  CF: \",Committenti!D51),\"\")","v":""}]
["",null,null,null,null,null,null,null,null,null,null,null,null,null,null,null,{"$f":"IF(Committenti!D52<>\"\",CONCATENATE(Committenti!B52,\"  \",Committenti!C52,\"  CF: \",Committenti!D52),\"\")","v":""}]
["",null,null,null,null,null,null,null,null,null,null,null,null,null,null,null,{"$f":"IF(Committenti!D53<>\"\",CONCATENATE(Committenti!B53,\"  \",Committenti!C53,\"  CF: \",Committenti!D53),\"\")","v":""}]
["",null,null,null,null,null,null,null,null,null,null,null,null,null,null,null,{"$f":"IF(Committenti!D54<>\"\",CONCATENATE(Committenti!B54,\"  \",Committenti!C54,\"  CF: \",Committenti!D54),\"\")","v":""}]
["",null,null,null,null,null,null,null,null,null,null,null,null,null,null,null,{"$f":"IF(Committenti!D55<>\"\",CONCATENATE(Committenti!B55,\"  \",Committenti!C55,\"  CF: \",Committenti!D55),\"\")","v":""}]
["",null,null,null,null,null,null,null,null,null,null,null,null,null,null,null,{"$f":"IF(Committenti!D56<>\"\",CONCATENATE(Committenti!B56,\"  \",Committenti!C56,\"  CF: \",Committenti!D56),\"\")","v":""}]
["",null,null,null,null,null,null,null,null,null,null,null,null,null,null,null,{"$f":"IF(Committenti!D57<>\"\",CONCATENATE(Committenti!B57,\"  \",Committenti!C57,\"  CF: \",Committenti!D57),\"\")","v":""}]
["",null,null,null,null,null,null,null,null,null,null,null,null,null,null,null,{"$f":"IF(Committenti!D58<>\"\",CONCATENATE(Committenti!B58,\"  \",Committenti!C58,\"  CF: \",Committenti!D58),\"\")","v":""}]
["",null,null,null,null,null,null,null,null,null,null,null,null,null,null,null,{"$f":"IF(Committenti!D59<>\"\",CONCATENATE(Committenti!B59,\"  \",Committenti!C59,\"  CF: \",Committenti!D59),\"\")","v":""}]
["",null,null,null,null,null,null,null,null,null,null,null,null,null,null,null,{"$f":"IF(Committenti!D60<>\"\",CONCATENATE(Committenti!B60,\"  \",Committenti!C60,\"  CF: \",Committenti!D60),\"\")","v":""}]
["",null,null,null,null,null,null,null,null,null,null,null,null,null,null,null,{"$f":"IF(Committenti!D61<>\"\",CONCATENATE(Committenti!B61,\"  \",Committenti!C61,\"  CF: \",Committenti!D61),\"\")","v":""}]
["",null,null,null,null,null,null,null,null,null,null,null,null,null,null,null,{"$f":"IF(Committenti!D62<>\"\",CONCATENATE(Committenti!B62,\"  \",Committenti!C62,\"  CF: \",Committenti!D62),\"\")","v":""}]
["",null,null,null,null,null,null,null,null,null,null,null,null,null,null,null,{"$f":"IF(Committenti!D63<>\"\",CONCATENATE(Committenti!B63,\"  \",Committenti!C63,\"  CF: \",Committenti!D63),\"\")","v":""}]
["",null,null,null,null,null,null,null,null,null,null,null,null,null,null,null,{"$f":"IF(Committenti!D64<>\"\",CONCATENATE(Committenti!B64,\"  \",Committenti!C64,\"  CF: \",Committenti!D64),\"\")","v":""}]
["",null,null,null,null,null,null,null,null,null,null,null,null,null,null,null,{"$f":"IF(Committenti!D65<>\"\",CONCATENATE(Committenti!B65,\"  \",Committenti!C65,\"  CF: \",Committenti!D65),\"\")","v":""}]
["",null,null,null,null,null,null,null,null,null,null,null,null,null,null,null,{"$f":"IF(Committenti!D66<>\"\",CONCATENATE(Committenti!B66,\"  \",Committenti!C66,\"  CF: \",Committenti!D66),\"\")","v":""}]
["",null,null,null,null,null,null,null,null,null,null,null,null,null,null,null,{"$f":"IF(Committenti!D67<>\"\",CONCATENATE(Committenti!B67,\"  \",Committenti!C67,\"  CF: \",Committenti!D67),\"\")","v":""}]
["",null,null,null,null,null,null,null,null,null,null,null,null,null,null,null,{"$f":"IF(Committenti!D68<>\"\",CONCATENATE(Committenti!B68,\"  \",Committenti!C68,\"  CF: \",Committenti!D68),\"\")","v":""}]
[{"$f":"IF(B69<>\"\", IF(A68<>\"\",A68+1,\"\"),\"\")","v":""},null,null,null,null,null,null,null,null,null,null,null,null,null,null,null,{"$f":"IF(Committenti!D69<>\"\",CONCATENATE(Committenti!B69,\"  \",Committenti!C69,\"  CF: \",Committenti!D69),\"\")","v":""}]
["",null,null,null,null,null,null,null,null,null,null,null,null,null,null,null,{"$f":"IF(Committenti!D70<>\"\",CONCATENATE(Committenti!B70,\"  \",Committenti!C70,\"  CF: \",Committenti!D70),\"\")","v":""}]
["",null,null,null,null,null,null,null,null,null,null,null,null,null,null,null,{"$f":"IF(Committenti!D71<>\"\",CONCATENATE(Committenti!B71,\"  \",Committenti!C71,\"  CF: \",Committenti!D71),\"\")","v":""}]
["",null,null,null,null,null,null,null,null,null,null,null,null,null,null,null,{"$f":"IF(Committenti!D72<>\"\",CONCATENATE(Committenti!B72,\"  \",Committenti!C72,\"  CF: \",Committenti!D72),\"\")","v":""}]
["",null,null,null,null,null,null,null,null,null,null,null,null,null,null,null,{"$f":"IF(Committenti!D73<>\"\",CONCATENATE(Committenti!B73,\"  \",Committenti!C73,\"  CF: \",Committenti!D73),\"\")","v":""}]
["",null,null,null,null,null,null,null,null,null,null,null,null,null,null,null,{"$f":"IF(Committenti!D74<>\"\",CONCATENATE(Committenti!B74,\"  \",Committenti!C74,\"  CF: \",Committenti!D74),\"\")","v":""}]
["",null,null,null,null,null,null,null,null,null,null,null,null,null,null,null,{"$f":"IF(Committenti!D75<>\"\",CONCATENATE(Committenti!B75,\"  \",Committenti!C75,\"  CF: \",Committenti!D75),\"\")","v":""}]
["",null,null,null,null,null,null,null,null,null,null,null,null,null,null,null,{"$f":"IF(Committenti!D76<>\"\",CONCATENATE(Committenti!B76,\"  \",Committenti!C76,\"  CF: \",Committenti!D76),\"\")","v":""}]
["",null,null,null,null,null,null,null,null,null,null,null,null,null,null,null,{"$f":"IF(Committenti!D77<>\"\",CONCATENATE(Committenti!B77,\"  \",Committenti!C77,\"  CF: \",Committenti!D77),\"\")","v":""}]
["",null,null,null,null,null,null,null,null,null,null,null,null,null,null,null,{"$f":"IF(Committenti!D78<>\"\",CONCATENATE(Committenti!B78,\"  \",Committenti!C78,\"  CF: \",Committenti!D78),\"\")","v":""}]
["",null,null,null,null,null,null,null,null,null,null,null,null,null,null,null,{"$f":"IF(Committenti!D79<>\"\",CONCATENATE(Committenti!B79,\"  \",Committenti!C79,\"  CF: \",Committenti!D79),\"\")","v":""}]
["",null,null,null,null,null,null,null,null,null,null,null,null,null,null,null,{"$f":"IF(Committenti!D80<>\"\",CONCATENATE(Committenti!B80,\"  \",Committenti!C80,\"  CF: \",Committenti!D80),\"\")","v":""}]
["",null,null,null,null,null,null,null,null,null,null,null,null,null,null,null,{"$f":"IF(Committenti!D81<>\"\",CONCATENATE(Committenti!B81,\"  \",Committenti!C81,\"  CF: \",Committenti!D81),\"\")","v":""}]
["",null,null,null,null,null,null,null,null,null,null,null,null,null,null,null,{"$f":"IF(Committenti!D82<>\"\",CONCATENATE(Committenti!B82,\"  \",Committenti!C82,\"  CF: \",Committenti!D82),\"\")","v":""}]
["",null,null,null,null,null,null,null,null,null,null,null,null,null,null,null,{"$f":"IF(Committenti!D83<>\"\",CONCATENATE(Committenti!B83,\"  \",Committenti!C83,\"  CF: \",Committenti!D83),\"\")","v":""}]
["",null,null,null,null,null,null,null,null,null,null,null,null,null,null,null,{"$f":"IF(Committenti!D84<>\"\",CONCATENATE(Committenti!B84,\"  \",Committenti!C84,\"  CF: \",Committenti!D84),\"\")","v":""}]
["",null,null,null,null,null,null,null,null,null,null,null,null,null,null,null,{"$f":"IF(Committenti!D85<>\"\",CONCATENATE(Committenti!B85,\"  \",Committenti!C85,\"  CF: \",Committenti!D85),\"\")","v":""}]
["",null,null,null,null,null,null,null,null,null,null,null,null,null,null,null,{"$f":"IF(Committenti!D86<>\"\",CONCATENATE(Committenti!B86,\"  \",Committenti!C86,\"  CF: \",Committenti!D86),\"\")","v":""}]
["",null,null,null,null,null,null,null,null,null,null,null,null,null,null,null,{"$f":"IF(Committenti!D87<>\"\",CONCATENATE(Committenti!B87,\"  \",Committenti!C87,\"  CF: \",Committenti!D87),\"\")","v":""}]
["",null,null,null,null,null,null,null,null,null,null,null,null,null,null,null,{"$f":"IF(Committenti!D88<>\"\",CONCATENATE(Committenti!B88,\"  \",Committenti!C88,\"  CF: \",Committenti!D88),\"\")","v":""}]
["",null,null,null,null,null,null,null,null,null,null,null,null,null,null,null,{"$f":"IF(Committenti!D89<>\"\",CONCATENATE(Committenti!B89,\"  \",Committenti!C89,\"  CF: \",Committenti!D89),\"\")","v":""}]
["",null,null,null,null,null,null,null,null,null,null,null,null,null,null,null,{"$f":"IF(Committenti!D90<>\"\",CONCATENATE(Committenti!B90,\"  \",Committenti!C90,\"  CF: \",Committenti!D90),\"\")","v":""}]
["",null,null,null,null,null,null,null,null,null,null,null,null,null,null,null,{"$f":"IF(Committenti!D91<>\"\",CONCATENATE(Committenti!B91,\"  \",Committenti!C91,\"  CF: \",Committenti!D91),\"\")","v":""}]
["",null,null,null,null,null,null,null,null,null,null,null,null,null,null,null,{"$f":"IF(Committenti!D92<>\"\",CONCATENATE(Committenti!B92,\"  \",Committenti!C92,\"  CF: \",Committenti!D92),\"\")","v":""}]
["",null,null,null,null,null,null,null,null,null,null,null,null,null,null,null,{"$f":"IF(Committenti!D93<>\"\",CONCATENATE(Committenti!B93,\"  \",Committenti!C93,\"  CF: \",Committenti!D93),\"\")","v":""}]
["",null,null,null,null,null,null,null,null,null,null,null,null,null,null,null,{"$f":"IF(Committenti!D94<>\"\",CONCATENATE(Committenti!B94,\"  \",Committenti!C94,\"  CF: \",Committenti!D94),\"\")","v":""}]
["",null,null,null,null,null,null,null,null,null,null,null,null,null,null,null,{"$f":"IF(Committenti!D95<>\"\",CONCATENATE(Committenti!B95,\"  \",Committenti!C95,\"  CF: \",Committenti!D95),\"\")","v":""}]
["",null,null,null,null,null,null,null,null,null,null,null,null,null,null,null,{"$f":"IF(Committenti!D96<>\"\",CONCATENATE(Committenti!B96,\"  \",Committenti!C96,\"  CF: \",Committenti!D96),\"\")","v":""}]
["",null,null,null,null,null,null,null,null,null,null,null,null,null,null,null,{"$f":"IF(Committenti!D97<>\"\",CONCATENATE(Committenti!B97,\"  \",Committenti!C97,\"  CF: \",Committenti!D97),\"\")","v":""}]
["",null,null,null,null,null,null,null,null,null,null,null,null,null,null,null,{"$f":"IF(Committenti!D98<>\"\",CONCATENATE(Committenti!B98,\"  \",Committenti!C98,\"  CF: \",Committenti!D98),\"\")","v":""}]
["",null,null,null,null,null,null,null,null,null,null,null,null,null,null,null,{"$f":"IF(Committenti!D99<>\"\",CONCATENATE(Committenti!B99,\"  \",Committenti!C99,\"  CF: \",Committenti!D99),\"\")","v":""}]
["",null,null,null,null,null,null,null,null,null,null,null,null,null,null,null,{"$f":"IF(Committenti!D100<>\"\",CONCATENATE(Committenti!B100,\"  \",Committenti!C100,\"  CF: \",Committenti!D100),\"\")","v":""}]
["",null,null,null,null,null,null,null,null,null,null,null,null,null,null,null,{"$f":"IF(Committenti!D101<>\"\",CONCATENATE(Committenti!B101,\"  \",Committenti!C101,\"  CF: \",Committenti!D101),\"\")","v":""}]
["",null,null,null,null,null,null,null,null,null,null,null,null,null,null,null,{"$f":"IF(Committenti!D102<>\"\",CONCATENATE(Committenti!B102,\"  \",Committenti!C102,\"  CF: \",Committenti!D102),\"\")","v":""}]
["",null,null,null,null,null,null,null,null,null,null,null,null,null,null,null,{"$f":"IF(Committenti!D103<>\"\",CONCATENATE(Committenti!B103,\"  \",Committenti!C103,\"  CF: \",Committenti!D103),\"\")","v":""}]
["",null,null,null,null,null,null,null,null,null,null,null,null,null,null,null,{"$f":"IF(Committenti!D104<>\"\",CONCATENATE(Committenti!B104,\"  \",Committenti!C104,\"  CF: \",Committenti!D104),\"\")","v":""}]
["",null,null,null,null,null,null,null,null,null,null,null,null,null,null,null,{"$f":"IF(Committenti!D105<>\"\",CONCATENATE(Committenti!B105,\"  \",Committenti!C105,\"  CF: \",Committenti!D105),\"\")","v":""}]
["",null,null,null,null,null,null,null,null,null,null,null,null,null,null,null,{"$f":"IF(Committenti!D106<>\"\",CONCATENATE(Committenti!B106,\"  \",Committenti!C106,\"  CF: \",Committenti!D106),\"\")","v":""}]
["",null,null,null,null,null,null,null,null,null,null,null,null,null,null,null,{"$f":"IF(Committenti!D107<>\"\",CONCATENATE(Committenti!B107,\"  \",Committenti!C107,\"  CF: \",Committenti!D107),\"\")","v":""}]
["",null,null,null,null,null,null,null,null,null,null,null,null,null,null,null,{"$f":"IF(Committenti!D108<>\"\",CONCATENATE(Committenti!B108,\"  \",Committenti!C108,\"  CF: \",Committenti!D108),\"\")","v":""}]
["",null,null,null,null,null,null,null,null,null,null,null,null,null,null,null,{"$f":"IF(Committenti!D109<>\"\",CONCATENATE(Committenti!B109,\"  \",Committenti!C109,\"  CF: \",Committenti!D109),\"\")","v":""}]
["",null,null,null,null,null,null,null,null,null,null,null,null,null,null,null,{"$f":"IF(Committenti!D110<>\"\",CONCATENATE(Committenti!B110,\"  \",Committenti!C110,\"  CF: \",Committenti!D110),\"\")","v":""}]
["",null,null,null,null,null,null,null,null,null,null,null,null,null,null,null,{"$f":"IF(Committenti!D111<>\"\",CONCATENATE(Committenti!B111,\"  \",Committenti!C111,\"  CF: \",Committenti!D111),\"\")","v":""}]
["",null,null,null,null,null,null,null,null,null,null,null,null,null,null,null,{"$f":"IF(Committenti!D112<>\"\",CONCATENATE(Committenti!B112,\"  \",Committenti!C112,\"  CF: \",Committenti!D112),\"\")","v":""}]
["",null,null,null,null,null,null,null,null,null,null,null,null,null,null,null,{"$f":"IF(Committenti!D113<>\"\",CONCATENATE(Committenti!B113,\"  \",Committenti!C113,\"  CF: \",Committenti!D113),\"\")","v":""}]
["",null,null,null,null,null,null,null,null,null,null,null,null,null,null,null,{"$f":"IF(Committenti!D114<>\"\",CONCATENATE(Committenti!B114,\"  \",Committenti!C114,\"  CF: \",Committenti!D114),\"\")","v":""}]
["",null,null,null,null,null,null,null,null,null,null,null,null,null,null,null,{"$f":"IF(Committenti!D115<>\"\",CONCATENATE(Committenti!B115,\"  \",Committenti!C115,\"  CF: \",Committenti!D115),\"\")","v":""}]
["",null,null,null,null,null,null,null,null,null,null,null,null,null,null,null,{"$f":"IF(Committenti!D116<>\"\",CONCATENATE(Committenti!B116,\"  \",Committenti!C116,\"  CF: \",Committenti!D116),\"\")","v":""}]
["",null,null,null,null,null,null,null,null,null,null,null,null,null,null,null,{"$f":"IF(Committenti!D117<>\"\",CONCATENATE(Committenti!B117,\"  \",Committenti!C117,\"  CF: \",Committenti!D117),\"\")","v":""}]
["",null,null,null,null,null,null,null,null,null,null,null,null,null,null,null,{"$f":"IF(Committenti!D118<>\"\",CONCATENATE(Committenti!B118,\"  \",Committenti!C118,\"  CF: \",Committenti!D118),\"\")","v":""}]
["",null,null,null,null,null,null,null,null,null,null,null,null,null,null,null,{"$f":"IF(Committenti!D119<>\"\",CONCATENATE(Committenti!B119,\"  \",Committenti!C119,\"  CF: \",Committenti!D119),\"\")","v":""}]
["",null,null,null,null,null,null,null,null,null,null,null,null,null,null,null,{"$f":"IF(Committenti!D120<>\"\",CONCATENATE(Committenti!B120,\"  \",Committenti!C120,\"  CF: \",Committenti!D120),\"\")","v":""}]
["",null,null,null,null,null,null,null,null,null,null,null,null,null,null,null,{"$f":"IF(Committenti!D121<>\"\",CONCATENATE(Committenti!B121,\"  \",Committenti!C121,\"  CF: \",Committenti!D121),\"\")","v":""}]
["",null,null,null,null,null,null,null,null,null,null,null,null,null,null,null,{"$f":"IF(Committenti!D122<>\"\",CONCATENATE(Committenti!B122,\"  \",Committenti!C122,\"  CF: \",Committenti!D122),\"\")","v":""}]
["",null,null,null,null,null,null,null,null,null,null,null,null,null,null,null,{"$f":"IF(Committenti!D123<>\"\",CONCATENATE(Committenti!B123,\"  \",Committenti!C123,\"  CF: \",Committenti!D123),\"\")","v":""}]
["",null,null,null,null,null,null,null,null,null,null,null,null,null,null,null,{"$f":"IF(Committenti!D124<>\"\",CONCATENATE(Committenti!B124,\"  \",Committenti!C124,\"  CF: \",Committenti!D124),\"\")","v":""}]
["",null,null,null,null,null,null,null,null,null,null,null,null,null,null,null,{"$f":"IF(Committenti!D125<>\"\",CONCATENATE(Committenti!B125,\"  \",Committenti!C125,\"  CF: \",Committenti!D125),\"\")","v":""}]
["",null,null,null,null,null,null,null,null,null,null,null,null,null,null,null,{"$f":"IF(Committenti!D126<>\"\",CONCATENATE(Committenti!B126,\"  \",Committenti!C126,\"  CF: \",Committenti!D126),\"\")","v":""}]
["",null,null,null,null,null,null,null,null,null,null,null,null,null,null,null,{"$f":"IF(Committenti!D127<>\"\",CONCATENATE(Committenti!B127,\"  \",Committenti!C127,\"  CF: \",Committenti!D127),\"\")","v":""}]
["",null,null,null,null,null,null,null,null,null,null,null,null,null,null,null,{"$f":"IF(Committenti!D128<>\"\",CONCATENATE(Committenti!B128,\"  \",Committenti!C128,\"  CF: \",Committenti!D128),\"\")","v":""}]
["",null,null,null,null,null,null,null,null,null,null,null,null,null,null,null,{"$f":"IF(Committenti!D129<>\"\",CONCATENATE(Committenti!B129,\"  \",Committenti!C129,\"  CF: \",Committenti!D129),\"\")","v":""}]
["",null,null,null,null,null,null,null,null,null,null,null,null,null,null,null,{"$f":"IF(Committenti!D130<>\"\",CONCATENATE(Committenti!B130,\"  \",Committenti!C130,\"  CF: \",Committenti!D130),\"\")","v":""}]
["",null,null,null,null,null,null,null,null,null,null,null,null,null,null,null,{"$f":"IF(Committenti!D131<>\"\",CONCATENATE(Committenti!B131,\"  \",Committenti!C131,\"  CF: \",Committenti!D131),\"\")","v":""}]
["",null,null,null,null,null,null,null,null,null,null,null,null,null,null,null,{"$f":"IF(Committenti!D132<>\"\",CONCATENATE(Committenti!B132,\"  \",Committenti!C132,\"  CF: \",Committenti!D132),\"\")","v":""}]
[{"$f":"IF(B133<>\"\", IF(A132<>\"\",A132+1,\"\"),\"\")","v":""},null,null,null,null,null,null,null,null,null,null,null,null,null,null,null,{"$f":"IF(Committenti!D133<>\"\",CONCATENATE(Committenti!B133,\"  \",Committenti!C133,\"  CF: \",Committenti!D133),\"\")","v":""}]
["",null,null,null,null,null,null,null,null,null,null,null,null,null,null,null,{"$f":"IF(Committenti!D134<>\"\",CONCATENATE(Committenti!B134,\"  \",Committenti!C134,\"  CF: \",Committenti!D134),\"\")","v":""}]
["",null,null,null,null,null,null,null,null,null,null,null,null,null,null,null,{"$f":"IF(Committenti!D135<>\"\",CONCATENATE(Committenti!B135,\"  \",Committenti!C135,\"  CF: \",Committenti!D135),\"\")","v":""}]
["",null,null,null,null,null,null,null,null,null,null,null,null,null,null,null,{"$f":"IF(Committenti!D136<>\"\",CONCATENATE(Committenti!B136,\"  \",Committenti!C136,\"  CF: \",Committenti!D136),\"\")","v":""}]
["",null,null,null,null,null,null,null,null,null,null,null,null,null,null,null,{"$f":"IF(Committenti!D137<>\"\",CONCATENATE(Committenti!B137,\"  \",Committenti!C137,\"  CF: \",Committenti!D137),\"\")","v":""}]
["",null,null,null,null,null,null,null,null,null,null,null,null,null,null,null,{"$f":"IF(Committenti!D138<>\"\",CONCATENATE(Committenti!B138,\"  \",Committenti!C138,\"  CF: \",Committenti!D138),\"\")","v":""}]
["",null,null,null,null,null,null,null,null,null,null,null,null,null,null,null,{"$f":"IF(Committenti!D139<>\"\",CONCATENATE(Committenti!B139,\"  \",Committenti!C139,\"  CF: \",Committenti!D139),\"\")","v":""}]
["",null,null,null,null,null,null,null,null,null,null,null,null,null,null,null,{"$f":"IF(Committenti!D140<>\"\",CONCATENATE(Committenti!B140,\"  \",Committenti!C140,\"  CF: \",Committenti!D140),\"\")","v":""}]
["",null,null,null,null,null,null,null,null,null,null,null,null,null,null,null,{"$f":"IF(Committenti!D141<>\"\",CONCATENATE(Committenti!B141,\"  \",Committenti!C141,\"  CF: \",Committenti!D141),\"\")","v":""}]
["",null,null,null,null,null,null,null,null,null,null,null,null,null,null,null,{"$f":"IF(Committenti!D142<>\"\",CONCATENATE(Committenti!B142,\"  \",Committenti!C142,\"  CF: \",Committenti!D142),\"\")","v":""}]
["",null,null,null,null,null,null,null,null,null,null,null,null,null,null,null,{"$f":"IF(Committenti!D143<>\"\",CONCATENATE(Committenti!B143,\"  \",Committenti!C143,\"  CF: \",Committenti!D143),\"\")","v":""}]
["",null,null,null,null,null,null,null,null,null,null,null,null,null,null,null,{"$f":"IF(Committenti!D144<>\"\",CONCATENATE(Committenti!B144,\"  \",Committenti!C144,\"  CF: \",Committenti!D144),\"\")","v":""}]
["",null,null,null,null,null,null,null,null,null,null,null,null,null,null,null,{"$f":"IF(Committenti!D145<>\"\",CONCATENATE(Committenti!B145,\"  \",Committenti!C145,\"  CF: \",Committenti!D145),\"\")","v":""}]
["",null,null,null,null,null,null,null,null,null,null,null,null,null,null,null,{"$f":"IF(Committenti!D146<>\"\",CONCATENATE(Committenti!B146,\"  \",Committenti!C146,\"  CF: \",Committenti!D146),\"\")","v":""}]
["",null,null,null,null,null,null,null,null,null,null,null,null,null,null,null,{"$f":"IF(Committenti!D147<>\"\",CONCATENATE(Committenti!B147,\"  \",Committenti!C147,\"  CF: \",Committenti!D147),\"\")","v":""}]
["",null,null,null,null,null,null,null,null,null,null,null,null,null,null,null,{"$f":"IF(Committenti!D148<>\"\",CONCATENATE(Committenti!B148,\"  \",Committenti!C148,\"  CF: \",Committenti!D148),\"\")","v":""}]
["",null,null,null,null,null,null,null,null,null,null,null,null,null,null,null,{"$f":"IF(Committenti!D149<>\"\",CONCATENATE(Committenti!B149,\"  \",Committenti!C149,\"  CF: \",Committenti!D149),\"\")","v":""}]
["",null,null,null,null,null,null,null,null,null,null,null,null,null,null,null,{"$f":"IF(Committenti!D150<>\"\",CONCATENATE(Committenti!B150,\"  \",Committenti!C150,\"  CF: \",Committenti!D150),\"\")","v":""}]
["",null,null,null,null,null,null,null,null,null,null,null,null,null,null,null,{"$f":"IF(Committenti!D151<>\"\",CONCATENATE(Committenti!B151,\"  \",Committenti!C151,\"  CF: \",Committenti!D151),\"\")","v":""}]
["",null,null,null,null,null,null,null,null,null,null,null,null,null,null,null,{"$f":"IF(Committenti!D152<>\"\",CONCATENATE(Committenti!B152,\"  \",Committenti!C152,\"  CF: \",Committenti!D152),\"\")","v":""}]
["",null,null,null,null,null,null,null,null,null,null,null,null,null,null,null,{"$f":"IF(Committenti!D153<>\"\",CONCATENATE(Committenti!B153,\"  \",Committenti!C153,\"  CF: \",Committenti!D153),\"\")","v":""}]
["",null,null,null,null,null,null,null,null,null,null,null,null,null,null,null,{"$f":"IF(Committenti!D154<>\"\",CONCATENATE(Committenti!B154,\"  \",Committenti!C154,\"  CF: \",Committenti!D154),\"\")","v":""}]
["",null,null,null,null,null,null,null,null,null,null,null,null,null,null,null,{"$f":"IF(Committenti!D155<>\"\",CONCATENATE(Committenti!B155,\"  \",Committenti!C155,\"  CF: \",Committenti!D155),\"\")","v":""}]
["",null,null,null,null,null,null,null,null,null,null,null,null,null,null,null,{"$f":"IF(Committenti!D156<>\"\",CONCATENATE(Committenti!B156,\"  \",Committenti!C156,\"  CF: \",Committenti!D156),\"\")","v":""}]
["",null,null,null,null,null,null,null,null,null,null,null,null,null,null,null,{"$f":"IF(Committenti!D157<>\"\",CONCATENATE(Committenti!B157,\"  \",Committenti!C157,\"  CF: \",Committenti!D157),\"\")","v":""}]
["",null,null,null,null,null,null,null,null,null,null,null,null,null,null,null,{"$f":"IF(Committenti!D158<>\"\",CONCATENATE(Committenti!B158,\"  \",Committenti!C158,\"  CF: \",Committenti!D158),\"\")","v":""}]
["",null,null,null,null,null,null,null,null,null,null,null,null,null,null,null,{"$f":"IF(Committenti!D159<>\"\",CONCATENATE(Committenti!B159,\"  \",Committenti!C159,\"  CF: \",Committenti!D159),\"\")","v":""}]
["",null,null,null,null,null,null,null,null,null,null,null,null,null,null,null,{"$f":"IF(Committenti!D160<>\"\",CONCATENATE(Committenti!B160,\"  \",Committenti!C160,\"  CF: \",Committenti!D160),\"\")","v":""}]
["",null,null,null,null,null,null,null,null,null,null,null,null,null,null,null,{"$f":"IF(Committenti!D161<>\"\",CONCATENATE(Committenti!B161,\"  \",Committenti!C161,\"  CF: \",Committenti!D161),\"\")","v":""}]
["",null,null,null,null,null,null,null,null,null,null,null,null,null,null,null,{"$f":"IF(Committenti!D162<>\"\",CONCATENATE(Committenti!B162,\"  \",Committenti!C162,\"  CF: \",Committenti!D162),\"\")","v":""}]
["",null,null,null,null,null,null,null,null,null,null,null,null,null,null,null,{"$f":"IF(Committenti!D163<>\"\",CONCATENATE(Committenti!B163,\"  \",Committenti!C163,\"  CF: \",Committenti!D163),\"\")","v":""}]
["",null,null,null,null,null,null,null,null,null,null,null,null,null,null,null,{"$f":"IF(Committenti!D164<>\"\",CONCATENATE(Committenti!B164,\"  \",Committenti!C164,\"  CF: \",Committenti!D164),\"\")","v":""}]
["",null,null,null,null,null,null,null,null,null,null,null,null,null,null,null,{"$f":"IF(Committenti!D165<>\"\",CONCATENATE(Committenti!B165,\"  \",Committenti!C165,\"  CF: \",Committenti!D165),\"\")","v":""}]
["",null,null,null,null,null,null,null,null,null,null,null,null,null,null,null,{"$f":"IF(Committenti!D166<>\"\",CONCATENATE(Committenti!B166,\"  \",Committenti!C166,\"  CF: \",Committenti!D166),\"\")","v":""}]
["",null,null,null,null,null,null,null,null,null,null,null,null,null,null,null,{"$f":"IF(Committenti!D167<>\"\",CONCATENATE(Committenti!B167,\"  \",Committenti!C167,\"  CF: \",Committenti!D167),\"\")","v":""}]
["",null,null,null,null,null,null,null,null,null,null,null,null,null,null,null,{"$f":"IF(Committenti!D168<>\"\",CONCATENATE(Committenti!B168,\"  \",Committenti!C168,\"  CF: \",Committenti!D168),\"\")","v":""}]
["",null,null,null,null,null,null,null,null,null,null,null,null,null,null,null,{"$f":"IF(Committenti!D169<>\"\",CONCATENATE(Committenti!B169,\"  \",Committenti!C169,\"  CF: \",Committenti!D169),\"\")","v":""}]
["",null,null,null,null,null,null,null,null,null,null,null,null,null,null,null,{"$f":"IF(Committenti!D170<>\"\",CONCATENATE(Committenti!B170,\"  \",Committenti!C170,\"  CF: \",Committenti!D170),\"\")","v":""}]
["",null,null,null,null,null,null,null,null,null,null,null,null,null,null,null,{"$f":"IF(Committenti!D171<>\"\",CONCATENATE(Committenti!B171,\"  \",Committenti!C171,\"  CF: \",Committenti!D171),\"\")","v":""}]
["",null,null,null,null,null,null,null,null,null,null,null,null,null,null,null,{"$f":"IF(Committenti!D172<>\"\",CONCATENATE(Committenti!B172,\"  \",Committenti!C172,\"  CF: \",Committenti!D172),\"\")","v":""}]
["",null,null,null,null,null,null,null,null,null,null,null,null,null,null,null,{"$f":"IF(Committenti!D173<>\"\",CONCATENATE(Committenti!B173,\"  \",Committenti!C173,\"  CF: \",Committenti!D173),\"\")","v":""}]
["",null,null,null,null,null,null,null,null,null,null,null,null,null,null,null,{"$f":"IF(Committenti!D174<>\"\",CONCATENATE(Committenti!B174,\"  \",Committenti!C174,\"  CF: \",Committenti!D174),\"\")","v":""}]
["",null,null,null,null,null,null,null,null,null,null,null,null,null,null,null,{"$f":"IF(Committenti!D175<>\"\",CONCATENATE(Committenti!B175,\"  \",Committenti!C175,\"  CF: \",Committenti!D175),\"\")","v":""}]
["",null,null,null,null,null,null,null,null,null,null,null,null,null,null,null,{"$f":"IF(Committenti!D176<>\"\",CONCATENATE(Committenti!B176,\"  \",Committenti!C176,\"  CF: \",Committenti!D176),\"\")","v":""}]
["",null,null,null,null,null,null,null,null,null,null,null,null,null,null,null,{"$f":"IF(Committenti!D177<>\"\",CONCATENATE(Committenti!B177,\"  \",Committenti!C177,\"  CF: \",Committenti!D177),\"\")","v":""}]
["",null,null,null,null,null,null,null,null,null,null,null,null,null,null,null,{"$f":"IF(Committenti!D178<>\"\",CONCATENATE(Committenti!B178,\"  \",Committenti!C178,\"  CF: \",Committenti!D178),\"\")","v":""}]
["",null,null,null,null,null,null,null,null,null,null,null,null,null,null,null,{"$f":"IF(Committenti!D179<>\"\",CONCATENATE(Committenti!B179,\"  \",Committenti!C179,\"  CF: \",Committenti!D179),\"\")","v":""}]
["",null,null,null,null,null,null,null,null,null,null,null,null,null,null,null,{"$f":"IF(Committenti!D180<>\"\",CONCATENATE(Committenti!B180,\"  \",Committenti!C180,\"  CF: \",Committenti!D180),\"\")","v":""}]
["",null,null,null,null,null,null,null,null,null,null,null,null,null,null,null,{"$f":"IF(Committenti!D181<>\"\",CONCATENATE(Committenti!B181,\"  \",Committenti!C181,\"  CF: \",Committenti!D181),\"\")","v":""}]
["",null,null,null,null,null,null,null,null,null,null,null,null,null,null,null,{"$f":"IF(Committenti!D182<>\"\",CONCATENATE(Committenti!B182,\"  \",Committenti!C182,\"  CF: \",Committenti!D182),\"\")","v":""}]
["",null,null,null,null,null,null,null,null,null,null,null,null,null,null,null,{"$f":"IF(Committenti!D183<>\"\",CONCATENATE(Committenti!B183,\"  \",Committenti!C183,\"  CF: \",Committenti!D183),\"\")","v":""}]
["",null,null,null,null,null,null,null,null,null,null,null,null,null,null,null,{"$f":"IF(Committenti!D184<>\"\",CONCATENATE(Committenti!B184,\"  \",Committenti!C184,\"  CF: \",Committenti!D184),\"\")","v":""}]
["",null,null,null,null,null,null,null,null,null,null,null,null,null,null,null,{"$f":"IF(Committenti!D185<>\"\",CONCATENATE(Committenti!B185,\"  \",Committenti!C185,\"  CF: \",Committenti!D185),\"\")","v":""}]
["",null,null,null,null,null,null,null,null,null,null,null,null,null,null,null,{"$f":"IF(Committenti!D186<>\"\",CONCATENATE(Committenti!B186,\"  \",Committenti!C186,\"  CF: \",Committenti!D186),\"\")","v":""}]
["",null,null,null,null,null,null,null,null,null,null,null,null,null,null,null,{"$f":"IF(Committenti!D187<>\"\",CONCATENATE(Committenti!B187,\"  \",Committenti!C187,\"  CF: \",Committenti!D187),\"\")","v":""}]
["",null,null,null,null,null,null,null,null,null,null,null,null,null,null,null,{"$f":"IF(Committenti!D188<>\"\",CONCATENATE(Committenti!B188,\"  \",Committenti!C188,\"  CF: \",Committenti!D188),\"\")","v":""}]
["",null,null,null,null,null,null,null,null,null,null,null,null,null,null,null,{"$f":"IF(Committenti!D189<>\"\",CONCATENATE(Committenti!B189,\"  \",Committenti!C189,\"  CF: \",Committenti!D189),\"\")","v":""}]
["",null,null,null,null,null,null,null,null,null,null,null,null,null,null,null,{"$f":"IF(Committenti!D190<>\"\",CONCATENATE(Committenti!B190,\"  \",Committenti!C190,\"  CF: \",Committenti!D190),\"\")","v":""}]
["",null,null,null,null,null,null,null,null,null,null,null,null,null,null,null,{"$f":"IF(Committenti!D191<>\"\",CONCATENATE(Committenti!B191,\"  \",Committenti!C191,\"  CF: \",Committenti!D191),\"\")","v":""}]
["",null,null,null,null,null,null,null,null,null,null,null,null,null,null,null,{"$f":"IF(Committenti!D192<>\"\",CONCATENATE(Committenti!B192,\"  \",Committenti!C192,\"  CF: \",Committenti!D192),\"\")","v":""}]
["",null,null,null,null,null,null,null,null,null,null,null,null,null,null,null,{"$f":"IF(Committenti!D193<>\"\",CONCATENATE(Committenti!B193,\"  \",Committenti!C193,\"  CF: \",Committenti!D193),\"\")","v":""}]
["",null,null,null,null,null,null,null,null,null,null,null,null,null,null,null,{"$f":"IF(Committenti!D194<>\"\",CONCATENATE(Committenti!B194,\"  \",Committenti!C194,\"  CF: \",Committenti!D194),\"\")","v":""}]
["",null,null,null,null,null,null,null,null,null,null,null,null,null,null,null,{"$f":"IF(Committenti!D195<>\"\",CONCATENATE(Committenti!B195,\"  \",Committenti!C195,\"  CF: \",Committenti!D195),\"\")","v":""}]
["",null,null,null,null,null,null,null,null,null,null,null,null,null,null,null,{"$f":"IF(Committenti!D196<>\"\",CONCATENATE(Committenti!B196,\"  \",Committenti!C196,\"  CF: \",Committenti!D196),\"\")","v":""}]
[{"$f":"IF(B197<>\"\", IF(A196<>\"\",A196+1,\"\"),\"\")","v":""},null,null,null,null,null,null,null,null,null,null,null,null,null,null,null,{"$f":"IF(Committenti!D197<>\"\",CONCATENATE(Committenti!B197,\"  \",Committenti!C197,\"  CF: \",Committenti!D197),\"\")","v":""}]
["",null,null,null,null,null,null,null,null,null,null,null,null,null,null,null,{"$f":"IF(Committenti!D198<>\"\",CONCATENATE(Committenti!B198,\"  \",Committenti!C198,\"  CF: \",Committenti!D198),\"\")","v":""}]
["",null,null,null,null,null,null,null,null,null,null,null,null,null,null,null,{"$f":"IF(Committenti!D199<>\"\",CONCATENATE(Committenti!B199,\"  \",Committenti!C199,\"  CF: \",Committenti!D199),\"\")","v":""}]
["",null,null,null,null,null,null,null,null,null,null,null,null,null,null,null,{"$f":"IF(Committenti!D200<>\"\",CONCATENATE(Committenti!B200,\"  \",Committenti!C200,\"  CF: \",Committenti!D200),\"\")","v":""}]
["",null,null,null,null,null,null,null,null,null,null,null,null,null,null,null,{"$f":"IF(Committenti!D201<>\"\",CONCATENATE(Committenti!B201,\"  \",Committenti!C201,\"  CF: \",Committenti!D201),\"\")","v":""}]
["",null,null,null,null,null,null,null,null,null,null,null,null,null,null,null,{"$f":"IF(Committenti!D202<>\"\",CONCATENATE(Committenti!B202,\"  \",Committenti!C202,\"  CF: \",Committenti!D202),\"\")","v":""}]
["",null,null,null,null,null,null,null,null,null,null,null,null,null,null,null,{"$f":"IF(Committenti!D203<>\"\",CONCATENATE(Committenti!B203,\"  \",Committenti!C203,\"  CF: \",Committenti!D203),\"\")","v":""}]
["",null,null,null,null,null,null,null,null,null,null,null,null,null,null,null,{"$f":"IF(Committenti!D204<>\"\",CONCATENATE(Committenti!B204,\"  \",Committenti!C204,\"  CF: \",Committenti!D204),\"\")","v":""}]
["",null,null,null,null,null,null,null,null,null,null,null,null,null,null,null,{"$f":"IF(Committenti!D205<>\"\",CONCATENATE(Committenti!B205,\"  \",Committenti!C205,\"  CF: \",Committenti!D205),\"\")","v":""}]
["",null,null,null,null,null,null,null,null,null,null,null,null,null,null,null,{"$f":"IF(Committenti!D206<>\"\",CONCATENATE(Committenti!B206,\"  \",Committenti!C206,\"  CF: \",Committenti!D206),\"\")","v":""}]
["",null,null,null,null,null,null,null,null,null,null,null,null,null,null,null,{"$f":"IF(Committenti!D207<>\"\",CONCATENATE(Committenti!B207,\"  \",Committenti!C207,\"  CF: \",Committenti!D207),\"\")","v":""}]
["",null,null,null,null,null,null,null,null,null,null,null,null,null,null,null,{"$f":"IF(Committenti!D208<>\"\",CONCATENATE(Committenti!B208,\"  \",Committenti!C208,\"  CF: \",Committenti!D208),\"\")","v":""}]
["",null,null,null,null,null,null,null,null,null,null,null,null,null,null,null,{"$f":"IF(Committenti!D209<>\"\",CONCATENATE(Committenti!B209,\"  \",Committenti!C209,\"  CF: \",Committenti!D209),\"\")","v":""}]
["",null,null,null,null,null,null,null,null,null,null,null,null,null,null,null,{"$f":"IF(Committenti!D210<>\"\",CONCATENATE(Committenti!B210,\"  \",Committenti!C210,\"  CF: \",Committenti!D210),\"\")","v":""}]
["",null,null,null,null,null,null,null,null,null,null,null,null,null,null,null,{"$f":"IF(Committenti!D211<>\"\",CONCATENATE(Committenti!B211,\"  \",Committenti!C211,\"  CF: \",Committenti!D211),\"\")","v":""}]
["",null,null,null,null,null,null,null,null,null,null,null,null,null,null,null,{"$f":"IF(Committenti!D212<>\"\",CONCATENATE(Committenti!B212,\"  \",Committenti!C212,\"  CF: \",Committenti!D212),\"\")","v":""}]
["",null,null,null,null,null,null,null,null,null,null,null,null,null,null,null,{"$f":"IF(Committenti!D213<>\"\",CONCATENATE(Committenti!B213,\"  \",Committenti!C213,\"  CF: \",Committenti!D213),\"\")","v":""}]
["",null,null,null,null,null,null,null,null,null,null,null,null,null,null,null,{"$f":"IF(Committenti!D214<>\"\",CONCATENATE(Committenti!B214,\"  \",Committenti!C214,\"  CF: \",Committenti!D214),\"\")","v":""}]
["",null,null,null,null,null,null,null,null,null,null,null,null,null,null,null,{"$f":"IF(Committenti!D215<>\"\",CONCATENATE(Committenti!B215,\"  \",Committenti!C215,\"  CF: \",Committenti!D215),\"\")","v":""}]
["",null,null,null,null,null,null,null,null,null,null,null,null,null,null,null,{"$f":"IF(Committenti!D216<>\"\",CONCATENATE(Committenti!B216,\"  \",Committenti!C216,\"  CF: \",Committenti!D216),\"\")","v":""}]
["",null,null,null,null,null,null,null,null,null,null,null,null,null,null,null,{"$f":"IF(Committenti!D217<>\"\",CONCATENATE(Committenti!B217,\"  \",Committenti!C217,\"  CF: \",Committenti!D217),\"\")","v":""}]
["",null,null,null,null,null,null,null,null,null,null,null,null,null,null,null,{"$f":"IF(Committenti!D218<>\"\",CONCATENATE(Committenti!B218,\"  \",Committenti!C218,\"  CF: \",Committenti!D218),\"\")","v":""}]
["",null,null,null,null,null,null,null,null,null,null,null,null,null,null,null,{"$f":"IF(Committenti!D219<>\"\",CONCATENATE(Committenti!B219,\"  \",Committenti!C219,\"  CF: \",Committenti!D219),\"\")","v":""}]
["",null,null,null,null,null,null,null,null,null,null,null,null,null,null,null,{"$f":"IF(Committenti!D220<>\"\",CONCATENATE(Committenti!B220,\"  \",Committenti!C220,\"  CF: \",Committenti!D220),\"\")","v":""}]
["",null,null,null,null,null,null,null,null,null,null,null,null,null,null,null,{"$f":"IF(Committenti!D221<>\"\",CONCATENATE(Committenti!B221,\"  \",Committenti!C221,\"  CF: \",Committenti!D221),\"\")","v":""}]
["",null,null,null,null,null,null,null,null,null,null,null,null,null,null,null,{"$f":"IF(Committenti!D222<>\"\",CONCATENATE(Committenti!B222,\"  \",Committenti!C222,\"  CF: \",Committenti!D222),\"\")","v":""}]
["",null,null,null,null,null,null,null,null,null,null,null,null,null,null,null,{"$f":"IF(Committenti!D223<>\"\",CONCATENATE(Committenti!B223,\"  \",Committenti!C223,\"  CF: \",Committenti!D223),\"\")","v":""}]
["",null,null,null,null,null,null,null,null,null,null,null,null,null,null,null,{"$f":"IF(Committenti!D224<>\"\",CONCATENATE(Committenti!B224,\"  \",Committenti!C224,\"  CF: \",Committenti!D224),\"\")","v":""}]
["",null,null,null,null,null,null,null,null,null,null,null,null,null,null,null,{"$f":"IF(Committenti!D225<>\"\",CONCATENATE(Committenti!B225,\"  \",Committenti!C225,\"  CF: \",Committenti!D225),\"\")","v":""}]
["",null,null,null,null,null,null,null,null,null,null,null,null,null,null,null,{"$f":"IF(Committenti!D226<>\"\",CONCATENATE(Committenti!B226,\"  \",Committenti!C226,\"  CF: \",Committenti!D226),\"\")","v":""}]
["",null,null,null,null,null,null,null,null,null,null,null,null,null,null,null,{"$f":"IF(Committenti!D227<>\"\",CONCATENATE(Committenti!B227,\"  \",Committenti!C227,\"  CF: \",Committenti!D227),\"\")","v":""}]
["",null,null,null,null,null,null,null,null,null,null,null,null,null,null,null,{"$f":"IF(Committenti!D228<>\"\",CONCATENATE(Committenti!B228,\"  \",Committenti!C228,\"  CF: \",Committenti!D228),\"\")","v":""}]
["",null,null,null,null,null,null,null,null,null,null,null,null,null,null,null,{"$f":"IF(Committenti!D229<>\"\",CONCATENATE(Committenti!B229,\"  \",Committenti!C229,\"  CF: \",Committenti!D229),\"\")","v":""}]
["",null,null,null,null,null,null,null,null,null,null,null,null,null,null,null,{"$f":"IF(Committenti!D230<>\"\",CONCATENATE(Committenti!B230,\"  \",Committenti!C230,\"  CF: \",Committenti!D230),\"\")","v":""}]
["",null,null,null,null,null,null,null,null,null,null,null,null,null,null,null,{"$f":"IF(Committenti!D231<>\"\",CONCATENATE(Committenti!B231,\"  \",Committenti!C231,\"  CF: \",Committenti!D231),\"\")","v":""}]
["",null,null,null,null,null,null,null,null,null,null,null,null,null,null,null,{"$f":"IF(Committenti!D232<>\"\",CONCATENATE(Committenti!B232,\"  \",Committenti!C232,\"  CF: \",Committenti!D232),\"\")","v":""}]
["",null,null,null,null,null,null,null,null,null,null,null,null,null,null,null,{"$f":"IF(Committenti!D233<>\"\",CONCATENATE(Committenti!B233,\"  \",Committenti!C233,\"  CF: \",Committenti!D233),\"\")","v":""}]
["",null,null,null,null,null,null,null,null,null,null,null,null,null,null,null,{"$f":"IF(Committenti!D234<>\"\",CONCATENATE(Committenti!B234,\"  \",Committenti!C234,\"  CF: \",Committenti!D234),\"\")","v":""}]
["",null,null,null,null,null,null,null,null,null,null,null,null,null,null,null,{"$f":"IF(Committenti!D235<>\"\",CONCATENATE(Committenti!B235,\"  \",Committenti!C235,\"  CF: \",Committenti!D235),\"\")","v":""}]
["",null,null,null,null,null,null,null,null,null,null,null,null,null,null,null,{"$f":"IF(Committenti!D236<>\"\",CONCATENATE(Committenti!B236,\"  \",Committenti!C236,\"  CF: \",Committenti!D236),\"\")","v":""}]
["",null,null,null,null,null,null,null,null,null,null,null,null,null,null,null,{"$f":"IF(Committenti!D237<>\"\",CONCATENATE(Committenti!B237,\"  \",Committenti!C237,\"  CF: \",Committenti!D237),\"\")","v":""}]
["",null,null,null,null,null,null,null,null,null,null,null,null,null,null,null,{"$f":"IF(Committenti!D238<>\"\",CONCATENATE(Committenti!B238,\"  \",Committenti!C238,\"  CF: \",Committenti!D238),\"\")","v":""}]
["",null,null,null,null,null,null,null,null,null,null,null,null,null,null,null,{"$f":"IF(Committenti!D239<>\"\",CONCATENATE(Committenti!B239,\"  \",Committenti!C239,\"  CF: \",Committenti!D239),\"\")","v":""}]
["",null,null,null,null,null,null,null,null,null,null,null,null,null,null,null,{"$f":"IF(Committenti!D240<>\"\",CONCATENATE(Committenti!B240,\"  \",Committenti!C240,\"  CF: \",Committenti!D240),\"\")","v":""}]
["",null,null,null,null,null,null,null,null,null,null,null,null,null,null,null,{"$f":"IF(Committenti!D241<>\"\",CONCATENATE(Committenti!B241,\"  \",Committenti!C241,\"  CF: \",Committenti!D241),\"\")","v":""}]
["",null,null,null,null,null,null,null,null,null,null,null,null,null,null,null,{"$f":"IF(Committenti!D242<>\"\",CONCATENATE(Committenti!B242,\"  \",Committenti!C242,\"  CF: \",Committenti!D242),\"\")","v":""}]
["",null,null,null,null,null,null,null,null,null,null,null,null,null,null,null,{"$f":"IF(Committenti!D243<>\"\",CONCATENATE(Committenti!B243,\"  \",Committenti!C243,\"  CF: \",Committenti!D243),\"\")","v":""}]
["",null,null,null,null,null,null,null,null,null,null,null,null,null,null,null,{"$f":"IF(Committenti!D244<>\"\",CONCATENATE(Committenti!B244,\"  \",Committenti!C244,\"  CF: \",Committenti!D244),\"\")","v":""}]
["",null,null,null,null,null,null,null,null,null,null,null,null,null,null,null,{"$f":"IF(Committenti!D245<>\"\",CONCATENATE(Committenti!B245,\"  \",Committenti!C245,\"  CF: \",Committenti!D245),\"\")","v":""}]
["",null,null,null,null,null,null,null,null,null,null,null,null,null,null,null,{"$f":"IF(Committenti!D246<>\"\",CONCATENATE(Committenti!B246,\"  \",Committenti!C246,\"  CF: \",Committenti!D246),\"\")","v":""}]
["",null,null,null,null,null,null,null,null,null,null,null,null,null,null,null,{"$f":"IF(Committenti!D247<>\"\",CONCATENATE(Committenti!B247,\"  \",Committenti!C247,\"  CF: \",Committenti!D247),\"\")","v":""}]
["",null,null,null,null,null,null,null,null,null,null,null,null,null,null,null,{"$f":"IF(Committenti!D248<>\"\",CONCATENATE(Committenti!B248,\"  \",Committenti!C248,\"  CF: \",Committenti!D248),\"\")","v":""}]
["",null,null,null,null,null,null,null,null,null,null,null,null,null,null,null,{"$f":"IF(Committenti!D249<>\"\",CONCATENATE(Committenti!B249,\"  \",Committenti!C249,\"  CF: \",Committenti!D249),\"\")","v":""}]
["",null,null,null,null,null,null,null,null,null,null,null,null,null,null,null,{"$f":"IF(Committenti!D250<>\"\",CONCATENATE(Committenti!B250,\"  \",Committenti!C250,\"  CF: \",Committenti!D250),\"\")","v":""}]
["",null,null,null,null,null,null,null,null,null,null,null,null,null,null,null,{"$f":"IF(Committenti!D251<>\"\",CONCATENATE(Committenti!B251,\"  \",Committenti!C251,\"  CF: \",Committenti!D251),\"\")","v":""}]
["",null,null,null,null,null,null,null,null,null,null,null,null,null,null,null,{"$f":"IF(Committenti!D252<>\"\",CONCATENATE(Committenti!B252,\"  \",Committenti!C252,\"  CF: \",Committenti!D252),\"\")","v":""}]
["",null,null,null,null,null,null,null,null,null,null,null,null,null,null,null,{"$f":"IF(Committenti!D253<>\"\",CONCATENATE(Committenti!B253,\"  \",Committenti!C253,\"  CF: \",Committenti!D253),\"\")","v":""}]
["",null,null,null,null,null,null,null,null,null,null,null,null,null,null,null,{"$f":"IF(Committenti!D254<>\"\",CONCATENATE(Committenti!B254,\"  \",Committenti!C254,\"  CF: \",Committenti!D254),\"\")","v":""}]
["",null,null,null,null,null,null,null,null,null,null,null,null,null,null,null,{"$f":"IF(Committenti!D255<>\"\",CONCATENATE(Committenti!B255,\"  \",Committenti!C255,\"  CF: \",Committenti!D255),\"\")","v":""}]
["",null,null,null,null,null,null,null,null,null,null,null,null,null,null,null,{"$f":"IF(Committenti!D256<>\"\",CONCATENATE(Committenti!B256,\"  \",Committenti!C256,\"  CF: \",Committenti!D256),\"\")","v":""}]
["",null,null,null,null,null,null,null,null,null,null,null,null,null,null,null,{"$f":"IF(Committenti!D257<>\"\",CONCATENATE(Committenti!B257,\"  \",Committenti!C257,\"  CF: \",Committenti!D257),\"\")","v":""}]
["",null,null,null,null,null,null,null,null,null,null,null,null,null,null,null,{"$f":"IF(Committenti!D258<>\"\",CONCATENATE(Committenti!B258,\"  \",Committenti!C258,\"  CF: \",Committenti!D258),\"\")","v":""}]
["",null,null,null,null,null,null,null,null,null,null,null,null,null,null,null,{"$f":"IF(Committenti!D259<>\"\",CONCATENATE(Committenti!B259,\"  \",Committenti!C259,\"  CF: \",Committenti!D259),\"\")","v":""}]
["",null,null,null,null,null,null,null,null,null,null,null,null,null,null,null,{"$f":"IF(Committenti!D260<>\"\",CONCATENATE(Committenti!B260,\"  \",Committenti!C260,\"  CF: \",Committenti!D260),\"\")","v":""}]
[{"$f":"IF(B261<>\"\", IF(A260<>\"\",A260+1,\"\"),\"\")","v":""},null,null,null,null,null,null,null,null,null,null,null,null,null,null,null,{"$f":"IF(Committenti!D261<>\"\",CONCATENATE(Committenti!B261,\"  \",Committenti!C261,\"  CF: \",Committenti!D261),\"\")","v":""}]
["",null,null,null,null,null,null,null,null,null,null,null,null,null,null,null,{"$f":"IF(Committenti!D262<>\"\",CONCATENATE(Committenti!B262,\"  \",Committenti!C262,\"  CF: \",Committenti!D262),\"\")","v":""}]
["",null,null,null,null,null,null,null,null,null,null,null,null,null,null,null,{"$f":"IF(Committenti!D263<>\"\",CONCATENATE(Committenti!B263,\"  \",Committenti!C263,\"  CF: \",Committenti!D263),\"\")","v":""}]
["",null,null,null,null,null,null,null,null,null,null,null,null,null,null,null,{"$f":"IF(Committenti!D264<>\"\",CONCATENATE(Committenti!B264,\"  \",Committenti!C264,\"  CF: \",Committenti!D264),\"\")","v":""}]
["",null,null,null,null,null,null,null,null,null,null,null,null,null,null,null,{"$f":"IF(Committenti!D265<>\"\",CONCATENATE(Committenti!B265,\"  \",Committenti!C265,\"  CF: \",Committenti!D265),\"\")","v":""}]
["",null,null,null,null,null,null,null,null,null,null,null,null,null,null,null,{"$f":"IF(Committenti!D266<>\"\",CONCATENATE(Committenti!B266,\"  \",Committenti!C266,\"  CF: \",Committenti!D266),\"\")","v":""}]
["",null,null,null,null,null,null,null,null,null,null,null,null,null,null,null,{"$f":"IF(Committenti!D267<>\"\",CONCATENATE(Committenti!B267,\"  \",Committenti!C267,\"  CF: \",Committenti!D267),\"\")","v":""}]
["",null,null,null,null,null,null,null,null,null,null,null,null,null,null,null,{"$f":"IF(Committenti!D268<>\"\",CONCATENATE(Committenti!B268,\"  \",Committenti!C268,\"  CF: \",Committenti!D268),\"\")","v":""}]
["",null,null,null,null,null,null,null,null,null,null,null,null,null,null,null,{"$f":"IF(Committenti!D269<>\"\",CONCATENATE(Committenti!B269,\"  \",Committenti!C269,\"  CF: \",Committenti!D269),\"\")","v":""}]
["",null,null,null,null,null,null,null,null,null,null,null,null,null,null,null,{"$f":"IF(Committenti!D270<>\"\",CONCATENATE(Committenti!B270,\"  \",Committenti!C270,\"  CF: \",Committenti!D270),\"\")","v":""}]
["",null,null,null,null,null,null,null,null,null,null,null,null,null,null,null,{"$f":"IF(Committenti!D271<>\"\",CONCATENATE(Committenti!B271,\"  \",Committenti!C271,\"  CF: \",Committenti!D271),\"\")","v":""}]
["",null,null,null,null,null,null,null,null,null,null,null,null,null,null,null,{"$f":"IF(Committenti!D272<>\"\",CONCATENATE(Committenti!B272,\"  \",Committenti!C272,\"  CF: \",Committenti!D272),\"\")","v":""}]
["",null,null,null,null,null,null,null,null,null,null,null,null,null,null,null,{"$f":"IF(Committenti!D273<>\"\",CONCATENATE(Committenti!B273,\"  \",Committenti!C273,\"  CF: \",Committenti!D273),\"\")","v":""}]
["",null,null,null,null,null,null,null,null,null,null,null,null,null,null,null,{"$f":"IF(Committenti!D274<>\"\",CONCATENATE(Committenti!B274,\"  \",Committenti!C274,\"  CF: \",Committenti!D274),\"\")","v":""}]
["",null,null,null,null,null,null,null,null,null,null,null,null,null,null,null,{"$f":"IF(Committenti!D275<>\"\",CONCATENATE(Committenti!B275,\"  \",Committenti!C275,\"  CF: \",Committenti!D275),\"\")","v":""}]
["",null,null,null,null,null,null,null,null,null,null,null,null,null,null,null,{"$f":"IF(Committenti!D276<>\"\",CONCATENATE(Committenti!B276,\"  \",Committenti!C276,\"  CF: \",Committenti!D276),\"\")","v":""}]
["",null,null,null,null,null,null,null,null,null,null,null,null,null,null,null,{"$f":"IF(Committenti!D277<>\"\",CONCATENATE(Committenti!B277,\"  \",Committenti!C277,\"  CF: \",Committenti!D277),\"\")","v":""}]
["",null,null,null,null,null,null,null,null,null,null,null,null,null,null,null,{"$f":"IF(Committenti!D278<>\"\",CONCATENATE(Committenti!B278,\"  \",Committenti!C278,\"  CF: \",Committenti!D278),\"\")","v":""}]
["",null,null,null,null,null,null,null,null,null,null,null,null,null,null,null,{"$f":"IF(Committenti!D279<>\"\",CONCATENATE(Committenti!B279,\"  \",Committenti!C279,\"  CF: \",Committenti!D279),\"\")","v":""}]
["",null,null,null,null,null,null,null,null,null,null,null,null,null,null,null,{"$f":"IF(Committenti!D280<>\"\",CONCATENATE(Committenti!B280,\"  \",Committenti!C280,\"  CF: \",Committenti!D280),\"\")","v":""}]
["",null,null,null,null,null,null,null,null,null,null,null,null,null,null,null,{"$f":"IF(Committenti!D281<>\"\",CONCATENATE(Committenti!B281,\"  \",Committenti!C281,\"  CF: \",Committenti!D281),\"\")","v":""}]
["",null,null,null,null,null,null,null,null,null,null,null,null,null,null,null,{"$f":"IF(Committenti!D282<>\"\",CONCATENATE(Committenti!B282,\"  \",Committenti!C282,\"  CF: \",Committenti!D282),\"\")","v":""}]
["",null,null,null,null,null,null,null,null,null,null,null,null,null,null,null,{"$f":"IF(Committenti!D283<>\"\",CONCATENATE(Committenti!B283,\"  \",Committenti!C283,\"  CF: \",Committenti!D283),\"\")","v":""}]
["",null,null,null,null,null,null,null,null,null,null,null,null,null,null,null,{"$f":"IF(Committenti!D284<>\"\",CONCATENATE(Committenti!B284,\"  \",Committenti!C284,\"  CF: \",Committenti!D284),\"\")","v":""}]
["",null,null,null,null,null,null,null,null,null,null,null,null,null,null,null,{"$f":"IF(Committenti!D285<>\"\",CONCATENATE(Committenti!B285,\"  \",Committenti!C285,\"  CF: \",Committenti!D285),\"\")","v":""}]
["",null,null,null,null,null,null,null,null,null,null,null,null,null,null,null,{"$f":"IF(Committenti!D286<>\"\",CONCATENATE(Committenti!B286,\"  \",Committenti!C286,\"  CF: \",Committenti!D286),\"\")","v":""}]
["",null,null,null,null,null,null,null,null,null,null,null,null,null,null,null,{"$f":"IF(Committenti!D287<>\"\",CONCATENATE(Committenti!B287,\"  \",Committenti!C287,\"  CF: \",Committenti!D287),\"\")","v":""}]
["",null,null,null,null,null,null,null,null,null,null,null,null,null,null,null,{"$f":"IF(Committenti!D288<>\"\",CONCATENATE(Committenti!B288,\"  \",Committenti!C288,\"  CF: \",Committenti!D288),\"\")","v":""}]
["",null,null,null,null,null,null,null,null,null,null,null,null,null,null,null,{"$f":"IF(Committenti!D289<>\"\",CONCATENATE(Committenti!B289,\"  \",Committenti!C289,\"  CF: \",Committenti!D289),\"\")","v":""}]
["",null,null,null,null,null,null,null,null,null,null,null,null,null,null,null,{"$f":"IF(Committenti!D290<>\"\",CONCATENATE(Committenti!B290,\"  \",Committenti!C290,\"  CF: \",Committenti!D290),\"\")","v":""}]
["",null,null,null,null,null,null,null,null,null,null,null,null,null,null,null,{"$f":"IF(Committenti!D291<>\"\",CONCATENATE(Committenti!B291,\"  \",Committenti!C291,\"  CF: \",Committenti!D291),\"\")","v":""}]
["",null,null,null,null,null,null,null,null,null,null,null,null,null,null,null,{"$f":"IF(Committenti!D292<>\"\",CONCATENATE(Committenti!B292,\"  \",Committenti!C292,\"  CF: \",Committenti!D292),\"\")","v":""}]
["",null,null,null,null,null,null,null,null,null,null,null,null,null,null,null,{"$f":"IF(Committenti!D293<>\"\",CONCATENATE(Committenti!B293,\"  \",Committenti!C293,\"  CF: \",Committenti!D293),\"\")","v":""}]
["",null,null,null,null,null,null,null,null,null,null,null,null,null,null,null,{"$f":"IF(Committenti!D294<>\"\",CONCATENATE(Committenti!B294,\"  \",Committenti!C294,\"  CF: \",Committenti!D294),\"\")","v":""}]
["",null,null,null,null,null,null,null,null,null,null,null,null,null,null,null,{"$f":"IF(Committenti!D295<>\"\",CONCATENATE(Committenti!B295,\"  \",Committenti!C295,\"  CF: \",Committenti!D295),\"\")","v":""}]
["",null,null,null,null,null,null,null,null,null,null,null,null,null,null,null,{"$f":"IF(Committenti!D296<>\"\",CONCATENATE(Committenti!B296,\"  \",Committenti!C296,\"  CF: \",Committenti!D296),\"\")","v":""}]
["",null,null,null,null,null,null,null,null,null,null,null,null,null,null,null,{"$f":"IF(Committenti!D297<>\"\",CONCATENATE(Committenti!B297,\"  \",Committenti!C297,\"  CF: \",Committenti!D297),\"\")","v":""}]
["",null,null,null,null,null,null,null,null,null,null,null,null,null,null,null,{"$f":"IF(Committenti!D298<>\"\",CONCATENATE(Committenti!B298,\"  \",Committenti!C298,\"  CF: \",Committenti!D298),\"\")","v":""}]
["",null,null,null,null,null,null,null,null,null,null,null,null,null,null,null,{"$f":"IF(Committenti!D299<>\"\",CONCATENATE(Committenti!B299,\"  \",Committenti!C299,\"  CF: \",Committenti!D299),\"\")","v":""}]
["",null,null,null,null,null,null,null,null,null,null,null,null,null,null,null,{"$f":"IF(Committenti!D300<>\"\",CONCATENATE(Committenti!B300,\"  \",Committenti!C300,\"  CF: \",Committenti!D300),\"\")","v":""}]
["",null,null,null,null,null,null,null,null,null,null,null,null,null,null,null,{"$f":"IF(Committenti!D301<>\"\",CONCATENATE(Committenti!B301,\"  \",Committenti!C301,\"  CF: \",Committenti!D301),\"\")","v":""}]
["",null,null,null,null,null,null,null,null,null,null,null,null,null,null,null,{"$f":"IF(Committenti!D302<>\"\",CONCATENATE(Committenti!B302,\"  \",Committenti!C302,\"  CF: \",Committenti!D302),\"\")","v":""}]
["",null,null,null,null,null,null,null,null,null,null,null,null,null,null,null,{"$f":"IF(Committenti!D303<>\"\",CONCATENATE(Committenti!B303,\"  \",Committenti!C303,\"  CF: \",Committenti!D303),\"\")","v":""}]
["",null,null,null,null,null,null,null,null,null,null,null,null,null,null,null,{"$f":"IF(Committenti!D304<>\"\",CONCATENATE(Committenti!B304,\"  \",Committenti!C304,\"  CF: \",Committenti!D304),\"\")","v":""}]
["",null,null,null,null,null,null,null,null,null,null,null,null,null,null,null,{"$f":"IF(Committenti!D305<>\"\",CONCATENATE(Committenti!B305,\"  \",Committenti!C305,\"  CF: \",Committenti!D305),\"\")","v":""}]
["",null,null,null,null,null,null,null,null,null,null,null,null,null,null,null,{"$f":"IF(Committenti!D306<>\"\",CONCATENATE(Committenti!B306,\"  \",Committenti!C306,\"  CF: \",Committenti!D306),\"\")","v":""}]
["",null,null,null,null,null,null,null,null,null,null,null,null,null,null,null,{"$f":"IF(Committenti!D307<>\"\",CONCATENATE(Committenti!B307,\"  \",Committenti!C307,\"  CF: \",Committenti!D307),\"\")","v":""}]
["",null,null,null,null,null,null,null,null,null,null,null,null,null,null,null,{"$f":"IF(Committenti!D308<>\"\",CONCATENATE(Committenti!B308,\"  \",Committenti!C308,\"  CF: \",Committenti!D308),\"\")","v":""}]
["",null,null,null,null,null,null,null,null,null,null,null,null,null,null,null,{"$f":"IF(Committenti!D309<>\"\",CONCATENATE(Committenti!B309,\"  \",Committenti!C309,\"  CF: \",Committenti!D309),\"\")","v":""}]
["",null,null,null,null,null,null,null,null,null,null,null,null,null,null,null,{"$f":"IF(Committenti!D310<>\"\",CONCATENATE(Committenti!B310,\"  \",Committenti!C310,\"  CF: \",Committenti!D310),\"\")","v":""}]
["",null,null,null,null,null,null,null,null,null,null,null,null,null,null,null,{"$f":"IF(Committenti!D311<>\"\",CONCATENATE(Committenti!B311,\"  \",Committenti!C311,\"  CF: \",Committenti!D311),\"\")","v":""}]
["",null,null,null,null,null,null,null,null,null,null,null,null,null,null,null,{"$f":"IF(Committenti!D312<>\"\",CONCATENATE(Committenti!B312,\"  \",Committenti!C312,\"  CF: \",Committenti!D312),\"\")","v":""}]
["",null,null,null,null,null,null,null,null,null,null,null,null,null,null,null,{"$f":"IF(Committenti!D313<>\"\",CONCATENATE(Committenti!B313,\"  \",Committenti!C313,\"  CF: \",Committenti!D313),\"\")","v":""}]
["",null,null,null,null,null,null,null,null,null,null,null,null,null,null,null,{"$f":"IF(Committenti!D314<>\"\",CONCATENATE(Committenti!B314,\"  \",Committenti!C314,\"  CF: \",Committenti!D314),\"\")","v":""}]
["",null,null,null,null,null,null,null,null,null,null,null,null,null,null,null,{"$f":"IF(Committenti!D315<>\"\",CONCATENATE(Committenti!B315,\"  \",Committenti!C315,\"  CF: \",Committenti!D315),\"\")","v":""}]
["",null,null,null,null,null,null,null,null,null,null,null,null,null,null,null,{"$f":"IF(Committenti!D316<>\"\",CONCATENATE(Committenti!B316,\"  \",Committenti!C316,\"  CF: \",Committenti!D316),\"\")","v":""}]
["",null,null,null,null,null,null,null,null,null,null,null,null,null,null,null,{"$f":"IF(Committenti!D317<>\"\",CONCATENATE(Committenti!B317,\"  \",Committenti!C317,\"  CF: \",Committenti!D317),\"\")","v":""}]
["",null,null,null,null,null,null,null,null,null,null,null,null,null,null,null,{"$f":"IF(Committenti!D318<>\"\",CONCATENATE(Committenti!B318,\"  \",Committenti!C318,\"  CF: \",Committenti!D318),\"\")","v":""}]
["",null,null,null,null,null,null,null,null,null,null,null,null,null,null,null,{"$f":"IF(Committenti!D319<>\"\",CONCATENATE(Committenti!B319,\"  \",Committenti!C319,\"  CF: \",Committenti!D319),\"\")","v":""}]
["",null,null,null,null,null,null,null,null,null,null,null,null,null,null,null,{"$f":"IF(Committenti!D320<>\"\",CONCATENATE(Committenti!B320,\"  \",Committenti!C320,\"  CF: \",Committenti!D320),\"\")","v":""}]
["",null,null,null,null,null,null,null,null,null,null,null,null,null,null,null,{"$f":"IF(Committenti!D321<>\"\",CONCATENATE(Committenti!B321,\"  \",Committenti!C321,\"  CF: \",Committenti!D321),\"\")","v":""}]
["",null,null,null,null,null,null,null,null,null,null,null,null,null,null,null,{"$f":"IF(Committenti!D322<>\"\",CONCATENATE(Committenti!B322,\"  \",Committenti!C322,\"  CF: \",Committenti!D322),\"\")","v":""}]
["",null,null,null,null,null,null,null,null,null,null,null,null,null,null,null,{"$f":"IF(Committenti!D323<>\"\",CONCATENATE(Committenti!B323,\"  \",Committenti!C323,\"  CF: \",Committenti!D323),\"\")","v":""}]
["",null,null,null,null,null,null,null,null,null,null,null,null,null,null,null,{"$f":"IF(Committenti!D324<>\"\",CONCATENATE(Committenti!B324,\"  \",Committenti!C324,\"  CF: \",Committenti!D324),\"\")","v":""}]
[{"$f":"IF(B325<>\"\", IF(A324<>\"\",A324+1,\"\"),\"\")","v":""},null,null,null,null,null,null,null,null,null,null,null,null,null,null,null,{"$f":"IF(Committenti!D325<>\"\",CONCATENATE(Committenti!B325,\"  \",Committenti!C325,\"  CF: \",Committenti!D325),\"\")","v":""}]
["",null,null,null,null,null,null,null,null,null,null,null,null,null,null,null,{"$f":"IF(Committenti!D326<>\"\",CONCATENATE(Committenti!B326,\"  \",Committenti!C326,\"  CF: \",Committenti!D326),\"\")","v":""}]
["",null,null,null,null,null,null,null,null,null,null,null,null,null,null,null,{"$f":"IF(Committenti!D327<>\"\",CONCATENATE(Committenti!B327,\"  \",Committenti!C327,\"  CF: \",Committenti!D327),\"\")","v":""}]
["",null,null,null,null,null,null,null,null,null,null,null,null,null,null,null,{"$f":"IF(Committenti!D328<>\"\",CONCATENATE(Committenti!B328,\"  \",Committenti!C328,\"  CF: \",Committenti!D328),\"\")","v":""}]
["",null,null,null,null,null,null,null,null,null,null,null,null,null,null,null,{"$f":"IF(Committenti!D329<>\"\",CONCATENATE(Committenti!B329,\"  \",Committenti!C329,\"  CF: \",Committenti!D329),\"\")","v":""}]
["",null,null,null,null,null,null,null,null,null,null,null,null,null,null,null,{"$f":"IF(Committenti!D330<>\"\",CONCATENATE(Committenti!B330,\"  \",Committenti!C330,\"  CF: \",Committenti!D330),\"\")","v":""}]
["",null,null,null,null,null,null,null,null,null,null,null,null,null,null,null,{"$f":"IF(Committenti!D331<>\"\",CONCATENATE(Committenti!B331,\"  \",Committenti!C331,\"  CF: \",Committenti!D331),\"\")","v":""}]
["",null,null,null,null,null,null,null,null,null,null,null,null,null,null,null,{"$f":"IF(Committenti!D332<>\"\",CONCATENATE(Committenti!B332,\"  \",Committenti!C332,\"  CF: \",Committenti!D332),\"\")","v":""}]
["",null,null,null,null,null,null,null,null,null,null,null,null,null,null,null,{"$f":"IF(Committenti!D333<>\"\",CONCATENATE(Committenti!B333,\"  \",Committenti!C333,\"  CF: \",Committenti!D333),\"\")","v":""}]
["",null,null,null,null,null,null,null,null,null,null,null,null,null,null,null,{"$f":"IF(Committenti!D334<>\"\",CONCATENATE(Committenti!B334,\"  \",Committenti!C334,\"  CF: \",Committenti!D334),\"\")","v":""}]
["",null,null,null,null,null,null,null,null,null,null,null,null,null,null,null,{"$f":"IF(Committenti!D335<>\"\",CONCATENATE(Committenti!B335,\"  \",Committenti!C335,\"  CF: \",Committenti!D335),\"\")","v":""}]
["",null,null,null,null,null,null,null,null,null,null,null,null,null,null,null,{"$f":"IF(Committenti!D336<>\"\",CONCATENATE(Committenti!B336,\"  \",Committenti!C336,\"  CF: \",Committenti!D336),\"\")","v":""}]
["",null,null,null,null,null,null,null,null,null,null,null,null,null,null,null,{"$f":"IF(Committenti!D337<>\"\",CONCATENATE(Committenti!B337,\"  \",Committenti!C337,\"  CF: \",Committenti!D337),\"\")","v":""}]
["",null,null,null,null,null,null,null,null,null,null,null,null,null,null,null,{"$f":"IF(Committenti!D338<>\"\",CONCATENATE(Committenti!B338,\"  \",Committenti!C338,\"  CF: \",Committenti!D338),\"\")","v":""}]
["",null,null,null,null,null,null,null,null,null,null,null,null,null,null,null,{"$f":"IF(Committenti!D339<>\"\",CONCATENATE(Committenti!B339,\"  \",Committenti!C339,\"  CF: \",Committenti!D339),\"\")","v":""}]
["",null,null,null,null,null,null,null,null,null,null,null,null,null,null,null,{"$f":"IF(Committenti!D340<>\"\",CONCATENATE(Committenti!B340,\"  \",Committenti!C340,\"  CF: \",Committenti!D340),\"\")","v":""}]
["",null,null,null,null,null,null,null,null,null,null,null,null,null,null,null,{"$f":"IF(Committenti!D341<>\"\",CONCATENATE(Committenti!B341,\"  \",Committenti!C341,\"  CF: \",Committenti!D341),\"\")","v":""}]
["",null,null,null,null,null,null,null,null,null,null,null,null,null,null,null,{"$f":"IF(Committenti!D342<>\"\",CONCATENATE(Committenti!B342,\"  \",Committenti!C342,\"  CF: \",Committenti!D342),\"\")","v":""}]
["",null,null,null,null,null,null,null,null,null,null,null,null,null,null,null,{"$f":"IF(Committenti!D343<>\"\",CONCATENATE(Committenti!B343,\"  \",Committenti!C343,\"  CF: \",Committenti!D343),\"\")","v":""}]
["",null,null,null,null,null,null,null,null,null,null,null,null,null,null,null,{"$f":"IF(Committenti!D344<>\"\",CONCATENATE(Committenti!B344,\"  \",Committenti!C344,\"  CF: \",Committenti!D344),\"\")","v":""}]
["",null,null,null,null,null,null,null,null,null,null,null,null,null,null,null,{"$f":"IF(Committenti!D345<>\"\",CONCATENATE(Committenti!B345,\"  \",Committenti!C345,\"  CF: \",Committenti!D345),\"\")","v":""}]
["",null,null,null,null,null,null,null,null,null,null,null,null,null,null,null,{"$f":"IF(Committenti!D346<>\"\",CONCATENATE(Committenti!B346,\"  \",Committenti!C346,\"  CF: \",Committenti!D346),\"\")","v":""}]
["",null,null,null,null,null,null,null,null,null,null,null,null,null,null,null,{"$f":"IF(Committenti!D347<>\"\",CONCATENATE(Committenti!B347,\"  \",Committenti!C347,\"  CF: \",Committenti!D347),\"\")","v":""}]
["",null,null,null,null,null,null,null,null,null,null,null,null,null,null,null,{"$f":"IF(Committenti!D348<>\"\",CONCATENATE(Committenti!B348,\"  \",Committenti!C348,\"  CF: \",Committenti!D348),\"\")","v":""}]
["",null,null,null,null,null,null,null,null,null,null,null,null,null,null,null,{"$f":"IF(Committenti!D349<>\"\",CONCATENATE(Committenti!B349,\"  \",Committenti!C349,\"  CF: \",Committenti!D349),\"\")","v":""}]
["",null,null,null,null,null,null,null,null,null,null,null,null,null,null,null,{"$f":"IF(Committenti!D350<>\"\",CONCATENATE(Committenti!B350,\"  \",Committenti!C350,\"  CF: \",Committenti!D350),\"\")","v":""}]
["",null,null,null,null,null,null,null,null,null,null,null,null,null,null,null,{"$f":"IF(Committenti!D351<>\"\",CONCATENATE(Committenti!B351,\"  \",Committenti!C351,\"  CF: \",Committenti!D351),\"\")","v":""}]
["",null,null,null,null,null,null,null,null,null,null,null,null,null,null,null,{"$f":"IF(Committenti!D352<>\"\",CONCATENATE(Committenti!B352,\"  \",Committenti!C352,\"  CF: \",Committenti!D352),\"\")","v":""}]
["",null,null,null,null,null,null,null,null,null,null,null,null,null,null,null,{"$f":"IF(Committenti!D353<>\"\",CONCATENATE(Committenti!B353,\"  \",Committenti!C353,\"  CF: \",Committenti!D353),\"\")","v":""}]
["",null,null,null,null,null,null,null,null,null,null,null,null,null,null,null,{"$f":"IF(Committenti!D354<>\"\",CONCATENATE(Committenti!B354,\"  \",Committenti!C354,\"  CF: \",Committenti!D354),\"\")","v":""}]
["",null,null,null,null,null,null,null,null,null,null,null,null,null,null,null,{"$f":"IF(Committenti!D355<>\"\",CONCATENATE(Committenti!B355,\"  \",Committenti!C355,\"  CF: \",Committenti!D355),\"\")","v":""}]
["",null,null,null,null,null,null,null,null,null,null,null,null,null,null,null,{"$f":"IF(Committenti!D356<>\"\",CONCATENATE(Committenti!B356,\"  \",Committenti!C356,\"  CF: \",Committenti!D356),\"\")","v":""}]
["",null,null,null,null,null,null,null,null,null,null,null,null,null,null,null,{"$f":"IF(Committenti!D357<>\"\",CONCATENATE(Committenti!B357,\"  \",Committenti!C357,\"  CF: \",Committenti!D357),\"\")","v":""}]
["",null,null,null,null,null,null,null,null,null,null,null,null,null,null,null,{"$f":"IF(Committenti!D358<>\"\",CONCATENATE(Committenti!B358,\"  \",Committenti!C358,\"  CF: \",Committenti!D358),\"\")","v":""}]
["",null,null,null,null,null,null,null,null,null,null,null,null,null,null,null,{"$f":"IF(Committenti!D359<>\"\",CONCATENATE(Committenti!B359,\"  \",Committenti!C359,\"  CF: \",Committenti!D359),\"\")","v":""}]
["",null,null,null,null,null,null,null,null,null,null,null,null,null,null,null,{"$f":"IF(Committenti!D360<>\"\",CONCATENATE(Committenti!B360,\"  \",Committenti!C360,\"  CF: \",Committenti!D360),\"\")","v":""}]
["",null,null,null,null,null,null,null,null,null,null,null,null,null,null,null,{"$f":"IF(Committenti!D361<>\"\",CONCATENATE(Committenti!B361,\"  \",Committenti!C361,\"  CF: \",Committenti!D361),\"\")","v":""}]
["",null,null,null,null,null,null,null,null,null,null,null,null,null,null,null,{"$f":"IF(Committenti!D362<>\"\",CONCATENATE(Committenti!B362,\"  \",Committenti!C362,\"  CF: \",Committenti!D362),\"\")","v":""}]
["",null,null,null,null,null,null,null,null,null,null,null,null,null,null,null,{"$f":"IF(Committenti!D363<>\"\",CONCATENATE(Committenti!B363,\"  \",Committenti!C363,\"  CF: \",Committenti!D363),\"\")","v":""}]
["",null,null,null,null,null,null,null,null,null,null,null,null,null,null,null,{"$f":"IF(Committenti!D364<>\"\",CONCATENATE(Committenti!B364,\"  \",Committenti!C364,\"  CF: \",Committenti!D364),\"\")","v":""}]
["",null,null,null,null,null,null,null,null,null,null,null,null,null,null,null,{"$f":"IF(Committenti!D365<>\"\",CONCATENATE(Committenti!B365,\"  \",Committenti!C365,\"  CF: \",Committenti!D365),\"\")","v":""}]
["",null,null,null,null,null,null,null,null,null,null,null,null,null,null,null,{"$f":"IF(Committenti!D366<>\"\",CONCATENATE(Committenti!B366,\"  \",Committenti!C366,\"  CF: \",Committenti!D366),\"\")","v":""}]
["",null,null,null,null,null,null,null,null,null,null,null,null,null,null,null,{"$f":"IF(Committenti!D367<>\"\",CONCATENATE(Committenti!B367,\"  \",Committenti!C367,\"  CF: \",Committenti!D367),\"\")","v":""}]
["",null,null,null,null,null,null,null,null,null,null,null,null,null,null,null,{"$f":"IF(Committenti!D368<>\"\",CONCATENATE(Committenti!B368,\"  \",Committenti!C368,\"  CF: \",Committenti!D368),\"\")","v":""}]
["",null,null,null,null,null,null,null,null,null,null,null,null,null,null,null,{"$f":"IF(Committenti!D369<>\"\",CONCATENATE(Committenti!B369,\"  \",Committenti!C369,\"  CF: \",Committenti!D369),\"\")","v":""}]
["",null,null,null,null,null,null,null,null,null,null,null,null,null,null,null,{"$f":"IF(Committenti!D370<>\"\",CONCATENATE(Committenti!B370,\"  \",Committenti!C370,\"  CF: \",Committenti!D370),\"\")","v":""}]
["",null,null,null,null,null,null,null,null,null,null,null,null,null,null,null,{"$f":"IF(Committenti!D371<>\"\",CONCATENATE(Committenti!B371,\"  \",Committenti!C371,\"  CF: \",Committenti!D371),\"\")","v":""}]
["",null,null,null,null,null,null,null,null,null,null,null,null,null,null,null,{"$f":"IF(Committenti!D372<>\"\",CONCATENATE(Committenti!B372,\"  \",Committenti!C372,\"  CF: \",Committenti!D372),\"\")","v":""}]
["",null,null,null,null,null,null,null,null,null,null,null,null,null,null,null,{"$f":"IF(Committenti!D373<>\"\",CONCATENATE(Committenti!B373,\"  \",Committenti!C373,\"  CF: \",Committenti!D373),\"\")","v":""}]
["",null,null,null,null,null,null,null,null,null,null,null,null,null,null,null,{"$f":"IF(Committenti!D374<>\"\",CONCATENATE(Committenti!B374,\"  \",Committenti!C374,\"  CF: \",Committenti!D374),\"\")","v":""}]
["",null,null,null,null,null,null,null,null,null,null,null,null,null,null,null,{"$f":"IF(Committenti!D375<>\"\",CONCATENATE(Committenti!B375,\"  \",Committenti!C375,\"  CF: \",Committenti!D375),\"\")","v":""}]
["",null,null,null,null,null,null,null,null,null,null,null,null,null,null,null,{"$f":"IF(Committenti!D376<>\"\",CONCATENATE(Committenti!B376,\"  \",Committenti!C376,\"  CF: \",Committenti!D376),\"\")","v":""}]
["",null,null,null,null,null,null,null,null,null,null,null,null,null,null,null,{"$f":"IF(Committenti!D377<>\"\",CONCATENATE(Committenti!B377,\"  \",Committenti!C377,\"  CF: \",Committenti!D377),\"\")","v":""}]
["",null,null,null,null,null,null,null,null,null,null,null,null,null,null,null,{"$f":"IF(Committenti!D378<>\"\",CONCATENATE(Committenti!B378,\"  \",Committenti!C378,\"  CF: \",Committenti!D378),\"\")","v":""}]
["",null,null,null,null,null,null,null,null,null,null,null,null,null,null,null,{"$f":"IF(Committenti!D379<>\"\",CONCATENATE(Committenti!B379,\"  \",Committenti!C379,\"  CF: \",Committenti!D379),\"\")","v":""}]
["",null,null,null,null,null,null,null,null,null,null,null,null,null,null,null,{"$f":"IF(Committenti!D380<>\"\",CONCATENATE(Committenti!B380,\"  \",Committenti!C380,\"  CF: \",Committenti!D380),\"\")","v":""}]
["",null,null,null,null,null,null,null,null,null,null,null,null,null,null,null,{"$f":"IF(Committenti!D381<>\"\",CONCATENATE(Committenti!B381,\"  \",Committenti!C381,\"  CF: \",Committenti!D381),\"\")","v":""}]
["",null,null,null,null,null,null,null,null,null,null,null,null,null,null,null,{"$f":"IF(Committenti!D382<>\"\",CONCATENATE(Committenti!B382,\"  \",Committenti!C382,\"  CF: \",Committenti!D382),\"\")","v":""}]
["",null,null,null,null,null,null,null,null,null,null,null,null,null,null,null,{"$f":"IF(Committenti!D383<>\"\",CONCATENATE(Committenti!B383,\"  \",Committenti!C383,\"  CF: \",Committenti!D383),\"\")","v":""}]
["",null,null,null,null,null,null,null,null,null,null,null,null,null,null,null,{"$f":"IF(Committenti!D384<>\"\",CONCATENATE(Committenti!B384,\"  \",Committenti!C384,\"  CF: \",Committenti!D384),\"\")","v":""}]
["",null,null,null,null,null,null,null,null,null,null,null,null,null,null,null,{"$f":"IF(Committenti!D385<>\"\",CONCATENATE(Committenti!B385,\"  \",Committenti!C385,\"  CF: \",Committenti!D385),\"\")","v":""}]
["",null,null,null,null,null,null,null,null,null,null,null,null,null,null,null,{"$f":"IF(Committenti!D386<>\"\",CONCATENATE(Committenti!B386,\"  \",Committenti!C386,\"  CF: \",Committenti!D386),\"\")","v":""}]
["",null,null,null,null,null,null,null,null,null,null,null,null,null,null,null,{"$f":"IF(Committenti!D387<>\"\",CONCATENATE(Committenti!B387,\"  \",Committenti!C387,\"  CF: \",Committenti!D387),\"\")","v":""}]
["",null,null,null,null,null,null,null,null,null,null,null,null,null,null,null,{"$f":"IF(Committenti!D388<>\"\",CONCATENATE(Committenti!B388,\"  \",Committenti!C388,\"  CF: \",Committenti!D388),\"\")","v":""}]
[{"$f":"IF(B389<>\"\", IF(A388<>\"\",A388+1,\"\"),\"\")","v":""},null,null,null,null,null,null,null,null,null,null,null,null,null,null,null,{"$f":"IF(Committenti!D389<>\"\",CONCATENATE(Committenti!B389,\"  \",Committenti!C389,\"  CF: \",Committenti!D389),\"\")","v":""}]
["",null,null,null,null,null,null,null,null,null,null,null,null,null,null,null,{"$f":"IF(Committenti!D390<>\"\",CONCATENATE(Committenti!B390,\"  \",Committenti!C390,\"  CF: \",Committenti!D390),\"\")","v":""}]
["",null,null,null,null,null,null,null,null,null,null,null,null,null,null,null,{"$f":"IF(Committenti!D391<>\"\",CONCATENATE(Committenti!B391,\"  \",Committenti!C391,\"  CF: \",Committenti!D391),\"\")","v":""}]
["",null,null,null,null,null,null,null,null,null,null,null,null,null,null,null,{"$f":"IF(Committenti!D392<>\"\",CONCATENATE(Committenti!B392,\"  \",Committenti!C392,\"  CF: \",Committenti!D392),\"\")","v":""}]
["",null,null,null,null,null,null,null,null,null,null,null,null,null,null,null,{"$f":"IF(Committenti!D393<>\"\",CONCATENATE(Committenti!B393,\"  \",Committenti!C393,\"  CF: \",Committenti!D393),\"\")","v":""}]
["",null,null,null,null,null,null,null,null,null,null,null,null,null,null,null,{"$f":"IF(Committenti!D394<>\"\",CONCATENATE(Committenti!B394,\"  \",Committenti!C394,\"  CF: \",Committenti!D394),\"\")","v":""}]
["",null,null,null,null,null,null,null,null,null,null,null,null,null,null,null,{"$f":"IF(Committenti!D395<>\"\",CONCATENATE(Committenti!B395,\"  \",Committenti!C395,\"  CF: \",Committenti!D395),\"\")","v":""}]
["",null,null,null,null,null,null,null,null,null,null,null,null,null,null,null,{"$f":"IF(Committenti!D396<>\"\",CONCATENATE(Committenti!B396,\"  \",Committenti!C396,\"  CF: \",Committenti!D396),\"\")","v":""}]
["",null,null,null,null,null,null,null,null,null,null,null,null,null,null,null,{"$f":"IF(Committenti!D397<>\"\",CONCATENATE(Committenti!B397,\"  \",Committenti!C397,\"  CF: \",Committenti!D397),\"\")","v":""}]
["",null,null,null,null,null,null,null,null,null,null,null,null,null,null,null,{"$f":"IF(Committenti!D398<>\"\",CONCATENATE(Committenti!B398,\"  \",Committenti!C398,\"  CF: \",Committenti!D398),\"\")","v":""}]
["",null,null,null,null,null,null,null,null,null,null,null,null,null,null,null,{"$f":"IF(Committenti!D399<>\"\",CONCATENATE(Committenti!B399,\"  \",Committenti!C399,\"  CF: \",Committenti!D399),\"\")","v":""}]
["",null,null,null,null,null,null,null,null,null,null,null,null,null,null,null,{"$f":"IF(Committenti!D400<>\"\",CONCATENATE(Committenti!B400,\"  \",Committenti!C400,\"  CF: \",Committenti!D400),\"\")","v":""}]
["",null,null,null,null,null,null,null,null,null,null,null,null,null,null,null,{"$f":"IF(Committenti!D401<>\"\",CONCATENATE(Committenti!B401,\"  \",Committenti!C401,\"  CF: \",Committenti!D401),\"\")","v":""}]
["",null,null,null,null,null,null,null,null,null,null,null,null,null,null,null,{"$f":"IF(Committenti!D402<>\"\",CONCATENATE(Committenti!B402,\"  \",Committenti!C402,\"  CF: \",Committenti!D402),\"\")","v":""}]
["",null,null,null,null,null,null,null,null,null,null,null,null,null,null,null,{"$f":"IF(Committenti!D403<>\"\",CONCATENATE(Committenti!B403,\"  \",Committenti!C403,\"  CF: \",Committenti!D403),\"\")","v":""}]
["",null,null,null,null,null,null,null,null,null,null,null,null,null,null,null,{"$f":"IF(Committenti!D404<>\"\",CONCATENATE(Committenti!B404,\"  \",Committenti!C404,\"  CF: \",Committenti!D404),\"\")","v":""}]
["",null,null,null,null,null,null,null,null,null,null,null,null,null,null,null,{"$f":"IF(Committenti!D405<>\"\",CONCATENATE(Committenti!B405,\"  \",Committenti!C405,\"  CF: \",Committenti!D405),\"\")","v":""}]
["",null,null,null,null,null,null,null,null,null,null,null,null,null,null,null,{"$f":"IF(Committenti!D406<>\"\",CONCATENATE(Committenti!B406,\"  \",Committenti!C406,\"  CF: \",Committenti!D406),\"\")","v":""}]
["",null,null,null,null,null,null,null,null,null,null,null,null,null,null,null,{"$f":"IF(Committenti!D407<>\"\",CONCATENATE(Committenti!B407,\"  \",Committenti!C407,\"  CF: \",Committenti!D407),\"\")","v":""}]
["",null,null,null,null,null,null,null,null,null,null,null,null,null,null,null,{"$f":"IF(Committenti!D408<>\"\",CONCATENATE(Committenti!B408,\"  \",Committenti!C408,\"  CF: \",Committenti!D408),\"\")","v":""}]
["",null,null,null,null,null,null,null,null,null,null,null,null,null,null,null,{"$f":"IF(Committenti!D409<>\"\",CONCATENATE(Committenti!B409,\"  \",Committenti!C409,\"  CF: \",Committenti!D409),\"\")","v":""}]
["",null,null,null,null,null,null,null,null,null,null,null,null,null,null,null,{"$f":"IF(Committenti!D410<>\"\",CONCATENATE(Committenti!B410,\"  \",Committenti!C410,\"  CF: \",Committenti!D410),\"\")","v":""}]
["",null,null,null,null,null,null,null,null,null,null,null,null,null,null,null,{"$f":"IF(Committenti!D411<>\"\",CONCATENATE(Committenti!B411,\"  \",Committenti!C411,\"  CF: \",Committenti!D411),\"\")","v":""}]
["",null,null,null,null,null,null,null,null,null,null,null,null,null,null,null,{"$f":"IF(Committenti!D412<>\"\",CONCATENATE(Committenti!B412,\"  \",Committenti!C412,\"  CF: \",Committenti!D412),\"\")","v":""}]
["",null,null,null,null,null,null,null,null,null,null,null,null,null,null,null,{"$f":"IF(Committenti!D413<>\"\",CONCATENATE(Committenti!B413,\"  \",Committenti!C413,\"  CF: \",Committenti!D413),\"\")","v":""}]
["",null,null,null,null,null,null,null,null,null,null,null,null,null,null,null,{"$f":"IF(Committenti!D414<>\"\",CONCATENATE(Committenti!B414,\"  \",Committenti!C414,\"  CF: \",Committenti!D414),\"\")","v":""}]
["",null,null,null,null,null,null,null,null,null,null,null,null,null,null,null,{"$f":"IF(Committenti!D415<>\"\",CONCATENATE(Committenti!B415,\"  \",Committenti!C415,\"  CF: \",Committenti!D415),\"\")","v":""}]
["",null,null,null,null,null,null,null,null,null,null,null,null,null,null,null,{"$f":"IF(Committenti!D416<>\"\",CONCATENATE(Committenti!B416,\"  \",Committenti!C416,\"  CF: \",Committenti!D416),\"\")","v":""}]
["",null,null,null,null,null,null,null,null,null,null,null,null,null,null,null,{"$f":"IF(Committenti!D417<>\"\",CONCATENATE(Committenti!B417,\"  \",Committenti!C417,\"  CF: \",Committenti!D417),\"\")","v":""}]
["",null,null,null,null,null,null,null,null,null,null,null,null,null,null,null,{"$f":"IF(Committenti!D418<>\"\",CONCATENATE(Committenti!B418,\"  \",Committenti!C418,\"  CF: \",Committenti!D418),\"\")","v":""}]
["",null,null,null,null,null,null,null,null,null,null,null,null,null,null,null,{"$f":"IF(Committenti!D419<>\"\",CONCATENATE(Committenti!B419,\"  \",Committenti!C419,\"  CF: \",Committenti!D419),\"\")","v":""}]
["",null,null,null,null,null,null,null,null,null,null,null,null,null,null,null,{"$f":"IF(Committenti!D420<>\"\",CONCATENATE(Committenti!B420,\"  \",Committenti!C420,\"  CF: \",Committenti!D420),\"\")","v":""}]
["",null,null,null,null,null,null,null,null,null,null,null,null,null,null,null,{"$f":"IF(Committenti!D421<>\"\",CONCATENATE(Committenti!B421,\"  \",Committenti!C421,\"  CF: \",Committenti!D421),\"\")","v":""}]
["",null,null,null,null,null,null,null,null,null,null,null,null,null,null,null,{"$f":"IF(Committenti!D422<>\"\",CONCATENATE(Committenti!B422,\"  \",Committenti!C422,\"  CF: \",Committenti!D422),\"\")","v":""}]
["",null,null,null,null,null,null,null,null,null,null,null,null,null,null,null,{"$f":"IF(Committenti!D423<>\"\",CONCATENATE(Committenti!B423,\"  \",Committenti!C423,\"  CF: \",Committenti!D423),\"\")","v":""}]
["",null,null,null,null,null,null,null,null,null,null,null,null,null,null,null,{"$f":"IF(Committenti!D424<>\"\",CONCATENATE(Committenti!B424,\"  \",Committenti!C424,\"  CF: \",Committenti!D424),\"\")","v":""}]
["",null,null,null,null,null,null,null,null,null,null,null,null,null,null,null,{"$f":"IF(Committenti!D425<>\"\",CONCATENATE(Committenti!B425,\"  \",Committenti!C425,\"  CF: \",Committenti!D425),\"\")","v":""}]
["",null,null,null,null,null,null,null,null,null,null,null,null,null,null,null,{"$f":"IF(Committenti!D426<>\"\",CONCATENATE(Committenti!B426,\"  \",Committenti!C426,\"  CF: \",Committenti!D426),\"\")","v":""}]
["",null,null,null,null,null,null,null,null,null,null,null,null,null,null,null,{"$f":"IF(Committenti!D427<>\"\",CONCATENATE(Committenti!B427,\"  \",Committenti!C427,\"  CF: \",Committenti!D427),\"\")","v":""}]
["",null,null,null,null,null,null,null,null,null,null,null,null,null,null,null,{"$f":"IF(Committenti!D428<>\"\",CONCATENATE(Committenti!B428,\"  \",Committenti!C428,\"  CF: \",Committenti!D428),\"\")","v":""}]
["",null,null,null,null,null,null,null,null,null,null,null,null,null,null,null,{"$f":"IF(Committenti!D429<>\"\",CONCATENATE(Committenti!B429,\"  \",Committenti!C429,\"  CF: \",Committenti!D429),\"\")","v":""}]
["",null,null,null,null,null,null,null,null,null,null,null,null,null,null,null,{"$f":"IF(Committenti!D430<>\"\",CONCATENATE(Committenti!B430,\"  \",Committenti!C430,\"  CF: \",Committenti!D430),\"\")","v":""}]
["",null,null,null,null,null,null,null,null,null,null,null,null,null,null,null,{"$f":"IF(Committenti!D431<>\"\",CONCATENATE(Committenti!B431,\"  \",Committenti!C431,\"  CF: \",Committenti!D431),\"\")","v":""}]
["",null,null,null,null,null,null,null,null,null,null,null,null,null,null,null,{"$f":"IF(Committenti!D432<>\"\",CONCATENATE(Committenti!B432,\"  \",Committenti!C432,\"  CF: \",Committenti!D432),\"\")","v":""}]
["",null,null,null,null,null,null,null,null,null,null,null,null,null,null,null,{"$f":"IF(Committenti!D433<>\"\",CONCATENATE(Committenti!B433,\"  \",Committenti!C433,\"  CF: \",Committenti!D433),\"\")","v":""}]
["",null,null,null,null,null,null,null,null,null,null,null,null,null,null,null,{"$f":"IF(Committenti!D434<>\"\",CONCATENATE(Committenti!B434,\"  \",Committenti!C434,\"  CF: \",Committenti!D434),\"\")","v":""}]
["",null,null,null,null,null,null,null,null,null,null,null,null,null,null,null,{"$f":"IF(Committenti!D435<>\"\",CONCATENATE(Committenti!B435,\"  \",Committenti!C435,\"  CF: \",Committenti!D435),\"\")","v":""}]
["",null,null,null,null,null,null,null,null,null,null,null,null,null,null,null,{"$f":"IF(Committenti!D436<>\"\",CONCATENATE(Committenti!B436,\"  \",Committenti!C436,\"  CF: \",Committenti!D436),\"\")","v":""}]
["",null,null,null,null,null,null,null,null,null,null,null,null,null,null,null,{"$f":"IF(Committenti!D437<>\"\",CONCATENATE(Committenti!B437,\"  \",Committenti!C437,\"  CF: \",Committenti!D437),\"\")","v":""}]
["",null,null,null,null,null,null,null,null,null,null,null,null,null,null,null,{"$f":"IF(Committenti!D438<>\"\",CONCATENATE(Committenti!B438,\"  \",Committenti!C438,\"  CF: \",Committenti!D438),\"\")","v":""}]
["",null,null,null,null,null,null,null,null,null,null,null,null,null,null,null,{"$f":"IF(Committenti!D439<>\"\",CONCATENATE(Committenti!B439,\"  \",Committenti!C439,\"  CF: \",Committenti!D439),\"\")","v":""}]
["",null,null,null,null,null,null,null,null,null,null,null,null,null,null,null,{"$f":"IF(Committenti!D440<>\"\",CONCATENATE(Committenti!B440,\"  \",Committenti!C440,\"  CF: \",Committenti!D440),\"\")","v":""}]
["",null,null,null,null,null,null,null,null,null,null,null,null,null,null,null,{"$f":"IF(Committenti!D441<>\"\",CONCATENATE(Committenti!B441,\"  \",Committenti!C441,\"  CF: \",Committenti!D441),\"\")","v":""}]
["",null,null,null,null,null,null,null,null,null,null,null,null,null,null,null,{"$f":"IF(Committenti!D442<>\"\",CONCATENATE(Committenti!B442,\"  \",Committenti!C442,\"  CF: \",Committenti!D442),\"\")","v":""}]
["",null,null,null,null,null,null,null,null,null,null,null,null,null,null,null,{"$f":"IF(Committenti!D443<>\"\",CONCATENATE(Committenti!B443,\"  \",Committenti!C443,\"  CF: \",Committenti!D443),\"\")","v":""}]
["",null,null,null,null,null,null,null,null,null,null,null,null,null,null,null,{"$f":"IF(Committenti!D444<>\"\",CONCATENATE(Committenti!B444,\"  \",Committenti!C444,\"  CF: \",Committenti!D444),\"\")","v":""}]
["",null,null,null,null,null,null,null,null,null,null,null,null,null,null,null,{"$f":"IF(Committenti!D445<>\"\",CONCATENATE(Committenti!B445,\"  \",Committenti!C445,\"  CF: \",Committenti!D445),\"\")","v":""}]
["",null,null,null,null,null,null,null,null,null,null,null,null,null,null,null,{"$f":"IF(Committenti!D446<>\"\",CONCATENATE(Committenti!B446,\"  \",Committenti!C446,\"  CF: \",Committenti!D446),\"\")","v":""}]
["",null,null,null,null,null,null,null,null,null,null,null,null,null,null,null,{"$f":"IF(Committenti!D447<>\"\",CONCATENATE(Committenti!B447,\"  \",Committenti!C447,\"  CF: \",Committenti!D447),\"\")","v":""}]
["",null,null,null,null,null,null,null,null,null,null,null,null,null,null,null,{"$f":"IF(Committenti!D448<>\"\",CONCATENATE(Committenti!B448,\"  \",Committenti!C448,\"  CF: \",Committenti!D448),\"\")","v":""}]
["",null,null,null,null,null,null,null,null,null,null,null,null,null,null,null,{"$f":"IF(Committenti!D449<>\"\",CONCATENATE(Committenti!B449,\"  \",Committenti!C449,\"  CF: \",Committenti!D449),\"\")","v":""}]
["",null,null,null,null,null,null,null,null,null,null,null,null,null,null,null,{"$f":"IF(Committenti!D450<>\"\",CONCATENATE(Committenti!B450,\"  \",Committenti!C450,\"  CF: \",Committenti!D450),\"\")","v":""}]
["",null,null,null,null,null,null,null,null,null,null,null,null,null,null,null,{"$f":"IF(Committenti!D451<>\"\",CONCATENATE(Committenti!B451,\"  \",Committenti!C451,\"  CF: \",Committenti!D451),\"\")","v":""}]
["",null,null,null,null,null,null,null,null,null,null,null,null,null,null,null,{"$f":"IF(Committenti!D452<>\"\",CONCATENATE(Committenti!B452,\"  \",Committenti!C452,\"  CF: \",Committenti!D452),\"\")","v":""}]
[{"$f":"IF(B453<>\"\", IF(A452<>\"\",A452+1,\"\"),\"\")","v":""},null,null,null,null,null,null,null,null,null,null,null,null,null,null,null,{"$f":"IF(Committenti!D453<>\"\",CONCATENATE(Committenti!B453,\"  \",Committenti!C453,\"  CF: \",Committenti!D453),\"\")","v":""}]
["",null,null,null,null,null,null,null,null,null,null,null,null,null,null,null,{"$f":"IF(Committenti!D454<>\"\",CONCATENATE(Committenti!B454,\"  \",Committenti!C454,\"  CF: \",Committenti!D454),\"\")","v":""}]
["",null,null,null,null,null,null,null,null,null,null,null,null,null,null,null,{"$f":"IF(Committenti!D455<>\"\",CONCATENATE(Committenti!B455,\"  \",Committenti!C455,\"  CF: \",Committenti!D455),\"\")","v":""}]
["",null,null,null,null,null,null,null,null,null,null,null,null,null,null,null,{"$f":"IF(Committenti!D456<>\"\",CONCATENATE(Committenti!B456,\"  \",Committenti!C456,\"  CF: \",Committenti!D456),\"\")","v":""}]
["",null,null,null,null,null,null,null,null,null,null,null,null,null,null,null,{"$f":"IF(Committenti!D457<>\"\",CONCATENATE(Committenti!B457,\"  \",Committenti!C457,\"  CF: \",Committenti!D457),\"\")","v":""}]
["",null,null,null,null,null,null,null,null,null,null,null,null,null,null,null,{"$f":"IF(Committenti!D458<>\"\",CONCATENATE(Committenti!B458,\"  \",Committenti!C458,\"  CF: \",Committenti!D458),\"\")","v":""}]
["",null,null,null,null,null,null,null,null,null,null,null,null,null,null,null,{"$f":"IF(Committenti!D459<>\"\",CONCATENATE(Committenti!B459,\"  \",Committenti!C459,\"  CF: \",Committenti!D459),\"\")","v":""}]
["",null,null,null,null,null,null,null,null,null,null,null,null,null,null,null,{"$f":"IF(Committenti!D460<>\"\",CONCATENATE(Committenti!B460,\"  \",Committenti!C460,\"  CF: \",Committenti!D460),\"\")","v":""}]
["",null,null,null,null,null,null,null,null,null,null,null,null,null,null,null,{"$f":"IF(Committenti!D461<>\"\",CONCATENATE(Committenti!B461,\"  \",Committenti!C461,\"  CF: \",Committenti!D461),\"\")","v":""}]
["",null,null,null,null,null,null,null,null,null,null,null,null,null,null,null,{"$f":"IF(Committenti!D462<>\"\",CONCATENATE(Committenti!B462,\"  \",Committenti!C462,\"  CF: \",Committenti!D462),\"\")","v":""}]
["",null,null,null,null,null,null,null,null,null,null,null,null,null,null,null,{"$f":"IF(Committenti!D463<>\"\",CONCATENATE(Committenti!B463,\"  \",Committenti!C463,\"  CF: \",Committenti!D463),\"\")","v":""}]
["",null,null,null,null,null,null,null,null,null,null,null,null,null,null,null,{"$f":"IF(Committenti!D464<>\"\",CONCATENATE(Committenti!B464,\"  \",Committenti!C464,\"  CF: \",Committenti!D464),\"\")","v":""}]
["",null,null,null,null,null,null,null,null,null,null,null,null,null,null,null,{"$f":"IF(Committenti!D465<>\"\",CONCATENATE(Committenti!B465,\"  \",Committenti!C465,\"  CF: \",Committenti!D465),\"\")","v":""}]
["",null,null,null,null,null,null,null,null,null,null,null,null,null,null,null,{"$f":"IF(Committenti!D466<>\"\",CONCATENATE(Committenti!B466,\"  \",Committenti!C466,\"  CF: \",Committenti!D466),\"\")","v":""}]
["",null,null,null,null,null,null,null,null,null,null,null,null,null,null,null,{"$f":"IF(Committenti!D467<>\"\",CONCATENATE(Committenti!B467,\"  \",Committenti!C467,\"  CF: \",Committenti!D467),\"\")","v":""}]
["",null,null,null,null,null,null,null,null,null,null,null,null,null,null,null,{"$f":"IF(Committenti!D468<>\"\",CONCATENATE(Committenti!B468,\"  \",Committenti!C468,\"  CF: \",Committenti!D468),\"\")","v":""}]
["",null,null,null,null,null,null,null,null,null,null,null,null,null,null,null,{"$f":"IF(Committenti!D469<>\"\",CONCATENATE(Committenti!B469,\"  \",Committenti!C469,\"  CF: \",Committenti!D469),\"\")","v":""}]
["",null,null,null,null,null,null,null,null,null,null,null,null,null,null,null,{"$f":"IF(Committenti!D470<>\"\",CONCATENATE(Committenti!B470,\"  \",Committenti!C470,\"  CF: \",Committenti!D470),\"\")","v":""}]
["",null,null,null,null,null,null,null,null,null,null,null,null,null,null,null,{"$f":"IF(Committenti!D471<>\"\",CONCATENATE(Committenti!B471,\"  \",Committenti!C471,\"  CF: \",Committenti!D471),\"\")","v":""}]
["",null,null,null,null,null,null,null,null,null,null,null,null,null,null,null,{"$f":"IF(Committenti!D472<>\"\",CONCATENATE(Committenti!B472,\"  \",Committenti!C472,\"  CF: \",Committenti!D472),\"\")","v":""}]
["",null,null,null,null,null,null,null,null,null,null,null,null,null,null,null,{"$f":"IF(Committenti!D473<>\"\",CONCATENATE(Committenti!B473,\"  \",Committenti!C473,\"  CF: \",Committenti!D473),\"\")","v":""}]
["",null,null,null,null,null,null,null,null,null,null,null,null,null,null,null,{"$f":"IF(Committenti!D474<>\"\",CONCATENATE(Committenti!B474,\"  \",Committenti!C474,\"  CF: \",Committenti!D474),\"\")","v":""}]
["",null,null,null,null,null,null,null,null,null,null,null,null,null,null,null,{"$f":"IF(Committenti!D475<>\"\",CONCATENATE(Committenti!B475,\"  \",Committenti!C475,\"  CF: \",Committenti!D475),\"\")","v":""}]
["",null,null,null,null,null,null,null,null,null,null,null,null,null,null,null,{"$f":"IF(Committenti!D476<>\"\",CONCATENATE(Committenti!B476,\"  \",Committenti!C476,\"  CF: \",Committenti!D476),\"\")","v":""}]
["",null,null,null,null,null,null,null,null,null,null,null,null,null,null,null,{"$f":"IF(Committenti!D477<>\"\",CONCATENATE(Committenti!B477,\"  \",Committenti!C477,\"  CF: \",Committenti!D477),\"\")","v":""}]
["",null,null,null,null,null,null,null,null,null,null,null,null,null,null,null,{"$f":"IF(Committenti!D478<>\"\",CONCATENATE(Committenti!B478,\"  \",Committenti!C478,\"  CF: \",Committenti!D478),\"\")","v":""}]
["",null,null,null,null,null,null,null,null,null,null,null,null,null,null,null,{"$f":"IF(Committenti!D479<>\"\",CONCATENATE(Committenti!B479,\"  \",Committenti!C479,\"  CF: \",Committenti!D479),\"\")","v":""}]
["",null,null,null,null,null,null,null,null,null,null,null,null,null,null,null,{"$f":"IF(Committenti!D480<>\"\",CONCATENATE(Committenti!B480,\"  \",Committenti!C480,\"  CF: \",Committenti!D480),\"\")","v":""}]
["",null,null,null,null,null,null,null,null,null,null,null,null,null,null,null,{"$f":"IF(Committenti!D481<>\"\",CONCATENATE(Committenti!B481,\"  \",Committenti!C481,\"  CF: \",Committenti!D481),\"\")","v":""}]
["",null,null,null,null,null,null,null,null,null,null,null,null,null,null,null,{"$f":"IF(Committenti!D482<>\"\",CONCATENATE(Committenti!B482,\"  \",Committenti!C482,\"  CF: \",Committenti!D482),\"\")","v":""}]
["",null,null,null,null,null,null,null,null,null,null,null,null,null,null,null,{"$f":"IF(Committenti!D483<>\"\",CONCATENATE(Committenti!B483,\"  \",Committenti!C483,\"  CF: \",Committenti!D483),\"\")","v":""}]
["",null,null,null,null,null,null,null,null,null,null,null,null,null,null,null,{"$f":"IF(Committenti!D484<>\"\",CONCATENATE(Committenti!B484,\"  \",Committenti!C484,\"  CF: \",Committenti!D484),\"\")","v":""}]
["",null,null,null,null,null,null,null,null,null,null,null,null,null,null,null,{"$f":"IF(Committenti!D485<>\"\",CONCATENATE(Committenti!B485,\"  \",Committenti!C485,\"  CF: \",Committenti!D485),\"\")","v":""}]
["",null,null,null,null,null,null,null,null,null,null,null,null,null,null,null,{"$f":"IF(Committenti!D486<>\"\",CONCATENATE(Committenti!B486,\"  \",Committenti!C486,\"  CF: \",Committenti!D486),\"\")","v":""}]
["",null,null,null,null,null,null,null,null,null,null,null,null,null,null,null,{"$f":"IF(Committenti!D487<>\"\",CONCATENATE(Committenti!B487,\"  \",Committenti!C487,\"  CF: \",Committenti!D487),\"\")","v":""}]
["",null,null,null,null,null,null,null,null,null,null,null,null,null,null,null,{"$f":"IF(Committenti!D488<>\"\",CONCATENATE(Committenti!B488,\"  \",Committenti!C488,\"  CF: \",Committenti!D488),\"\")","v":""}]
["",null,null,null,null,null,null,null,null,null,null,null,null,null,null,null,{"$f":"IF(Committenti!D489<>\"\",CONCATENATE(Committenti!B489,\"  \",Committenti!C489,\"  CF: \",Committenti!D489),\"\")","v":""}]
["",null,null,null,null,null,null,null,null,null,null,null,null,null,null,null,{"$f":"IF(Committenti!D490<>\"\",CONCATENATE(Committenti!B490,\"  \",Committenti!C490,\"  CF: \",Committenti!D490),\"\")","v":""}]
["",null,null,null,null,null,null,null,null,null,null,null,null,null,null,null,{"$f":"IF(Committenti!D491<>\"\",CONCATENATE(Committenti!B491,\"  \",Committenti!C491,\"  CF: \",Committenti!D491),\"\")","v":""}]
["",null,null,null,null,null,null,null,null,null,null,null,null,null,null,null,{"$f":"IF(Committenti!D492<>\"\",CONCATENATE(Committenti!B492,\"  \",Committenti!C492,\"  CF: \",Committenti!D492),\"\")","v":""}]
["",null,null,null,null,null,null,null,null,null,null,null,null,null,null,null,{"$f":"IF(Committenti!D493<>\"\",CONCATENATE(Committenti!B493,\"  \",Committenti!C493,\"  CF: \",Committenti!D493),\"\")","v":""}]
["",null,null,null,null,null,null,null,null,null,null,null,null,null,null,null,{"$f":"IF(Committenti!D494<>\"\",CONCATENATE(Committenti!B494,\"  \",Committenti!C494,\"  CF: \",Committenti!D494),\"\")","v":""}]
["",null,null,null,null,null,null,null,null,null,null,null,null,null,null,null,{"$f":"IF(Committenti!D495<>\"\",CONCATENATE(Committenti!B495,\"  \",Committenti!C495,\"  CF: \",Committenti!D495),\"\")","v":""}]
["",null,null,null,null,null,null,null,null,null,null,null,null,null,null,null,{"$f":"IF(Committenti!D496<>\"\",CONCATENATE(Committenti!B496,\"  \",Committenti!C496,\"  CF: \",Committenti!D496),\"\")","v":""}]
["",null,null,null,null,null,null,null,null,null,null,null,null,null,null,null,{"$f":"IF(Committenti!D497<>\"\",CONCATENATE(Committenti!B497,\"  \",Committenti!C497,\"  CF: \",Committenti!D497),\"\")","v":""}]
["",null,null,null,null,null,null,null,null,null,null,null,null,null,null,null,{"$f":"IF(Committenti!D498<>\"\",CONCATENATE(Committenti!B498,\"  \",Committenti!C498,\"  CF: \",Committenti!D498),\"\")","v":""}]
["",null,null,null,null,null,null,null,null,null,null,null,null,null,null,null,{"$f":"IF(Committenti!D499<>\"\",CONCATENATE(Committenti!B499,\"  \",Committenti!C499,\"  CF: \",Committenti!D499),\"\")","v":""}]
["",null,null,null,null,null,null,null,null,null,null,null,null,null,null,null,{"$f":"IF(Committenti!D500<>\"\",CONCATENATE(Committenti!B500,\"  \",Committenti!C500,\"  CF: \",Committenti!D500),\"\")","v":""}]
["",null,null,null,null,null,null,null,null,null,null,null,null,null,null,null,{"$f":"IF(Committenti!D501<>\"\",CONCATENATE(Committenti!B501,\"  \",Committenti!C501,\"  CF: \",Committenti!D501),\"\")","v":""}]
["",null,null,null,null,null,null,null,null,null,null,null,null,null,null,null,{"$f":"IF(Committenti!D502<>\"\",CONCATENATE(Committenti!B502,\"  \",Committenti!C502,\"  CF: \",Committenti!D502),\"\")","v":""}]
["",null,null,null,null,null,null,null,null,null,null,null,null,null,null,null,{"$f":"IF(Committenti!D503<>\"\",CONCATENATE(Committenti!B503,\"  \",Committenti!C503,\"  CF: \",Committenti!D503),\"\")","v":""}]
["",null,null,null,null,null,null,null,null,null,null,null,null,null,null,null,{"$f":"IF(Committenti!D504<>\"\",CONCATENATE(Committenti!B504,\"  \",Committenti!C504,\"  CF: \",Committenti!D504),\"\")","v":""}]
["",null,null,null,null,null,null,null,null,null,null,null,null,null,null,null,{"$f":"IF(Committenti!D505<>\"\",CONCATENATE(Committenti!B505,\"  \",Committenti!C505,\"  CF: \",Committenti!D505),\"\")","v":""}]
["",null,null,null,null,null,null,null,null,null,null,null,null,null,null,null,{"$f":"IF(Committenti!D506<>\"\",CONCATENATE(Committenti!B506,\"  \",Committenti!C506,\"  CF: \",Committenti!D506),\"\")","v":""}]
["",null,null,null,null,null,null,null,null,null,null,null,null,null,null,null,{"$f":"IF(Committenti!D507<>\"\",CONCATENATE(Committenti!B507,\"  \",Committenti!C507,\"  CF: \",Committenti!D507),\"\")","v":""}]
["",null,null,null,null,null,null,null,null,null,null,null,null,null,null,null,{"$f":"IF(Committenti!D508<>\"\",CONCATENATE(Committenti!B508,\"  \",Committenti!C508,\"  CF: \",Committenti!D508),\"\")","v":""}]
["",null,null,null,null,null,null,null,null,null,null,null,null,null,null,null,{"$f":"IF(Committenti!D509<>\"\",CONCATENATE(Committenti!B509,\"  \",Committenti!C509,\"  CF: \",Committenti!D509),\"\")","v":""}]
["",null,null,null,null,null,null,null,null,null,null,null,null,null,null,null,{"$f":"IF(Committenti!D510<>\"\",CONCATENATE(Committenti!B510,\"  \",Committenti!C510,\"  CF: \",Committenti!D510),\"\")","v":""}]
["",null,null,null,null,null,null,null,null,null,null,null,null,null,null,null,{"$f":"IF(Committenti!D511<>\"\",CONCATENATE(Committenti!B511,\"  \",Committenti!C511,\"  CF: \",Committenti!D511),\"\")","v":""}]
["",null,null,null,null,null,null,null,null,null,null,null,null,null,null,null,{"$f":"IF(Committenti!D512<>\"\",CONCATENATE(Committenti!B512,\"  \",Committenti!C512,\"  CF: \",Committenti!D512),\"\")","v":""}]
["",null,null,null,null,null,null,null,null,null,null,null,null,null,null,null,{"$f":"IF(Committenti!D513<>\"\",CONCATENATE(Committenti!B513,\"  \",Committenti!C513,\"  CF: \",Committenti!D513),\"\")","v":""}]
["",null,null,null,null,null,null,null,null,null,null,null,null,null,null,null,{"$f":"IF(Committenti!D514<>\"\",CONCATENATE(Committenti!B514,\"  \",Committenti!C514,\"  CF: \",Committenti!D514),\"\")","v":""}]
["",null,null,null,null,null,null,null,null,null,null,null,null,null,null,null,{"$f":"IF(Committenti!D515<>\"\",CONCATENATE(Committenti!B515,\"  \",Committenti!C515,\"  CF: \",Committenti!D515),\"\")","v":""}]
["",null,null,null,null,null,null,null,null,null,null,null,null,null,null,null,{"$f":"IF(Committenti!D516<>\"\",CONCATENATE(Committenti!B516,\"  \",Committenti!C516,\"  CF: \",Committenti!D516),\"\")","v":""}]
[{"$f":"IF(B517<>\"\", IF(A516<>\"\",A516+1,\"\"),\"\")","v":""},null,null,null,null,null,null,null,null,null,null,null,null,null,null,null,{"$f":"IF(Committenti!D517<>\"\",CONCATENATE(Committenti!B517,\"  \",Committenti!C517,\"  CF: \",Committenti!D517),\"\")","v":""}]
["",null,null,null,null,null,null,null,null,null,null,null,null,null,null,null,{"$f":"IF(Committenti!D518<>\"\",CONCATENATE(Committenti!B518,\"  \",Committenti!C518,\"  CF: \",Committenti!D518),\"\")","v":""}]
["",null,null,null,null,null,null,null,null,null,null,null,null,null,null,null,{"$f":"IF(Committenti!D519<>\"\",CONCATENATE(Committenti!B519,\"  \",Committenti!C519,\"  CF: \",Committenti!D519),\"\")","v":""}]
["",null,null,null,null,null,null,null,null,null,null,null,null,null,null,null,{"$f":"IF(Committenti!D520<>\"\",CONCATENATE(Committenti!B520,\"  \",Committenti!C520,\"  CF: \",Committenti!D520),\"\")","v":""}]
["",null,null,null,null,null,null,null,null,null,null,null,null,null,null,null,{"$f":"IF(Committenti!D521<>\"\",CONCATENATE(Committenti!B521,\"  \",Committenti!C521,\"  CF: \",Committenti!D521),\"\")","v":""}]
["",null,null,null,null,null,null,null,null,null,null,null,null,null,null,null,{"$f":"IF(Committenti!D522<>\"\",CONCATENATE(Committenti!B522,\"  \",Committenti!C522,\"  CF: \",Committenti!D522),\"\")","v":""}]
["",null,null,null,null,null,null,null,null,null,null,null,null,null,null,null,{"$f":"IF(Committenti!D523<>\"\",CONCATENATE(Committenti!B523,\"  \",Committenti!C523,\"  CF: \",Committenti!D523),\"\")","v":""}]
["",null,null,null,null,null,null,null,null,null,null,null,null,null,null,null,{"$f":"IF(Committenti!D524<>\"\",CONCATENATE(Committenti!B524,\"  \",Committenti!C524,\"  CF: \",Committenti!D524),\"\")","v":""}]
["",null,null,null,null,null,null,null,null,null,null,null,null,null,null,null,{"$f":"IF(Committenti!D525<>\"\",CONCATENATE(Committenti!B525,\"  \",Committenti!C525,\"  CF: \",Committenti!D525),\"\")","v":""}]
["",null,null,null,null,null,null,null,null,null,null,null,null,null,null,null,{"$f":"IF(Committenti!D526<>\"\",CONCATENATE(Committenti!B526,\"  \",Committenti!C526,\"  CF: \",Committenti!D526),\"\")","v":""}]
["",null,null,null,null,null,null,null,null,null,null,null,null,null,null,null,{"$f":"IF(Committenti!D527<>\"\",CONCATENATE(Committenti!B527,\"  \",Committenti!C527,\"  CF: \",Committenti!D527),\"\")","v":""}]
["",null,null,null,null,null,null,null,null,null,null,null,null,null,null,null,{"$f":"IF(Committenti!D528<>\"\",CONCATENATE(Committenti!B528,\"  \",Committenti!C528,\"  CF: \",Committenti!D528),\"\")","v":""}]
["",null,null,null,null,null,null,null,null,null,null,null,null,null,null,null,{"$f":"IF(Committenti!D529<>\"\",CONCATENATE(Committenti!B529,\"  \",Committenti!C529,\"  CF: \",Committenti!D529),\"\")","v":""}]
["",null,null,null,null,null,null,null,null,null,null,null,null,null,null,null,{"$f":"IF(Committenti!D530<>\"\",CONCATENATE(Committenti!B530,\"  \",Committenti!C530,\"  CF: \",Committenti!D530),\"\")","v":""}]
["",null,null,null,null,null,null,null,null,null,null,null,null,null,null,null,{"$f":"IF(Committenti!D531<>\"\",CONCATENATE(Committenti!B531,\"  \",Committenti!C531,\"  CF: \",Committenti!D531),\"\")","v":""}]
["",null,null,null,null,null,null,null,null,null,null,null,null,null,null,null,{"$f":"IF(Committenti!D532<>\"\",CONCATENATE(Committenti!B532,\"  \",Committenti!C532,\"  CF: \",Committenti!D532),\"\")","v":""}]
["",null,null,null,null,null,null,null,null,null,null,null,null,null,null,null,{"$f":"IF(Committenti!D533<>\"\",CONCATENATE(Committenti!B533,\"  \",Committenti!C533,\"  CF: \",Committenti!D533),\"\")","v":""}]
["",null,null,null,null,null,null,null,null,null,null,null,null,null,null,null,{"$f":"IF(Committenti!D534<>\"\",CONCATENATE(Committenti!B534,\"  \",Committenti!C534,\"  CF: \",Committenti!D534),\"\")","v":""}]
["",null,null,null,null,null,null,null,null,null,null,null,null,null,null,null,{"$f":"IF(Committenti!D535<>\"\",CONCATENATE(Committenti!B535,\"  \",Committenti!C535,\"  CF: \",Committenti!D535),\"\")","v":""}]
["",null,null,null,null,null,null,null,null,null,null,null,null,null,null,null,{"$f":"IF(Committenti!D536<>\"\",CONCATENATE(Committenti!B536,\"  \",Committenti!C536,\"  CF: \",Committenti!D536),\"\")","v":""}]
["",null,null,null,null,null,null,null,null,null,null,null,null,null,null,null,{"$f":"IF(Committenti!D537<>\"\",CONCATENATE(Committenti!B537,\"  \",Committenti!C537,\"  CF: \",Committenti!D537),\"\")","v":""}]
["",null,null,null,null,null,null,null,null,null,null,null,null,null,null,null,{"$f":"IF(Committenti!D538<>\"\",CONCATENATE(Committenti!B538,\"  \",Committenti!C538,\"  CF: \",Committenti!D538),\"\")","v":""}]
["",null,null,null,null,null,null,null,null,null,null,null,null,null,null,null,{"$f":"IF(Committenti!D539<>\"\",CONCATENATE(Committenti!B539,\"  \",Committenti!C539,\"  CF: \",Committenti!D539),\"\")","v":""}]
["",null,null,null,null,null,null,null,null,null,null,null,null,null,null,null,{"$f":"IF(Committenti!D540<>\"\",CONCATENATE(Committenti!B540,\"  \",Committenti!C540,\"  CF: \",Committenti!D540),\"\")","v":""}]
["",null,null,null,null,null,null,null,null,null,null,null,null,null,null,null,{"$f":"IF(Committenti!D541<>\"\",CONCATENATE(Committenti!B541,\"  \",Committenti!C541,\"  CF: \",Committenti!D541),\"\")","v":""}]
["",null,null,null,null,null,null,null,null,null,null,null,null,null,null,null,{"$f":"IF(Committenti!D542<>\"\",CONCATENATE(Committenti!B542,\"  \",Committenti!C542,\"  CF: \",Committenti!D542),\"\")","v":""}]
["",null,null,null,null,null,null,null,null,null,null,null,null,null,null,null,{"$f":"IF(Committenti!D543<>\"\",CONCATENATE(Committenti!B543,\"  \",Committenti!C543,\"  CF: \",Committenti!D543),\"\")","v":""}]
["",null,null,null,null,null,null,null,null,null,null,null,null,null,null,null,{"$f":"IF(Committenti!D544<>\"\",CONCATENATE(Committenti!B544,\"  \",Committenti!C544,\"  CF: \",Committenti!D544),\"\")","v":""}]
["",null,null,null,null,null,null,null,null,null,null,null,null,null,null,null,{"$f":"IF(Committenti!D545<>\"\",CONCATENATE(Committenti!B545,\"  \",Committenti!C545,\"  CF: \",Committenti!D545),\"\")","v":""}]
["",null,null,null,null,null,null,null,null,null,null,null,null,null,null,null,{"$f":"IF(Committenti!D546<>\"\",CONCATENATE(Committenti!B546,\"  \",Committenti!C546,\"  CF: \",Committenti!D546),\"\")","v":""}]
["",null,null,null,null,null,null,null,null,null,null,null,null,null,null,null,{"$f":"IF(Committenti!D547<>\"\",CONCATENATE(Committenti!B547,\"  \",Committenti!C547,\"  CF: \",Committenti!D547),\"\")","v":""}]
["",null,null,null,null,null,null,null,null,null,null,null,null,null,null,null,{"$f":"IF(Committenti!D548<>\"\",CONCATENATE(Committenti!B548,\"  \",Committenti!C548,\"  CF: \",Committenti!D548),\"\")","v":""}]
["",null,null,null,null,null,null,null,null,null,null,null,null,null,null,null,{"$f":"IF(Committenti!D549<>\"\",CONCATENATE(Committenti!B549,\"  \",Committenti!C549,\"  CF: \",Committenti!D549),\"\")","v":""}]
["",null,null,null,null,null,null,null,null,null,null,null,null,null,null,null,{"$f":"IF(Committenti!D550<>\"\",CONCATENATE(Committenti!B550,\"  \",Committenti!C550,\"  CF: \",Committenti!D550),\"\")","v":""}]
["",null,null,null,null,null,null,null,null,null,null,null,null,null,null,null,{"$f":"IF(Committenti!D551<>\"\",CONCATENATE(Committenti!B551,\"  \",Committenti!C551,\"  CF: \",Committenti!D551),\"\")","v":""}]
["",null,null,null,null,null,null,null,null,null,null,null,null,null,null,null,{"$f":"IF(Committenti!D552<>\"\",CONCATENATE(Committenti!B552,\"  \",Committenti!C552,\"  CF: \",Committenti!D552),\"\")","v":""}]
["",null,null,null,null,null,null,null,null,null,null,null,null,null,null,null,{"$f":"IF(Committenti!D553<>\"\",CONCATENATE(Committenti!B553,\"  \",Committenti!C553,\"  CF: \",Committenti!D553),\"\")","v":""}]
["",null,null,null,null,null,null,null,null,null,null,null,null,null,null,null,{"$f":"IF(Committenti!D554<>\"\",CONCATENATE(Committenti!B554,\"  \",Committenti!C554,\"  CF: \",Committenti!D554),\"\")","v":""}]
["",null,null,null,null,null,null,null,null,null,null,null,null,null,null,null,{"$f":"IF(Committenti!D555<>\"\",CONCATENATE(Committenti!B555,\"  \",Committenti!C555,\"  CF: \",Committenti!D555),\"\")","v":""}]
["",null,null,null,null,null,null,null,null,null,null,null,null,null,null,null,{"$f":"IF(Committenti!D556<>\"\",CONCATENATE(Committenti!B556,\"  \",Committenti!C556,\"  CF: \",Committenti!D556),\"\")","v":""}]
["",null,null,null,null,null,null,null,null,null,null,null,null,null,null,null,{"$f":"IF(Committenti!D557<>\"\",CONCATENATE(Committenti!B557,\"  \",Committenti!C557,\"  CF: \",Committenti!D557),\"\")","v":""}]
["",null,null,null,null,null,null,null,null,null,null,null,null,null,null,null,{"$f":"IF(Committenti!D558<>\"\",CONCATENATE(Committenti!B558,\"  \",Committenti!C558,\"  CF: \",Committenti!D558),\"\")","v":""}]
["",null,null,null,null,null,null,null,null,null,null,null,null,null,null,null,{"$f":"IF(Committenti!D559<>\"\",CONCATENATE(Committenti!B559,\"  \",Committenti!C559,\"  CF: \",Committenti!D559),\"\")","v":""}]
["",null,null,null,null,null,null,null,null,null,null,null,null,null,null,null,{"$f":"IF(Committenti!D560<>\"\",CONCATENATE(Committenti!B560,\"  \",Committenti!C560,\"  CF: \",Committenti!D560),\"\")","v":""}]
["",null,null,null,null,null,null,null,null,null,null,null,null,null,null,null,{"$f":"IF(Committenti!D561<>\"\",CONCATENATE(Committenti!B561,\"  \",Committenti!C561,\"  CF: \",Committenti!D561),\"\")","v":""}]
["",null,null,null,null,null,null,null,null,null,null,null,null,null,null,null,{"$f":"IF(Committenti!D562<>\"\",CONCATENATE(Committenti!B562,\"  \",Committenti!C562,\"  CF: \",Committenti!D562),\"\")","v":""}]
["",null,null,null,null,null,null,null,null,null,null,null,null,null,null,null,{"$f":"IF(Committenti!D563<>\"\",CONCATENATE(Committenti!B563,\"  \",Committenti!C563,\"  CF: \",Committenti!D563),\"\")","v":""}]
["",null,null,null,null,null,null,null,null,null,null,null,null,null,null,null,{"$f":"IF(Committenti!D564<>\"\",CONCATENATE(Committenti!B564,\"  \",Committenti!C564,\"  CF: \",Committenti!D564),\"\")","v":""}]
["",null,null,null,null,null,null,null,null,null,null,null,null,null,null,null,{"$f":"IF(Committenti!D565<>\"\",CONCATENATE(Committenti!B565,\"  \",Committenti!C565,\"  CF: \",Committenti!D565),\"\")","v":""}]
["",null,null,null,null,null,null,null,null,null,null,null,null,null,null,null,{"$f":"IF(Committenti!D566<>\"\",CONCATENATE(Committenti!B566,\"  \",Committenti!C566,\"  CF: \",Committenti!D566),\"\")","v":""}]
["",null,null,null,null,null,null,null,null,null,null,null,null,null,null,null,{"$f":"IF(Committenti!D567<>\"\",CONCATENATE(Committenti!B567,\"  \",Committenti!C567,\"  CF: \",Committenti!D567),\"\")","v":""}]
["",null,null,null,null,null,null,null,null,null,null,null,null,null,null,null,{"$f":"IF(Committenti!D568<>\"\",CONCATENATE(Committenti!B568,\"  \",Committenti!C568,\"  CF: \",Committenti!D568),\"\")","v":""}]
["",null,null,null,null,null,null,null,null,null,null,null,null,null,null,null,{"$f":"IF(Committenti!D569<>\"\",CONCATENATE(Committenti!B569,\"  \",Committenti!C569,\"  CF: \",Committenti!D569),\"\")","v":""}]
["",null,null,null,null,null,null,null,null,null,null,null,null,null,null,null,{"$f":"IF(Committenti!D570<>\"\",CONCATENATE(Committenti!B570,\"  \",Committenti!C570,\"  CF: \",Committenti!D570),\"\")","v":""}]
["",null,null,null,null,null,null,null,null,null,null,null,null,null,null,null,{"$f":"IF(Committenti!D571<>\"\",CONCATENATE(Committenti!B571,\"  \",Committenti!C571,\"  CF: \",Committenti!D571),\"\")","v":""}]
["",null,null,null,null,null,null,null,null,null,null,null,null,null,null,null,{"$f":"IF(Committenti!D572<>\"\",CONCATENATE(Committenti!B572,\"  \",Committenti!C572,\"  CF: \",Committenti!D572),\"\")","v":""}]
["",null,null,null,null,null,null,null,null,null,null,null,null,null,null,null,{"$f":"IF(Committenti!D573<>\"\",CONCATENATE(Committenti!B573,\"  \",Committenti!C573,\"  CF: \",Committenti!D573),\"\")","v":""}]
["",null,null,null,null,null,null,null,null,null,null,null,null,null,null,null,{"$f":"IF(Committenti!D574<>\"\",CONCATENATE(Committenti!B574,\"  \",Committenti!C574,\"  CF: \",Committenti!D574),\"\")","v":""}]
["",null,null,null,null,null,null,null,null,null,null,null,null,null,null,null,{"$f":"IF(Committenti!D575<>\"\",CONCATENATE(Committenti!B575,\"  \",Committenti!C575,\"  CF: \",Committenti!D575),\"\")","v":""}]
["",null,null,null,null,null,null,null,null,null,null,null,null,null,null,null,{"$f":"IF(Committenti!D576<>\"\",CONCATENATE(Committenti!B576,\"  \",Committenti!C576,\"  CF: \",Committenti!D576),\"\")","v":""}]
["",null,null,null,null,null,null,null,null,null,null,null,null,null,null,null,{"$f":"IF(Committenti!D577<>\"\",CONCATENATE(Committenti!B577,\"  \",Committenti!C577,\"  CF: \",Committenti!D577),\"\")","v":""}]
["",null,null,null,null,null,null,null,null,null,null,null,null,null,null,null,{"$f":"IF(Committenti!D578<>\"\",CONCATENATE(Committenti!B578,\"  \",Committenti!C578,\"  CF: \",Committenti!D578),\"\")","v":""}]
["",null,null,null,null,null,null,null,null,null,null,null,null,null,null,null,{"$f":"IF(Committenti!D579<>\"\",CONCATENATE(Committenti!B579,\"  \",Committenti!C579,\"  CF: \",Committenti!D579),\"\")","v":""}]
["",null,null,null,null,null,null,null,null,null,null,null,null,null,null,null,{"$f":"IF(Committenti!D580<>\"\",CONCATENATE(Committenti!B580,\"  \",Committenti!C580,\"  CF: \",Committenti!D580),\"\")","v":""}]
[{"$f":"IF(B581<>\"\", IF(A580<>\"\",A580+1,\"\"),\"\")","v":""},null,null,null,null,null,null,null,null,null,null,null,null,null,null,null,{"$f":"IF(Committenti!D581<>\"\",CONCATENATE(Committenti!B581,\"  \",Committenti!C581,\"  CF: \",Committenti!D581),\"\")","v":""}]
["",null,null,null,null,null,null,null,null,null,null,null,null,null,null,null,{"$f":"IF(Committenti!D582<>\"\",CONCATENATE(Committenti!B582,\"  \",Committenti!C582,\"  CF: \",Committenti!D582),\"\")","v":""}]
["",null,null,null,null,null,null,null,null,null,null,null,null,null,null,null,{"$f":"IF(Committenti!D583<>\"\",CONCATENATE(Committenti!B583,\"  \",Committenti!C583,\"  CF: \",Committenti!D583),\"\")","v":""}]
["",null,null,null,null,null,null,null,null,null,null,null,null,null,null,null,{"$f":"IF(Committenti!D584<>\"\",CONCATENATE(Committenti!B584,\"  \",Committenti!C584,\"  CF: \",Committenti!D584),\"\")","v":""}]
["",null,null,null,null,null,null,null,null,null,null,null,null,null,null,null,{"$f":"IF(Committenti!D585<>\"\",CONCATENATE(Committenti!B585,\"  \",Committenti!C585,\"  CF: \",Committenti!D585),\"\")","v":""}]
["",null,null,null,null,null,null,null,null,null,null,null,null,null,null,null,{"$f":"IF(Committenti!D586<>\"\",CONCATENATE(Committenti!B586,\"  \",Committenti!C586,\"  CF: \",Committenti!D586),\"\")","v":""}]
["",null,null,null,null,null,null,null,null,null,null,null,null,null,null,null,{"$f":"IF(Committenti!D587<>\"\",CONCATENATE(Committenti!B587,\"  \",Committenti!C587,\"  CF: \",Committenti!D587),\"\")","v":""}]
["",null,null,null,null,null,null,null,null,null,null,null,null,null,null,null,{"$f":"IF(Committenti!D588<>\"\",CONCATENATE(Committenti!B588,\"  \",Committenti!C588,\"  CF: \",Committenti!D588),\"\")","v":""}]
["",null,null,null,null,null,null,null,null,null,null,null,null,null,null,null,{"$f":"IF(Committenti!D589<>\"\",CONCATENATE(Committenti!B589,\"  \",Committenti!C589,\"  CF: \",Committenti!D589),\"\")","v":""}]
["",null,null,null,null,null,null,null,null,null,null,null,null,null,null,null,{"$f":"IF(Committenti!D590<>\"\",CONCATENATE(Committenti!B590,\"  \",Committenti!C590,\"  CF: \",Committenti!D590),\"\")","v":""}]
["",null,null,null,null,null,null,null,null,null,null,null,null,null,null,null,{"$f":"IF(Committenti!D591<>\"\",CONCATENATE(Committenti!B591,\"  \",Committenti!C591,\"  CF: \",Committenti!D591),\"\")","v":""}]
["",null,null,null,null,null,null,null,null,null,null,null,null,null,null,null,{"$f":"IF(Committenti!D592<>\"\",CONCATENATE(Committenti!B592,\"  \",Committenti!C592,\"  CF: \",Committenti!D592),\"\")","v":""}]
["",null,null,null,null,null,null,null,null,null,null,null,null,null,null,null,{"$f":"IF(Committenti!D593<>\"\",CONCATENATE(Committenti!B593,\"  \",Committenti!C593,\"  CF: \",Committenti!D593),\"\")","v":""}]
["",null,null,null,null,null,null,null,null,null,null,null,null,null,null,null,{"$f":"IF(Committenti!D594<>\"\",CONCATENATE(Committenti!B594,\"  \",Committenti!C594,\"  CF: \",Committenti!D594),\"\")","v":""}]
["",null,null,null,null,null,null,null,null,null,null,null,null,null,null,null,{"$f":"IF(Committenti!D595<>\"\",CONCATENATE(Committenti!B595,\"  \",Committenti!C595,\"  CF: \",Committenti!D595),\"\")","v":""}]
["",null,null,null,null,null,null,null,null,null,null,null,null,null,null,null,{"$f":"IF(Committenti!D596<>\"\",CONCATENATE(Committenti!B596,\"  \",Committenti!C596,\"  CF: \",Committenti!D596),\"\")","v":""}]
["",null,null,null,null,null,null,null,null,null,null,null,null,null,null,null,{"$f":"IF(Committenti!D597<>\"\",CONCATENATE(Committenti!B597,\"  \",Committenti!C597,\"  CF: \",Committenti!D597),\"\")","v":""}]
["",null,null,null,null,null,null,null,null,null,null,null,null,null,null,null,{"$f":"IF(Committenti!D598<>\"\",CONCATENATE(Committenti!B598,\"  \",Committenti!C598,\"  CF: \",Committenti!D598),\"\")","v":""}]
["",null,null,null,null,null,null,null,null,null,null,null,null,null,null,null,{"$f":"IF(Committenti!D599<>\"\",CONCATENATE(Committenti!B599,\"  \",Committenti!C599,\"  CF: \",Committenti!D599),\"\")","v":""}]
["",null,null,null,null,null,null,null,null,null,null,null,null,null,null,null,{"$f":"IF(Committenti!D600<>\"\",CONCATENATE(Committenti!B600,\"  \",Committenti!C600,\"  CF: \",Committenti!D600),\"\")","v":""}]
["",null,null,null,null,null,null,null,null,null,null,null,null,null,null,null,{"$f":"IF(Committenti!D601<>\"\",CONCATENATE(Committenti!B601,\"  \",Committenti!C601,\"  CF: \",Committenti!D601),\"\")","v":""}]
["",null,null,null,null,null,null,null,null,null,null,null,null,null,null,null,{"$f":"IF(Committenti!D602<>\"\",CONCATENATE(Committenti!B602,\"  \",Committenti!C602,\"  CF: \",Committenti!D602),\"\")","v":""}]
["",null,null,null,null,null,null,null,null,null,null,null,null,null,null,null,{"$f":"IF(Committenti!D603<>\"\",CONCATENATE(Committenti!B603,\"  \",Committenti!C603,\"  CF: \",Committenti!D603),\"\")","v":""}]
["",null,null,null,null,null,null,null,null,null,null,null,null,null,null,null,{"$f":"IF(Committenti!D604<>\"\",CONCATENATE(Committenti!B604,\"  \",Committenti!C604,\"  CF: \",Committenti!D604),\"\")","v":""}]
["",null,null,null,null,null,null,null,null,null,null,null,null,null,null,null,{"$f":"IF(Committenti!D605<>\"\",CONCATENATE(Committenti!B605,\"  \",Committenti!C605,\"  CF: \",Committenti!D605),\"\")","v":""}]
["",null,null,null,null,null,null,null,null,null,null,null,null,null,null,null,{"$f":"IF(Committenti!D606<>\"\",CONCATENATE(Committenti!B606,\"  \",Committenti!C606,\"  CF: \",Committenti!D606),\"\")","v":""}]
["",null,null,null,null,null,null,null,null,null,null,null,null,null,null,null,{"$f":"IF(Committenti!D607<>\"\",CONCATENATE(Committenti!B607,\"  \",Committenti!C607,\"  CF: \",Committenti!D607),\"\")","v":""}]
["",null,null,null,null,null,null,null,null,null,null,null,null,null,null,null,{"$f":"IF(Committenti!D608<>\"\",CONCATENATE(Committenti!B608,\"  \",Committenti!C608,\"  CF: \",Committenti!D608),\"\")","v":""}]
["",null,null,null,null,null,null,null,null,null,null,null,null,null,null,null,{"$f":"IF(Committenti!D609<>\"\",CONCATENATE(Committenti!B609,\"  \",Committenti!C609,\"  CF: \",Committenti!D609),\"\")","v":""}]
["",null,null,null,null,null,null,null,null,null,null,null,null,null,null,null,{"$f":"IF(Committenti!D610<>\"\",CONCATENATE(Committenti!B610,\"  \",Committenti!C610,\"  CF: \",Committenti!D610),\"\")","v":""}]
["",null,null,null,null,null,null,null,null,null,null,null,null,null,null,null,{"$f":"IF(Committenti!D611<>\"\",CONCATENATE(Committenti!B611,\"  \",Committenti!C611,\"  CF: \",Committenti!D611),\"\")","v":""}]
["",null,null,null,null,null,null,null,null,null,null,null,null,null,null,null,{"$f":"IF(Committenti!D612<>\"\",CONCATENATE(Committenti!B612,\"  \",Committenti!C612,\"  CF: \",Committenti!D612),\"\")","v":""}]
["",null,null,null,null,null,null,null,null,null,null,null,null,null,null,null,{"$f":"IF(Committenti!D613<>\"\",CONCATENATE(Committenti!B613,\"  \",Committenti!C613,\"  CF: \",Committenti!D613),\"\")","v":""}]
["",null,null,null,null,null,null,null,null,null,null,null,null,null,null,null,{"$f":"IF(Committenti!D614<>\"\",CONCATENATE(Committenti!B614,\"  \",Committenti!C614,\"  CF: \",Committenti!D614),\"\")","v":""}]
["",null,null,null,null,null,null,null,null,null,null,null,null,null,null,null,{"$f":"IF(Committenti!D615<>\"\",CONCATENATE(Committenti!B615,\"  \",Committenti!C615,\"  CF: \",Committenti!D615),\"\")","v":""}]
["",null,null,null,null,null,null,null,null,null,null,null,null,null,null,null,{"$f":"IF(Committenti!D616<>\"\",CONCATENATE(Committenti!B616,\"  \",Committenti!C616,\"  CF: \",Committenti!D616),\"\")","v":""}]
["",null,null,null,null,null,null,null,null,null,null,null,null,null,null,null,{"$f":"IF(Committenti!D617<>\"\",CONCATENATE(Committenti!B617,\"  \",Committenti!C617,\"  CF: \",Committenti!D617),\"\")","v":""}]
["",null,null,null,null,null,null,null,null,null,null,null,null,null,null,null,{"$f":"IF(Committenti!D618<>\"\",CONCATENATE(Committenti!B618,\"  \",Committenti!C618,\"  CF: \",Committenti!D618),\"\")","v":""}]
["",null,null,null,null,null,null,null,null,null,null,null,null,null,null,null,{"$f":"IF(Committenti!D619<>\"\",CONCATENATE(Committenti!B619,\"  \",Committenti!C619,\"  CF: \",Committenti!D619),\"\")","v":""}]
["",null,null,null,null,null,null,null,null,null,null,null,null,null,null,null,{"$f":"IF(Committenti!D620<>\"\",CONCATENATE(Committenti!B620,\"  \",Committenti!C620,\"  CF: \",Committenti!D620),\"\")","v":""}]
["",null,null,null,null,null,null,null,null,null,null,null,null,null,null,null,{"$f":"IF(Committenti!D621<>\"\",CONCATENATE(Committenti!B621,\"  \",Committenti!C621,\"  CF: \",Committenti!D621),\"\")","v":""}]
["",null,null,null,null,null,null,null,null,null,null,null,null,null,null,null,{"$f":"IF(Committenti!D622<>\"\",CONCATENATE(Committenti!B622,\"  \",Committenti!C622,\"  CF: \",Committenti!D622),\"\")","v":""}]
["",null,null,null,null,null,null,null,null,null,null,null,null,null,null,null,{"$f":"IF(Committenti!D623<>\"\",CONCATENATE(Committenti!B623,\"  \",Committenti!C623,\"  CF: \",Committenti!D623),\"\")","v":""}]
["",null,null,null,null,null,null,null,null,null,null,null,null,null,null,null,{"$f":"IF(Committenti!D624<>\"\",CONCATENATE(Committenti!B624,\"  \",Committenti!C624,\"  CF: \",Committenti!D624),\"\")","v":""}]
["",null,null,null,null,null,null,null,null,null,null,null,null,null,null,null,{"$f":"IF(Committenti!D625<>\"\",CONCATENATE(Committenti!B625,\"  \",Committenti!C625,\"  CF: \",Committenti!D625),\"\")","v":""}]
["",null,null,null,null,null,null,null,null,null,null,null,null,null,null,null,{"$f":"IF(Committenti!D626<>\"\",CONCATENATE(Committenti!B626,\"  \",Committenti!C626,\"  CF: \",Committenti!D626),\"\")","v":""}]
["",null,null,null,null,null,null,null,null,null,null,null,null,null,null,null,{"$f":"IF(Committenti!D627<>\"\",CONCATENATE(Committenti!B627,\"  \",Committenti!C627,\"  CF: \",Committenti!D627),\"\")","v":""}]
["",null,null,null,null,null,null,null,null,null,null,null,null,null,null,null,{"$f":"IF(Committenti!D628<>\"\",CONCATENATE(Committenti!B628,\"  \",Committenti!C628,\"  CF: \",Committenti!D628),\"\")","v":""}]
["",null,null,null,null,null,null,null,null,null,null,null,null,null,null,null,{"$f":"IF(Committenti!D629<>\"\",CONCATENATE(Committenti!B629,\"  \",Committenti!C629,\"  CF: \",Committenti!D629),\"\")","v":""}]
["",null,null,null,null,null,null,null,null,null,null,null,null,null,null,null,{"$f":"IF(Committenti!D630<>\"\",CONCATENATE(Committenti!B630,\"  \",Committenti!C630,\"  CF: \",Committenti!D630),\"\")","v":""}]
["",null,null,null,null,null,null,null,null,null,null,null,null,null,null,null,{"$f":"IF(Committenti!D631<>\"\",CONCATENATE(Committenti!B631,\"  \",Committenti!C631,\"  CF: \",Committenti!D631),\"\")","v":""}]
["",null,null,null,null,null,null,null,null,null,null,null,null,null,null,null,{"$f":"IF(Committenti!D632<>\"\",CONCATENATE(Committenti!B632,\"  \",Committenti!C632,\"  CF: \",Committenti!D632),\"\")","v":""}]
["",null,null,null,null,null,null,null,null,null,null,null,null,null,null,null,{"$f":"IF(Committenti!D633<>\"\",CONCATENATE(Committenti!B633,\"  \",Committenti!C633,\"  CF: \",Committenti!D633),\"\")","v":""}]
["",null,null,null,null,null,null,null,null,null,null,null,null,null,null,null,{"$f":"IF(Committenti!D634<>\"\",CONCATENATE(Committenti!B634,\"  \",Committenti!C634,\"  CF: \",Committenti!D634),\"\")","v":""}]
["",null,null,null,null,null,null,null,null,null,null,null,null,null,null,null,{"$f":"IF(Committenti!D635<>\"\",CONCATENATE(Committenti!B635,\"  \",Committenti!C635,\"  CF: \",Committenti!D635),\"\")","v":""}]
["",null,null,null,null,null,null,null,null,null,null,null,null,null,null,null,{"$f":"IF(Committenti!D636<>\"\",CONCATENATE(Committenti!B636,\"  \",Committenti!C636,\"  CF: \",Committenti!D636),\"\")","v":""}]
["",null,null,null,null,null,null,null,null,null,null,null,null,null,null,null,{"$f":"IF(Committenti!D637<>\"\",CONCATENATE(Committenti!B637,\"  \",Committenti!C637,\"  CF: \",Committenti!D637),\"\")","v":""}]
["",null,null,null,null,null,null,null,null,null,null,null,null,null,null,null,{"$f":"IF(Committenti!D638<>\"\",CONCATENATE(Committenti!B638,\"  \",Committenti!C638,\"  CF: \",Committenti!D638),\"\")","v":""}]
["",null,null,null,null,null,null,null,null,null,null,null,null,null,null,null,{"$f":"IF(Committenti!D639<>\"\",CONCATENATE(Committenti!B639,\"  \",Committenti!C639,\"  CF: \",Committenti!D639),\"\")","v":""}]
["",null,null,null,null,null,null,null,null,null,null,null,null,null,null,null,{"$f":"IF(Committenti!D640<>\"\",CONCATENATE(Committenti!B640,\"  \",Committenti!C640,\"  CF: \",Committenti!D640),\"\")","v":""}]
["",null,null,null,null,null,null,null,null,null,null,null,null,null,null,null,{"$f":"IF(Committenti!D641<>\"\",CONCATENATE(Committenti!B641,\"  \",Committenti!C641,\"  CF: \",Committenti!D641),\"\")","v":""}]
["",null,null,null,null,null,null,null,null,null,null,null,null,null,null,null,{"$f":"IF(Committenti!D642<>\"\",CONCATENATE(Committenti!B642,\"  \",Committenti!C642,\"  CF: \",Committenti!D642),\"\")","v":""}]
["",null,null,null,null,null,null,null,null,null,null,null,null,null,null,null,{"$f":"IF(Committenti!D643<>\"\",CONCATENATE(Committenti!B643,\"  \",Committenti!C643,\"  CF: \",Committenti!D643),\"\")","v":""}]
["",null,null,null,null,null,null,null,null,null,null,null,null,null,null,null,{"$f":"IF(Committenti!D644<>\"\",CONCATENATE(Committenti!B644,\"  \",Committenti!C644,\"  CF: \",Committenti!D644),\"\")","v":""}]
[{"$f":"IF(B645<>\"\", IF(A644<>\"\",A644+1,\"\"),\"\")","v":""},null,null,null,null,null,null,null,null,null,null,null,null,null,null,null,{"$f":"IF(Committenti!D645<>\"\",CONCATENATE(Committenti!B645,\"  \",Committenti!C645,\"  CF: \",Committenti!D645),\"\")","v":""}]
["",null,null,null,null,null,null,null,null,null,null,null,null,null,null,null,{"$f":"IF(Committenti!D646<>\"\",CONCATENATE(Committenti!B646,\"  \",Committenti!C646,\"  CF: \",Committenti!D646),\"\")","v":""}]
["",null,null,null,null,null,null,null,null,null,null,null,null,null,null,null,{"$f":"IF(Committenti!D647<>\"\",CONCATENATE(Committenti!B647,\"  \",Committenti!C647,\"  CF: \",Committenti!D647),\"\")","v":""}]
["",null,null,null,null,null,null,null,null,null,null,null,null,null,null,null,{"$f":"IF(Committenti!D648<>\"\",CONCATENATE(Committenti!B648,\"  \",Committenti!C648,\"  CF: \",Committenti!D648),\"\")","v":""}]
["",null,null,null,null,null,null,null,null,null,null,null,null,null,null,null,{"$f":"IF(Committenti!D649<>\"\",CONCATENATE(Committenti!B649,\"  \",Committenti!C649,\"  CF: \",Committenti!D649),\"\")","v":""}]
["",null,null,null,null,null,null,null,null,null,null,null,null,null,null,null,{"$f":"IF(Committenti!D650<>\"\",CONCATENATE(Committenti!B650,\"  \",Committenti!C650,\"  CF: \",Committenti!D650),\"\")","v":""}]
["",null,null,null,null,null,null,null,null,null,null,null,null,null,null,null,{"$f":"IF(Committenti!D651<>\"\",CONCATENATE(Committenti!B651,\"  \",Committenti!C651,\"  CF: \",Committenti!D651),\"\")","v":""}]
["",null,null,null,null,null,null,null,null,null,null,null,null,null,null,null,{"$f":"IF(Committenti!D652<>\"\",CONCATENATE(Committenti!B652,\"  \",Committenti!C652,\"  CF: \",Committenti!D652),\"\")","v":""}]
["",null,null,null,null,null,null,null,null,null,null,null,null,null,null,null,{"$f":"IF(Committenti!D653<>\"\",CONCATENATE(Committenti!B653,\"  \",Committenti!C653,\"  CF: \",Committenti!D653),\"\")","v":""}]
["",null,null,null,null,null,null,null,null,null,null,null,null,null,null,null,{"$f":"IF(Committenti!D654<>\"\",CONCATENATE(Committenti!B654,\"  \",Committenti!C654,\"  CF: \",Committenti!D654),\"\")","v":""}]
["",null,null,null,null,null,null,null,null,null,null,null,null,null,null,null,{"$f":"IF(Committenti!D655<>\"\",CONCATENATE(Committenti!B655,\"  \",Committenti!C655,\"  CF: \",Committenti!D655),\"\")","v":""}]
["",null,null,null,null,null,null,null,null,null,null,null,null,null,null,null,{"$f":"IF(Committenti!D656<>\"\",CONCATENATE(Committenti!B656,\"  \",Committenti!C656,\"  CF: \",Committenti!D656),\"\")","v":""}]
["",null,null,null,null,null,null,null,null,null,null,null,null,null,null,null,{"$f":"IF(Committenti!D657<>\"\",CONCATENATE(Committenti!B657,\"  \",Committenti!C657,\"  CF: \",Committenti!D657),\"\")","v":""}]
["",null,null,null,null,null,null,null,null,null,null,null,null,null,null,null,{"$f":"IF(Committenti!D658<>\"\",CONCATENATE(Committenti!B658,\"  \",Committenti!C658,\"  CF: \",Committenti!D658),\"\")","v":""}]
["",null,null,null,null,null,null,null,null,null,null,null,null,null,null,null,{"$f":"IF(Committenti!D659<>\"\",CONCATENATE(Committenti!B659,\"  \",Committenti!C659,\"  CF: \",Committenti!D659),\"\")","v":""}]
["",null,null,null,null,null,null,null,null,null,null,null,null,null,null,null,{"$f":"IF(Committenti!D660<>\"\",CONCATENATE(Committenti!B660,\"  \",Committenti!C660,\"  CF: \",Committenti!D660),\"\")","v":""}]
["",null,null,null,null,null,null,null,null,null,null,null,null,null,null,null,{"$f":"IF(Committenti!D661<>\"\",CONCATENATE(Committenti!B661,\"  \",Committenti!C661,\"  CF: \",Committenti!D661),\"\")","v":""}]
["",null,null,null,null,null,null,null,null,null,null,null,null,null,null,null,{"$f":"IF(Committenti!D662<>\"\",CONCATENATE(Committenti!B662,\"  \",Committenti!C662,\"  CF: \",Committenti!D662),\"\")","v":""}]
["",null,null,null,null,null,null,null,null,null,null,null,null,null,null,null,{"$f":"IF(Committenti!D663<>\"\",CONCATENATE(Committenti!B663,\"  \",Committenti!C663,\"  CF: \",Committenti!D663),\"\")","v":""}]
["",null,null,null,null,null,null,null,null,null,null,null,null,null,null,null,{"$f":"IF(Committenti!D664<>\"\",CONCATENATE(Committenti!B664,\"  \",Committenti!C664,\"  CF: \",Committenti!D664),\"\")","v":""}]
["",null,null,null,null,null,null,null,null,null,null,null,null,null,null,null,{"$f":"IF(Committenti!D665<>\"\",CONCATENATE(Committenti!B665,\"  \",Committenti!C665,\"  CF: \",Committenti!D665),\"\")","v":""}]
["",null,null,null,null,null,null,null,null,null,null,null,null,null,null,null,{"$f":"IF(Committenti!D666<>\"\",CONCATENATE(Committenti!B666,\"  \",Committenti!C666,\"  CF: \",Committenti!D666),\"\")","v":""}]
["",null,null,null,null,null,null,null,null,null,null,null,null,null,null,null,{"$f":"IF(Committenti!D667<>\"\",CONCATENATE(Committenti!B667,\"  \",Committenti!C667,\"  CF: \",Committenti!D667),\"\")","v":""}]
["",null,null,null,null,null,null,null,null,null,null,null,null,null,null,null,{"$f":"IF(Committenti!D668<>\"\",CONCATENATE(Committenti!B668,\"  \",Committenti!C668,\"  CF: \",Committenti!D668),\"\")","v":""}]
["",null,null,null,null,null,null,null,null,null,null,null,null,null,null,null,{"$f":"IF(Committenti!D669<>\"\",CONCATENATE(Committenti!B669,\"  \",Committenti!C669,\"  CF: \",Committenti!D669),\"\")","v":""}]
["",null,null,null,null,null,null,null,null,null,null,null,null,null,null,null,{"$f":"IF(Committenti!D670<>\"\",CONCATENATE(Committenti!B670,\"  \",Committenti!C670,\"  CF: \",Committenti!D670),\"\")","v":""}]
["",null,null,null,null,null,null,null,null,null,null,null,null,null,null,null,{"$f":"IF(Committenti!D671<>\"\",CONCATENATE(Committenti!B671,\"  \",Committenti!C671,\"  CF: \",Committenti!D671),\"\")","v":""}]
["",null,null,null,null,null,null,null,null,null,null,null,null,null,null,null,{"$f":"IF(Committenti!D672<>\"\",CONCATENATE(Committenti!B672,\"  \",Committenti!C672,\"  CF: \",Committenti!D672),\"\")","v":""}]
["",null,null,null,null,null,null,null,null,null,null,null,null,null,null,null,{"$f":"IF(Committenti!D673<>\"\",CONCATENATE(Committenti!B673,\"  \",Committenti!C673,\"  CF: \",Committenti!D673),\"\")","v":""}]
["",null,null,null,null,null,null,null,null,null,null,null,null,null,null,null,{"$f":"IF(Committenti!D674<>\"\",CONCATENATE(Committenti!B674,\"  \",Committenti!C674,\"  CF: \",Committenti!D674),\"\")","v":""}]
["",null,null,null,null,null,null,null,null,null,null,null,null,null,null,null,{"$f":"IF(Committenti!D675<>\"\",CONCATENATE(Committenti!B675,\"  \",Committenti!C675,\"  CF: \",Committenti!D675),\"\")","v":""}]
["",null,null,null,null,null,null,null,null,null,null,null,null,null,null,null,{"$f":"IF(Committenti!D676<>\"\",CONCATENATE(Committenti!B676,\"  \",Committenti!C676,\"  CF: \",Committenti!D676),\"\")","v":""}]
["",null,null,null,null,null,null,null,null,null,null,null,null,null,null,null,{"$f":"IF(Committenti!D677<>\"\",CONCATENATE(Committenti!B677,\"  \",Committenti!C677,\"  CF: \",Committenti!D677),\"\")","v":""}]
["",null,null,null,null,null,null,null,null,null,null,null,null,null,null,null,{"$f":"IF(Committenti!D678<>\"\",CONCATENATE(Committenti!B678,\"  \",Committenti!C678,\"  CF: \",Committenti!D678),\"\")","v":""}]
["",null,null,null,null,null,null,null,null,null,null,null,null,null,null,null,{"$f":"IF(Committenti!D679<>\"\",CONCATENATE(Committenti!B679,\"  \",Committenti!C679,\"  CF: \",Committenti!D679),\"\")","v":""}]
["",null,null,null,null,null,null,null,null,null,null,null,null,null,null,null,{"$f":"IF(Committenti!D680<>\"\",CONCATENATE(Committenti!B680,\"  \",Committenti!C680,\"  CF: \",Committenti!D680),\"\")","v":""}]
["",null,null,null,null,null,null,null,null,null,null,null,null,null,null,null,{"$f":"IF(Committenti!D681<>\"\",CONCATENATE(Committenti!B681,\"  \",Committenti!C681,\"  CF: \",Committenti!D681),\"\")","v":""}]
["",null,null,null,null,null,null,null,null,null,null,null,null,null,null,null,{"$f":"IF(Committenti!D682<>\"\",CONCATENATE(Committenti!B682,\"  \",Committenti!C682,\"  CF: \",Committenti!D682),\"\")","v":""}]
["",null,null,null,null,null,null,null,null,null,null,null,null,null,null,null,{"$f":"IF(Committenti!D683<>\"\",CONCATENATE(Committenti!B683,\"  \",Committenti!C683,\"  CF: \",Committenti!D683),\"\")","v":""}]
["",null,null,null,null,null,null,null,null,null,null,null,null,null,null,null,{"$f":"IF(Committenti!D684<>\"\",CONCATENATE(Committenti!B684,\"  \",Committenti!C684,\"  CF: \",Committenti!D684),\"\")","v":""}]
["",null,null,null,null,null,null,null,null,null,null,null,null,null,null,null,{"$f":"IF(Committenti!D685<>\"\",CONCATENATE(Committenti!B685,\"  \",Committenti!C685,\"  CF: \",Committenti!D685),\"\")","v":""}]
["",null,null,null,null,null,null,null,null,null,null,null,null,null,null,null,{"$f":"IF(Committenti!D686<>\"\",CONCATENATE(Committenti!B686,\"  \",Committenti!C686,\"  CF: \",Committenti!D686),\"\")","v":""}]
["",null,null,null,null,null,null,null,null,null,null,null,null,null,null,null,{"$f":"IF(Committenti!D687<>\"\",CONCATENATE(Committenti!B687,\"  \",Committenti!C687,\"  CF: \",Committenti!D687),\"\")","v":""}]
["",null,null,null,null,null,null,null,null,null,null,null,null,null,null,null,{"$f":"IF(Committenti!D688<>\"\",CONCATENATE(Committenti!B688,\"  \",Committenti!C688,\"  CF: \",Committenti!D688),\"\")","v":""}]
["",null,null,null,null,null,null,null,null,null,null,null,null,null,null,null,{"$f":"IF(Committenti!D689<>\"\",CONCATENATE(Committenti!B689,\"  \",Committenti!C689,\"  CF: \",Committenti!D689),\"\")","v":""}]
["",null,null,null,null,null,null,null,null,null,null,null,null,null,null,null,{"$f":"IF(Committenti!D690<>\"\",CONCATENATE(Committenti!B690,\"  \",Committenti!C690,\"  CF: \",Committenti!D690),\"\")","v":""}]
["",null,null,null,null,null,null,null,null,null,null,null,null,null,null,null,{"$f":"IF(Committenti!D691<>\"\",CONCATENATE(Committenti!B691,\"  \",Committenti!C691,\"  CF: \",Committenti!D691),\"\")","v":""}]
["",null,null,null,null,null,null,null,null,null,null,null,null,null,null,null,{"$f":"IF(Committenti!D692<>\"\",CONCATENATE(Committenti!B692,\"  \",Committenti!C692,\"  CF: \",Committenti!D692),\"\")","v":""}]
["",null,null,null,null,null,null,null,null,null,null,null,null,null,null,null,{"$f":"IF(Committenti!D693<>\"\",CONCATENATE(Committenti!B693,\"  \",Committenti!C693,\"  CF: \",Committenti!D693),\"\")","v":""}]
["",null,null,null,null,null,null,null,null,null,null,null,null,null,null,null,{"$f":"IF(Committenti!D694<>\"\",CONCATENATE(Committenti!B694,\"  \",Committenti!C694,\"  CF: \",Committenti!D694),\"\")","v":""}]
["",null,null,null,null,null,null,null,null,null,null,null,null,null,null,null,{"$f":"IF(Committenti!D695<>\"\",CONCATENATE(Committenti!B695,\"  \",Committenti!C695,\"  CF: \",Committenti!D695),\"\")","v":""}]
["",null,null,null,null,null,null,null,null,null,null,null,null,null,null,null,{"$f":"IF(Committenti!D696<>\"\",CONCATENATE(Committenti!B696,\"  \",Committenti!C696,\"  CF: \",Committenti!D696),\"\")","v":""}]
["",null,null,null,null,null,null,null,null,null,null,null,null,null,null,null,{"$f":"IF(Committenti!D697<>\"\",CONCATENATE(Committenti!B697,\"  \",Committenti!C697,\"  CF: \",Committenti!D697),\"\")","v":""}]
["",null,null,null,null,null,null,null,null,null,null,null,null,null,null,null,{"$f":"IF(Committenti!D698<>\"\",CONCATENATE(Committenti!B698,\"  \",Committenti!C698,\"  CF: \",Committenti!D698),\"\")","v":""}]
["",null,null,null,null,null,null,null,null,null,null,null,null,null,null,null,{"$f":"IF(Committenti!D699<>\"\",CONCATENATE(Committenti!B699,\"  \",Committenti!C699,\"  CF: \",Committenti!D699),\"\")","v":""}]
["",null,null,null,null,null,null,null,null,null,null,null,null,null,null,null,{"$f":"IF(Committenti!D700<>\"\",CONCATENATE(Committenti!B700,\"  \",Committenti!C700,\"  CF: \",Committenti!D700),\"\")","v":""}]
["",null,null,null,null,null,null,null,null,null,null,null,null,null,null,null,{"$f":"IF(Committenti!D701<>\"\",CONCATENATE(Committenti!B701,\"  \",Committenti!C701,\"  CF: \",Committenti!D701),\"\")","v":""}]
["",null,null,null,null,null,null,null,null,null,null,null,null,null,null,null,{"$f":"IF(Committenti!D702<>\"\",CONCATENATE(Committenti!B702,\"  \",Committenti!C702,\"  CF: \",Committenti!D702),\"\")","v":""}]
["",null,null,null,null,null,null,null,null,null,null,null,null,null,null,null,{"$f":"IF(Committenti!D703<>\"\",CONCATENATE(Committenti!B703,\"  \",Committenti!C703,\"  CF: \",Committenti!D703),\"\")","v":""}]
["",null,null,null,null,null,null,null,null,null,null,null,null,null,null,null,{"$f":"IF(Committenti!D704<>\"\",CONCATENATE(Committenti!B704,\"  \",Committenti!C704,\"  CF: \",Committenti!D704),\"\")","v":""}]
["",null,null,null,null,null,null,null,null,null,null,null,null,null,null,null,{"$f":"IF(Committenti!D705<>\"\",CONCATENATE(Committenti!B705,\"  \",Committenti!C705,\"  CF: \",Committenti!D705),\"\")","v":""}]
["",null,null,null,null,null,null,null,null,null,null,null,null,null,null,null,{"$f":"IF(Committenti!D706<>\"\",CONCATENATE(Committenti!B706,\"  \",Committenti!C706,\"  CF: \",Committenti!D706),\"\")","v":""}]
["",null,null,null,null,null,null,null,null,null,null,null,null,null,null,null,{"$f":"IF(Committenti!D707<>\"\",CONCATENATE(Committenti!B707,\"  \",Committenti!C707,\"  CF: \",Committenti!D707),\"\")","v":""}]
["",null,null,null,null,null,null,null,null,null,null,null,null,null,null,null,{"$f":"IF(Committenti!D708<>\"\",CONCATENATE(Committenti!B708,\"  \",Committenti!C708,\"  CF: \",Committenti!D708),\"\")","v":""}]
[{"$f":"IF(B709<>\"\", IF(A708<>\"\",A708+1,\"\"),\"\")","v":""},null,null,null,null,null,null,null,null,null,null,null,null,null,null,null,{"$f":"IF(Committenti!D709<>\"\",CONCATENATE(Committenti!B709,\"  \",Committenti!C709,\"  CF: \",Committenti!D709),\"\")","v":""}]
["",null,null,null,null,null,null,null,null,null,null,null,null,null,null,null,{"$f":"IF(Committenti!D710<>\"\",CONCATENATE(Committenti!B710,\"  \",Committenti!C710,\"  CF: \",Committenti!D710),\"\")","v":""}]
["",null,null,null,null,null,null,null,null,null,null,null,null,null,null,null,{"$f":"IF(Committenti!D711<>\"\",CONCATENATE(Committenti!B711,\"  \",Committenti!C711,\"  CF: \",Committenti!D711),\"\")","v":""}]
["",null,null,null,null,null,null,null,null,null,null,null,null,null,null,null,{"$f":"IF(Committenti!D712<>\"\",CONCATENATE(Committenti!B712,\"  \",Committenti!C712,\"  CF: \",Committenti!D712),\"\")","v":""}]
["",null,null,null,null,null,null,null,null,null,null,null,null,null,null,null,{"$f":"IF(Committenti!D713<>\"\",CONCATENATE(Committenti!B713,\"  \",Committenti!C713,\"  CF: \",Committenti!D713),\"\")","v":""}]
["",null,null,null,null,null,null,null,null,null,null,null,null,null,null,null,{"$f":"IF(Committenti!D714<>\"\",CONCATENATE(Committenti!B714,\"  \",Committenti!C714,\"  CF: \",Committenti!D714),\"\")","v":""}]
["",null,null,null,null,null,null,null,null,null,null,null,null,null,null,null,{"$f":"IF(Committenti!D715<>\"\",CONCATENATE(Committenti!B715,\"  \",Committenti!C715,\"  CF: \",Committenti!D715),\"\")","v":""}]
["",null,null,null,null,null,null,null,null,null,null,null,null,null,null,null,{"$f":"IF(Committenti!D716<>\"\",CONCATENATE(Committenti!B716,\"  \",Committenti!C716,\"  CF: \",Committenti!D716),\"\")","v":""}]
["",null,null,null,null,null,null,null,null,null,null,null,null,null,null,null,{"$f":"IF(Committenti!D717<>\"\",CONCATENATE(Committenti!B717,\"  \",Committenti!C717,\"  CF: \",Committenti!D717),\"\")","v":""}]
["",null,null,null,null,null,null,null,null,null,null,null,null,null,null,null,{"$f":"IF(Committenti!D718<>\"\",CONCATENATE(Committenti!B718,\"  \",Committenti!C718,\"  CF: \",Committenti!D718),\"\")","v":""}]
["",null,null,null,null,null,null,null,null,null,null,null,null,null,null,null,{"$f":"IF(Committenti!D719<>\"\",CONCATENATE(Committenti!B719,\"  \",Committenti!C719,\"  CF: \",Committenti!D719),\"\")","v":""}]
["",null,null,null,null,null,null,null,null,null,null,null,null,null,null,null,{"$f":"IF(Committenti!D720<>\"\",CONCATENATE(Committenti!B720,\"  \",Committenti!C720,\"  CF: \",Committenti!D720),\"\")","v":""}]
["",null,null,null,null,null,null,null,null,null,null,null,null,null,null,null,{"$f":"IF(Committenti!D721<>\"\",CONCATENATE(Committenti!B721,\"  \",Committenti!C721,\"  CF: \",Committenti!D721),\"\")","v":""}]
["",null,null,null,null,null,null,null,null,null,null,null,null,null,null,null,{"$f":"IF(Committenti!D722<>\"\",CONCATENATE(Committenti!B722,\"  \",Committenti!C722,\"  CF: \",Committenti!D722),\"\")","v":""}]
["",null,null,null,null,null,null,null,null,null,null,null,null,null,null,null,{"$f":"IF(Committenti!D723<>\"\",CONCATENATE(Committenti!B723,\"  \",Committenti!C723,\"  CF: \",Committenti!D723),\"\")","v":""}]
["",null,null,null,null,null,null,null,null,null,null,null,null,null,null,null,{"$f":"IF(Committenti!D724<>\"\",CONCATENATE(Committenti!B724,\"  \",Committenti!C724,\"  CF: \",Committenti!D724),\"\")","v":""}]
["",null,null,null,null,null,null,null,null,null,null,null,null,null,null,null,{"$f":"IF(Committenti!D725<>\"\",CONCATENATE(Committenti!B725,\"  \",Committenti!C725,\"  CF: \",Committenti!D725),\"\")","v":""}]
["",null,null,null,null,null,null,null,null,null,null,null,null,null,null,null,{"$f":"IF(Committenti!D726<>\"\",CONCATENATE(Committenti!B726,\"  \",Committenti!C726,\"  CF: \",Committenti!D726),\"\")","v":""}]
["",null,null,null,null,null,null,null,null,null,null,null,null,null,null,null,{"$f":"IF(Committenti!D727<>\"\",CONCATENATE(Committenti!B727,\"  \",Committenti!C727,\"  CF: \",Committenti!D727),\"\")","v":""}]
["",null,null,null,null,null,null,null,null,null,null,null,null,null,null,null,{"$f":"IF(Committenti!D728<>\"\",CONCATENATE(Committenti!B728,\"  \",Committenti!C728,\"  CF: \",Committenti!D728),\"\")","v":""}]
["",null,null,null,null,null,null,null,null,null,null,null,null,null,null,null,{"$f":"IF(Committenti!D729<>\"\",CONCATENATE(Committenti!B729,\"  \",Committenti!C729,\"  CF: \",Committenti!D729),\"\")","v":""}]
["",null,null,null,null,null,null,null,null,null,null,null,null,null,null,null,{"$f":"IF(Committenti!D730<>\"\",CONCATENATE(Committenti!B730,\"  \",Committenti!C730,\"  CF: \",Committenti!D730),\"\")","v":""}]
["",null,null,null,null,null,null,null,null,null,null,null,null,null,null,null,{"$f":"IF(Committenti!D731<>\"\",CONCATENATE(Committenti!B731,\"  \",Committenti!C731,\"  CF: \",Committenti!D731),\"\")","v":""}]
["",null,null,null,null,null,null,null,null,null,null,null,null,null,null,null,{"$f":"IF(Committenti!D732<>\"\",CONCATENATE(Committenti!B732,\"  \",Committenti!C732,\"  CF: \",Committenti!D732),\"\")","v":""}]
["",null,null,null,null,null,null,null,null,null,null,null,null,null,null,null,{"$f":"IF(Committenti!D733<>\"\",CONCATENATE(Committenti!B733,\"  \",Committenti!C733,\"  CF: \",Committenti!D733),\"\")","v":""}]
["",null,null,null,null,null,null,null,null,null,null,null,null,null,null,null,{"$f":"IF(Committenti!D734<>\"\",CONCATENATE(Committenti!B734,\"  \",Committenti!C734,\"  CF: \",Committenti!D734),\"\")","v":""}]
["",null,null,null,null,null,null,null,null,null,null,null,null,null,null,null,{"$f":"IF(Committenti!D735<>\"\",CONCATENATE(Committenti!B735,\"  \",Committenti!C735,\"  CF: \",Committenti!D735),\"\")","v":""}]
["",null,null,null,null,null,null,null,null,null,null,null,null,null,null,null,{"$f":"IF(Committenti!D736<>\"\",CONCATENATE(Committenti!B736,\"  \",Committenti!C736,\"  CF: \",Committenti!D736),\"\")","v":""}]
["",null,null,null,null,null,null,null,null,null,null,null,null,null,null,null,{"$f":"IF(Committenti!D737<>\"\",CONCATENATE(Committenti!B737,\"  \",Committenti!C737,\"  CF: \",Committenti!D737),\"\")","v":""}]
["",null,null,null,null,null,null,null,null,null,null,null,null,null,null,null,{"$f":"IF(Committenti!D738<>\"\",CONCATENATE(Committenti!B738,\"  \",Committenti!C738,\"  CF: \",Committenti!D738),\"\")","v":""}]
["",null,null,null,null,null,null,null,null,null,null,null,null,null,null,null,{"$f":"IF(Committenti!D739<>\"\",CONCATENATE(Committenti!B739,\"  \",Committenti!C739,\"  CF: \",Committenti!D739),\"\")","v":""}]
["",null,null,null,null,null,null,null,null,null,null,null,null,null,null,null,{"$f":"IF(Committenti!D740<>\"\",CONCATENATE(Committenti!B740,\"  \",Committenti!C740,\"  CF: \",Committenti!D740),\"\")","v":""}]
["",null,null,null,null,null,null,null,null,null,null,null,null,null,null,null,{"$f":"IF(Committenti!D741<>\"\",CONCATENATE(Committenti!B741,\"  \",Committenti!C741,\"  CF: \",Committenti!D741),\"\")","v":""}]
["",null,null,null,null,null,null,null,null,null,null,null,null,null,null,null,{"$f":"IF(Committenti!D742<>\"\",CONCATENATE(Committenti!B742,\"  \",Committenti!C742,\"  CF: \",Committenti!D742),\"\")","v":""}]
["",null,null,null,null,null,null,null,null,null,null,null,null,null,null,null,{"$f":"IF(Committenti!D743<>\"\",CONCATENATE(Committenti!B743,\"  \",Committenti!C743,\"  CF: \",Committenti!D743),\"\")","v":""}]
["",null,null,null,null,null,null,null,null,null,null,null,null,null,null,null,{"$f":"IF(Committenti!D744<>\"\",CONCATENATE(Committenti!B744,\"  \",Committenti!C744,\"  CF: \",Committenti!D744),\"\")","v":""}]
["",null,null,null,null,null,null,null,null,null,null,null,null,null,null,null,{"$f":"IF(Committenti!D745<>\"\",CONCATENATE(Committenti!B745,\"  \",Committenti!C745,\"  CF: \",Committenti!D745),\"\")","v":""}]
["",null,null,null,null,null,null,null,null,null,null,null,null,null,null,null,{"$f":"IF(Committenti!D746<>\"\",CONCATENATE(Committenti!B746,\"  \",Committenti!C746,\"  CF: \",Committenti!D746),\"\")","v":""}]
["",null,null,null,null,null,null,null,null,null,null,null,null,null,null,null,{"$f":"IF(Committenti!D747<>\"\",CONCATENATE(Committenti!B747,\"  \",Committenti!C747,\"  CF: \",Committenti!D747),\"\")","v":""}]
["",null,null,null,null,null,null,null,null,null,null,null,null,null,null,null,{"$f":"IF(Committenti!D748<>\"\",CONCATENATE(Committenti!B748,\"  \",Committenti!C748,\"  CF: \",Committenti!D748),\"\")","v":""}]
["",null,null,null,null,null,null,null,null,null,null,null,null,null,null,null,{"$f":"IF(Committenti!D749<>\"\",CONCATENATE(Committenti!B749,\"  \",Committenti!C749,\"  CF: \",Committenti!D749),\"\")","v":""}]
["",null,null,null,null,null,null,null,null,null,null,null,null,null,null,null,{"$f":"IF(Committenti!D750<>\"\",CONCATENATE(Committenti!B750,\"  \",Committenti!C750,\"  CF: \",Committenti!D750),\"\")","v":""}]
["",null,null,null,null,null,null,null,null,null,null,null,null,null,null,null,{"$f":"IF(Committenti!D751<>\"\",CONCATENATE(Committenti!B751,\"  \",Committenti!C751,\"  CF: \",Committenti!D751),\"\")","v":""}]
["",null,null,null,null,null,null,null,null,null,null,null,null,null,null,null,{"$f":"IF(Committenti!D752<>\"\",CONCATENATE(Committenti!B752,\"  \",Committenti!C752,\"  CF: \",Committenti!D752),\"\")","v":""}]
["",null,null,null,null,null,null,null,null,null,null,null,null,null,null,null,{"$f":"IF(Committenti!D753<>\"\",CONCATENATE(Committenti!B753,\"  \",Committenti!C753,\"  CF: \",Committenti!D753),\"\")","v":""}]
["",null,null,null,null,null,null,null,null,null,null,null,null,null,null,null,{"$f":"IF(Committenti!D754<>\"\",CONCATENATE(Committenti!B754,\"  \",Committenti!C754,\"  CF: \",Committenti!D754),\"\")","v":""}]
["",null,null,null,null,null,null,null,null,null,null,null,null,null,null,null,{"$f":"IF(Committenti!D755<>\"\",CONCATENATE(Committenti!B755,\"  \",Committenti!C755,\"  CF: \",Committenti!D755),\"\")","v":""}]
["",null,null,null,null,null,null,null,null,null,null,null,null,null,null,null,{"$f":"IF(Committenti!D756<>\"\",CONCATENATE(Committenti!B756,\"  \",Committenti!C756,\"  CF: \",Committenti!D756),\"\")","v":""}]
["",null,null,null,null,null,null,null,null,null,null,null,null,null,null,null,{"$f":"IF(Committenti!D757<>\"\",CONCATENATE(Committenti!B757,\"  \",Committenti!C757,\"  CF: \",Committenti!D757),\"\")","v":""}]
["",null,null,null,null,null,null,null,null,null,null,null,null,null,null,null,{"$f":"IF(Committenti!D758<>\"\",CONCATENATE(Committenti!B758,\"  \",Committenti!C758,\"  CF: \",Committenti!D758),\"\")","v":""}]
["",null,null,null,null,null,null,null,null,null,null,null,null,null,null,null,{"$f":"IF(Committenti!D759<>\"\",CONCATENATE(Committenti!B759,\"  \",Committenti!C759,\"  CF: \",Committenti!D759),\"\")","v":""}]
["",null,null,null,null,null,null,null,null,null,null,null,null,null,null,null,{"$f":"IF(Committenti!D760<>\"\",CONCATENATE(Committenti!B760,\"  \",Committenti!C760,\"  CF: \",Committenti!D760),\"\")","v":""}]
["",null,null,null,null,null,null,null,null,null,null,null,null,null,null,null,{"$f":"IF(Committenti!D761<>\"\",CONCATENATE(Committenti!B761,\"  \",Committenti!C761,\"  CF: \",Committenti!D761),\"\")","v":""}]
["",null,null,null,null,null,null,null,null,null,null,null,null,null,null,null,{"$f":"IF(Committenti!D762<>\"\",CONCATENATE(Committenti!B762,\"  \",Committenti!C762,\"  CF: \",Committenti!D762),\"\")","v":""}]
["",null,null,null,null,null,null,null,null,null,null,null,null,null,null,null,{"$f":"IF(Committenti!D763<>\"\",CONCATENATE(Committenti!B763,\"  \",Committenti!C763,\"  CF: \",Committenti!D763),\"\")","v":""}]
["",null,null,null,null,null,null,null,null,null,null,null,null,null,null,null,{"$f":"IF(Committenti!D764<>\"\",CONCATENATE(Committenti!B764,\"  \",Committenti!C764,\"  CF: \",Committenti!D764),\"\")","v":""}]
["",null,null,null,null,null,null,null,null,null,null,null,null,null,null,null,{"$f":"IF(Committenti!D765<>\"\",CONCATENATE(Committenti!B765,\"  \",Committenti!C765,\"  CF: \",Committenti!D765),\"\")","v":""}]
["",null,null,null,null,null,null,null,null,null,null,null,null,null,null,null,{"$f":"IF(Committenti!D766<>\"\",CONCATENATE(Committenti!B766,\"  \",Committenti!C766,\"  CF: \",Committenti!D766),\"\")","v":""}]
["",null,null,null,null,null,null,null,null,null,null,null,null,null,null,null,{"$f":"IF(Committenti!D767<>\"\",CONCATENATE(Committenti!B767,\"  \",Committenti!C767,\"  CF: \",Committenti!D767),\"\")","v":""}]
["",null,null,null,null,null,null,null,null,null,null,null,null,null,null,null,{"$f":"IF(Committenti!D768<>\"\",CONCATENATE(Committenti!B768,\"  \",Committenti!C768,\"  CF: \",Committenti!D768),\"\")","v":""}]
["",null,null,null,null,null,null,null,null,null,null,null,null,null,null,null,{"$f":"IF(Committenti!D769<>\"\",CONCATENATE(Committenti!B769,\"  \",Committenti!C769,\"  CF: \",Committenti!D769),\"\")","v":""}]
["",null,null,null,null,null,null,null,null,null,null,null,null,null,null,null,{"$f":"IF(Committenti!D770<>\"\",CONCATENATE(Committenti!B770,\"  \",Committenti!C770,\"  CF: \",Committenti!D770),\"\")","v":""}]
["",null,null,null,null,null,null,null,null,null,null,null,null,null,null,null,{"$f":"IF(Committenti!D771<>\"\",CONCATENATE(Committenti!B771,\"  \",Committenti!C771,\"  CF: \",Committenti!D771),\"\")","v":""}]
["",null,null,null,null,null,null,null,null,null,null,null,null,null,null,null,{"$f":"IF(Committenti!D772<>\"\",CONCATENATE(Committenti!B772,\"  \",Committenti!C772,\"  CF: \",Committenti!D772),\"\")","v":""}]
[{"$f":"IF(B773<>\"\", IF(A772<>\"\",A772+1,\"\"),\"\")","v":""},null,null,null,null,null,null,null,null,null,null,null,null,null,null,null,{"$f":"IF(Committenti!D773<>\"\",CONCATENATE(Committenti!B773,\"  \",Committenti!C773,\"  CF: \",Committenti!D773),\"\")","v":""}]
["",null,null,null,null,null,null,null,null,null,null,null,null,null,null,null,{"$f":"IF(Committenti!D774<>\"\",CONCATENATE(Committenti!B774,\"  \",Committenti!C774,\"  CF: \",Committenti!D774),\"\")","v":""}]
["",null,null,null,null,null,null,null,null,null,null,null,null,null,null,null,{"$f":"IF(Committenti!D775<>\"\",CONCATENATE(Committenti!B775,\"  \",Committenti!C775,\"  CF: \",Committenti!D775),\"\")","v":""}]
["",null,null,null,null,null,null,null,null,null,null,null,null,null,null,null,{"$f":"IF(Committenti!D776<>\"\",CONCATENATE(Committenti!B776,\"  \",Committenti!C776,\"  CF: \",Committenti!D776),\"\")","v":""}]
["",null,null,null,null,null,null,null,null,null,null,null,null,null,null,null,{"$f":"IF(Committenti!D777<>\"\",CONCATENATE(Committenti!B777,\"  \",Committenti!C777,\"  CF: \",Committenti!D777),\"\")","v":""}]
["",null,null,null,null,null,null,null,null,null,null,null,null,null,null,null,{"$f":"IF(Committenti!D778<>\"\",CONCATENATE(Committenti!B778,\"  \",Committenti!C778,\"  CF: \",Committenti!D778),\"\")","v":""}]
["",null,null,null,null,null,null,null,null,null,null,null,null,null,null,null,{"$f":"IF(Committenti!D779<>\"\",CONCATENATE(Committenti!B779,\"  \",Committenti!C779,\"  CF: \",Committenti!D779),\"\")","v":""}]
["",null,null,null,null,null,null,null,null,null,null,null,null,null,null,null,{"$f":"IF(Committenti!D780<>\"\",CONCATENATE(Committenti!B780,\"  \",Committenti!C780,\"  CF: \",Committenti!D780),\"\")","v":""}]
["",null,null,null,null,null,null,null,null,null,null,null,null,null,null,null,{"$f":"IF(Committenti!D781<>\"\",CONCATENATE(Committenti!B781,\"  \",Committenti!C781,\"  CF: \",Committenti!D781),\"\")","v":""}]
["",null,null,null,null,null,null,null,null,null,null,null,null,null,null,null,{"$f":"IF(Committenti!D782<>\"\",CONCATENATE(Committenti!B782,\"  \",Committenti!C782,\"  CF: \",Committenti!D782),\"\")","v":""}]
["",null,null,null,null,null,null,null,null,null,null,null,null,null,null,null,{"$f":"IF(Committenti!D783<>\"\",CONCATENATE(Committenti!B783,\"  \",Committenti!C783,\"  CF: \",Committenti!D783),\"\")","v":""}]
["",null,null,null,null,null,null,null,null,null,null,null,null,null,null,null,{"$f":"IF(Committenti!D784<>\"\",CONCATENATE(Committenti!B784,\"  \",Committenti!C784,\"  CF: \",Committenti!D784),\"\")","v":""}]
["",null,null,null,null,null,null,null,null,null,null,null,null,null,null,null,{"$f":"IF(Committenti!D785<>\"\",CONCATENATE(Committenti!B785,\"  \",Committenti!C785,\"  CF: \",Committenti!D785),\"\")","v":""}]
["",null,null,null,null,null,null,null,null,null,null,null,null,null,null,null,{"$f":"IF(Committenti!D786<>\"\",CONCATENATE(Committenti!B786,\"  \",Committenti!C786,\"  CF: \",Committenti!D786),\"\")","v":""}]
["",null,null,null,null,null,null,null,null,null,null,null,null,null,null,null,{"$f":"IF(Committenti!D787<>\"\",CONCATENATE(Committenti!B787,\"  \",Committenti!C787,\"  CF: \",Committenti!D787),\"\")","v":""}]
["",null,null,null,null,null,null,null,null,null,null,null,null,null,null,null,{"$f":"IF(Committenti!D788<>\"\",CONCATENATE(Committenti!B788,\"  \",Committenti!C788,\"  CF: \",Committenti!D788),\"\")","v":""}]
["",null,null,null,null,null,null,null,null,null,null,null,null,null,null,null,{"$f":"IF(Committenti!D789<>\"\",CONCATENATE(Committenti!B789,\"  \",Committenti!C789,\"  CF: \",Committenti!D789),\"\")","v":""}]
["",null,null,null,null,null,null,null,null,null,null,null,null,null,null,null,{"$f":"IF(Committenti!D790<>\"\",CONCATENATE(Committenti!B790,\"  \",Committenti!C790,\"  CF: \",Committenti!D790),\"\")","v":""}]
["",null,null,null,null,null,null,null,null,null,null,null,null,null,null,null,{"$f":"IF(Committenti!D791<>\"\",CONCATENATE(Committenti!B791,\"  \",Committenti!C791,\"  CF: \",Committenti!D791),\"\")","v":""}]
["",null,null,null,null,null,null,null,null,null,null,null,null,null,null,null,{"$f":"IF(Committenti!D792<>\"\",CONCATENATE(Committenti!B792,\"  \",Committenti!C792,\"  CF: \",Committenti!D792),\"\")","v":""}]
["",null,null,null,null,null,null,null,null,null,null,null,null,null,null,null,{"$f":"IF(Committenti!D793<>\"\",CONCATENATE(Committenti!B793,\"  \",Committenti!C793,\"  CF: \",Committenti!D793),\"\")","v":""}]
["",null,null,null,null,null,null,null,null,null,null,null,null,null,null,null,{"$f":"IF(Committenti!D794<>\"\",CONCATENATE(Committenti!B794,\"  \",Committenti!C794,\"  CF: \",Committenti!D794),\"\")","v":""}]
["",null,null,null,null,null,null,null,null,null,null,null,null,null,null,null,{"$f":"IF(Committenti!D795<>\"\",CONCATENATE(Committenti!B795,\"  \",Committenti!C795,\"  CF: \",Committenti!D795),\"\")","v":""}]
["",null,null,null,null,null,null,null,null,null,null,null,null,null,null,null,{"$f":"IF(Committenti!D796<>\"\",CONCATENATE(Committenti!B796,\"  \",Committenti!C796,\"  CF: \",Committenti!D796),\"\")","v":""}]
["",null,null,null,null,null,null,null,null,null,null,null,null,null,null,null,{"$f":"IF(Committenti!D797<>\"\",CONCATENATE(Committenti!B797,\"  \",Committenti!C797,\"  CF: \",Committenti!D797),\"\")","v":""}]
["",null,null,null,null,null,null,null,null,null,null,null,null,null,null,null,{"$f":"IF(Committenti!D798<>\"\",CONCATENATE(Committenti!B798,\"  \",Committenti!C798,\"  CF: \",Committenti!D798),\"\")","v":""}]
["",null,null,null,null,null,null,null,null,null,null,null,null,null,null,null,{"$f":"IF(Committenti!D799<>\"\",CONCATENATE(Committenti!B799,\"  \",Committenti!C799,\"  CF: \",Committenti!D799),\"\")","v":""}]
["",null,null,null,null,null,null,null,null,null,null,null,null,null,null,null,{"$f":"IF(Committenti!D800<>\"\",CONCATENATE(Committenti!B800,\"  \",Committenti!C800,\"  CF: \",Committenti!D800),\"\")","v":""}]
["",null,null,null,null,null,null,null,null,null,null,null,null,null,null,null,{"$f":"IF(Committenti!D801<>\"\",CONCATENATE(Committenti!B801,\"  \",Committenti!C801,\"  CF: \",Committenti!D801),\"\")","v":""}]
["",null,null,null,null,null,null,null,null,null,null,null,null,null,null,null,{"$f":"IF(Committenti!D802<>\"\",CONCATENATE(Committenti!B802,\"  \",Committenti!C802,\"  CF: \",Committenti!D802),\"\")","v":""}]
["",null,null,null,null,null,null,null,null,null,null,null,null,null,null,null,{"$f":"IF(Committenti!D803<>\"\",CONCATENATE(Committenti!B803,\"  \",Committenti!C803,\"  CF: \",Committenti!D803),\"\")","v":""}]
["",null,null,null,null,null,null,null,null,null,null,null,null,null,null,null,{"$f":"IF(Committenti!D804<>\"\",CONCATENATE(Committenti!B804,\"  \",Committenti!C804,\"  CF: \",Committenti!D804),\"\")","v":""}]
["",null,null,null,null,null,null,null,null,null,null,null,null,null,null,null,{"$f":"IF(Committenti!D805<>\"\",CONCATENATE(Committenti!B805,\"  \",Committenti!C805,\"  CF: \",Committenti!D805),\"\")","v":""}]
["",null,null,null,null,null,null,null,null,null,null,null,null,null,null,null,{"$f":"IF(Committenti!D806<>\"\",CONCATENATE(Committenti!B806,\"  \",Committenti!C806,\"  CF: \",Committenti!D806),\"\")","v":""}]
["",null,null,null,null,null,null,null,null,null,null,null,null,null,null,null,{"$f":"IF(Committenti!D807<>\"\",CONCATENATE(Committenti!B807,\"  \",Committenti!C807,\"  CF: \",Committenti!D807),\"\")","v":""}]
["",null,null,null,null,null,null,null,null,null,null,null,null,null,null,null,{"$f":"IF(Committenti!D808<>\"\",CONCATENATE(Committenti!B808,\"  \",Committenti!C808,\"  CF: \",Committenti!D808),\"\")","v":""}]
["",null,null,null,null,null,null,null,null,null,null,null,null,null,null,null,{"$f":"IF(Committenti!D809<>\"\",CONCATENATE(Committenti!B809,\"  \",Committenti!C809,\"  CF: \",Committenti!D809),\"\")","v":""}]
["",null,null,null,null,null,null,null,null,null,null,null,null,null,null,null,{"$f":"IF(Committenti!D810<>\"\",CONCATENATE(Committenti!B810,\"  \",Committenti!C810,\"  CF: \",Committenti!D810),\"\")","v":""}]
["",null,null,null,null,null,null,null,null,null,null,null,null,null,null,null,{"$f":"IF(Committenti!D811<>\"\",CONCATENATE(Committenti!B811,\"  \",Committenti!C811,\"  CF: \",Committenti!D811),\"\")","v":""}]
["",null,null,null,null,null,null,null,null,null,null,null,null,null,null,null,{"$f":"IF(Committenti!D812<>\"\",CONCATENATE(Committenti!B812,\"  \",Committenti!C812,\"  CF: \",Committenti!D812),\"\")","v":""}]
["",null,null,null,null,null,null,null,null,null,null,null,null,null,null,null,{"$f":"IF(Committenti!D813<>\"\",CONCATENATE(Committenti!B813,\"  \",Committenti!C813,\"  CF: \",Committenti!D813),\"\")","v":""}]
["",null,null,null,null,null,null,null,null,null,null,null,null,null,null,null,{"$f":"IF(Committenti!D814<>\"\",CONCATENATE(Committenti!B814,\"  \",Committenti!C814,\"  CF: \",Committenti!D814),\"\")","v":""}]
["",null,null,null,null,null,null,null,null,null,null,null,null,null,null,null,{"$f":"IF(Committenti!D815<>\"\",CONCATENATE(Committenti!B815,\"  \",Committenti!C815,\"  CF: \",Committenti!D815),\"\")","v":""}]
["",null,null,null,null,null,null,null,null,null,null,null,null,null,null,null,{"$f":"IF(Committenti!D816<>\"\",CONCATENATE(Committenti!B816,\"  \",Committenti!C816,\"  CF: \",Committenti!D816),\"\")","v":""}]
["",null,null,null,null,null,null,null,null,null,null,null,null,null,null,null,{"$f":"IF(Committenti!D817<>\"\",CONCATENATE(Committenti!B817,\"  \",Committenti!C817,\"  CF: \",Committenti!D817),\"\")","v":""}]
["",null,null,null,null,null,null,null,null,null,null,null,null,null,null,null,{"$f":"IF(Committenti!D818<>\"\",CONCATENATE(Committenti!B818,\"  \",Committenti!C818,\"  CF: \",Committenti!D818),\"\")","v":""}]
["",null,null,null,null,null,null,null,null,null,null,null,null,null,null,null,{"$f":"IF(Committenti!D819<>\"\",CONCATENATE(Committenti!B819,\"  \",Committenti!C819,\"  CF: \",Committenti!D819),\"\")","v":""}]
["",null,null,null,null,null,null,null,null,null,null,null,null,null,null,null,{"$f":"IF(Committenti!D820<>\"\",CONCATENATE(Committenti!B820,\"  \",Committenti!C820,\"  CF: \",Committenti!D820),\"\")","v":""}]
["",null,null,null,null,null,null,null,null,null,null,null,null,null,null,null,{"$f":"IF(Committenti!D821<>\"\",CONCATENATE(Committenti!B821,\"  \",Committenti!C821,\"  CF: \",Committenti!D821),\"\")","v":""}]
["",null,null,null,null,null,null,null,null,null,null,null,null,null,null,null,{"$f":"IF(Committenti!D822<>\"\",CONCATENATE(Committenti!B822,\"  \",Committenti!C822,\"  CF: \",Committenti!D822),\"\")","v":""}]
["",null,null,null,null,null,null,null,null,null,null,null,null,null,null,null,{"$f":"IF(Committenti!D823<>\"\",CONCATENATE(Committenti!B823,\"  \",Committenti!C823,\"  CF: \",Committenti!D823),\"\")","v":""}]
["",null,null,null,null,null,null,null,null,null,null,null,null,null,null,null,{"$f":"IF(Committenti!D824<>\"\",CONCATENATE(Committenti!B824,\"  \",Committenti!C824,\"  CF: \",Committenti!D824),\"\")","v":""}]
["",null,null,null,null,null,null,null,null,null,null,null,null,null,null,null,{"$f":"IF(Committenti!D825<>\"\",CONCATENATE(Committenti!B825,\"  \",Committenti!C825,\"  CF: \",Committenti!D825),\"\")","v":""}]
["",null,null,null,null,null,null,null,null,null,null,null,null,null,null,null,{"$f":"IF(Committenti!D826<>\"\",CONCATENATE(Committenti!B826,\"  \",Committenti!C826,\"  CF: \",Committenti!D826),\"\")","v":""}]
["",null,null,null,null,null,null,null,null,null,null,null,null,null,null,null,{"$f":"IF(Committenti!D827<>\"\",CONCATENATE(Committenti!B827,\"  \",Committenti!C827,\"  CF: \",Committenti!D827),\"\")","v":""}]
["",null,null,null,null,null,null,null,null,null,null,null,null,null,null,null,{"$f":"IF(Committenti!D828<>\"\",CONCATENATE(Committenti!B828,\"  \",Committenti!C828,\"  CF: \",Committenti!D828),\"\")","v":""}]
["",null,null,null,null,null,null,null,null,null,null,null,null,null,null,null,{"$f":"IF(Committenti!D829<>\"\",CONCATENATE(Committenti!B829,\"  \",Committenti!C829,\"  CF: \",Committenti!D829),\"\")","v":""}]
["",null,null,null,null,null,null,null,null,null,null,null,null,null,null,null,{"$f":"IF(Committenti!D830<>\"\",CONCATENATE(Committenti!B830,\"  \",Committenti!C830,\"  CF: \",Committenti!D830),\"\")","v":""}]
["",null,null,null,null,null,null,null,null,null,null,null,null,null,null,null,{"$f":"IF(Committenti!D831<>\"\",CONCATENATE(Committenti!B831,\"  \",Committenti!C831,\"  CF: \",Committenti!D831),\"\")","v":""}]
["",null,null,null,null,null,null,null,null,null,null,null,null,null,null,null,{"$f":"IF(Committenti!D832<>\"\",CONCATENATE(Committenti!B832,\"  \",Committenti!C832,\"  CF: \",Committenti!D832),\"\")","v":""}]
["",null,null,null,null,null,null,null,null,null,null,null,null,null,null,null,{"$f":"IF(Committenti!D833<>\"\",CONCATENATE(Committenti!B833,\"  \",Committenti!C833,\"  CF: \",Committenti!D833),\"\")","v":""}]
["",null,null,null,null,null,null,null,null,null,null,null,null,null,null,null,{"$f":"IF(Committenti!D834<>\"\",CONCATENATE(Committenti!B834,\"  \",Committenti!C834,\"  CF: \",Committenti!D834),\"\")","v":""}]
["",null,null,null,null,null,null,null,null,null,null,null,null,null,null,null,{"$f":"IF(Committenti!D835<>\"\",CONCATENATE(Committenti!B835,\"  \",Committenti!C835,\"  CF: \",Committenti!D835),\"\")","v":""}]
["",null,null,null,null,null,null,null,null,null,null,null,null,null,null,null,{"$f":"IF(Committenti!D836<>\"\",CONCATENATE(Committenti!B836,\"  \",Committenti!C836,\"  CF: \",Committenti!D836),\"\")","v":""}]
[{"$f":"IF(B837<>\"\", IF(A836<>\"\",A836+1,\"\"),\"\")","v":""},null,null,null,null,null,null,null,null,null,null,null,null,null,null,null,{"$f":"IF(Committenti!D837<>\"\",CONCATENATE(Committenti!B837,\"  \",Committenti!C837,\"  CF: \",Committenti!D837),\"\")","v":""}]
["",null,null,null,null,null,null,null,null,null,null,null,null,null,null,null,{"$f":"IF(Committenti!D838<>\"\",CONCATENATE(Committenti!B838,\"  \",Committenti!C838,\"  CF: \",Committenti!D838),\"\")","v":""}]
["",null,null,null,null,null,null,null,null,null,null,null,null,null,null,null,{"$f":"IF(Committenti!D839<>\"\",CONCATENATE(Committenti!B839,\"  \",Committenti!C839,\"  CF: \",Committenti!D839),\"\")","v":""}]
["",null,null,null,null,null,null,null,null,null,null,null,null,null,null,null,{"$f":"IF(Committenti!D840<>\"\",CONCATENATE(Committenti!B840,\"  \",Committenti!C840,\"  CF: \",Committenti!D840),\"\")","v":""}]
["",null,null,null,null,null,null,null,null,null,null,null,null,null,null,null,{"$f":"IF(Committenti!D841<>\"\",CONCATENATE(Committenti!B841,\"  \",Committenti!C841,\"  CF: \",Committenti!D841),\"\")","v":""}]
["",null,null,null,null,null,null,null,null,null,null,null,null,null,null,null,{"$f":"IF(Committenti!D842<>\"\",CONCATENATE(Committenti!B842,\"  \",Committenti!C842,\"  CF: \",Committenti!D842),\"\")","v":""}]
["",null,null,null,null,null,null,null,null,null,null,null,null,null,null,null,{"$f":"IF(Committenti!D843<>\"\",CONCATENATE(Committenti!B843,\"  \",Committenti!C843,\"  CF: \",Committenti!D843),\"\")","v":""}]
["",null,null,null,null,null,null,null,null,null,null,null,null,null,null,null,{"$f":"IF(Committenti!D844<>\"\",CONCATENATE(Committenti!B844,\"  \",Committenti!C844,\"  CF: \",Committenti!D844),\"\")","v":""}]
["",null,null,null,null,null,null,null,null,null,null,null,null,null,null,null,{"$f":"IF(Committenti!D845<>\"\",CONCATENATE(Committenti!B845,\"  \",Committenti!C845,\"  CF: \",Committenti!D845),\"\")","v":""}]
["",null,null,null,null,null,null,null,null,null,null,null,null,null,null,null,{"$f":"IF(Committenti!D846<>\"\",CONCATENATE(Committenti!B846,\"  \",Committenti!C846,\"  CF: \",Committenti!D846),\"\")","v":""}]
["",null,null,null,null,null,null,null,null,null,null,null,null,null,null,null,{"$f":"IF(Committenti!D847<>\"\",CONCATENATE(Committenti!B847,\"  \",Committenti!C847,\"  CF: \",Committenti!D847),\"\")","v":""}]
["",null,null,null,null,null,null,null,null,null,null,null,null,null,null,null,{"$f":"IF(Committenti!D848<>\"\",CONCATENATE(Committenti!B848,\"  \",Committenti!C848,\"  CF: \",Committenti!D848),\"\")","v":""}]
["",null,null,null,null,null,null,null,null,null,null,null,null,null,null,null,{"$f":"IF(Committenti!D849<>\"\",CONCATENATE(Committenti!B849,\"  \",Committenti!C849,\"  CF: \",Committenti!D849),\"\")","v":""}]
["",null,null,null,null,null,null,null,null,null,null,null,null,null,null,null,{"$f":"IF(Committenti!D850<>\"\",CONCATENATE(Committenti!B850,\"  \",Committenti!C850,\"  CF: \",Committenti!D850),\"\")","v":""}]
["",null,null,null,null,null,null,null,null,null,null,null,null,null,null,null,{"$f":"IF(Committenti!D851<>\"\",CONCATENATE(Committenti!B851,\"  \",Committenti!C851,\"  CF: \",Committenti!D851),\"\")","v":""}]
["",null,null,null,null,null,null,null,null,null,null,null,null,null,null,null,{"$f":"IF(Committenti!D852<>\"\",CONCATENATE(Committenti!B852,\"  \",Committenti!C852,\"  CF: \",Committenti!D852),\"\")","v":""}]
["",null,null,null,null,null,null,null,null,null,null,null,null,null,null,null,{"$f":"IF(Committenti!D853<>\"\",CONCATENATE(Committenti!B853,\"  \",Committenti!C853,\"  CF: \",Committenti!D853),\"\")","v":""}]
["",null,null,null,null,null,null,null,null,null,null,null,null,null,null,null,{"$f":"IF(Committenti!D854<>\"\",CONCATENATE(Committenti!B854,\"  \",Committenti!C854,\"  CF: \",Committenti!D854),\"\")","v":""}]
["",null,null,null,null,null,null,null,null,null,null,null,null,null,null,null,{"$f":"IF(Committenti!D855<>\"\",CONCATENATE(Committenti!B855,\"  \",Committenti!C855,\"  CF: \",Committenti!D855),\"\")","v":""}]
["",null,null,null,null,null,null,null,null,null,null,null,null,null,null,null,{"$f":"IF(Committenti!D856<>\"\",CONCATENATE(Committenti!B856,\"  \",Committenti!C856,\"  CF: \",Committenti!D856),\"\")","v":""}]
["",null,null,null,null,null,null,null,null,null,null,null,null,null,null,null,{"$f":"IF(Committenti!D857<>\"\",CONCATENATE(Committenti!B857,\"  \",Committenti!C857,\"  CF: \",Committenti!D857),\"\")","v":""}]
["",null,null,null,null,null,null,null,null,null,null,null,null,null,null,null,{"$f":"IF(Committenti!D858<>\"\",CONCATENATE(Committenti!B858,\"  \",Committenti!C858,\"  CF: \",Committenti!D858),\"\")","v":""}]
["",null,null,null,null,null,null,null,null,null,null,null,null,null,null,null,{"$f":"IF(Committenti!D859<>\"\",CONCATENATE(Committenti!B859,\"  \",Committenti!C859,\"  CF: \",Committenti!D859),\"\")","v":""}]
["",null,null,null,null,null,null,null,null,null,null,null,null,null,null,null,{"$f":"IF(Committenti!D860<>\"\",CONCATENATE(Committenti!B860,\"  \",Committenti!C860,\"  CF: \",Committenti!D860),\"\")","v":""}]
["",null,null,null,null,null,null,null,null,null,null,null,null,null,null,null,{"$f":"IF(Committenti!D861<>\"\",CONCATENATE(Committenti!B861,\"  \",Committenti!C861,\"  CF: \",Committenti!D861),\"\")","v":""}]
["",null,null,null,null,null,null,null,null,null,null,null,null,null,null,null,{"$f":"IF(Committenti!D862<>\"\",CONCATENATE(Committenti!B862,\"  \",Committenti!C862,\"  CF: \",Committenti!D862),\"\")","v":""}]
["",null,null,null,null,null,null,null,null,null,null,null,null,null,null,null,{"$f":"IF(Committenti!D863<>\"\",CONCATENATE(Committenti!B863,\"  \",Committenti!C863,\"  CF: \",Committenti!D863),\"\")","v":""}]
["",null,null,null,null,null,null,null,null,null,null,null,null,null,null,null,{"$f":"IF(Committenti!D864<>\"\",CONCATENATE(Committenti!B864,\"  \",Committenti!C864,\"  CF: \",Committenti!D864),\"\")","v":""}]
["",null,null,null,null,null,null,null,null,null,null,null,null,null,null,null,{"$f":"IF(Committenti!D865<>\"\",CONCATENATE(Committenti!B865,\"  \",Committenti!C865,\"  CF: \",Committenti!D865),\"\")","v":""}]
["",null,null,null,null,null,null,null,null,null,null,null,null,null,null,null,{"$f":"IF(Committenti!D866<>\"\",CONCATENATE(Committenti!B866,\"  \",Committenti!C866,\"  CF: \",Committenti!D866),\"\")","v":""}]
["",null,null,null,null,null,null,null,null,null,null,null,null,null,null,null,{"$f":"IF(Committenti!D867<>\"\",CONCATENATE(Committenti!B867,\"  \",Committenti!C867,\"  CF: \",Committenti!D867),\"\")","v":""}]
["",null,null,null,null,null,null,null,null,null,null,null,null,null,null,null,{"$f":"IF(Committenti!D868<>\"\",CONCATENATE(Committenti!B868,\"  \",Committenti!C868,\"  CF: \",Committenti!D868),\"\")","v":""}]
["",null,null,null,null,null,null,null,null,null,null,null,null,null,null,null,{"$f":"IF(Committenti!D869<>\"\",CONCATENATE(Committenti!B869,\"  \",Committenti!C869,\"  CF: \",Committenti!D869),\"\")","v":""}]
["",null,null,null,null,null,null,null,null,null,null,null,null,null,null,null,{"$f":"IF(Committenti!D870<>\"\",CONCATENATE(Committenti!B870,\"  \",Committenti!C870,\"  CF: \",Committenti!D870),\"\")","v":""}]
["",null,null,null,null,null,null,null,null,null,null,null,null,null,null,null,{"$f":"IF(Committenti!D871<>\"\",CONCATENATE(Committenti!B871,\"  \",Committenti!C871,\"  CF: \",Committenti!D871),\"\")","v":""}]
["",null,null,null,null,null,null,null,null,null,null,null,null,null,null,null,{"$f":"IF(Committenti!D872<>\"\",CONCATENATE(Committenti!B872,\"  \",Committenti!C872,\"  CF: \",Committenti!D872),\"\")","v":""}]
["",null,null,null,null,null,null,null,null,null,null,null,null,null,null,null,{"$f":"IF(Committenti!D873<>\"\",CONCATENATE(Committenti!B873,\"  \",Committenti!C873,\"  CF: \",Committenti!D873),\"\")","v":""}]
["",null,null,null,null,null,null,null,null,null,null,null,null,null,null,null,{"$f":"IF(Committenti!D874<>\"\",CONCATENATE(Committenti!B874,\"  \",Committenti!C874,\"  CF: \",Committenti!D874),\"\")","v":""}]
["",null,null,null,null,null,null,null,null,null,null,null,null,null,null,null,{"$f":"IF(Committenti!D875<>\"\",CONCATENATE(Committenti!B875,\"  \",Committenti!C875,\"  CF: \",Committenti!D875),\"\")","v":""}]
["",null,null,null,null,null,null,null,null,null,null,null,null,null,null,null,{"$f":"IF(Committenti!D876<>\"\",CONCATENATE(Committenti!B876,\"  \",Committenti!C876,\"  CF: \",Committenti!D876),\"\")","v":""}]
["",null,null,null,null,null,null,null,null,null,null,null,null,null,null,null,{"$f":"IF(Committenti!D877<>\"\",CONCATENATE(Committenti!B877,\"  \",Committenti!C877,\"  CF: \",Committenti!D877),\"\")","v":""}]
["",null,null,null,null,null,null,null,null,null,null,null,null,null,null,null,{"$f":"IF(Committenti!D878<>\"\",CONCATENATE(Committenti!B878,\"  \",Committenti!C878,\"  CF: \",Committenti!D878),\"\")","v":""}]
["",null,null,null,null,null,null,null,null,null,null,null,null,null,null,null,{"$f":"IF(Committenti!D879<>\"\",CONCATENATE(Committenti!B879,\"  \",Committenti!C879,\"  CF: \",Committenti!D879),\"\")","v":""}]
["",null,null,null,null,null,null,null,null,null,null,null,null,null,null,null,{"$f":"IF(Committenti!D880<>\"\",CONCATENATE(Committenti!B880,\"  \",Committenti!C880,\"  CF: \",Committenti!D880),\"\")","v":""}]
["",null,null,null,null,null,null,null,null,null,null,null,null,null,null,null,{"$f":"IF(Committenti!D881<>\"\",CONCATENATE(Committenti!B881,\"  \",Committenti!C881,\"  CF: \",Committenti!D881),\"\")","v":""}]
["",null,null,null,null,null,null,null,null,null,null,null,null,null,null,null,{"$f":"IF(Committenti!D882<>\"\",CONCATENATE(Committenti!B882,\"  \",Committenti!C882,\"  CF: \",Committenti!D882),\"\")","v":""}]
["",null,null,null,null,null,null,null,null,null,null,null,null,null,null,null,{"$f":"IF(Committenti!D883<>\"\",CONCATENATE(Committenti!B883,\"  \",Committenti!C883,\"  CF: \",Committenti!D883),\"\")","v":""}]
["",null,null,null,null,null,null,null,null,null,null,null,null,null,null,null,{"$f":"IF(Committenti!D884<>\"\",CONCATENATE(Committenti!B884,\"  \",Committenti!C884,\"  CF: \",Committenti!D884),\"\")","v":""}]
["",null,null,null,null,null,null,null,null,null,null,null,null,null,null,null,{"$f":"IF(Committenti!D885<>\"\",CONCATENATE(Committenti!B885,\"  \",Committenti!C885,\"  CF: \",Committenti!D885),\"\")","v":""}]
["",null,null,null,null,null,null,null,null,null,null,null,null,null,null,null,{"$f":"IF(Committenti!D886<>\"\",CONCATENATE(Committenti!B886,\"  \",Committenti!C886,\"  CF: \",Committenti!D886),\"\")","v":""}]
["",null,null,null,null,null,null,null,null,null,null,null,null,null,null,null,{"$f":"IF(Committenti!D887<>\"\",CONCATENATE(Committenti!B887,\"  \",Committenti!C887,\"  CF: \",Committenti!D887),\"\")","v":""}]
["",null,null,null,null,null,null,null,null,null,null,null,null,null,null,null,{"$f":"IF(Committenti!D888<>\"\",CONCATENATE(Committenti!B888,\"  \",Committenti!C888,\"  CF: \",Committenti!D888),\"\")","v":""}]
["",null,null,null,null,null,null,null,null,null,null,null,null,null,null,null,{"$f":"IF(Committenti!D889<>\"\",CONCATENATE(Committenti!B889,\"  \",Committenti!C889,\"  CF: \",Committenti!D889),\"\")","v":""}]
["",null,null,null,null,null,null,null,null,null,null,null,null,null,null,null,{"$f":"IF(Committenti!D890<>\"\",CONCATENATE(Committenti!B890,\"  \",Committenti!C890,\"  CF: \",Committenti!D890),\"\")","v":""}]
["",null,null,null,null,null,null,null,null,null,null,null,null,null,null,null,{"$f":"IF(Committenti!D891<>\"\",CONCATENATE(Committenti!B891,\"  \",Committenti!C891,\"  CF: \",Committenti!D891),\"\")","v":""}]
["",null,null,null,null,null,null,null,null,null,null,null,null,null,null,null,{"$f":"IF(Committenti!D892<>\"\",CONCATENATE(Committenti!B892,\"  \",Committenti!C892,\"  CF: \",Committenti!D892),\"\")","v":""}]
["",null,null,null,null,null,null,null,null,null,null,null,null,null,null,null,{"$f":"IF(Committenti!D893<>\"\",CONCATENATE(Committenti!B893,\"  \",Committenti!C893,\"  CF: \",Committenti!D893),\"\")","v":""}]
["",null,null,null,null,null,null,null,null,null,null,null,null,null,null,null,{"$f":"IF(Committenti!D894<>\"\",CONCATENATE(Committenti!B894,\"  \",Committenti!C894,\"  CF: \",Committenti!D894),\"\")","v":""}]
["",null,null,null,null,null,null,null,null,null,null,null,null,null,null,null,{"$f":"IF(Committenti!D895<>\"\",CONCATENATE(Committenti!B895,\"  \",Committenti!C895,\"  CF: \",Committenti!D895),\"\")","v":""}]
["",null,null,null,null,null,null,null,null,null,null,null,null,null,null,null,{"$f":"IF(Committenti!D896<>\"\",CONCATENATE(Committenti!B896,\"  \",Committenti!C896,\"  CF: \",Committenti!D896),\"\")","v":""}]
["",null,null,null,null,null,null,null,null,null,null,null,null,null,null,null,{"$f":"IF(Committenti!D897<>\"\",CONCATENATE(Committenti!B897,\"  \",Committenti!C897,\"  CF: \",Committenti!D897),\"\")","v":""}]
["",null,null,null,null,null,null,null,null,null,null,null,null,null,null,null,{"$f":"IF(Committenti!D898<>\"\",CONCATENATE(Committenti!B898,\"  \",Committenti!C898,\"  CF: \",Committenti!D898),\"\")","v":""}]
["",null,null,null,null,null,null,null,null,null,null,null,null,null,null,null,{"$f":"IF(Committenti!D899<>\"\",CONCATENATE(Committenti!B899,\"  \",Committenti!C899,\"  CF: \",Committenti!D899),\"\")","v":""}]
["",null,null,null,null,null,null,null,null,null,null,null,null,null,null,null,{"$f":"IF(Committenti!D900<>\"\",CONCATENATE(Committenti!B900,\"  \",Committenti!C900,\"  CF: \",Committenti!D900),\"\")","v":""}]
[{"$f":"IF(B901<>\"\", IF(A900<>\"\",A900+1,\"\"),\"\")","v":""},null,null,null,null,null,null,null,null,null,null,null,null,null,null,null,{"$f":"IF(Committenti!D901<>\"\",CONCATENATE(Committenti!B901,\"  \",Committenti!C901,\"  CF: \",Committenti!D901),\"\")","v":""}]
["",null,null,null,null,null,null,null,null,null,null,null,null,null,null,null,{"$f":"IF(Committenti!D902<>\"\",CONCATENATE(Committenti!B902,\"  \",Committenti!C902,\"  CF: \",Committenti!D902),\"\")","v":""}]
["",null,null,null,null,null,null,null,null,null,null,null,null,null,null,null,{"$f":"IF(Committenti!D903<>\"\",CONCATENATE(Committenti!B903,\"  \",Committenti!C903,\"  CF: \",Committenti!D903),\"\")","v":""}]
["",null,null,null,null,null,null,null,null,null,null,null,null,null,null,null,{"$f":"IF(Committenti!D904<>\"\",CONCATENATE(Committenti!B904,\"  \",Committenti!C904,\"  CF: \",Committenti!D904),\"\")","v":""}]
["",null,null,null,null,null,null,null,null,null,null,null,null,null,null,null,{"$f":"IF(Committenti!D905<>\"\",CONCATENATE(Committenti!B905,\"  \",Committenti!C905,\"  CF: \",Committenti!D905),\"\")","v":""}]
["",null,null,null,null,null,null,null,null,null,null,null,null,null,null,null,{"$f":"IF(Committenti!D906<>\"\",CONCATENATE(Committenti!B906,\"  \",Committenti!C906,\"  CF: \",Committenti!D906),\"\")","v":""}]
["",null,null,null,null,null,null,null,null,null,null,null,null,null,null,null,{"$f":"IF(Committenti!D907<>\"\",CONCATENATE(Committenti!B907,\"  \",Committenti!C907,\"  CF: \",Committenti!D907),\"\")","v":""}]
["",null,null,null,null,null,null,null,null,null,null,null,null,null,null,null,{"$f":"IF(Committenti!D908<>\"\",CONCATENATE(Committenti!B908,\"  \",Committenti!C908,\"  CF: \",Committenti!D908),\"\")","v":""}]
["",null,null,null,null,null,null,null,null,null,null,null,null,null,null,null,{"$f":"IF(Committenti!D909<>\"\",CONCATENATE(Committenti!B909,\"  \",Committenti!C909,\"  CF: \",Committenti!D909),\"\")","v":""}]
["",null,null,null,null,null,null,null,null,null,null,null,null,null,null,null,{"$f":"IF(Committenti!D910<>\"\",CONCATENATE(Committenti!B910,\"  \",Committenti!C910,\"  CF: \",Committenti!D910),\"\")","v":""}]
["",null,null,null,null,null,null,null,null,null,null,null,null,null,null,null,{"$f":"IF(Committenti!D911<>\"\",CONCATENATE(Committenti!B911,\"  \",Committenti!C911,\"  CF: \",Committenti!D911),\"\")","v":""}]
["",null,null,null,null,null,null,null,null,null,null,null,null,null,null,null,{"$f":"IF(Committenti!D912<>\"\",CONCATENATE(Committenti!B912,\"  \",Committenti!C912,\"  CF: \",Committenti!D912),\"\")","v":""}]
["",null,null,null,null,null,null,null,null,null,null,null,null,null,null,null,{"$f":"IF(Committenti!D913<>\"\",CONCATENATE(Committenti!B913,\"  \",Committenti!C913,\"  CF: \",Committenti!D913),\"\")","v":""}]
["",null,null,null,null,null,null,null,null,null,null,null,null,null,null,null,{"$f":"IF(Committenti!D914<>\"\",CONCATENATE(Committenti!B914,\"  \",Committenti!C914,\"  CF: \",Committenti!D914),\"\")","v":""}]
["",null,null,null,null,null,null,null,null,null,null,null,null,null,null,null,{"$f":"IF(Committenti!D915<>\"\",CONCATENATE(Committenti!B915,\"  \",Committenti!C915,\"  CF: \",Committenti!D915),\"\")","v":""}]
["",null,null,null,null,null,null,null,null,null,null,null,null,null,null,null,{"$f":"IF(Committenti!D916<>\"\",CONCATENATE(Committenti!B916,\"  \",Committenti!C916,\"  CF: \",Committenti!D916),\"\")","v":""}]
["",null,null,null,null,null,null,null,null,null,null,null,null,null,null,null,{"$f":"IF(Committenti!D917<>\"\",CONCATENATE(Committenti!B917,\"  \",Committenti!C917,\"  CF: \",Committenti!D917),\"\")","v":""}]
["",null,null,null,null,null,null,null,null,null,null,null,null,null,null,null,{"$f":"IF(Committenti!D918<>\"\",CONCATENATE(Committenti!B918,\"  \",Committenti!C918,\"  CF: \",Committenti!D918),\"\")","v":""}]
["",null,null,null,null,null,null,null,null,null,null,null,null,null,null,null,{"$f":"IF(Committenti!D919<>\"\",CONCATENATE(Committenti!B919,\"  \",Committenti!C919,\"  CF: \",Committenti!D919),\"\")","v":""}]
["",null,null,null,null,null,null,null,null,null,null,null,null,null,null,null,{"$f":"IF(Committenti!D920<>\"\",CONCATENATE(Committenti!B920,\"  \",Committenti!C920,\"  CF: \",Committenti!D920),\"\")","v":""}]
["",null,null,null,null,null,null,null,null,null,null,null,null,null,null,null,{"$f":"IF(Committenti!D921<>\"\",CONCATENATE(Committenti!B921,\"  \",Committenti!C921,\"  CF: \",Committenti!D921),\"\")","v":""}]
["",null,null,null,null,null,null,null,null,null,null,null,null,null,null,null,{"$f":"IF(Committenti!D922<>\"\",CONCATENATE(Committenti!B922,\"  \",Committenti!C922,\"  CF: \",Committenti!D922),\"\")","v":""}]
["",null,null,null,null,null,null,null,null,null,null,null,null,null,null,null,{"$f":"IF(Committenti!D923<>\"\",CONCATENATE(Committenti!B923,\"  \",Committenti!C923,\"  CF: \",Committenti!D923),\"\")","v":""}]
["",null,null,null,null,null,null,null,null,null,null,null,null,null,null,null,{"$f":"IF(Committenti!D924<>\"\",CONCATENATE(Committenti!B924,\"  \",Committenti!C924,\"  CF: \",Committenti!D924),\"\")","v":""}]
["",null,null,null,null,null,null,null,null,null,null,null,null,null,null,null,{"$f":"IF(Committenti!D925<>\"\",CONCATENATE(Committenti!B925,\"  \",Committenti!C925,\"  CF: \",Committenti!D925),\"\")","v":""}]
["",null,null,null,null,null,null,null,null,null,null,null,null,null,null,null,{"$f":"IF(Committenti!D926<>\"\",CONCATENATE(Committenti!B926,\"  \",Committenti!C926,\"  CF: \",Committenti!D926),\"\")","v":""}]
["",null,null,null,null,null,null,null,null,null,null,null,null,null,null,null,{"$f":"IF(Committenti!D927<>\"\",CONCATENATE(Committenti!B927,\"  \",Committenti!C927,\"  CF: \",Committenti!D927),\"\")","v":""}]
["",null,null,null,null,null,null,null,null,null,null,null,null,null,null,null,{"$f":"IF(Committenti!D928<>\"\",CONCATENATE(Committenti!B928,\"  \",Committenti!C928,\"  CF: \",Committenti!D928),\"\")","v":""}]
["",null,null,null,null,null,null,null,null,null,null,null,null,null,null,null,{"$f":"IF(Committenti!D929<>\"\",CONCATENATE(Committenti!B929,\"  \",Committenti!C929,\"  CF: \",Committenti!D929),\"\")","v":""}]
["",null,null,null,null,null,null,null,null,null,null,null,null,null,null,null,{"$f":"IF(Committenti!D930<>\"\",CONCATENATE(Committenti!B930,\"  \",Committenti!C930,\"  CF: \",Committenti!D930),\"\")","v":""}]
["",null,null,null,null,null,null,null,null,null,null,null,null,null,null,null,{"$f":"IF(Committenti!D931<>\"\",CONCATENATE(Committenti!B931,\"  \",Committenti!C931,\"  CF: \",Committenti!D931),\"\")","v":""}]
["",null,null,null,null,null,null,null,null,null,null,null,null,null,null,null,{"$f":"IF(Committenti!D932<>\"\",CONCATENATE(Committenti!B932,\"  \",Committenti!C932,\"  CF: \",Committenti!D932),\"\")","v":""}]
["",null,null,null,null,null,null,null,null,null,null,null,null,null,null,null,{"$f":"IF(Committenti!D933<>\"\",CONCATENATE(Committenti!B933,\"  \",Committenti!C933,\"  CF: \",Committenti!D933),\"\")","v":""}]
["",null,null,null,null,null,null,null,null,null,null,null,null,null,null,null,{"$f":"IF(Committenti!D934<>\"\",CONCATENATE(Committenti!B934,\"  \",Committenti!C934,\"  CF: \",Committenti!D934),\"\")","v":""}]
["",null,null,null,null,null,null,null,null,null,null,null,null,null,null,null,{"$f":"IF(Committenti!D935<>\"\",CONCATENATE(Committenti!B935,\"  \",Committenti!C935,\"  CF: \",Committenti!D935),\"\")","v":""}]
["",null,null,null,null,null,null,null,null,null,null,null,null,null,null,null,{"$f":"IF(Committenti!D936<>\"\",CONCATENATE(Committenti!B936,\"  \",Committenti!C936,\"  CF: \",Committenti!D936),\"\")","v":""}]
["",null,null,null,null,null,null,null,null,null,null,null,null,null,null,null,{"$f":"IF(Committenti!D937<>\"\",CONCATENATE(Committenti!B937,\"  \",Committenti!C937,\"  CF: \",Committenti!D937),\"\")","v":""}]
["",null,null,null,null,null,null,null,null,null,null,null,null,null,null,null,{"$f":"IF(Committenti!D938<>\"\",CONCATENATE(Committenti!B938,\"  \",Committenti!C938,\"  CF: \",Committenti!D938),\"\")","v":""}]
["",null,null,null,null,null,null,null,null,null,null,null,null,null,null,null,{"$f":"IF(Committenti!D939<>\"\",CONCATENATE(Committenti!B939,\"  \",Committenti!C939,\"  CF: \",Committenti!D939),\"\")","v":""}]
["",null,null,null,null,null,null,null,null,null,null,null,null,null,null,null,{"$f":"IF(Committenti!D940<>\"\",CONCATENATE(Committenti!B940,\"  \",Committenti!C940,\"  CF: \",Committenti!D940),\"\")","v":""}]
["",null,null,null,null,null,null,null,null,null,null,null,null,null,null,null,{"$f":"IF(Committenti!D941<>\"\",CONCATENATE(Committenti!B941,\"  \",Committenti!C941,\"  CF: \",Committenti!D941),\"\")","v":""}]
["",null,null,null,null,null,null,null,null,null,null,null,null,null,null,null,{"$f":"IF(Committenti!D942<>\"\",CONCATENATE(Committenti!B942,\"  \",Committenti!C942,\"  CF: \",Committenti!D942),\"\")","v":""}]
["",null,null,null,null,null,null,null,null,null,null,null,null,null,null,null,{"$f":"IF(Committenti!D943<>\"\",CONCATENATE(Committenti!B943,\"  \",Committenti!C943,\"  CF: \",Committenti!D943),\"\")","v":""}]
["",null,null,null,null,null,null,null,null,null,null,null,null,null,null,null,{"$f":"IF(Committenti!D944<>\"\",CONCATENATE(Committenti!B944,\"  \",Committenti!C944,\"  CF: \",Committenti!D944),\"\")","v":""}]
["",null,null,null,null,null,null,null,null,null,null,null,null,null,null,null,{"$f":"IF(Committenti!D945<>\"\",CONCATENATE(Committenti!B945,\"  \",Committenti!C945,\"  CF: \",Committenti!D945),\"\")","v":""}]
["",null,null,null,null,null,null,null,null,null,null,null,null,null,null,null,{"$f":"IF(Committenti!D946<>\"\",CONCATENATE(Committenti!B946,\"  \",Committenti!C946,\"  CF: \",Committenti!D946),\"\")","v":""}]
["",null,null,null,null,null,null,null,null,null,null,null,null,null,null,null,{"$f":"IF(Committenti!D947<>\"\",CONCATENATE(Committenti!B947,\"  \",Committenti!C947,\"  CF: \",Committenti!D947),\"\")","v":""}]
["",null,null,null,null,null,null,null,null,null,null,null,null,null,null,null,{"$f":"IF(Committenti!D948<>\"\",CONCATENATE(Committenti!B948,\"  \",Committenti!C948,\"  CF: \",Committenti!D948),\"\")","v":""}]
["",null,null,null,null,null,null,null,null,null,null,null,null,null,null,null,{"$f":"IF(Committenti!D949<>\"\",CONCATENATE(Committenti!B949,\"  \",Committenti!C949,\"  CF: \",Committenti!D949),\"\")","v":""}]
["",null,null,null,null,null,null,null,null,null,null,null,null,null,null,null,{"$f":"IF(Committenti!D950<>\"\",CONCATENATE(Committenti!B950,\"  \",Committenti!C950,\"  CF: \",Committenti!D950),\"\")","v":""}]
["",null,null,null,null,null,null,null,null,null,null,null,null,null,null,null,{"$f":"IF(Committenti!D951<>\"\",CONCATENATE(Committenti!B951,\"  \",Committenti!C951,\"  CF: \",Committenti!D951),\"\")","v":""}]
["",null,null,null,null,null,null,null,null,null,null,null,null,null,null,null,{"$f":"IF(Committenti!D952<>\"\",CONCATENATE(Committenti!B952,\"  \",Committenti!C952,\"  CF: \",Committenti!D952),\"\")","v":""}]
["",null,null,null,null,null,null,null,null,null,null,null,null,null,null,null,{"$f":"IF(Committenti!D953<>\"\",CONCATENATE(Committenti!B953,\"  \",Committenti!C953,\"  CF: \",Committenti!D953),\"\")","v":""}]
["",null,null,null,null,null,null,null,null,null,null,null,null,null,null,null,{"$f":"IF(Committenti!D954<>\"\",CONCATENATE(Committenti!B954,\"  \",Committenti!C954,\"  CF: \",Committenti!D954),\"\")","v":""}]
["",null,null,null,null,null,null,null,null,null,null,null,null,null,null,null,{"$f":"IF(Committenti!D955<>\"\",CONCATENATE(Committenti!B955,\"  \",Committenti!C955,\"  CF: \",Committenti!D955),\"\")","v":""}]
["",null,null,null,null,null,null,null,null,null,null,null,null,null,null,null,{"$f":"IF(Committenti!D956<>\"\",CONCATENATE(Committenti!B956,\"  \",Committenti!C956,\"  CF: \",Committenti!D956),\"\")","v":""}]
["",null,null,null,null,null,null,null,null,null,null,null,null,null,null,null,{"$f":"IF(Committenti!D957<>\"\",CONCATENATE(Committenti!B957,\"  \",Committenti!C957,\"  CF: \",Committenti!D957),\"\")","v":""}]
["",null,null,null,null,null,null,null,null,null,null,null,null,null,null,null,{"$f":"IF(Committenti!D958<>\"\",CONCATENATE(Committenti!B958,\"  \",Committenti!C958,\"  CF: \",Committenti!D958),\"\")","v":""}]
["",null,null,null,null,null,null,null,null,null,null,null,null,null,null,null,{"$f":"IF(Committenti!D959<>\"\",CONCATENATE(Committenti!B959,\"  \",Committenti!C959,\"  CF: \",Committenti!D959),\"\")","v":""}]
["",null,null,null,null,null,null,null,null,null,null,null,null,null,null,null,{"$f":"IF(Committenti!D960<>\"\",CONCATENATE(Committenti!B960,\"  \",Committenti!C960,\"  CF: \",Committenti!D960),\"\")","v":""}]
["",null,null,null,null,null,null,null,null,null,null,null,null,null,null,null,{"$f":"IF(Committenti!D961<>\"\",CONCATENATE(Committenti!B961,\"  \",Committenti!C961,\"  CF: \",Committenti!D961),\"\")","v":""}]
["",null,null,null,null,null,null,null,null,null,null,null,null,null,null,null,{"$f":"IF(Committenti!D962<>\"\",CONCATENATE(Committenti!B962,\"  \",Committenti!C962,\"  CF: \",Committenti!D962),\"\")","v":""}]
["",null,null,null,null,null,null,null,null,null,null,null,null,null,null,null,{"$f":"IF(Committenti!D963<>\"\",CONCATENATE(Committenti!B963,\"  \",Committenti!C963,\"  CF: \",Committenti!D963),\"\")","v":""}]
["",null,null,null,null,null,null,null,null,null,null,null,null,null,null,null,{"$f":"IF(Committenti!D964<>\"\",CONCATENATE(Committenti!B964,\"  \",Committenti!C964,\"  CF: \",Committenti!D964),\"\")","v":""}]
[{"$f":"IF(B965<>\"\", IF(A964<>\"\",A964+1,\"\"),\"\")","v":""},null,null,null,null,null,null,null,null,null,null,null,null,null,null,null,{"$f":"IF(Committenti!D965<>\"\",CONCATENATE(Committenti!B965,\"  \",Committenti!C965,\"  CF: \",Committenti!D965),\"\")","v":""}]
["",null,null,null,null,null,null,null,null,null,null,null,null,null,null,null,{"$f":"IF(Committenti!D966<>\"\",CONCATENATE(Committenti!B966,\"  \",Committenti!C966,\"  CF: \",Committenti!D966),\"\")","v":""}]
["",null,null,null,null,null,null,null,null,null,null,null,null,null,null,null,{"$f":"IF(Committenti!D967<>\"\",CONCATENATE(Committenti!B967,\"  \",Committenti!C967,\"  CF: \",Committenti!D967),\"\")","v":""}]
["",null,null,null,null,null,null,null,null,null,null,null,null,null,null,null,{"$f":"IF(Committenti!D968<>\"\",CONCATENATE(Committenti!B968,\"  \",Committenti!C968,\"  CF: \",Committenti!D968),\"\")","v":""}]
["",null,null,null,null,null,null,null,null,null,null,null,null,null,null,null,{"$f":"IF(Committenti!D969<>\"\",CONCATENATE(Committenti!B969,\"  \",Committenti!C969,\"  CF: \",Committenti!D969),\"\")","v":""}]
["",null,null,null,null,null,null,null,null,null,null,null,null,null,null,null,{"$f":"IF(Committenti!D970<>\"\",CONCATENATE(Committenti!B970,\"  \",Committenti!C970,\"  CF: \",Committenti!D970),\"\")","v":""}]
["",null,null,null,null,null,null,null,null,null,null,null,null,null,null,null,{"$f":"IF(Committenti!D971<>\"\",CONCATENATE(Committenti!B971,\"  \",Committenti!C971,\"  CF: \",Committenti!D971),\"\")","v":""}]
["",null,null,null,null,null,null,null,null,null,null,null,null,null,null,null,{"$f":"IF(Committenti!D972<>\"\",CONCATENATE(Committenti!B972,\"  \",Committenti!C972,\"  CF: \",Committenti!D972),\"\")","v":""}]
["",null,null,null,null,null,null,null,null,null,null,null,null,null,null,null,{"$f":"IF(Committenti!D973<>\"\",CONCATENATE(Committenti!B973,\"  \",Committenti!C973,\"  CF: \",Committenti!D973),\"\")","v":""}]
["",null,null,null,null,null,null,null,null,null,null,null,null,null,null,null,{"$f":"IF(Committenti!D974<>\"\",CONCATENATE(Committenti!B974,\"  \",Committenti!C974,\"  CF: \",Committenti!D974),\"\")","v":""}]
["",null,null,null,null,null,null,null,null,null,null,null,null,null,null,null,{"$f":"IF(Committenti!D975<>\"\",CONCATENATE(Committenti!B975,\"  \",Committenti!C975,\"  CF: \",Committenti!D975),\"\")","v":""}]
["",null,null,null,null,null,null,null,null,null,null,null,null,null,null,null,{"$f":"IF(Committenti!D976<>\"\",CONCATENATE(Committenti!B976,\"  \",Committenti!C976,\"  CF: \",Committenti!D976),\"\")","v":""}]
["",null,null,null,null,null,null,null,null,null,null,null,null,null,null,null,{"$f":"IF(Committenti!D977<>\"\",CONCATENATE(Committenti!B977,\"  \",Committenti!C977,\"  CF: \",Committenti!D977),\"\")","v":""}]
["",null,null,null,null,null,null,null,null,null,null,null,null,null,null,null,{"$f":"IF(Committenti!D978<>\"\",CONCATENATE(Committenti!B978,\"  \",Committenti!C978,\"  CF: \",Committenti!D978),\"\")","v":""}]
["",null,null,null,null,null,null,null,null,null,null,null,null,null,null,null,{"$f":"IF(Committenti!D979<>\"\",CONCATENATE(Committenti!B979,\"  \",Committenti!C979,\"  CF: \",Committenti!D979),\"\")","v":""}]
["",null,null,null,null,null,null,null,null,null,null,null,null,null,null,null,{"$f":"IF(Committenti!D980<>\"\",CONCATENATE(Committenti!B980,\"  \",Committenti!C980,\"  CF: \",Committenti!D980),\"\")","v":""}]
["",null,null,null,null,null,null,null,null,null,null,null,null,null,null,null,{"$f":"IF(Committenti!D981<>\"\",CONCATENATE(Committenti!B981,\"  \",Committenti!C981,\"  CF: \",Committenti!D981),\"\")","v":""}]
["",null,null,null,null,null,null,null,null,null,null,null,null,null,null,null,{"$f":"IF(Committenti!D982<>\"\",CONCATENATE(Committenti!B982,\"  \",Committenti!C982,\"  CF: \",Committenti!D982),\"\")","v":""}]
["",null,null,null,null,null,null,null,null,null,null,null,null,null,null,null,{"$f":"IF(Committenti!D983<>\"\",CONCATENATE(Committenti!B983,\"  \",Committenti!C983,\"  CF: \",Committenti!D983),\"\")","v":""}]
["",null,null,null,null,null,null,null,null,null,null,null,null,null,null,null,{"$f":"IF(Committenti!D984<>\"\",CONCATENATE(Committenti!B984,\"  \",Committenti!C984,\"  CF: \",Committenti!D984),\"\")","v":""}]
["",null,null,null,null,null,null,null,null,null,null,null,null,null,null,null,{"$f":"IF(Committenti!D985<>\"\",CONCATENATE(Committenti!B985,\"  \",Committenti!C985,\"  CF: \",Committenti!D985),\"\")","v":""}]
["",null,null,null,null,null,null,null,null,null,null,null,null,null,null,null,{"$f":"IF(Committenti!D986<>\"\",CONCATENATE(Committenti!B986,\"  \",Committenti!C986,\"  CF: \",Committenti!D986),\"\")","v":""}]
["",null,null,null,null,null,null,null,null,null,null,null,null,null,null,null,{"$f":"IF(Committenti!D987<>\"\",CONCATENATE(Committenti!B987,\"  \",Committenti!C987,\"  CF: \",Committenti!D987),\"\")","v":""}]
["",null,null,null,null,null,null,null,null,null,null,null,null,null,null,null,{"$f":"IF(Committenti!D988<>\"\",CONCATENATE(Committenti!B988,\"  \",Committenti!C988,\"  CF: \",Committenti!D988),\"\")","v":""}]
["",null,null,null,null,null,null,null,null,null,null,null,null,null,null,null,{"$f":"IF(Committenti!D989<>\"\",CONCATENATE(Committenti!B989,\"  \",Committenti!C989,\"  CF: \",Committenti!D989),\"\")","v":""}]
["",null,null,null,null,null,null,null,null,null,null,null,null,null,null,null,{"$f":"IF(Committenti!D990<>\"\",CONCATENATE(Committenti!B990,\"  \",Committenti!C990,\"  CF: \",Committenti!D990),\"\")","v":""}]
["",null,null,null,null,null,null,null,null,null,null,null,null,null,null,null,{"$f":"IF(Committenti!D991<>\"\",CONCATENATE(Committenti!B991,\"  \",Committenti!C991,\"  CF: \",Committenti!D991),\"\")","v":""}]
["",null,null,null,null,null,null,null,null,null,null,null,null,null,null,null,{"$f":"IF(Committenti!D992<>\"\",CONCATENATE(Committenti!B992,\"  \",Committenti!C992,\"  CF: \",Committenti!D992),\"\")","v":""}]
["",null,null,null,null,null,null,null,null,null,null,null,null,null,null,null,{"$f":"IF(Committenti!D993<>\"\",CONCATENATE(Committenti!B993,\"  \",Committenti!C993,\"  CF: \",Committenti!D993),\"\")","v":""}]
["",null,null,null,null,null,null,null,null,null,null,null,null,null,null,null,{"$f":"IF(Committenti!D994<>\"\",CONCATENATE(Committenti!B994,\"  \",Committenti!C994,\"  CF: \",Committenti!D994),\"\")","v":""}]
["",null,null,null,null,null,null,null,null,null,null,null,null,null,null,null,{"$f":"IF(Committenti!D995<>\"\",CONCATENATE(Committenti!B995,\"  \",Committenti!C995,\"  CF: \",Committenti!D995),\"\")","v":""}]
["",null,null,null,null,null,null,null,null,null,null,null,null,null,null,null,{"$f":"IF(Committenti!D996<>\"\",CONCATENATE(Committenti!B996,\"  \",Committenti!C996,\"  CF: \",Committenti!D996),\"\")","v":""}]
["",null,null,null,null,null,null,null,null,null,null,null,null,null,null,null,{"$f":"IF(Committenti!D997<>\"\",CONCATENATE(Committenti!B997,\"  \",Committenti!C997,\"  CF: \",Committenti!D997),\"\")","v":""}]
["",null,null,null,null,null,null,null,null,null,null,null,null,null,null,null,{"$f":"IF(Committenti!D998<>\"\",CONCATENATE(Committenti!B998,\"  \",Committenti!C998,\"  CF: \",Committenti!D998),\"\")","v":""}]
["",null,null,null,null,null,null,null,null,null,null,null,null,null,null,null,{"$f":"IF(Committenti!D999<>\"\",CONCATENATE(Committenti!B999,\"  \",Committenti!C999,\"  CF: \",Committenti!D999),\"\")","v":""}]
["",null,null,null,null,null,null,null,null,null,null,null,null,null,null,null,{"$f":"IF(Committenti!D1000<>\"\",CONCATENATE(Committenti!B1000,\"  \",Committenti!C1000,\"  CF: \",Committenti!D1000),\"\")","v":""}]
["",null,null,null,null,null,null,null,null,null,null,null,null,null,null,null,{"$f":"IF(Committenti!D1001<>\"\",CONCATENATE(Committenti!B1001,\"  \",Committenti!C1001,\"  CF: \",Committenti!D1001),\"\")","v":""}]
["",null,null,null,null,null,null,null,null,null,null,null,null,null,null,null,{"$f":"IF(Committenti!D1002<>\"\",CONCATENATE(Committenti!B1002,\"  \",Committenti!C1002,\"  CF: \",Committenti!D1002),\"\")","v":""}]
["",null,null,null,null,null,null,null,null,null,null,null,null,null,null,null,{"$f":"IF(Committenti!D1003<>\"\",CONCATENATE(Committenti!B1003,\"  \",Committenti!C1003,\"  CF: \",Committenti!D1003),\"\")","v":""}]
["",null,null,null,null,null,null,null,null,null,null,null,null,null,null,null,{"$f":"IF(Committenti!D1004<>\"\",CONCATENATE(Committenti!B1004,\"  \",Committenti!C1004,\"  CF: \",Committenti!D1004),\"\")","v":""}]
["",null,null,null,null,null,null,null,null,null,null,null,null,null,null,null,{"$f":"IF(Committenti!D1005<>\"\",CONCATENATE(Committenti!B1005,\"  \",Committenti!C1005,\"  CF: \",Committenti!D1005),\"\")","v":""}]
["",null,null,null,null,null,null,null,null,null,null,null,null,null,null,null,{"$f":"IF(Committenti!D1006<>\"\",CONCATENATE(Committenti!B1006,\"  \",Committenti!C1006,\"  CF: \",Committenti!D1006),\"\")","v":""}]
["",null,null,null,null,null,null,null,null,null,null,null,null,null,null,null,{"$f":"IF(Committenti!D1007<>\"\",CONCATENATE(Committenti!B1007,\"  \",Committenti!C1007,\"  CF: \",Committenti!D1007),\"\")","v":""}]
["",null,null,null,null,null,null,null,null,null,null,null,null,null,null,null,{"$f":"IF(Committenti!D1008<>\"\",CONCATENATE(Committenti!B1008,\"  \",Committenti!C1008,\"  CF: \",Committenti!D1008),\"\")","v":""}]
["",null,null,null,null,null,null,null,null,null,null,null,null,null,null,null,{"$f":"IF(Committenti!D1009<>\"\",CONCATENATE(Committenti!B1009,\"  \",Committenti!C1009,\"  CF: \",Committenti!D1009),\"\")","v":""}]
["",null,null,null,null,null,null,null,null,null,null,null,null,null,null,null,{"$f":"IF(Committenti!D1010<>\"\",CONCATENATE(Committenti!B1010,\"  \",Committenti!C1010,\"  CF: \",Committenti!D1010),\"\")","v":""}]
["",null,null,null,null,null,null,null,null,null,null,null,null,null,null,null,{"$f":"IF(Committenti!D1011<>\"\",CONCATENATE(Committenti!B1011,\"  \",Committenti!C1011,\"  CF: \",Committenti!D1011),\"\")","v":""}]
["",null,null,null,null,null,null,null,null,null,null,null,null,null,null,null,{"$f":"IF(Committenti!D1012<>\"\",CONCATENATE(Committenti!B1012,\"  \",Committenti!C1012,\"  CF: \",Committenti!D1012),\"\")","v":""}]
["",null,null,null,null,null,null,null,null,null,null,null,null,null,null,null,{"$f":"IF(Committenti!D1013<>\"\",CONCATENATE(Committenti!B1013,\"  \",Committenti!C1013,\"  CF: \",Committenti!D1013),\"\")","v":""}]
["",null,null,null,null,null,null,null,null,null,null,null,null,null,null,null,{"$f":"IF(Committenti!D1014<>\"\",CONCATENATE(Committenti!B1014,\"  \",Committenti!C1014,\"  CF: \",Committenti!D1014),\"\")","v":""}]
["",null,null,null,null,null,null,null,null,null,null,null,null,null,null,null,{"$f":"IF(Committenti!D1015<>\"\",CONCATENATE(Committenti!B1015,\"  \",Committenti!C1015,\"  CF: \",Committenti!D1015),\"\")","v":""}]
["",null,null,null,null,null,null,null,null,null,null,null,null,null,null,null,{"$f":"IF(Committenti!D1016<>\"\",CONCATENATE(Committenti!B1016,\"  \",Committenti!C1016,\"  CF: \",Committenti!D1016),\"\")","v":""}]
["",null,null,null,null,null,null,null,null,null,null,null,null,null,null,null,{"$f":"IF(Committenti!D1017<>\"\",CONCATENATE(Committenti!B1017,\"  \",Committenti!C1017,\"  CF: \",Committenti!D1017),\"\")","v":""}]

{"sheet":"Computo-Massimali","index":3,"n_rows":112,"n_cols":34,"rows_kept":112,"cut":false,"hidden":false,"merged":[[39,29,39,30],[17,29,17,30],[6,29,6,30],[39,31,39,33],[17,31,17,33],[6,31,6,33],[110,8,110,9],[111,8,111,9],[109,8,109,9],[86,2,86,12],[52,26,52,27],[52,24,52,25],[48,24,48,25],[51,24,51,25],[50,24,50,25],[49,24,49,25],[49,22,49,23],[49,26,49,27],[58,24,58,25],[58,26,58,27],[79,22,79,23],[79,20,79,21],[57,24,57,25],[23,2,23,4],[29,2,29,4],[24,2,24,4],[26,2,26,4],[14,2,14,4],[27,2,27,4],[28,2,28,4],[22,2,22,3],[15,2,15,4],[20,2,20,3],[25,3,25,4],[79,2,80,4],[86,16,86,27],[79,16,80,19],[80,26,80,27],[79,24,79,27],[55,22,55,23],[54,2,54,3],[54,26,54,27],[50,26,50,27],[51,26,51,27],[53,2,53,3],[57,2,57,4],[58,2,58,4],[55,2,55,3],[55,26,55,27],[56,24,56,25],[58,16,58,19],[54,24,54,25],[55,24,55,25],[57,22,57,23],[57,26,57,27],[53,26,53,27],[50,2,50,3],[51,22,51,23],[56,26,56,27],[56,22,56,23],[56,20,56,21],[54,22,54,23],[54,18,54,19],[55,18,55,19],[50,22,50,23],[47,26,47,27],[48,26,48,27],[53,24,53,25],[47,24,47,25],[47,20,47,21],[47,18,47,19],[52,18,52,19],[53,22,53,23],[48,2,48,4],[49,2,49,4],[47,3,47,4],[46,22,46,23],[47,22,47,23],[56,2,56,3],[52,22,52,23],[53,20,53,21],[48,22,48,23],[50,18,50,19],[52,20,52,21],[50,20,50,21],[51,18,51,19],[49,18,49,19],[49,20,49,21],[53,18,53,19],[56,18,56,19],[51,2,51,4],[52,2,52,4],[43,24,43,25],[46,26,46,27],[44,18,44,19],[45,18,45,19],[44,20,44,21],[46,20,46,21],[45,26,45,27],[41,2,41,3],[43,2,43,3],[45,20,45,21],[44,22,44,23],[45,22,45,23],[45,2,45,4],[43,22,43,23],[42,2,42,3],[43,26,43,27],[44,24,44,25],[43,20,43,21],[44,2,44,3],[44,26,44,27],[46,18,46,19],[46,2,46,4],[45,24,45,25],[46,24,46,25],[33,26,33,27],[36,26,36,27],[31,18,31,19],[30,24,30,25],[30,26,30,27],[29,20,29,21],[29,22,29,23],[30,22,30,23],[30,20,30,21],[35,26,35,27],[40,20,40,21],[40,18,40,19],[42,26,42,27],[41,22,41,23],[42,22,42,23],[41,24,41,25],[41,20,41,21],[41,18,41,19],[42,18,42,19],[42,20,42,21],[41,26,41,27],[42,24,42,25],[5,29,5,33],[17,16,17,27],[39,16,39,27],[16,29,16,33],[38,29,38,33],[13,18,13,19],[18,18,18,19],[18,22,18,23],[18,24,18,27],[7,24,7,27],[23,26,23,27],[23,24,23,25],[8,18,8,19],[30,18,30,19],[14,22,14,23],[27,20,27,21],[27,22,27,23],[27,26,27,27],[32,26,32,27],[33,20,33,21],[32,18,32,19],[26,24,26,25],[26,18,26,19],[28,18,28,19],[36,2,36,4],[35,2,35,4],[29,18,29,19],[31,24,31,25],[31,20,31,21],[31,2,31,3],[32,2,32,3],[33,2,33,3],[39,2,39,12],[31,22,31,23],[40,2,40,4],[28,20,28,21],[28,22,28,23],[27,18,27,19],[26,22,26,23],[26,20,26,21],[33,18,33,19],[32,24,32,25],[30,2,30,3],[40,24,40,27],[40,22,40,23],[35,18,35,19],[36,16,36,19],[35,22,35,23],[36,24,36,25],[36,22,36,23],[36,20,36,21],[34,2,34,3],[26,26,26,27],[29,26,29,27],[35,24,35,25],[34,24,34,25],[34,20,34,21],[32,22,32,23],[80,24,80,25],[58,22,58,23],[98,2,99,4],[92,2,92,3],[90,2,90,3],[89,22,89,23],[99,20,99,21],[90,20,90,21],[89,18,89,19],[89,20,89,21],[87,22,87,23],[88,22,88,23],[87,2,87,3],[87,18,87,19],[87,20,87,21],[88,2,88,3],[91,2,91,3],[89,2,89,3],[77,2,77,3],[81,2,81,4],[82,2,82,4],[92,24,92,25],[92,22,92,23],[88,24,88,25],[88,26,88,27],[87,24,87,27],[80,22,80,23],[92,26,92,27],[89,26,89,27],[89,24,89,25],[25,18,25,19],[24,18,24,19],[25,24,25,25],[25,26,25,27],[91,18,91,19],[91,22,91,23],[88,20,88,21],[35,20,35,21],[34,18,34,19],[43,18,43,19],[51,20,51,21],[54,20,54,21],[55,20,55,21],[48,18,48,19],[48,20,48,21],[24,20,24,21],[24,22,24,23],[24,24,24,25],[22,26,22,27],[22,18,22,19],[23,18,23,19],[5,8,5,9],[14,20,14,21],[12,18,12,19],[8,20,8,21],[8,22,8,23],[9,20,9,21],[10,18,10,19],[11,22,11,23],[8,24,8,25],[13,20,13,21],[14,26,14,27],[12,26,12,27],[8,26,8,27],[9,24,9,25],[9,26,9,27],[10,24,10,25],[10,26,10,27],[10,20,10,21],[11,24,11,25],[11,26,11,27],[6,16,6,27],[21,18,21,19],[8,2,8,3],[21,2,21,3],[11,2,11,3],[9,2,9,3],[13,22,13,23],[15,26,15,27],[13,24,13,25],[2,5,2,8],[3,5,3,8],[12,24,12,25],[7,18,7,19],[14,24,14,25],[7,22,7,23],[15,24,15,25],[13,26,13,27],[9,22,9,23],[10,22,10,23],[9,18,9,19],[7,20,7,21],[14,18,14,19],[15,16,15,19],[15,22,15,23],[11,18,11,19],[7,2,7,4],[5,11,5,12],[10,2,10,3],[5,6,5,7],[5,2,5,4],[6,2,6,12],[19,2,19,3],[12,22,12,23],[20,26,20,27],[19,22,19,23],[19,24,19,25],[19,26,19,27],[20,20,20,21],[20,22,20,23],[20,24,20,25],[12,20,12,21],[15,20,15,21],[19,18,19,19],[20,18,20,19],[12,2,12,4],[13,3,13,4],[17,2,17,12],[18,2,18,4],[11,20,11,21],[21,22,21,23],[21,24,21,25],[18,20,18,21],[19,20,19,21],[21,20,21,21],[27,24,27,25],[28,24,28,25],[28,26,28,27],[34,26,34,27],[33,22,33,23],[32,20,32,21],[33,24,33,25],[31,26,31,27],[29,24,29,25],[34,22,34,23],[23,20,23,21],[25,20,25,21],[25,22,25,23],[23,22,23,23],[21,26,21,27],[24,26,24,27],[22,20,22,21],[22,22,22,23],[22,24,22,25],[107,20,107,21],[57,18,57,19],[57,20,57,21],[107,18,107,19],[102,18,102,19],[103,18,103,19],[104,18,104,19],[102,20,102,21],[103,20,103,21],[104,20,104,21],[100,17,100,19],[98,16,99,19],[91,20,91,21],[98,20,98,21],[92,20,92,21],[88,18,88,19],[58,20,58,21],[76,29,76,33],[86,29,86,30],[86,31,86,33],[85,29,85,33],[108,8,108,9],[107,8,107,9],[103,2,103,6],[106,8,106,10],[100,26,100,27],[80,20,80,21],[99,24,99,25],[99,26,99,27],[90,18,90,19],[90,22,90,23],[90,24,90,25],[90,26,90,27],[92,17,92,19],[100,24,100,25],[100,22,100,23],[98,24,98,27],[91,26,91,27],[98,22,98,23],[99,22,99,23],[91,24,91,25]]}
[null,null,null,null,null,null,null,null,null,null,null,null,null,null,null,{"$f":"MATCH(\"SimMZ\",C:C,0)","v":78}]
[null,null,null,null,null,null,null,null,null,null,null,null,null,null,null,null,"Condominio"]
[null,null,"Verifica Massimali Superbonus",null,null,{"$f":"CONCATENATE(IF('Dati Gen'!E9<>\"\",'Dati Gen'!E9,\"\"),IF('Dati Gen'!E8<>\"\",CONCATENATE(\" - \",'Dati Gen'!E8),\"\"))","v":""},null,null,null,null,null,null,{"$f":"'Dati Gen'!K2","v":"Verifica Massimali"},null,null,null,2]
[null,null,{"$f":"IF(TipoEdif=1,'Dati Gen'!Q5,'Dati Gen'!Q6)","v":"Edificio Unifamiliare"},{"$f":"IF('Dati Gen'!G5>1,CONCATENATE('Dati Gen'!G5,\" U.Imm\"),\"\")","v":""},null,{"$f":"IF(TipoEdif=2,IF('Dati Gen'!K5<>\"\",'Dati Gen'!K5,\"\"),IF(Committenti!B3<>\"\",CONCATENATE(Committenti!B3,\" \",Committenti!C3),\"\"))","v":""},null,null,null,null,null,null,{"$f":"'Dati Gen'!K4","v":"©2021-2022 SIM srl - www.madosoft.it"}]
[]
[null,null,{"$f":"IF(ABS(F100-'Dati Gen'!G20)>0.01,\"Importo Lavori al Netto della Sicurezza =\",IF(ABS(G100-'Dati Gen'!G19)>0.01,\"Importo Sicurezza da Progetto =\",IF(ABS(H100-'Dati Gen'!G18)>0.01,\"Importo Lavori da Progetto =\",IF(ABS('Dati Gen'!M21-K100)>0.01,\"Importo Spese Tecniche da Progetto =\",IF(ABS(L100-'Dati Gen'!M22)<=0.01,\"\",\"Importo Complessivo Progetto =\")))))","v":"Importo Lavori al Netto della Sicurezza ="},null,null,{"$f":"IF(ABS(F100-'Dati Gen'!G20)>0.01,'Dati Gen'!G20,IF(ABS(G100-'Dati Gen'!G19)>0.01,'Dati Gen'!G19,IF(ABS(H100-'Dati Gen'!G18)>0.01,'Dati Gen'!G18,IF(ABS('Dati Gen'!M21-K100)>0.01,'Dati Gen'!M21,IF(ABS(L100-'Dati Gen'!M22)<=0.01,\"\",'Dati Gen'!M22)))))","v":0},{"$f":"IF(C6<>\"\",\"DIVERSO da\",\"\")","v":"DIVERSO da"},null,{"$f":"IF(ABS(F100-'Dati Gen'!G20)>0.01,\"Sommatoria Importo Lavori =\",IF(ABS(G100-'Dati Gen'!G19)>0.01,\"Sommatoria Incidenza Sicurezza =\",IF(ABS(H100-'Dati Gen'!G18)>0.01,\"Sommatoria Imponibili =\",IF(ABS('Dati Gen'!M21-K100)>0.01,\"Sommatoria Spese Tecniche =\",IF(ABS(L100-'Dati Gen'!M22)<=0.01,\"\",\"Totale Interventi =\")))))","v":"Sommatoria Importo Lavori ="},null,{"$f":"IF(ABS(F100-'Dati Gen'!G20)>0.01,F100,IF(ABS(G100-'Dati Gen'!G19)>0.01,G100,IF(ABS(H100-'Dati Gen'!G18)>0.01,H100,IF(ABS('Dati Gen'!M21-K100)>0.01,K100,IF(ABS(L100-'Dati Gen'!M22)<=0.01,\"\",L100)))))","v":100},{"$f":"IF(C6<>\"\",\"Completare Tabella Interventi\",\"\")","v":"Completare Tabella Interventi"},null,null,null,null,null,null,null,null,null,null,null,null,null,null,null,null,null,{"$f":"IF(COUNTIF(AH9:AH15,\"KO\")>0,\"ATTENZIONE! Massimale Spesa MITE non Asseverabile\",\"\")","v":""}]
[null,null,"INTERVENTI TRAINANTI",null,null,null,null,null,null,null,null,null,null,"..",null,null,{"$f":"CONCATENATE(\"Massimali di Spesa \",C7)","v":"Massimali di Spesa INTERVENTI TRAINANTI"},null,null,null,null,null,null,null,null,null,null,null,null,"Spesa Specifica MITE",null,{"$f":"C7","v":"INTERVENTI TRAINANTI"}]
[null,null,"  Interventi",null,null,"Importo Lavori","Incidenza Sicurezza","Imponibile","Iva","Importo c.iva","Spese tecniche","Totale","Credito Spettante  110% Spesa Ammessa",null,null,null,"Interventi","Massimale  spesa","Verifica Max",null,"Spesa Ammessa",null,"Quota Eccedente Massimale Spesa ",null,"Credito Spettante               110% Spesa Ammessa                                Quota Impresa | Quota Tecnici",null,null,null,null,"Sup. Interv. / Unita Misura","Incidenza Materiale %","Spesa Specifica","Spesa Specifica Massima ammissibile","Verifica"]
[null,null,"PV) Isolamento pareti perimetrali",null,"Esterno",100,10,{"$f":"SUM(F9:G9)","v":110},{"$f":"F9*'Dati Gen'!$J$20+G9*'Dati Gen'!$J$19","v":11},{"$f":"H9+I9","v":121},0,{"$f":"SUM(J9:K9)","v":121},{"$f":"IF(L9<=R9,L9*1.1,R9*1.1)","v":133.10000000000002},null,null,null,{"$f":"C9","v":"PV) Isolamento pareti perimetrali"},{"$f":"IF(TipoEdif=1,50000,IF(N_Uimm>8,40000*8+30000*(N_Uimm-8),40000*N_Uimm))","v":50000},{"$f":"IF(L9>M9,\"KO\",IF(L9>R9,\"ok<\",\"ok\"))","v":"ok"},null,{"$f":"IF(L9<R9,L9,R9)","v":121},null,{"$f":"IF(L9>R9,L9-R9,0)","v":0},null,{"$f":"IF(M9<>0,J9*M9/L9,0)","v":133.10000000000002},null,{"$f":"IF(M9<>0,K9*M9/L9,0)","v":0},null,null,1,0.5,{"$f":"IF(ISNUMBER(AD9)=TRUE,IF(AD9<>0,F9*AE9/AD9,0),0)","v":50},{"$f":"IF(ZonaClimatica=\"A\",IF(E9=\"Parete Ventilata\",240,IF(E9=\"Interno\",96,180)),IF(ZonaClimatica=\"B\",IF(E9=\"Parete Ventilata\",240,IF(E9=\"Interno\",96,180)),IF(ZonaClimatica=\"C\",IF(E9=\"Parete Ventilata\",240,IF(E9=\"Interno\",96,180)),IF(E9=\"Parete Ventilata\",260,IF(E9=\"Interno\",104,195)))))","v":195},{"$f":"IF(AF9<>0,IF(AF9>AG9,\"KO\",\"ok\"),\"ok\")","v":"ok"}]
[null,null,"PO) Isolamento coperture",null,"Esterno",0,0,{"$f":"SUM(F10:G10)","v":0},{"$f":"F10*'Dati Gen'!$J$20+G10*'Dati Gen'!$J$19","v":0},{"$f":"H10+I10","v":0},0,{"$f":"SUM(J10:K10)","v":0},0,null,null,null,"PO) Isolamento coperture",{"$f":"IF(TipoEdif=1,50000,IF(N_Uimm>8,40000*8+30000*(N_Uimm-8),40000*N_Uimm))","v":50000},"ok",null,{"$f":"IF(L10<R10,L10,R10)","v":0},null,{"$f":"IF(L10>R10,L10-R10,0)","v":0},null,0,null,0,null,null,null,null,{"$f":"IF(ISNUMBER(AD10)=TRUE,IF(AD10<>0,F10*AE10/AD10,0),0)","v":0},{"$f":"IF(E10=\"Copertura Ventilata\",300,IF(E10=\"Interno\",120,276))","v":276},{"$f":"IF(AF10<>0,IF(AF10>AG10,\"KO\",\"ok\"),\"ok\")","v":"ok"}]
[null,null,"POND) Isol. coperture non disperdenti",null,"Esterno",0,{"$f":"IF(ImpLav<>0,F11*ImpSicLav/ImpLav,0)","v":0},{"$f":"SUM(F11:G11)","v":0},{"$f":"F11*'Dati Gen'!$J$20+G11*'Dati Gen'!$J$19","v":0},{"$f":"H11+I11","v":0},{"$f":"IF(ImpLav<>0,F11*ImpTecLav/ImpLav,0)","v":0},{"$f":"SUM(J11:K11)","v":0},{"$f":"IF(L11<=R11,L11*1.1,R11*1.1)","v":0},null,null,null,"POND) Isol. coperture non disperdenti",{"$f":"IF(TipoEdif=1,50000,IF(N_Uimm>8,40000*8+30000*(N_Uimm-8),40000*N_Uimm))","v":50000},"ok",null,0,null,0,null,0,null,0,null,null,null,null,{"$f":"IF(ISNUMBER(AD11)=TRUE,IF(AD11<>0,F11*AE11/AD11,0),0)","v":0},{"$f":"IF(E11=\"Copertura Ventilata\",300,IF(E11=\"Interno\",120,276))","v":276},{"$f":"IF(AF11<>0,IF(AF11>AG11,\"KO\",\"ok\"),\"ok\")","v":"ok"}]
[null,null,"PS) Isolamento Pavimenti",null,"Interno/terreno",0,0,{"$f":"SUM(F12:G12)","v":0},{"$f":"F12*'Dati Gen'!$J$20+G12*'Dati Gen'!$J$19","v":0},{"$f":"H12+I12","v":0},0,{"$f":"SUM(J12:K12)","v":0},0,null,null,null,"PS) Isolamento Pavimenti",{"$f":"IF(TipoEdif=1,50000,IF(N_Uimm>8,40000*8+30000*(N_Uimm-8),40000*N_Uimm))","v":50000},"ok",null,0,null,0,null,0,null,0,null,null,null,null,{"$f":"IF(ISNUMBER(AD12)=TRUE,IF(AD12<>0,F12*AE12/AD12,0),0)","v":0},{"$f":"IF(E12=\"Interno/terreno\",180,144)","v":180},{"$f":"IF(AF12<>0,IF(AF12>AG12,\"KO\",\"ok\"),\"ok\")","v":"ok"}]
[null,null,"Totali Isolamento PV) PO) POND) PS) ",null,null,{"$f":"SUM(F9:F12)","v":100},{"$f":"SUM(G9:G12)","v":10},110,11,121,0,121,133.10000000000002,null,null,null,"Totali Isolamento PV) PO) POND) PS) ",{"$f":"IF(TipoEdif=1,50000,IF(N_Uimm>8,40000*8+30000*(N_Uimm-8),40000*N_Uimm))","v":50000},"ok",null,121,null,0,null,133.10000000000002,null,0]
[null,null,"Impianti climatizzazione e ACS ","CC)Caldaie a Condensazione",null,0,0,{"$f":"SUM(F14:G14)","v":0},{"$f":"F14*'Dati Gen'!$J$20+G14*'Dati Gen'!$J$19","v":0},{"$f":"H14+I14","v":0},0,{"$f":"SUM(J14:K14)","v":0},0,null,null,null,{"$f":"CONCATENATE(C14,\" \",D14)","v":"Impianti climatizzazione e ACS  CC)Caldaie a Condensazione"},{"$f":"IF(TipoEdif=1,30000,IF(N_Uimm>8,20000*8+15000*(N_Uimm-8),20000*N_Uimm))","v":30000},"ok",null,0,null,0,null,0,null,0,null,null,null,null,{"$f":"IF(ISNUMBER(AD14)=TRUE,IF(AD14<>0,F14*AE14/AD14,0),0)","v":0},{"$f":"IF(LEFT(D14,3)=\"CC)\",IF(AD14<=35,240,216),IF(LEFT(D14,3)=\"GA)\",IF(AD14<=35,240,216),IF(D14=\"PC)Aria/Aria\",720,IF(D14=\"PC)Altro\",1560,IF(D14=\"PC)Geotermiche\",2280,IF(LEFT(D14,3)=\"SI)\",1860,0))))))","v":240},{"$f":"IF(AF14<>0,IF(AF14>AG14,\"KO\",\"ok\"),\"ok\")","v":"ok"}]
[null,null,"SismaBonus Zona 1,2 o 3",null,null,0,{"$f":"IF(ImpLav<>0,F15*ImpSicLav/ImpLav,0)","v":0},{"$f":"SUM(F15:G15)","v":0},{"$f":"F15*'Dati Gen'!$J$20+G15*'Dati Gen'!$J$19","v":0},{"$f":"H15+I15","v":0},0,{"$f":"SUM(J15:K15)","v":0},0,null,null,null,"SismaBonus Zona 1,2 o 3",{"$f":"105600*N_Uimm/1.1","v":95999.999999999985},"ok",null,0,null,0,null,0,null,0,null,null,null,null,{"$f":"IF(ISNUMBER(AD15)=TRUE,IF(AD15<>0,F15*AE15/AD15,0),0)","v":0},0,{"$f":"IF(AF15<>0,IF(AF15>AG15,\"KO\",\"ok\"),\"ok\")","v":"ok"}]
[null,null,"Totale interventi Trainanti  : ",null,null,{"$f":"SUM(F13:F15)","v":100},10,110,11,121,0,121,133.10000000000002,null,null,null,"Totale interventi Trainanti  : ",null,null,null,{"$f":"SUM(U13:V15)","v":121},null,{"$f":"SUM(W13:X15)","v":0},null,{"$f":"SUM(Y13:Z15)","v":133.10000000000002},null,{"$f":"SUM(AA13:AB15)","v":0}]
[null,null,null,null,null,null,null,null,null,null,null,null,null,null,null,null,null,null,null,null,null,null,null,null,null,null,null,null,null,{"$f":"IF(COUNTIF(AH20:AH26,\"KO\")>0,\"ATTENZIONE! Massimale Spesa MITE non Asseverabile\",\"\")","v":""}]
[null,null,"INTERVENTI TRAINATI PARTI COMUNI CONDOMINIALI",null,null,null,null,null,null,null,null,null,null,"..",null,null,{"$f":"CONCATENATE(\"Massimali di Spesa \",C18)","v":"Massimali di Spesa INTERVENTI TRAINATI PARTI COMUNI CONDOMINIALI"},null,null,null,null,null,null,null,null,null,null,null,null,"Spesa Specifica MITE",null,{"$f":"MID(C18,1,32)","v":"INTERVENTI TRAINATI PARTI COMUNI"}]
[null,null,"  Interventi",null,null,"Importo Lavori","Incidenza Sicurezza","Imponibile","Iva","Importo c.iva","Spese tecniche","Totale","Credito Spettante  110% Spesa Ammessa",null,null,null,"Interventi","Massimale  spesa","Verifica Max",null,"Spesa Ammessa",null,"Quota Eccedente Massimale Spesa ",null,"Credito Spettante               110% Spesa Ammessa                                Quota Impresa | Quota Tecnici",null,null,null,null,"Sup. Interv. / Unita Misura","Incidenza Materiale %","Spesa Specifica","Spesa Specifica Massima ammissibile","Verifica"]
[null,null,"PV) Isolamento pareti perimetrali",null,"Esterno",0,0,{"$f":"SUM(F20:G20)","v":0},{"$f":"F20*'Dati Gen'!$J$20+G20*'Dati Gen'!$J$19","v":0},{"$f":"H20+I20","v":0},0,{"$f":"SUM(J20:K20)","v":0},{"$f":"IF(L20<=R20,L20*1.1,R20*1.1)","v":0},null,null,null,{"$f":"C20","v":"PV) Isolamento pareti perimetrali"},{"$f":"IF(TipoEdif=1,50000,IF(N_Uimm>8,40000*8+30000*(N_Uimm-8),40000*N_Uimm))","v":50000},{"$f":"IF(L20>M20,\"KO\",IF(L20>R20,\"ok<\",\"ok\"))","v":"ok"},null,{"$f":"IF(L20<R20,L20,R20)","v":0},null,{"$f":"IF(L20>R20,L20-R20,0)","v":0},null,{"$f":"IF(M20<>0,J20*M20/L20,0)","v":0},null,{"$f":"IF(M20<>0,K20*M20/L20,0)","v":0},null,null,null,null,{"$f":"IF(ISNUMBER(AD20)=TRUE,IF(AD20<>0,F20*AE20/AD20,0),0)","v":0},{"$f":"IF(ZonaClimatica=\"A\",IF(E20=\"Parete Ventilata\",240,IF(E20=\"Interno\",96,180)),IF(ZonaClimatica=\"B\",IF(E20=\"Parete Ventilata\",240,IF(E20=\"Interno\",96,180)),IF(ZonaClimatica=\"C\",IF(E20=\"Parete Ventilata\",240,IF(E20=\"Interno\",96,180)),IF(E20=\"Parete Ventilata\",260,IF(E20=\"Interno\",104,195)))))","v":195},{"$f":"IF(AF20<>0,IF(AF20>AG20,\"KO\",\"ok\"),\"ok\")","v":"ok"}]
[null,null,"PO) Isolamento coperture",null,"Esterno",0,0,{"$f":"SUM(F21:G21)","v":0},{"$f":"F21*'Dati Gen'!$J$20+G21*'Dati Gen'!$J$19","v":0},{"$f":"H21+I21","v":0},0,{"$f":"SUM(J21:K21)","v":0},{"$f":"IF(L21<=R21,L21*1.1,R21*1.1)","v":0},null,null,null,"PO) Isolamento coperture",{"$f":"IF(TipoEdif=1,50000,IF(N_Uimm>8,40000*8+30000*(N_Uimm-8),40000*N_Uimm))","v":50000},"ok",null,{"$f":"IF(L21<R21,L21,R21)","v":0},null,0,null,0,null,0,null,null,null,null,{"$f":"IF(ISNUMBER(AD21)=TRUE,IF(AD21<>0,F21*AE21/AD21,0),0)","v":0},{"$f":"IF(E21=\"Copertura Ventilata\",300,IF(E21=\"Interno\",120,276))","v":276},{"$f":"IF(AF21<>0,IF(AF21>AG21,\"KO\",\"ok\"),\"ok\")","v":"ok"}]
[null,null,"PS) Isolamento Pavimenti",null,"Interno/terreno",0,0,{"$f":"SUM(F22:G22)","v":0},{"$f":"F22*'Dati Gen'!$J$20+G22*'Dati Gen'!$J$19","v":0},{"$f":"H22+I22","v":0},0,{"$f":"SUM(J22:K22)","v":0},{"$f":"IF(L22<=R22,L22*1.1,R22*1.1)","v":0},null,null,null,{"$f":"C22","v":"PS) Isolamento Pavimenti"},{"$f":"IF(TipoEdif=1,50000,IF(N_Uimm>8,40000*8+30000*(N_Uimm-8),40000*N_Uimm))","v":50000},"ok",null,0,null,0,null,0,null,0,null,null,null,null,{"$f":"IF(ISNUMBER(AD22)=TRUE,IF(AD22<>0,F22*AE22/AD22,0),0)","v":0},{"$f":"IF(E22=\"Interno/terreno\",180,144)","v":180},{"$f":"IF(AF22<>0,IF(AF22>AG22,\"KO\",\"ok\"),\"ok\")","v":"ok"}]
[null,null,"IN) Serramenti con chiusure oscuranti",null,{"$f":"IF(ZonaClimatica=\"A\",\"Zone A, B e C\", IF(ZonaClimatica=\"B\",\"Zone A, B e C\",IF(ZonaClimatica=\"C\",\"Zone A, B e C\",\"Zone D, E ed F\")))","v":"Zone D, E ed F"},0,0,{"$f":"SUM(F23:G23)","v":0},{"$f":"F23*'Dati Gen'!$J$20+G23*'Dati Gen'!$J$19","v":0},{"$f":"H23+I23","v":0},0,{"$f":"SUM(J23:K23)","v":0},{"$f":"IF(L23<=R23,L23*1.1,R23*1.1)","v":0},null,null,null,{"$f":"C23","v":"IN) Serramenti con chiusure oscuranti"},{"$f":"INT(60000/1.1)*N_Uimm","v":54545},"ok",null,0,null,0,null,0,null,0,null,null,null,null,{"$f":"IF(ISNUMBER(AD23)=TRUE,IF(AD23<>0,F23*AE23/AD23,0),0)","v":0},{"$f":"IF(E23=\"Zone A, B e C\",IF(C23=\"IN) Serramenti\",660,780),IF(C23=\"IN) Serramenti\",780,900))","v":900},{"$f":"IF(AF23<>0,IF(AF23>AG23,\"KO\",\"ok\"),\"ok\")","v":"ok"}]
[null,null,"Totali Isolamento PV) PO) PS) e IN)",null,null,{"$f":"SUM(F20:F23)","v":0},0,0,0,0,0,0,0,null,null,null,"Totali Isolamento PV) PO) PS) e IN)",{"$f":"INT(60000/1.1)*N_Uimm","v":54545},"ok",null,0,null,0,null,0,null,0]
[null,null,"SS) Schermature solari e chiusure oscuranti",null,null,0,0,{"$f":"SUM(F25:G25)","v":0},{"$f":"F25*'Dati Gen'!$J$20+G25*'Dati Gen'!$J$19","v":0},{"$f":"H25+I25","v":0},0,{"$f":"SUM(J25:K25)","v":0},0,null,null,null,"SS) Schermature solari e chiusure oscuranti",{"$f":"INT(60000/1.1)*N_Uimm","v":54545},"ok",null,0,null,0,null,0,null,0,null,null,null,null,{"$f":"IF(ISNUMBER(AD25)=TRUE,IF(AD25<>0,F25*AE25/AD25,0),0)","v":0},276,{"$f":"IF(AF25<>0,IF(AF25>AG25,\"KO\",\"ok\"),\"ok\")","v":"ok"}]
[null,null,"Impianti climatizzazione con ","SI)Sistemi Ibridi",null,0,0,{"$f":"SUM(F26:G26)","v":0},{"$f":"F26*'Dati Gen'!$J$20+G26*'Dati Gen'!$J$19","v":0},{"$f":"H26+I26","v":0},0,{"$f":"SUM(J26:K26)","v":0},0,null,null,null,{"$f":"CONCATENATE(C26,\" \",D26)","v":"Impianti climatizzazione con  SI)Sistemi Ibridi"},{"$f":"INT(30000/1.1)*N_Uimm","v":27272},"ok",null,0,null,0,null,0,null,0,null,null,null,null,{"$f":"IF(ISNUMBER(AD26)=TRUE,IF(AD26<>0,F26*AE26/AD26,0),0)","v":0},{"$f":"IF(LEFT(D26,3)=\"CC)\",IF(AD26<=35,240,216),IF(D26=\"PC)Aria/Aria\",720,IF(D26=\"PC)Altro\",1560,IF(D26=\"PC)Geotermiche\",2280,IF(LEFT(D26,4)=\"PCA)\",1560,IF(LEFT(D26,3)=\"SI)\",1860,0))))))","v":1860},{"$f":"IF(AF26<>0,IF(AF26>AG26,\"KO\",\"ok\"),\"ok\")","v":"ok"}]
[null,null,"GA) Generatori aria calda Condensazione",null,null,0,0,{"$f":"SUM(F27:G27)","v":0},{"$f":"F27*'Dati Gen'!$J$20+G27*'Dati Gen'!$J$19","v":0},{"$f":"H27+I27","v":0},0,{"$f":"SUM(J27:K27)","v":0},0,null,null,null,"GA) Generatori aria calda Condensazione",{"$f":"INT(30000/1.1)*N_Uimm","v":27272},"ok",null,0,null,0,null,0,null,0,null,null,null,null,{"$f":"IF(ISNUMBER(AD27)=TRUE,IF(AD27<>0,F27*AE27/AD27,0),0)","v":0},{"$f":"IF(AD27<=35,240,216)","v":240},{"$f":"IF(AF27<>0,IF(AF27>AG27,\"KO\",\"ok\"),\"ok\")","v":"ok"}]
[null,null,"IB) Impianti Biomassa",null,null,0,0,{"$f":"SUM(F28:G28)","v":0},{"$f":"F28*'Dati Gen'!$J$20+G28*'Dati Gen'!$J$19","v":0},{"$f":"H28+I28","v":0},0,{"$f":"SUM(J28:K28)","v":0},{"$f":"IF(L28<=R28,L28*1.1,R28*1.1)","v":0},null,null,null,"IB) Impianti Biomassa",{"$f":"INT(30000/1.1)*N_Uimm","v":27272},"ok",null,0,null,0,null,0,null,0,null,null,null,null,{"$f":"IF(ISNUMBER(AD28)=TRUE,IF(AD28<>0,F28*AE28/AD28,0),0)","v":0},{"$f":"IF(AD27<=35,420,540)","v":420},{"$f":"IF(AF28<>0,IF(AF28>AG28,\"KO\",\"ok\"),\"ok\")","v":"ok"}]
[null,null,"SA) Scaldacqua a pompa di calore",null,null,0,0,{"$f":"SUM(F29:G29)","v":0},{"$f":"F29*'Dati Gen'!$J$20+G29*'Dati Gen'!$J$19","v":0},{"$f":"H29+I29","v":0},0,{"$f":"SUM(J29:K29)","v":0},0,null,null,null,"SA) Scaldacqua a pompa di calore",{"$f":"INT(30000/1.1)*N_Uimm","v":27272},"ok",null,0,null,0,null,0,null,0,null,null,null,null,{"$f":"IF(ISNUMBER(AD29)=TRUE,IF(AD29<>0,F29*AE29/AD29,0),0)","v":0},{"$f":"IF(AD29<=150,1200,1500)","v":1200},{"$f":"IF(AF29<>0,IF(AF29>AG29,\"KO\",\"ok\"),\"ok\")","v":"ok"}]
[null,null,"Totali GA)  IB)  SA)",null,null,{"$f":"SUM(F27:F29)","v":0},{"$f":"SUM(G27:G29)","v":0},{"$f":"SUM(H27:H29)","v":0},0,0,0,0,0,null,null,null,"Totali GA)  IB)  SA)",{"$f":"INT(30000/1.1)*N_Uimm","v":27272},"ok",null,{"$f":"IF(L30<R30,L30,R30)","v":0},null,{"$f":"IF(L30>R30,L30-R30,0)","v":0},null,{"$f":"IF(M30<>0,J30*M30/L30,0)","v":0},null,{"$f":"IF(M30<>0,K30*M30/L30,0)","v":0}]
[null,null,"CO) Sistemi di Microgenerazione",null,"Celle a combustibile",0,0,{"$f":"SUM(F31:G31)","v":0},{"$f":"F31*'Dati Gen'!$J$20+G31*'Dati Gen'!$J$19","v":0},{"$f":"H31+I31","v":0},0,{"$f":"SUM(J31:K31)","v":0},{"$f":"IF(L31<=R31,L31*1.1,R31*1.1)","v":0},null,null,null,{"$f":"C31","v":"CO) Sistemi di Microgenerazione"},{"$f":"INT(100000/1.1)*N_Uimm","v":90909},"ok",null,0,null,0,null,0,null,0,null,null,null,null,{"$f":"IF(ISNUMBER(AD31)=TRUE,IF(AD31<>0,F31*AE31/AD31,0),0)","v":0},{"$f":"IF(E31=\"Celle a combustibile\",30000,3720)","v":30000},{"$f":"IF(AF31<>0,IF(AF31>AG31,\"KO\",\"ok\"),\"ok\")","v":"ok"}]
[null,null,"ST) Collettori Solari",null,"Piani Vetrati",0,0,0,{"$f":"F32*'Dati Gen'!$J$20+G32*'Dati Gen'!$J$19","v":0},0,0,0,0,null,null,null,"ST) Collettori Solari",{"$f":"INT(60000/1.1)*N_Uimm","v":54545},"ok",null,0,null,0,null,0,null,0,null,null,null,null,0,{"$f":"IF(E32=\"Scoperti\",900,IF(E32=\"Piani vetrati\",1200,1500))","v":1200},{"$f":"IF(AF32<>0,IF(AF32>AG32,\"KO\",\"ok\"),\"ok\")","v":"ok"}]
[null,null,"FV) Solare Fotovoltaico [ kWp ]",null,6,0,0,0,{"$f":"F33*'Dati Gen'!$J$20+G33*'Dati Gen'!$J$19","v":0},0,0,0,0,null,null,null,{"$f":"C33","v":"FV) Solare Fotovoltaico [ kWp ]"},{"$f":"IF(ISNUMBER(FIND(\"ristr\",C33))=FALSE,IF(E33*2400<48000*N_Uimm,E33*2400,48000*N_Uimm),IF(E33*1600<48000*N_Uimm,E33*1600,48000*N_Uimm))","v":14400},"ok",null,0,null,0,null,0,null,0,null,null,null,null,0,2400,{"$f":"IF(AF33<>0,IF(AF33>AG33,\"KO\",\"ok\"),\"ok\")","v":"ok"}]
[null,null,"AC) Sistema di Accumulo [ kWh ]",null,10,0,0,0,{"$f":"F34*'Dati Gen'!$J$20+G34*'Dati Gen'!$J$19","v":0},0,0,0,0,null,null,null,{"$f":"C34","v":"AC) Sistema di Accumulo [ kWh ]"},{"$f":"IF(E34*1000<48000*N_Uimm,E34*1000,48000*N_Uimm)","v":10000},"ok",null,0,null,0,null,0,null,0,null,null,null,null,0,1000,"ok"]
[null,null,"CR) Colonnine di Ricarica  [ N. ]",null,1,0,0,0,{"$f":"F35*'Dati Gen'!$J$20+G35*'Dati Gen'!$J$19","v":0},0,0,0,0,null,null,null,{"$f":"C35","v":"CR) Colonnine di Ricarica  [ N. ]"},{"$f":"IF(E35>8,1500*8+1200*(E35-8),1500*E35)","v":1500},"ok",null,0,null,0,null,0,null,0,null,null,null,null,0,1500,"ok"]
[null,null,"EBA) Eliminazione Barriere architettoniche",null,null,0,0,0,{"$f":"F36*'Dati Gen'!$J$20+G36*'Dati Gen'!$J$19","v":0},0,0,0,0,null,null,null,"EBA) Eliminazione Barriere architettoniche",{"$f":"IF(F36>0,IF(96000*N_Uimm > F15,96000*N_Uimm - F15,0),96000*N_Uimm )","v":96000},"ok",null,0,null,0,null,0,null,0,null,null,null,null,0,0,"ok"]
[null,null,"Totale Interventi Trainati Parti Comuni: ",null,null,{"$f":"SUM(F24:F26)+SUM(F30:F36)","v":0},{"$f":"SUM(G24:G26)+SUM(G30:G36)","v":0},0,0,0,0,0,0,null,null,null,{"$f":"C37","v":"Totale Interventi Trainati Parti Comuni: "},null,null,null,{"$f":"U24+U25+U26+SUM(U30:V36)","v":0},null,{"$f":"W24+W25+W26+SUM(W30:X36)","v":0},null,{"$f":"Y24+Y25+Y26+SUM(Y30:Z36)","v":0},null,{"$f":"AA24+AA25+AA26+SUM(AA30:AB36)","v":0}]
[]
[null,null,null,null,null,null,null,null,null,null,null,null,null,null,null,null,null,null,null,null,null,null,null,null,null,null,null,null,null,{"$f":"IF(COUNTIF(AH42:AH48,\"KO\")>0,\"ATTENZIONE! Massimale Spesa MITE non Asseverabile\",\"\")","v":""}]
[null,null,"INTERVENTI TRAINATI",null,null,null,null,null,null,null,null,null,null,"..",null,null,{"$f":"CONCATENATE(\"Massimali di Spesa \",C40)","v":"Massimali di Spesa INTERVENTI TRAINATI"},null,null,null,null,null,null,null,null,null,null,null,null,"Spesa Specifica MITE",null,{"$f":"C40","v":"INTERVENTI TRAINATI"}]
[null,null,"  Interventi",null,null,"Importo Lavori","Incidenza Sicurezza","Imponibile","Iva","Importo c.iva","Spese tecniche","Totale","Credito Spettante  110% Spesa Ammessa",null,null,null,"Interventi","Massimale  spesa","Verifica Max",null,"Spesa Ammessa",null,"Quota Eccedente Massimale Spesa ",null,"Credito Spettante               110% Spesa Ammessa                                Quota Impresa | Quota Tecnici",null,null,null,null,"Sup. Interv. / Unita Misura","Incidenza Materiale %","Spesa Specifica","Spesa Specifica Massima ammissibile","Verifica"]
[null,null,"PV) Isolamento pareti perimetrali",null,"Esterno",0,0,{"$f":"SUM(F42:G42)","v":0},{"$f":"F42*'Dati Gen'!$J$20+G42*'Dati Gen'!$J$19","v":0},{"$f":"H42+I42","v":0},0,{"$f":"SUM(J42:K42)","v":0},{"$f":"IF(L42<=R42,L42*1.1,R42*1.1)","v":0},null,null,null,{"$f":"C42","v":"PV) Isolamento pareti perimetrali"},{"$f":"INT(60000/1.1)","v":54545},{"$f":"IF(L42>M42,\"KO\",IF(L42>R42,\"ok<\",\"ok\"))","v":"ok"},null,{"$f":"IF(L42<R42,L42,R42)","v":0},null,{"$f":"IF(L42>R42,L42-R42,0)","v":0},null,{"$f":"IF(M42<>0,J42*M42/L42,0)","v":0},null,{"$f":"IF(M42<>0,K42*M42/L42,0)","v":0},null,null,null,null,{"$f":"IF(ISNUMBER(AD42)=TRUE,IF(AD42<>0,F42*AE42/AD42,0),0)","v":0},{"$f":"IF(ZonaClimatica=\"A\",IF(E42=\"Parete Ventilata\",240,IF(E42=\"Interno\",96,180)),IF(ZonaClimatica=\"B\",IF(E42=\"Parete Ventilata\",240,IF(E42=\"Interno\",96,180)),IF(ZonaClimatica=\"C\",IF(E42=\"Parete Ventilata\",240,IF(E42=\"Interno\",96,180)),IF(E42=\"Parete Ventilata\",260,IF(E42=\"Interno\",104,195)))))","v":195},{"$f":"IF(AF42<>0,IF(AF42>AG42,\"KO\",\"ok\"),\"ok\")","v":"ok"}]
[null,null,"PO) Isolamento coperture",null,"Esterno",0,0,{"$f":"SUM(F43:G43)","v":0},{"$f":"F43*'Dati Gen'!$J$20+G43*'Dati Gen'!$J$19","v":0},{"$f":"H43+I43","v":0},0,{"$f":"SUM(J43:K43)","v":0},{"$f":"IF(L43<=R43,L43*1.1,R43*1.1)","v":0},null,null,null,"PO) Isolamento coperture",54545,"ok",null,0,null,0,null,0,null,0,null,null,null,null,{"$f":"IF(ISNUMBER(AD43)=TRUE,IF(AD43<>0,F43*AE43/AD43,0),0)","v":0},{"$f":"IF(E43=\"Copertura Ventilata\",300,IF(E43=\"Interno\",120,276))","v":276},{"$f":"IF(AF43<>0,IF(AF43>AG43,\"KO\",\"ok\"),\"ok\")","v":"ok"}]
[null,null,"PS) Isolamento Pavimenti",null,"Esterno",0,0,{"$f":"SUM(F44:G44)","v":0},{"$f":"F44*'Dati Gen'!$J$20+G44*'Dati Gen'!$J$19","v":0},{"$f":"H44+I44","v":0},0,{"$f":"SUM(J44:K44)","v":0},{"$f":"IF(L44<=R44,L44*1.1,R44*1.1)","v":0},null,null,null,"PS) Isolamento Pavimenti",54545,"ok",null,0,null,0,null,0,null,0,null,null,null,null,{"$f":"IF(ISNUMBER(AD44)=TRUE,IF(AD44<>0,F44*AE44/AD44,0),0)","v":0},{"$f":"IF(E44=\"Interno/terreno\",180,144)","v":144},{"$f":"IF(AF44<>0,IF(AF44>AG44,\"KO\",\"ok\"),\"ok\")","v":"ok"}]
[null,null,"IN) Serramenti con chiusure oscuranti",null,{"$f":"IF(ZonaClimatica=\"A\",\"Zone A, B e C\", IF(ZonaClimatica=\"B\",\"Zone A, B e C\",IF(ZonaClimatica=\"C\",\"Zone A, B e C\",\"Zone D, E ed F\")))","v":"Zone D, E ed F"},0,0,{"$f":"SUM(F45:G45)","v":0},{"$f":"F45*'Dati Gen'!$J$20+G45*'Dati Gen'!$J$19","v":0},{"$f":"H45+I45","v":0},0,{"$f":"SUM(J45:K45)","v":0},{"$f":"IF(L45<=R45,L45*1.1,R45*1.1)","v":0},null,null,null,"IN) Serramenti con chiusure oscuranti",54545,"ok",null,0,null,0,null,0,null,0,null,null,null,null,{"$f":"IF(ISNUMBER(AD45)=TRUE,IF(AD45<>0,F45*AE45/AD45,0),0)","v":0},{"$f":"IF(E45=\"Zone A, B e C\",IF(C45=\"IN) Serramenti\",660,780),IF(C45=\"IN) Serramenti\",780,900))","v":900},{"$f":"IF(AF45<>0,IF(AF45>AG45,\"KO\",\"ok\"),\"ok\")","v":"ok"}]
[null,null,"Totali Isolamento PV) PO) PS) e IN",null,null,{"$f":"SUM(F42:F45)","v":0},0,0,0,0,0,0,0,null,null,null,"Totali Isolamento PV) PO) PS) e IN",54545,"ok",null,0,null,0,null,0,null,0]
[null,null,"SS) Schermature solari e chiusure oscuranti",null,null,0,0,{"$f":"SUM(F47:G47)","v":0},{"$f":"F47*'Dati Gen'!$J$20+G47*'Dati Gen'!$J$19","v":0},{"$f":"H47+I47","v":0},0,{"$f":"SUM(J47:K47)","v":0},{"$f":"IF(L47<=R47,L47*1.1,R47*1.1)","v":0},null,null,null,"SS) Schermature solari e chiusure oscuranti",54545,"ok",null,0,null,0,null,0,null,0,null,null,null,null,{"$f":"IF(ISNUMBER(AD47)=TRUE,IF(AD47<>0,F47*AE47/AD47,0),0)","v":0},276,{"$f":"IF(AF47<>0,IF(AF47>AG47,\"KO\",\"ok\"),\"ok\")","v":"ok"}]
[null,null,"Impianti climatizzazione con ","SI)Sistemi Ibridi",null,0,0,{"$f":"SUM(F48:G48)","v":0},{"$f":"F48*'Dati Gen'!$J$20+G48*'Dati Gen'!$J$19","v":0},{"$f":"H48+I48","v":0},0,{"$f":"SUM(J48:K48)","v":0},{"$f":"IF(L48<=R48,L48*1.1,R48*1.1)","v":0},null,null,null,{"$f":"CONCATENATE(C48,\" \",D48)","v":"Impianti climatizzazione con  SI)Sistemi Ibridi"},30000,"ok",null,0,null,0,null,0,null,0,null,null,null,null,{"$f":"IF(ISNUMBER(AD48)=TRUE,IF(AD48<>0,F48*AE48/AD48,0),0)","v":0},{"$f":"IF(LEFT(D48,3)=\"CC)\",IF(AD48<=35,240,216),IF(D48=\"PC)Aria/Aria\",720,IF(D48=\"PC)Altro\",1560,IF(D48=\"PC)Geotermiche\",2280,IF(LEFT(D48,4)=\"PCA)\",1560,IF(LEFT(D48,3)=\"SI)\",1860,0))))))","v":1860},{"$f":"IF(AF48<>0,IF(AF48>AG48,\"KO\",\"ok\"),\"ok\")","v":"ok"}]
[null,null,"SA) Scaldacqua a pompa di calore",null,null,0,0,{"$f":"SUM(F49:G49)","v":0},{"$f":"F49*'Dati Gen'!$J$20+G49*'Dati Gen'!$J$19","v":0},{"$f":"H49+I49","v":0},0,{"$f":"SUM(J49:K49)","v":0},{"$f":"IF(L49<=R49,L49*1.1,R49*1.1)","v":0},null,null,null,"SA) Scaldacqua a pompa di calore",{"$f":"INT(30000/1.1)","v":27272},"ok",null,0,null,0,null,0,null,0,null,null,null,null,{"$f":"IF(ISNUMBER(AD49)=TRUE,IF(AD49<>0,F49*AE49/AD49,0),0)","v":0},{"$f":"IF(AD49<=150,1200,1500)","v":1200},{"$f":"IF(AF49<>0,IF(AF49>AG49,\"KO\",\"ok\"),\"ok\")","v":"ok"}]
[null,null,"Totali Impianti ed  SA)",null,null,{"$f":"SUM(F48:F49)","v":0},{"$f":"SUM(G48:G49)","v":0},0,0,0,0,0,0,null,null,null,"Totali Impianti ed  SA)",{"$f":"INT(30000/1.1)","v":27272},"ok",null,0,null,0,null,0,null,0]
[null,null,"CO) Sistemi di Microgenerazione",null,"Motore endotermico / altro",0,0,{"$f":"SUM(F51:G51)","v":0},{"$f":"F51*'Dati Gen'!$J$20+G51*'Dati Gen'!$J$19","v":0},{"$f":"H51+I51","v":0},0,{"$f":"SUM(J51:K51)","v":0},{"$f":"IF(L51<=R51,L51*1.1,R51*1.1)","v":0},null,null,null,{"$f":"C51","v":"CO) Sistemi di Microgenerazione"},{"$f":"INT(100000/1.1)","v":90909},"ok",null,{"$f":"IF(L51<R51,L51,R51)","v":0},null,{"$f":"IF(L51>R51,L51-R51,0)","v":0},null,{"$f":"IF(M51<>0,J51*M51/L51,0)","v":0},null,{"$f":"IF(M51<>0,K51*M51/L51,0)","v":0},null,null,null,null,{"$f":"IF(ISNUMBER(AD51)=TRUE,IF(AD51<>0,F51*AE51/AD51,0),0)","v":0},{"$f":"IF(E51=\"Celle a combustibile\",30000,3720)","v":3720},{"$f":"IF(AF51<>0,IF(AF51>AG51,\"KO\",\"ok\"),\"ok\")","v":"ok"}]
[null,null,"IB) Generatori a Biomassa",null,null,0,0,0,{"$f":"F52*'Dati Gen'!$J$20+G52*'Dati Gen'!$J$19","v":0},0,0,0,0,null,null,null,"IB) Generatori a Biomassa",{"$f":"INT(30000/1.1)","v":27272},"ok",null,0,null,0,null,0,null,0,null,null,null,null,0,{"$f":"IF(AD51<=35,420,540)","v":420},{"$f":"IF(AF52<>0,IF(AF52>AG52,\"KO\",\"ok\"),\"ok\")","v":"ok"}]
[null,null,"BA) Building Automation",null,null,0,0,0,{"$f":"F53*'Dati Gen'!$J$20+G53*'Dati Gen'!$J$19","v":0},0,0,0,0,null,null,null,"BA) Building Automation",{"$f":"15000/1.1","v":13636.363636363636},"ok",null,0,null,0,null,0,null,0,null,null,null,null,0,60,{"$f":"IF(AF53<>0,IF(AF53>AG53,\"KO\",\"ok\"),\"ok\")","v":"ok"}]
[null,null,"ST) Collettori Solari",null,"Scoperti",0,0,0,{"$f":"F54*'Dati Gen'!$J$20+G54*'Dati Gen'!$J$19","v":0},0,0,0,0,null,null,null,"ST) Collettori Solari",{"$f":"INT(60000/1.1)","v":54545},"ok",null,0,null,0,null,0,null,0,null,null,null,null,0,{"$f":"IF(E55=\"Scoperti\",900,IF(E55=\"Piani vetrati\",1200,1500))","v":1500},{"$f":"IF(AF54<>0,IF(AF54>AG54,\"KO\",\"ok\"),\"ok\")","v":"ok"}]
[null,null,"FV) Solare Fotovoltaico [ kWp ]",null,13.3,0,0,0,{"$f":"F55*'Dati Gen'!$J$20+G55*'Dati Gen'!$J$19","v":0},0,0,0,0,null,null,null,{"$f":"C55","v":"FV) Solare Fotovoltaico [ kWp ]"},{"$f":"IF(ISNUMBER(FIND(\"ristr\",C55))=FALSE,IF(E55*2400<48000*N_Uimm,E55*2400,48000*N_Uimm),IF(E55*1600<48000*N_Uimm,E55*1600,48000*N_Uimm))","v":31920},"ok",null,0,null,0,null,0,null,0,null,null,null,null,0,2400,{"$f":"IF(AF55<>0,IF(AF55>AG55,\"KO\",\"ok\"),\"ok\")","v":"ok"}]
[null,null,"AC) Sistema di Accumulo [ kWh ]",null,23.1,0,0,0,{"$f":"F56*'Dati Gen'!$J$20+G56*'Dati Gen'!$J$19","v":0},0,0,0,0,null,null,null,{"$f":"C56","v":"AC) Sistema di Accumulo [ kWh ]"},{"$f":"IF(E56*1000<48000*N_Uimm,E56*1000,48000*N_Uimm)","v":23100},"ok",null,0,null,0,null,0,null,0,null,null,null,null,0,1000,"ok"]
[null,null,"CR) Colonnine di Ricarica",null,1,0,0,0,{"$f":"F57*'Dati Gen'!$J$20+G57*'Dati Gen'!$J$19","v":0},0,0,0,0,null,null,null,"CR) Colonnine di Ricarica",{"$f":"IF(TipoEdif=1,2000,IF(N_Uimm>8,1200*N_Uimm,1500*N_Uimm))","v":2000},"ok",null,0,null,0,null,0,null,0,null,null,null,null,0,1500,"ok"]
[null,null,"EBA) Eliminazione Barriere architettoniche",null,null,0,0,{"$f":"SUM(F58:G58)","v":0},{"$f":"F58*'Dati Gen'!$J$20+G58*'Dati Gen'!$J$19","v":0},{"$f":"H58+I58","v":0},0,0,0,null,null,null,"EBA) Eliminazione Barriere architettoniche",{"$f":"IF(F58>0,IF(96000*N_Uimm > F15,96000*N_Uimm - F15,0),96000*N_Uimm )","v":96000},"ok",null,0,null,0,null,0,null,0,null,null,null,null,0,0,"ok"]
[null,null,"Totale Interventi trainati",null,null,{"$f":"F46+F47+SUM(F50:F58)","v":0},0,0,0,0,0,0,0,null,null,null,{"$f":"C59","v":"Totale Interventi trainati"},null,null,null,{"$f":"U46+U47+SUM(U50:V58)","v":0},null,{"$f":"W46+W47+SUM(W50:X58)","v":0},null,{"$f":"Y46+Y47+SUM(Y50:Z58)","v":0},null,{"$f":"AA46+AA47+SUM(AA50:AB58)","v":0}]
[]
[]
[]
[]
[]
[]
[]
[]
[]
[]
[]
[]
[]
[]
[]
[]
[]
[]
[null,null,"SimMZ"]
[]
[null,null,"TOTALE INTERVENTI 110 ",null,null,"Importo Lavori","Incidenza Sicurezza","Imponibile","Iva","Importo c.iva","Spese tecniche","Totale","Credito Spettante  110% Spesa Ammessa",null,null,null,{"$f":"C80","v":"TOTALE INTERVENTI 110 "},null,null,null,"Spesa Ammessa",null,"Quota Eccedente Massimale Spesa ",null,"Credito Spettante               110% Spesa Ammessa                                Quota Impresa | Quota Tecnici"]
[null,null,null,null,null,{"$f":"F16+F59","v":100},10,110,11,121,0,121,133.10000000000002,null,null,null,null,null,null,null,{"$f":"U16+U59","v":121},null,{"$f":"W16+W59","v":0},null,{"$f":"Y16+Y59","v":133.10000000000002},null,{"$f":"AA16+AA59","v":0}]
[]
[]
[]
[]
[null,null,null,null,null,null,null,null,null,null,null,null,null,null,null,null,null,null,null,null,null,null,null,null,null,null,null,null,null,{"$f":"IF(COUNTIF(AH89:AH92,\"KO\")>0,\"ATTENZIONE! Massimale Spesa MITE non Asseverabile\",\"\")","v":""}]
[null,null,"ALTRI INTERVENTI",null,null,null,null,null,null,null,null,null,null,null,null,null,{"$f":"CONCATENATE(\"Verifica Massimali di Spesa \",C87)","v":"Verifica Massimali di Spesa ALTRI INTERVENTI"},null,null,null,null,null,null,null,null,null,null,null,null,"Spesa Specifica MITE",null,{"$f":"C87","v":"ALTRI INTERVENTI"}]
[null,null,"  Interventi",null,"x% Credito ceduto","Importo Lavori","Incidenza Sicurezza","Imponibile","Iva","Importo c.iva","Spese tecniche","Totale","Credito Spettante  x% Spesa Ammessa",null,null,null,null,"Massimale  spesa","Verifica Max",null,"Spesa Ammessa",null,"Quota Eccedente Massimale Spesa ",null,"Credito Spettante                    x% Spesa Ammessa                                Quota Impresa | Quota Tecnici",null,null,null,null,"Sup. Interv. / Unita Misura","Incidenza Materiale %","Spesa Specifica","Spesa Specifica Massima ammissibile","Verifica"]
[null,null,"Ristrutturazione",null,0.5,null,{"$f":"IF(ImpLav<>0,F89*ImpSicLav/ImpLav,0)","v":0},{"$f":"F89+G89","v":0},{"$f":"H89*AliqIva","v":0},{"$f":"H89+I89","v":0},0,{"$f":"SUM(J89:K89)","v":0},{"$f":"IF(L89<=R89,L89*E89,R89*E89)","v":0},null,null,null,{"$f":"IF(C89<>\"\",C89,\"\")","v":"Ristrutturazione"},{"$f":"96000*N_Uimm","v":96000},{"$f":"IF(L89>R89,\"KO\",\"ok\")","v":"ok"},null,{"$f":"IF(L89<R89,L89,R89)","v":0},null,{"$f":"IF(L89>R89,L89-R89,0)","v":0},null,{"$f":"IF(M89<>0,J89*M89/L89,0)","v":0},null,{"$f":"IF(M89<>0,K89*M89/L89,0)","v":0},null,null,null,null,{"$f":"IF(ISNUMBER(AD89)=TRUE,IF(AD89<>0,F89/AD89,0),0)","v":0},0,{"$f":"IF(AG89<>0,IF(AF89>AG89,\"KO\",\"ok\"),\"ok\")","v":"ok"}]
[null,null,"Bonus facciata",null,0.6,0,{"$f":"IF(ImpLav<>0,F90*ImpSicLav/ImpLav,0)","v":0},{"$f":"F90+G90","v":0},{"$f":"H90*AliqIva","v":0},{"$f":"H90+I90","v":0},{"$f":"IF(ImpLav<>0,F90*ImpTecLav/ImpLav,0)","v":0},{"$f":"SUM(J90:K90)","v":0},{"$f":"IF(L90<=R90,L90*E90,R90*E90)","v":0},null,null,null,{"$f":"IF(C90<>\"\",C90,\"\")","v":"Bonus facciata"},{"$f":"96000*N_Uimm","v":96000},{"$f":"IF(L90>R90,\"KO\",\"ok\")","v":"ok"},null,{"$f":"IF(L90<R90,L90,R90)","v":0},null,{"$f":"IF(L90>R90,L90-R90,0)","v":0},null,{"$f":"IF(M90<>0,J90*M90/L90,0)","v":0},null,{"$f":"IF(M90<>0,K90*M90/L90,0)","v":0},null,null,null,null,{"$f":"IF(ISNUMBER(AD90)=TRUE,IF(AD90<>0,F90/AD90,0),0)","v":0},0,{"$f":"IF(AG90<>0,IF(AF90>AG90,\"KO\",\"ok\"),\"ok\")","v":"ok"}]
[null,null,"Bonus Casa",null,0.7,0,{"$f":"IF(ImpLav<>0,F91*ImpSicLav/ImpLav,0)","v":0},{"$f":"F91+G91","v":0},{"$f":"H91*AliqIva","v":0},{"$f":"H91+I91","v":0},{"$f":"IF(ImpLav<>0,F91*ImpTecLav/ImpLav,0)","v":0},{"$f":"SUM(J91:K91)","v":0},{"$f":"IF(L91<=R91,L91*E91,R91*E91)","v":0},null,null,null,{"$f":"IF(C91<>\"\",C91,\"\")","v":"Bonus Casa"},{"$f":"96000*N_Uimm","v":96000},{"$f":"IF(L91>R91,\"KO\",\"ok\")","v":"ok"},null,{"$f":"IF(L91<R91,L91,R91)","v":0},null,{"$f":"IF(L91>R91,L91-R91,0)","v":0},null,{"$f":"IF(M91<>0,J91*M91/L91,0)","v":0},null,{"$f":"IF(M91<>0,K91*M91/L91,0)","v":0},null,null,null,null,{"$f":"IF(ISNUMBER(AD91)=TRUE,IF(AD91<>0,F91/AD91,0),0)","v":0},0,{"$f":"IF(AG91<>0,IF(AF91>AG91,\"KO\",\"ok\"),\"ok\")","v":"ok"}]
[null,null,null,null,null,null,{"$f":"IF(ImpLav<>0,F92*ImpSicLav/ImpLav,0)","v":0},{"$f":"F92+G92","v":0},{"$f":"H92*AliqIva","v":0},{"$f":"H92+I92","v":0},{"$f":"IF(ImpLav<>0,F92*ImpTecLav/ImpLav,0)","v":0},{"$f":"SUM(J92:K92)","v":0},{"$f":"IF(L92<=R92,L92*E92,R92*E92)","v":0},null,null,null,{"$f":"IF(C92<>\"\",C92,\"\")","v":""},{"$f":"96000*N_Uimm","v":96000},{"$f":"IF(L92>R92,\"KO\",\"ok\")","v":"ok"},null,{"$f":"IF(L92<R92,L92,R92)","v":0},null,{"$f":"IF(L92>R92,L92-R92,0)","v":0},null,{"$f":"IF(M92<>0,J92*M92/L92,0)","v":0},null,{"$f":"IF(M92<>0,K92*M92/L92,0)","v":0},null,null,null,null,{"$f":"IF(ISNUMBER(AD92)=TRUE,IF(AD92<>0,F92/AD92,0),0)","v":0},0,{"$f":"IF(AG92<>0,IF(AF92>AG92,\"KO\",\"ok\"),\"ok\")","v":"ok"}]
[null,null,"Totale Altri Interventi  : ",null,null,{"$f":"SUM(F89:F92)","v":0},{"$f":"SUM(G89:G92)","v":0},0,0,0,{"$f":"SUM(K89:K92)","v":0},0,{"$f":"SUM(M89:M92)","v":0},null,null,null,null,{"$f":"C93","v":"Totale Altri Interventi  : "},null,null,{"$f":"SUM(U89:V92)","v":0},null,{"$f":"SUM(W89:X92)","v":0},null,{"$f":"SUM(Y89:Z92)","v":0},null,{"$f":"SUM(AA89:AB92)","v":0}]
[]
[]
[]
[]
[]
[null,null,"TOTALI PROGETTO",null,null,"Importo Lavori","Incidenza Sicurezza","Imponibile","Iva","Importo c.iva","Spese tecniche","Totale","Credito Spettante",null,null,null,{"$f":"C99","v":"TOTALI PROGETTO"},null,null,null,"Spesa Ammessa",null,"Quota Eccedente Massimale Spesa ",null,"Credito Spettante                            Quota Impresa | Quota Tecnici"]
[null,null,null,null,null,{"$f":"F81+F93","v":100},{"$f":"G81+G93","v":10},110,11,121,0,121,133.10000000000002,null,null,null,null,null,null,null,{"$f":"U81+U93","v":121},null,{"$f":"W81+W93","v":0},null,{"$f":"Y81+Y93","v":133.10000000000002},null,{"$f":"AA81+AA93","v":0}]
[]
[]
[]
[null,null,"Quota % effettiva per cessione credito a Banca o Impresa \"Interventi 110\"  ",null,null,null,null,{"$f":"100/110","v":0.90909090909090906},{"$f":"H104*110","v":100},"Importo Ricevuto",{"$f":"Detraz110*H104","v":121.00000000000001},"Costo Cessione 110",{"$f":"SpesaAmmessa110-K104","v":0}]
[null,null,null,null,null,null,"Quota % effettiva per cessione credito a Banca o Impresa \"Altri Interventi\"  ",0.8,{"$f":"H105*100","v":80},"Importo Ricevuto",{"$f":"M93*H105","v":0},"Costo Cessione Altri",{"$f":"M93-K105","v":0}]
[]
[null,null,null,null,null,null,null,null,null,null,null,"Quota Impresa","Quota Tecnici"]
[null,null,null,null,null,null,"Quota Eccedente Massimali Spesa \"Interventi 110\"  ",{"$f":"QuotaEcced110","v":0},"Credito Netto a seguito Cessione",null,{"$f":"SpesaAmmessa110-M104","v":121},{"$f":"IF(Detraz110<>0,QuotaImpresa110*K108/Detraz110,0)","v":121},{"$f":"IF(Detraz110<>0,QuotaTecnici110*K108/Detraz110,0)","v":0}]
[null,null,null,null,null,null,"Quota Eccedente Massimali Spesa \"Altri Interventi\" ",{"$f":"W93","v":0},"Credito Netto a seguito Cessione",null,{"$f":"M93-M105","v":0},{"$f":"IF(M93<>0,Y93*K109/M93,0)","v":0},{"$f":"IF(M93<>0,AA93*K109/M93,0)","v":0}]
[null,null,null,null,null,null,null,null,"Quota Cliente x Interventi 110",null,{"$f":"IF(Totale110-K108>0,Totale110-K108,0)","v":0},{"$f":"IF(Detraz110<>0,K110*QuotaImpresa110/Detraz110,0)","v":0},{"$f":"IF(Detraz110<>0,K110*QuotaTecnici110/Detraz110,0)","v":0}]
[null,null,null,null,null,null,null,null,"Quota Cliente x Altri Interventi",null,{"$f":"IF(L93-K109>0,L93-K109,0)","v":0},{"$f":"IF(M93<>0,K111*Y93/M93,0)","v":0},{"$f":"IF(M93<>0,K111*AA93/M93,0)","v":0}]
[null,null,null,null,null,null,null,null,"Quota Totale  a Carico Cliente",null,{"$f":"SUM(K110:K111)","v":0},{"$f":"SUM(L110:L111)","v":0},{"$f":"SUM(M110:M111)","v":0}]